Workbook

Sheet CF (hidden)
B2: CONDITIONAL FORMATTING MAP
F3: =INDEX(dms_CF_3.6.1, MATCH(dms_TradingName,dms_CF_TradingName))="Y" -> FALSE | G3: =INDEX(dms_CF_3.6.5, MATCH(dms_TradingName,dms_CF_TradingName))="Y" | H3: =INDEX(dms_CF_3.6.6, MATCH(dms_TradingName,dms_CF_TradingName))="Y" -> FALSE | I3: =INDEX(dms_CF_3.6.7.1, MATCH(dms_TradingName,dms_CF_TradingName))="Y" | J3: =INDEX(dms_CF_3.6.7.2, MATCH(dms_TradingName,dms_CF_TradingName))="Y" | K3: =INDEX(dms_CF_3.6.7.3, MATCH(dms_TradingName,dms_CF_TradingName))="Y" | L3: =INDEX(dms_CF_3.6.7.4, MATCH(dms_TradingName,dms_CF_TradingName))="Y" | M3: =INDEX(dms_CF_4.1, MATCH(dms_TradingName,dms_CF_TradingName))="Y" | N3: =INDEX(dms_CF_6.6.1, MATCH(dms_TradingName,dms_CF_TradingName))="Y" | O3: =INDEX(dms_CF_6.8, MATCH(dms_TradingName,dms_CF_TradingName))="Y" | P3: =INDEX(dms_CF_7.12, MATCH(dms_TradingName,dms_CF_TradingName))="Y" | Q3: =INDEX(dms_CF_8.1_A, MATCH(dms_TradingName,dms_CF_TradingName))="Y" | R3: =INDEX(dms_CF_8.1_B, MATCH(dms_TradingName,dms_CF_TradingName))="Y" | S3: =INDEX(dms_CF_8.1_Neg, MATCH(dms_TradingName,dms_CF_TradingName))="Y"
B4: dms_CF_TradingName | C4: JurisdictionList | D4: Sector | E4: Segment | F4: dms_CF_3.6.1 | G4: dms_CF_3.6.5 | H4: dms_CF_3.6.6 | I4: dms_CF_3.6.7.1 | J4: dms_CF_3.6.7.2 | K4: dms_CF_3.6.7.3 | L4: dms_CF_3.6.7.4 | M4: dms_CF_4.1 | N4: dms_CF_6.6.1 | O4: dms_CF_6.8 | P4: dms_CF_7.12 | Q4: dms_CF_8.1_A | R4: dms_CF_8.1_B | S4: dms_CF_8.1_Neg | T4: Spare1 | U4: Spare2
B5: ActewAGL Distribution | C5: ACT | D5: Electricity | E5: Distribution | G5: Y | I5: Y | J5: Y | K5: N | L5: Y | M5: Y | N5: N | O5: Y | P5: Y | Q5: N | R5: Y | S5: Y | T5: N | U5: N
B6: Ausgrid | C6: NSW | D6: Electricity | E6: Distribution | G6: Y | I6: N | J6: N | K6: N | L6: Y | M6: Y | N6: N | O6: Y | P6: Y | Q6: N | R6: Y | S6: Y | T6: N | U6: N
B7: AusNet (D) | C7: Vic | D7: Electricity | E7: Distribution | G7: N | I7: N | J7: N | K7: N | L7: N | M7: Y | N7: N | O7: Y | P7: N | Q7: N | R7: N | S7: Y | T7: N | U7: N
B8: AusNet (T) | C8: Vic | D8: Electricity | E8: Transmission | G8: N | I8: N | J8: N | K8: N | L8: N | M8: Y | N8: N | O8: Y | P8: N | Q8: N | R8: N | S8: Y | T8: N | U8: N
B9: CitiPower | C9: Vic | D9: Electricity | E9: Distribution | G9: N | I9: N | J9: N | K9: N | L9: N | M9: Y | N9: N | O9: Y | P9: N | Q9: N | R9: N | S9: Y | T9: N | U9: N
B10: Directlink | C10: Qld | D10: Electricity | E10: Transmission | G10: N | I10: N | J10: N | K10: N | L10: N | M10: Y | N10: N | O10: Y | P10: N | Q10: N | R10: Y | S10: Y | T10: N | U10: N
B11: ElectraNet | C11: SA | D11: Electricity | E11: Transmission | G11: N | I11: N | J11: N | K11: N | L11: N | M11: Y | N11: N | O11: Y | P11: N | Q11: N | R11: Y | S11: Y | T11: N | U11: N
B12: Endeavour Energy | C12: NSW | D12: Electricity | E12: Distribution | G12: Y | I12: N | J12: N | K12: N | L12: Y | M12: Y | N12: N | O12: Y | P12: Y | Q12: N | R12: Y | S12: Y | T12: N | U12: N
B13: Energex | C13: Qld | D13: Electricity | E13: Distribution | G13: Y | I13: N | J13: N | K13: N | L13: N | M13: Y | N13: N | O13: Y | P13: Y | Q13: N | R13: Y | S13: Y | T13: N | U13: N
B14: Ergon Energy | C14: Qld | D14: Electricity | E14: Distribution | G14: Y | I14: N | J14: N | K14: N | L14: N | M14: Y | N14: N | O14: Y | P14: Y | Q14: N | R14: Y | S14: Y | T14: N | U14: N
B15: Essential Energy | C15: NSW | D15: Electricity | E15: Distribution | G15: Y | I15: N | J15: N | K15: N | L15: Y | M15: Y | N15: N | O15: Y | P15: Y | Q15: N | R15: Y | S15: Y | T15: N | U15: N
B16: Jemena Electricity | C16: Vic | D16: Electricity | E16: Distribution | G16: N | I16: N | J16: N | K16: N | L16: N | M16: Y | N16: N | O16: Y | P16: N | Q16: N | R16: N | S16: Y | T16: N | U16: N
B17: Murraylink | C17: SA | D17: Electricity | E17: Transmission | G17: N | I17: N | J17: N | K17: N | L17: N | M17: Y | N17: N | O17: Y | P17: N | Q17: N | R17: Y | S17: Y | T17: N | U17: N
B18: Power and Water | C18: NT | D18: Electricity | E18: Distribution | G18: N | I18: N | J18: Y | K18: N | L18: N | M18: Y | N18: Y | O18: Y | P18: Y | Q18: N | R18: Y | S18: Y | T18: N | U18: N
B19: Powercor Australia | C19: Vic | D19: Electricity | E19: Distribution | G19: N | I19: N | J19: N | K19: N | L19: N | M19: Y | N19: N | O19: Y | P19: N | Q19: N | R19: N | S19: Y | T19: N | U19: N
B20: Powerlink | C20: Qld | D20: Electricity | E20: Transmission | G20: N | I20: N | J20: N | K20: N | L20: N | M20: Y | N20: N | O20: Y | P20: N | Q20: N | R20: Y | S20: Y | T20: N | U20: N
B21: SA Power Networks | C21: SA | D21: Electricity | E21: Distribution | G21: Y | I21: N | J21: N | K21: N | L21: N | M21: Y | N21: N | O21: Y | P21: Y | Q21: Y | R21: Y | S21: N | T21: N | U21: N
B22: TasNetworks (D) | C22: Tas | D22: Electricity | E22: Distribution | G22: Y | I22: N | J22: N | K22: N | L22: N | M22: Y | N22: N | O22: Y | P22: Y | Q22: N | R22: Y | S22: Y | T22: N | U22: N
B23: TasNetworks (T) | C23: Tas | D23: Electricity | E23: Transmission | G23: N | I23: N | J23: N | K23: N | L23: N | M23: Y | N23: N | O23: Y | P23: N | Q23: N | R23: Y | S23: Y | T23: N | U23: N
B24: TransGrid | C24: NSW | D24: Electricity | E24: Transmission | G24: N | I24: N | J24: N | K24: N | L24: N | M24: Y | N24: N | O24: Y | P24: N | Q24: N | R24: Y | S24: Y | T24: N | U24: N
B25: United Energy | C25: Vic | D25: Electricity | E25: Distribution | G25: N | I25: N | J25: N | K25: N | L25: N | M25: Y | N25: N | O25: Y | P25: N | Q25: N | R25: N | S25: Y | T25: N | U25: N
C124: 0 | E124: =IFERROR(IF(dms_060801_StartCell<>"",IF(dms_Model="ARR",(LOOKUP(2,1/(dms_060801_01_Values<>""),(ROW(dms_060801_01_Values)))),"not an ARR"),0),"0")
C125: =IFERROR(IF(dms_Model="ARR",(MAX(0,dms_0608_LastRow-dms_0608_OffsetRows)),"not an ARR"),"0") -> not an ARR | E125: =IFERROR(IF(dms_Model="ARR",(MAX(0,dms_0608_LastRow-dms_0608_OffsetRows)),"not an ARR"),"0")

Sheet AER only (hidden)
B1: Data in these columns used for data validation and database purposes.
B2: Date last modified: | C2: 2017-01-16 | D2: added (Albury and Victora) for AGN
C3: 2016-10-17 | D3: updated TransGrid's correct legal name, corrected TasNetworks (T) to June financial year
C4: 2017-02-01 | D4: inserted Power and Water, added NRs (dms_FeederCat_1 and dms_FeederCat_2)
C5: 2017-03-03 | D5: inserted AEMO as a business | AB5: FOR ELECTRICITY BUSINESSES ONLY
C6: 2018-03-28 | D6: major changes to accommodate STPIS
C7: Template Version | D7: 5 | AB7: Feeder Types | AF7: TasNetworks (D) | AG7: MAIFI flag | AH7: Feeder Names
AB9: CBD | AC9: Urban | AD9: Short rural | AE9: long rural | AF9: EXTRA
B10: dms_TradingName_List | C10: dms_TradingNameFull_List | D10: dms_ABN_List | E10: dms_JurisdictionList | F10: dms_Sector_List | G10: dms_Segment_List | H10: dms_FormControl_List | I10: dms_RPT_List | J10: dms_RPTMonth_List | K10: dms_CRCPlength_List | L10: dms_FRCPlength_List | M10: dms_663_List | N10: dms_DeterminationRef_List | O10: dms_Addr1_List | P10: dms_Addr2_List | Q10: dms_Suburb_List | R10: dms_State_List | S10: dms_PostCode_List | T10: dms_PAddr1_List | U10: dms_PAddr2_List | V10: dms_PSuburb_List | W10: dms_PState_List | X10: dms_PPostCode_List | Y10: dms_ContactName1_List | Z10: dms_ContactPh1_List | AA10: dms_ContactEmail_List | AB10: dms_CBD_flag | AC10: dms_Urban_flag | AD10: dms_ShortRural_flag | AE10: dms_LongRural_flag | AF10: dms_FeederType_5_flag | AG10: dms_MAIFI_flag_List | AH10: dms_FeederName_1 | AI10: dms_FeederName_2 | AJ10: dms_FeederName_3 | AK10: dms_FeederName_4 | AL10: dms_FeederName_5 | AM10: dms_Public_Lighting_List | AN10: Column1
B11: ActewAGL Distribution | C11: ActewAGL Distribution | D11: 76670568688 | E11: ACT | F11: Electricity | G11: Distribution | H11: Revenue cap | I11: Financial | J11: June | K11: 5 | L11: 5 | M11: 5 | N11: 2014-19 Distribution Determination | O11: 40 Bunda Street | Q11: CANBERRA | R11: ACT | S11: 2600 | T11: GPO BOX 366 | V11: CANBERRA | W11: ACT | X11: 2601 | Y11: Robert Walker | Z11: 02 6248 3847 | AA11: robert.walker@actewagle.com.au | AB11: NO | AC11: YES | AD11: YES | AE11: NO | AF11: NO | AG11: NO | AH11: CBD | AI11: Urban | AJ11: Short rural | AK11: Long rural | AM11: YES | AN11: ActewAGL Distribution
B12: ActewAGL Distribution (Tx Assets) | C12: ActewAGL Distribution (Tx Assets) | D12: 76670568688 | E12: ACT | F12: Electricity | G12: Distribution | H12: Revenue cap | I12: Financial | J12: June | K12: 5 | L12: 5 | M12: 5 | N12: distribution determination | O12: 40 Bunda Street | Q12: CANBERRA | R12: ACT | S12: 2600 | T12: GPO BOX 366 | V12: CANBERRA | W12: ACT | X12: 2601 | Y12: Robert Walker | Z12: 02 6248 3847 | AA12: robert.walker@actewagle.com.au | AB12: NO | AC12: YES | AD12: YES | AE12: NO | AF12: NO | AG12: NO | AH12: CBD | AI12: Urban | AJ12: Short rural | AK12: Long rural | AM12: NO | AN12: ActewAGL Distribution (Tx Assets)
B13: ActewAGL Gas | C13: ActewAGL Gas | D13: 76670568688 | E13: ACT | F13: Gas | G13: Distribution | H13: Weighted average price cap | I13: Financial | J13: June | K13: 5 | L13: 5 | M13: x | O13: 40 Bunda Street | Q13: CANBERRA | R13: ACT | S13: 2600 | T13: GPO BOX 366 | V13: CANBERRA | W13: ACT | X13: 2601 | Y13: Philip Deamer | Z13: 02 6248 3438 | AA13: GasAAReview@actewagl.com.au | AB13: NO | AC13: NO | AD13: NO | AE13: NO | AF13: NO | AG13: - | AH13: CBD | AI13: Urban | AJ13: Short rural | AK13: Long rural | AM13: NO | AN13: ActewAGL Gas
B14: AEMO | C14: Australian Energy Market Operator Ltd | D14: 94072010327 | E14: Vic | F14: Electricity | G14: Transmission | H14: - | I14: Financial | J14: March | K14: 5 | L14: 5 | M14: x | N14: - | O14: Level 22 | P14: 530 Collins Street | Q14: MELBOURNE | R14: VIC | S14: 3000 | T14: GPO Box 2008 | V14: MELBOURNE | W14: VIC | X14: 3001 | AB14: NO | AC14: NO | AD14: NO | AE14: NO | AF14: NO | AG14: - | AH14: CBD | AI14: Urban | AJ14: Short rural | AK14: Long rural | AM14: NO | AN14: AEMO
B15: AGN (Albury and Victoria) | C15: Australian Gas Networks Limited (reporting data for Albury and Victoria) | D15: 19078551685 | E15: Vic | F15: Gas | G15: Distribution | H15: Weighted average price cap | I15: Calendar | J15: December | K15: 5 | L15: 5 | M15: x | O15: Level 6 | P15: 400 King William Street | Q15: ADELAIDE | R15: SA | S15: 5000 | T15: PO Box 6468 | U15: Halifax Street | V15: ADELAIDE | W15: SA | X15: 5000 | Y15: Craig de Laine | Z15: 08 8418 1129 | AA15: craig.delaine@agn.com.au | AB15: NO | AC15: NO | AD15: NO | AE15: NO | AF15: NO | AG15: - | AH15: CBD | AI15: Urban | AJ15: Short rural | AK15: Long rural | AM15: NO | AN15: AGN (Albury)
B16: AGN (Albury) | C16: Australian Gas Networks Limited (reporting data for Albury) | D16: 19078551685 | E16: Vic | F16: Gas | G16: Distribution | H16: Weighted average price cap | I16: Calendar | J16: December | K16: 5 | L16: 5 | M16: x | O16: Level 6 | P16: 400 King William Street | Q16: ADELAIDE | R16: SA | S16: 5000 | T16: PO Box 6468 | U16: Halifax Street | V16: ADELAIDE | W16: SA | X16: 5000 | Y16: Craig de Laine | Z16: 08 8418 1129 | AA16: craig.delaine@agn.com.au | AB16: NO | AC16: NO | AD16: NO | AE16: NO | AF16: NO | AG16: - | AH16: CBD | AI16: Urban | AJ16: Short rural | AK16: Long rural | AM16: NO
B17: AGN (SA) | C17: Australian Gas Networks Limited (reporting data for SA) | D17: 19078551685 | E17: SA | F17: Gas | G17: Distribution | H17: Weighted average price cap | I17: Financial | J17: June | K17: 5 | L17: 5 | M17: 5 | N17: distribution determination | O17: Level 6 | P17: 400 King William Street | Q17: ADELAIDE | R17: SA | S17: 5000 | T17: PO Box 6468 | U17: Halifax Street | V17: ADELAIDE | W17: SA | X17: 5000 | Y17: Craig de Laine | Z17: 08 8418 1129 | AA17: craig.delaine@agn.com.au | AB17: NO | AC17: NO | AD17: NO | AE17: NO | AF17: NO | AG17: - | AH17: CBD | AI17: Urban | AJ17: Short rural | AK17: Long rural | AM17: NO | AN17: AGN (SA)
B18: AGN (Victoria) | C18: Australian Gas Networks Limited (reporting data for Victoria) | D18: 19078551685 | E18: Vic | F18: Gas | G18: Distribution | H18: Weighted average price cap | I18: Calendar | J18: December | K18: 5 | L18: 5 | M18: x | O18: Level 6 | P18: 400 King William Street | Q18: ADELAIDE | R18: SA | S18: 5000 | T18: PO Box 6468 | U18: Halifax Street | V18: ADELAIDE | W18: SA | X18: 5000 | Y18: Craig de Laine | Z18: 08 8418 1129 | AA18: craig.delaine@agn.com.au | AB18: NO | AC18: NO | AD18: NO | AE18: NO | AF18: NO | AG18: - | AH18: CBD | AI18: Urban | AJ18: Short rural | AK18: Long rural | AM18: NO | AN18: AGN (Victoria)
B19: Amadeus | C19: APT Pipelines (NT) Pty Ltd | D19: 39009737393 | E19: NT | F19: Gas | G19: Transmission | H19: Weighted average price cap | I19: Financial | J19: June | K19: 5 | L19: 5 | M19: x | N19: n/a | O19: Level 19, HSBC Building | P19: 580 George Street | Q19: SYDNEY | R19: NSW | S19: 2000 | T19: Level 19, HSBC Building | U19: 580 George Street | V19: SYDNEY | W19: NSW | X19: 2000 | Y19: Alexandra Curran | Z19: 02 9275 0020 | AA19: alexandra.curran@apa.com.au | AB19: NO | AC19: NO | AD19: NO | AE19: NO | AF19: NO | AG19: - | AH19: CBD | AI19: Urban | AJ19: Short rural | AK19: Long rural | AM19: NO | AN19: Amadeus
B20: APA GasNet | C20: APA GasNet Australia (Operations) Pty Ltd | D20: 065083009 | E20: Vic | F20: Gas | G20: Transmission | H20: Weighted average price cap | I20: Calendar | J20: December | K20: 5 | L20: 5 | M20: x | O20: Level 19, HSBC Building | P20: 580 George Street | Q20: SYDNEY | R20: NSW | S20: 2000 | T20: PO Box R41 | V20: ROYAL EXCHANGE | W20: NSW | X20: 1225 | Y20: Alexandra Curran | Z20: 02 9275 0020 | AA20: alexandra.curran@apa.com.au | AB20: NO | AC20: NO | AD20: NO | AE20: NO | AF20: NO | AG20: - | AH20: CBD | AI20: Urban | AJ20: Short rural | AK20: Long rural | AM20: NO | AN20: APA GasNet
B21: Ausgrid | C21: Ausgrid | D21: 78508211731 | E21: NSW | F21: Electricity | G21: Distribution | H21: Revenue cap | I21: Financial | J21: June | K21: 5 | L21: 5 | M21: 5 | N21: 2014-19 Distribution Determination | O21: 570 George St | Q21: SYDNEY | R21: NSW | S21: 2000 | T21: GPO Box 4009 | V21: SYDNEY | W21: NSW | X21: 2001 | Y21: John Thomson | Z21: 02 9269 2312 | AA21: john.thomson@ausgrid.com.au | AB21: YES | AC21: YES | AD21: YES | AE21: YES | AF21: NO | AG21: NO | AH21: CBD | AI21: Urban | AJ21: Short rural | AK21: Long rural | AM21: YES | AN21: Ausgrid
B22: Ausgrid (Tx Assets) | C22: Ausgrid (Tx Assets) | D22: 67505337385 | E22: NSW | F22: Electricity | G22: Distribution | H22: Revenue cap | I22: Financial | J22: June | K22: 5 | L22: 5 | M22: 5 | N22: distribution determination | O22: 570 George St | Q22: SYDNEY | R22: NSW | S22: 2000 | T22: GPO Box 4009 | V22: SYDNEY | W22: NSW | X22: 2001 | Y22: John Thomson | Z22: 02 9269 2312 | AA22: john.thomson@ausgrid.com.au | AB22: YES | AC22: YES | AD22: YES | AE22: YES | AF22: NO | AG22: NO | AH22: CBD | AI22: Urban | AJ22: Short rural | AK22: Long rural | AM22: NO | AN22: Ausgrid (Tx Assets)
B23: AusNet (D) | C23: AusNet Electricity Services Pty Ltd | D23: 91064651118 | E23: Vic | F23: Electricity | G23: Distribution | H23: Revenue cap | I23: Calendar | J23: December | K23: 5 | L23: 5 | M23: 2 | N23: 2016-20 Distribution Determination | O23: Level 32 | P23: 2 Southbank Boulevard | Q23: SOUTHBANK | R23: Vic | S23: 3006 | T23: Locked Bag 14051 | V23: MELBOURNE CITY MAIL CENTRE | W23: VIC | X23: 8001 | Y23: Thomas Hall | AA23: thomas. hall@ausnetservices.com.au | AB23: NO | AC23: YES | AD23: YES | AE23: YES | AF23: NO | AG23: YES | AH23: CBD | AI23: Urban | AJ23: Short rural | AK23: Long rural | AM23: YES | AN23: AusNet (D)
B24: AusNet (Gas) | C24: AusNet Gas Services | D24: 086015036 | E24: Vic | F24: Gas | G24: Distribution | H24: Weighted average price cap | I24: Calendar | J24: December | K24: 5 | L24: 5 | M24: X | O24: Level 19, HSBC Building | P24: 580 George Street | Q24: SYDNEY | R24: NSW | S24: 2000 | T24: PO Box R41 | V24: ROYAL EXCHANGE | W24: NSW | X24: 1225 | Y24: Alexandra Curran | Z24: 02 9275 0020 | AA24: alexandra.curran@apa.com.au | AB24: NO | AC24: NO | AD24: NO | AE24: NO | AF24: NO | AG24: - | AH24: CBD | AI24: Urban | AJ24: Short rural | AK24: Long rural | AM24: NO | AN24: AusNet (Gas)
B25: AusNet (T) | C25: Ausnet Services (Transmission) Ltd | D25: 48116124362 | E25: Vic | F25: Electricity | G25: Transmission | H25: Revenue cap | I25: Financial | J25: March | K25: 5 | L25: 5 | M25: 2 | N25: transmission determination | O25: Level 32 | P25: 2 Southbank Boulevard | Q25: SOUTHBANK | R25: Vic | S25: 3006 | T25: Locked Bag 14051 | V25: MELBOURNE CITY MAIL CENTRE | W25: Vic | X25: 8001 | Y25: Clare Thompson | Z25: 03 9695 6670 | AA25: clare.e.thompson@ausnetservices.com.au | AB25: NO | AC25: NO | AD25: NO | AE25: NO | AF25: NO | AG25: - | AH25: CBD | AI25: Urban | AJ25: Short rural | AK25: Long rural | AM25: NO | AN25: AusNet (T)
B26: Australian Distribution Co. | C26: Australian Distribution Co. | D26: 11222333444 | E26: - | F26: Electricity | G26: Distribution | H26: Revenue cap | I26: Financial | J26: June | K26: 5 | L26: 5 | M26: 2 | N26: distribution determination | O26: 123 Straight Street | Q26: SYDNEY | R26: NSW | S26: 2000 | T26: PO Box 123 | V26: SYDNEY | W26: NSW | X26: 2000 | Y26: Bob Smith | Z26: 02 1234 5678 | AA26: bob@auselec.net.au | AB26: YES | AC26: YES | AD26: YES | AE26: YES | AF26: NO | AG26: NO | AH26: CBD | AI26: Urban | AJ26: Short rural | AK26: Long rural | AM26: YES | AN26: Australian Distribution Co.
B27: Australian Distribution Co. (Gas) | C27: Australian Gas Distribution Co. | D27: 11222333444 | E27: NSW | F27: Gas | G27: Distribution | H27: Weighted average price cap | I27: Financial | J27: June | K27: 5 | L27: 5 | O27: 123 Straight Street | Q27: SYDNEY | R27: NSW | S27: 2000 | T27: PO Box 123 | V27: SYDNEY | W27: NSW | X27: 2000 | Y27: Bob Smith | Z27: 02 1234 5678 | AA27: bob@auselec.net.au | AB27: NO | AC27: NO | AD27: NO | AE27: NO | AF27: NO | AG27: - | AH27: CBD | AI27: Urban | AJ27: Short rural | AK27: Long rural | AM27: NO | AN27: Australian Distribution Co. (Vic)
B28: Australian Distribution Co. (Vic) | C28: Australian Distribution Co. (Victoria) | D28: 11222333444 | E28: Vic | F28: Electricity | G28: Distribution | H28: Revenue cap | I28: Calendar | J28: December | K28: 5 | L28: 5 | M28: 2 | N28: distribution determination | O28: 123 Straight Street | Q28: MELBOURNE | R28: Vic | S28: 3000 | T28: PO Box 123 | V28: MELBOURNE | W28: VIC | X28: 3000 | Y28: Bob Smith | Z28: 02 1234 5678 | AA28: bob@auselec.net.au | AB28: NO | AC28: NO | AD28: NO | AE28: NO | AF28: NO | AG28: YES | AH28: CBD | AI28: Urban | AJ28: Short rural | AK28: Long rural | AM28: YES | AN28: Australian Distribution Co. (Vic)
B29: Australian Transmission Co. | C29: Australian Transmission Co. | D29: 11222333444 | E29: - | F29: Electricity | G29: Transmission | H29: Revenue cap | I29: Financial | J29: June | K29: 5 | L29: 5 | M29: 5 | N29: transmission determination | O29: 123 Straight Street | Q29: SYDNEY | R29: NSW | S29: 2000 | T29: PO Box 123 | V29: SYDNEY | W29: NSW | X29: 2000 | Y29: Bob Smith | Z29: 02 1234 5678 | AA29: bob@auselec.net.au | AB29: NO | AC29: NO | AD29: NO | AE29: NO | AF29: NO | AG29: - | AH29: CBD | AI29: Urban | AJ29: Short rural | AK29: Long rural | AM29: NO | AN29: Australian Transmission Co.
B30: Central Ranges Pipeline (D) | C30: Central Ranges Pipeline Pty Ltd | D30: 108218355 | E30: NSW | F30: Gas | G30: Distribution | H30: Weighted average price cap | I30: Financial | J30: June | K30: 15 | L30: 5 | M30: 5 | N30: distribution determination | O30: Level 19 | P30: 580 George Street | Q30: SYDNEY | R30: NSW | S30: 2000 | T30: PO Box R41 | V30: ROYAL EXCHANGE | W30: NSW | X30: 1225 | Y30: Scott Young | Z30: 02 9275 0031 | AA30: scott.young@apa.com.au | AB30: NO | AC30: NO | AD30: NO | AE30: NO | AF30: NO | AG30: - | AH30: CBD | AI30: Urban | AJ30: Short rural | AK30: Long rural | AM30: NO
B31: Central Ranges Pipeline (T) | C31: Central Ranges Pipeline Pty Ltd | D31: 108218355 | E31: NSW | F31: Gas | G31: Distribution | H31: Weighted average price cap | I31: Financial | J31: June | K31: 14 | L31: 5 | M31: 5 | N31: transmission determination | O31: Level 19 | P31: 580 George Street | Q31: SYDNEY | R31: NSW | S31: 2000 | T31: PO Box R41 | V31: ROYAL EXCHANGE | W31: NSW | X31: 1225 | Y31: Scott Young | Z31: 02 9275 0031 | AA31: scott.young@apa.com.au | AB31: NO | AC31: NO | AD31: NO | AE31: NO | AF31: NO | AG31: - | AH31: CBD | AI31: Urban | AJ31: Short rural | AK31: Long rural | AM31: NO
B32: CitiPower | C32: CitiPower | D32: 76064651056 | E32: Vic | F32: Electricity | G32: Distribution | H32: Revenue cap | I32: Calendar | J32: December | K32: 5 | L32: 5 | M32: 2 | N32: 2016-20 Distribution Determination | O32: 40 Market Street | Q32: MELBOURNE | R32: Vic | S32: 3000 | T32: Locked Bag 14090 | V32: MELBOURNE | W32: VIC | X32: 8001 | Y32: Hannah Williams | Z32: 03 9683 4088 | AA32: hwilliams@powercor.com.au | AB32: YES | AC32: YES | AD32: NO | AE32: NO | AF32: NO | AG32: YES | AH32: CBD | AI32: Urban | AJ32: Short rural | AK32: Long rural | AM32: YES | AN32: CitiPower
B33: Directlink | C33: Directlink | D33: 16779340889 | E33: Qld | F33: Electricity | G33: Transmission | H33: Revenue cap | I33: Financial | J33: June | K33: 5 | L33: 5 | M33: 5 | N33: transmission determination | O33: Level 19, HSBC Building | P33: 580 George Street | Q33: SYDNEY | R33: NSW | S33: 2000 | T33: PO Box R41 | V33: ROYAL EXCHANGE | W33: NSW | X33: 1225 | Y33: Scott Young | Z33: 02 9275 0031 | AA33: scott.young@apa.com.au | AB33: NO | AC33: NO | AD33: NO | AE33: NO | AF33: NO | AG33: - | AH33: CBD | AI33: Urban | AJ33: Short rural | AK33: Long rural | AM33: NO | AN33: Directlink
B34: ElectraNet | C34: ElectraNet | D34: 41094482416 | E34: SA | F34: Electricity | G34: Transmission | H34: Revenue cap | I34: Financial | J34: June | K34: 5 | L34: 5 | M34: 5 | N34: transmission determination | O34: 52-55 East Terrace | P34: Rymill Park | Q34: ADELAIDE | R34: SA | S34: 5000 | T34: PO Box 7096 | U34: Hutt Street Post Office | V34: ADELAIDE | W34: SA | X34: 5000 | Y34: Bill Jackson | Z34: 08 8404 7969 | AA34: jackson.bill@electranet.com.au | AB34: NO | AC34: NO | AD34: NO | AE34: NO | AF34: NO | AG34: - | AH34: CBD | AI34: Urban | AJ34: Short rural | AK34: Long rural | AM34: NO | AN34: ElectraNet
B35: Endeavour Energy | C35: Endeavour Energy | D35: 11247365823 | E35: NSW | F35: Electricity | G35: Distribution | H35: Revenue cap | I35: Financial | J35: June | K35: 5 | L35: 5 | M35: 5 | N35: 2014-19 Distribution Determination | O35: 51 Huntingwood Drive | Q35: HUNTINGWOOD | R35: NSW | S35: 2148 | T35: PO Box 811 | V35: SEVEN HILLS | W35: NSW | X35: 1730 | Y35: Jon Hocking | Z35: 02 9853 4386 / 0407 348 156 | AA35: Jon.Hocking@Endeavourenergy.com.au | AB35: NO | AC35: YES | AD35: YES | AE35: YES | AF35: NO | AG35: NO | AH35: CBD | AI35: Urban | AJ35: Short rural | AK35: Long rural | AM35: YES | AN35: Endeavour Energy
B36: Energex | C36: Energex | D36: 40078849055 | E36: Qld | F36: Electricity | G36: Distribution | H36: Revenue cap | I36: Financial | J36: June | K36: 5 | L36: 5 | M36: 5 | N36: 2015-20 Distribution Determination | O36: 26 Reddacliff Street | Q36: NEWSTEAD | R36: Qld | S36: 4006 | T36: 26 Reddacliff Street | V36: NEWSTEAD | W36: QLD | X36: 4006 | Y36: Jenny Doyle, Group Manager Regulatory Affairs | Z36: (07) 3851 6416 | AA36: jenny.doyle@ergon.com.au | AB36: YES | AC36: YES | AD36: YES | AE36: NO | AF36: NO | AG36: NO | AH36: CBD | AI36: Urban | AJ36: Short rural | AK36: Long rural | AM36: YES | AN36: Energex
B37: Ergon Energy | C37: Ergon Energy | D37: 50087646062 | E37: Qld | F37: Electricity | G37: Distribution | H37: Revenue cap | I37: Financial | J37: June | K37: 5 | L37: 5 | M37: 5 | N37: 2015-20 Distribution Determination | O37: 22 Walker Street | Q37: TOWNSVILLE | R37: Qld | S37: 4810 | T37: Po Box 264 | V37: FORTITUDE VALLEY | W37: QLD | X37: 4006 | Y37: Jenny Doyle, Group Manager Regulatory Affairs | Z37: (07) 3851 6416 | AA37: jenny.doyle@ergon.com.au | AB37: NO | AC37: YES | AD37: YES | AE37: YES | AF37: NO | AG37: NO | AH37: CBD | AI37: Urban | AJ37: Short rural | AK37: Long rural | AM37: YES | AN37: Ergon Energy
B38: Essential Energy | C38: Essential Energy | D38: 37428185226 | E38: NSW | F38: Electricity | G38: Distribution | H38: Revenue cap | I38: Financial | J38: June | K38: 5 | L38: 5 | M38: 5 | N38: 2014-19 Distribution Determination | O38: 8 Buller Street | Q38: PORT MACQUARIE | R38: NSW | S38: 2444 | T38: PO Box 5730 | V38: PORT MACQUARIE | W38: NSW | X38: 2444 | Y38: Catherine Waddell | Z38: 02 6338 3553 | AA38: catherine.waddell@essentialenergy.com.au | AB38: NO | AC38: NO | AD38: YES | AE38: YES | AF38: NO | AG38: NO | AH38: CBD | AI38: Urban | AJ38: Short rural | AK38: Long rural | AM38: YES | AN38: Essential Energy
B39: Jemena Electricity | C39: Jemena Electricity | D39: 82064651083 | E39: Vic | F39: Electricity | G39: Distribution | H39: Revenue cap | I39: Calendar | J39: December | K39: 5 | L39: 5 | M39: 2 | N39: 2016-20 Distribution Determination | O39: Level 16 | P39: 567 Collins Street | Q39: MELBOURNE | R39: VIC | S39: 3000 | T39: PO Box 16182 | V39: MELBOURNE | W39: VIC | X39: 8001 | Y39: Matthew Serpell | Z39: 03 9173 8231 | AA39: matthew.serpell@jemena.com.au | AB39: NO | AC39: YES | AD39: YES | AE39: NO | AF39: NO | AG39: YES | AH39: CBD | AI39: Urban | AJ39: Short rural | AK39: Long rural | AM39: YES | AN39: Jemena Electricity
B40: JGN | C40: Jemena Gas Networks (NSW) Ltd | D40: 003 004 322 | E40: NSW | F40: Gas | G40: Distribution | H40: Weighted average price cap | I40: Financial | J40: June | K40: 5 | L40: 5 | O40: Level 16 | P40: 567 Collins Street | Q40: MELBOURNE | R40: VIC | S40: 3000 | T40: PO Box 16182 | V40: MELBOURNE | W40: VIC | X40: 8001 | Y40: Scott Young | AB40: NO | AC40: NO | AD40: NO | AE40: NO | AF40: NO | AG40: - | AH40: CBD | AI40: Urban | AJ40: Short rural | AK40: Long rural | AM40: NO | AN40: JGN
B41: Multinet Gas | C41: Multinet Gas (DB No.1) Pty Ltd (ACN 086 026 986), Multinet Gas (DB No.2) Pty Ltd (ACN 086 230 122) | D41: 086026986 | E41: Vic | F41: Gas | G41: Distribution | H41: Weighted average price cap | I41: Calendar | J41: December | K41: 5 | L41: 5 | M41: x | O41: 43-45 Centreway | Q41: MT WAVERLEY | R41: Vic | S41: 3149 | Y41: Andrew Schille | Z41: 03 8846 9860 | AA41: andrew.schille@ue.com.au | AB41: NO | AC41: NO | AD41: NO | AE41: NO | AF41: NO | AG41: - | AH41: CBD | AI41: Urban | AJ41: Short rural | AK41: Long rural | AM41: NO | AN41: Multinet Gas
B42: Murraylink | C42: Murraylink | D42: 79181207909 | E42: SA | F42: Electricity | G42: Transmission | H42: Revenue cap | I42: Financial | J42: June | K42: 5 | L42: 5 | M42: 5 | N42: transmission determination | O42: Level 19 | P42: 580 George Street | Q42: SYDNEY | R42: NSW | S42: 2000 | T42: PO Box R41 | V42: ROYAL EXCHANGE | W42: NSW | X42: 1225 | Y42: Scott Young | Z42: 02 9275 0031 | AA42: scott.young@apa.com.au | AB42: NO | AC42: NO | AD42: NO | AE42: NO | AF42: NO | AG42: - | AH42: CBD | AI42: Urban | AJ42: Short rural | AK42: Long rural | AM42: NO | AN42: Murraylink
B43: Power and Water | C43: Power and Water Corporation | D43: 15947352360 | E43: NT | F43: Electricity | G43: Distribution | H43: Revenue cap | I43: Financial | J43: June | K43: 5 | L43: 5 | M43: x | N43: distribution determination | O43: GPO Box 1921 | Q43: DARWIN | R43: NT | S43: 801 | T43: GPO Box 1921 | V43: DARWIN | W43: NT | X43: 801 | Y43: Lucy Moon | Z43: 08 8924 5822 | AA43: Lucy.Moon@powerwater.com.au | AB43: YES | AC43: YES | AD43: YES | AE43: YES | AF43: NO | AG43: NO | AH43: CBD | AI43: Urban | AJ43: Short rural | AK43: Long rural | AM43: NO | AN43: Power and Water
B44: Powercor Australia | C44: Powercor Australia | D44: 89064651109 | E44: Vic | F44: Electricity | G44: Distribution | H44: Revenue cap | I44: Calendar | J44: December | K44: 5 | L44: 5 | M44: 2 | N44: 2016-20 Distribution Determination | O44: 40 Market Street | Q44: MELBOURNE | R44: Vic | S44: 3000 | T44: Locked bag 14090 | V44: MELBOURNE | W44: VIC | X44: 8001 | Y44: Hannah Williams | Z44: 03 9683 4088 | AA44: hwilliams@powercor.com.au | AB44: NO | AC44: NO | AD44: YES | AE44: YES | AF44: NO | AG44: YES | AH44: CBD | AI44: Urban | AJ44: Short rural | AK44: Long rural | AM44: YES | AN44: Powercor Australia
B45: Powerlink | C45: Queensland Electricity Transmission Corporation Limited trading as Powerlink Queensland | D45: 82078849233 | E45: Qld | F45: Electricity | G45: Transmission | H45: Revenue cap | I45: Financial | J45: June | K45: 5 | L45: 5 | M45: 5 | N45: transmission determination | O45: 33 Harold St | Q45: VIRGINIA | R45: Qld | S45: 4014 | T45: PO Box 1193 | V45: VIRGINIA | W45: QLD | X45: 4014 | Y45: Jennifer Harris | Z45: 07 3860 2667 | AA45: jharris@powerlink.com.au | AB45: NO | AC45: NO | AD45: NO | AE45: NO | AF45: NO | AG45: - | AH45: CBD | AI45: Urban | AJ45: Short rural | AK45: Long rural | AM45: NO | AN45: Powerlink
B46: Roma to Brisbane Pipeline | C46: APT Petroleum Pipelines Limited t/a Roma to Brisbane Pipeline | D46: 009 737 393 | E46: Qld | F46: Gas | G46: Transmission | H46: Weighted average price cap | I46: Financial | J46: June | K46: 5 | L46: 5 | M46: x | N46: n/a | O46: 580 George Street | Q46: SYDNEY | R46: NSW | S46: 2000 | T46: PO Box R41 | V46: ROYAL EXCHANGE | W46: NSW | X46: 1225 | Y46: Mark Allen | Z46: 02 9275 0010 | AA46: mark.allen@apa.com.au | AB46: NO | AC46: NO | AD46: NO | AE46: NO | AF46: NO | AG46: - | AH46: CBD | AI46: Urban | AJ46: Short rural | AK46: Long rural | AM46: NO | AN46: Roma to Brisbane Pipeline
B47: SA Power Networks | C47: SA Power Networks | D47: 13332330749 | E47: SA | F47: Electricity | G47: Distribution | H47: Revenue cap | I47: Financial | J47: June | K47: 5 | L47: 5 | M47: 5 | N47: 2015-20 Distribution Determination | O47: 1 Anzac Highway | Q47: KESWICK | R47: SA | S47: 5035 | T47: GPO Box 77 | V47: ADELAIDE | W47: SA | X47: 5000 | Y47: Richard Sibly | Z47: 08 8404 5613 | AA47: richard.sibly@sapowernetworks.com.au | AB47: NO | AC47: NO | AD47: YES | AE47: YES | AF47: NO | AG47: NO | AH47: CBD | AI47: Urban | AJ47: Short rural | AK47: Long rural | AM47: NO | AN47: SA Power Networks
B48: TasNetworks (D) | C48: TasNetworks (D) | D48: 24167357299 | E48: Tas | F48: Electricity | G48: Distribution | H48: Revenue cap | I48: Financial | J48: June | K48: 5 | L48: 5 | M48: 5 | N48: distribution determination | O48: 1-7 Maria Street | Q48: LENAH VALLEY | R48: Tas | S48: 7008 | T48: PO Box 606 | V48: MOONAH | W48: Tas | X48: 7009 | Y48: John Sayers | Z48: 03 6271 6469 | AA48: john.sayers@tasnetworks.com.au | AB48: YES | AC48: YES | AD48: YES | AE48: YES | AF48: YES | AG48: NO | AH48: Critical Infrastructure | AI48: High density commercial | AJ48: Urban | AK48: High density rural | AL48: Low density rural | AM48: YES | AN48: TasNetworks (D)
B49: TasNetworks (T) | C49: TasNetworks (T) | D49: 24167357299 | E49: Tas | F49: Electricity | G49: Transmission | H49: Revenue cap | I49: Financial | J49: June | K49: 5 | L49: 5 | M49: 5 | N49: transmission determination | O49: 1-7 Maria Street | Q49: LENAH VALLEY | R49: Tas | S49: 7008 | T49: PO Box 606 | V49: MOONAH | W49: Tas | X49: 7009 | Y49: John Sayers | Z49: 03 6271 6469 | AA49: john.sayers@tasnetworks.com.au | AB49: NO | AC49: NO | AD49: NO | AE49: NO | AF49: NO | AG49: - | AH49: CBD | AI49: Urban | AJ49: Short rural | AK49: Long rural | AM49: NO | AN49: TasNetworks (T)
B50: TransGrid | C50: NSW Electricity Networks Operations Pty Ltd trading as TransGrid | D50: 70 250 995 390 | E50: NSW | F50: Electricity | G50: Transmission | H50: Revenue cap | I50: Financial | J50: June | K50: 4 | L50: 5 | M50: 5 | N50: transmission determination | O50: 180 Thomas Street | Q50: SYDNEY | R50: NSW | S50: 2000 | T50: PO Box A1000 | V50: SYDNEY SOUTH | W50: NSW | X50: 1235 | Y50: Garrie Chubb | Z50: 0408 210 221 | AA50: garrie.chubb@transgrid.com.au | AB50: NO | AC50: NO | AD50: NO | AE50: NO | AF50: NO | AG50: - | AH50: CBD | AI50: Urban | AJ50: Short rural | AK50: Long rural | AM50: NO | AN50: TransGrid
B51: United Energy | C51: United Energy | D51: 70064651029 | E51: Vic | F51: Electricity | G51: Distribution | H51: Revenue cap | I51: Calendar | J51: December | K51: 5 | L51: 5 | M51: 2 | N51: 2016-20 Distribution Determination | O51: 43-45 Centreway | Q51: MOUNT WAVERLEY | R51: Vic | S51: 3149 | T51: PO Box 449 | V51: MOUNT WAVERLEY | W51: VIC | X51: 3170 | Y51: Mathew Abraham | Z51: 03 8846 9758 | AA51: mathew.abraham@ue.com.au | AB51: NO | AC51: NO | AD51: YES | AE51: NO | AF51: NO | AG51: YES | AH51: CBD | AI51: Urban | AJ51: Short rural | AK51: Long rural | AM51: YES | AN51: United Energy
Z54: For EB & Reset RINs only | AE54: For AARs only
B55: The Reg Year Ending (dms_RYE) must be set to the last year of the regulatory period. For forecast data is is usually (FRCP_y5) for actual it is a single year (CRY). For historical actual data the RYE will need to be set manually in the business details sheet by setting the dms_Multiyear_flag to 1 and putting the correct value in 'dms_Specified_FinalYear. See cells C67:C68 | N55: Drop down selector box for CA & Reset RINs. | O55: For CA & Reset RINs only | Z55: for DNSP only | AE55: For DNSPs only
B56: dms_Model_List | C56: dms_Worksheet_List | E56: dms_RYE_Formula_Result | N56: dms_0203_ProjectType | O56: dms_020303_01_UOM | P56: dms_020501_01_UOM | Q56: dms_020501_02_UOM | R56: dms_020501_03_UOM | S56: dms_020501_04_UOM | T56: dms_020603_01_UOM | U56: dms_020701_01_UOM | V56: dms_020701_02_UOM | W56: dms_020701_01_Rows | X56: dms_040102_01_UOM | Y56: dms_040102_04_UOM | Z56: dms_030601_01_UOM | AA56: dms_030601_02_UOM | AB56: dms_030701_01_UOM | AC56: dms_030702_01_UOM | AD56: dms_030703_01_UOM | AE56: dms_030605_UOM | AF56: dms_03060703_UOM
B57: ARR | C57: ANNUAL REPORTING STATEMENT | E57: =LEFT(dms_SingleYear_FinalYear_Result,2)&RIGHT(dms_SingleYear_FinalYear_Result,2) -> noIN | F57: =LEFT(dms_SingleYear_FinalYear_Result,2)&RIGHT(dms_SingleYear_FinalYear_Result,2) | H57: Formula errors are OK | N57: New line on new route - single circuit | O57: Circuit line length in km | P57: 0's | Q57: 0's | R57: 0's | S57: 0's | T57: 0's | U57: km | V57: km | W57: Route line length within zone | X57: 0's | Y57: days | Z57: minutes/customer | AA57: minutes/customer | AB57: Customer / km | AC57: % | AD57: km | AE57: number | AF57: number
B58: CA | C58: CATEGORY ANALYSIS | E58: =LEFT(dms_SingleYear_FinalYear_Result,2)&RIGHT(dms_SingleYear_FinalYear_Result,2) -> noIN | F58: =LEFT(dms_SingleYear_FinalYear_Result,2)&RIGHT(dms_SingleYear_FinalYear_Result,2) | H58: Formula errors are OK | N58: New line on new route - dual circuit | O58: Circuit line length in km | P58: 0's | Q58: 0's | R58: 0's | S58: 0's | T58: 0's | U58: 0's | V58: 0's | W58: Number of maintenance spans | X58: 0's | Y58: 0's | Z58: minutes/customer | AA58: minutes/customer | AB58: MWh/customer | AC58: Number of spans | AE58: number | AF58: number
B59: CESS | C59: CAPITLAL EXPENDITURE SHARING SCHEMING | E59: 2016 | F59: =LEFT(dms_SingleYear_FinalYear_Result,2)&RIGHT(dms_SingleYear_FinalYear_Result,2) | N59: New line on new route - other | O59: Circuit line length in km | P59: MVA added | Q59: MVA added | R59: MVA added | S59: MVA added | T59: 0's | U59: km | V59: km | W59: Total length of maintenance spans | X59: 0's | Y59: $0s | Z59: interruptions/customer | AA59: interruptions/customer | AB59: kVA / customer | AC59: Number of spans | AE59: number | AF59: number
B60: CPI | C60: CPI | N60: Line rebuild over existing route - single circuit | O60: Circuit line length in km | P60: 0's | Q60: 0's | R60: 0's | S60: 0's | T60: 0's | U60: km | V60: km | W60: Length of vegetation corridors | X60: $0s | Y60: 0's | Z60: interruptions/customer | AA60: interruptions/customer | AC60: Number of spans | AE60: number | AF60: number
B61: EB | C61: ECONOMIC BENCHMARKING | E61: =LEFT(dms_SingleYear_FinalYear_Result,2)&RIGHT(dms_SingleYear_FinalYear_Result,2) -> noIN | F61: =LEFT(dms_SingleYear_FinalYear_Result,2)&RIGHT(dms_SingleYear_FinalYear_Result,2) | H61: Formula errors are OK | N61: Line rebuild over existing route - dual circuit | O61: Number | P61: total spend $0s | Q61: total spend $0s | R61: total spend $0s | S61: total spend $0s | T61: (per cent) | U61: 0's | V61: 0's | W61: Average number of trees per maintenance span | AC61: Number of spans | AE61: number | AF61: (per cent)
B62: PTRM | C62: POST TAX REVENUE MODEL | E62: =LEFT(dms_MultiYear_FinalYear_Result,2)&RIGHT(dms_MultiYear_FinalYear_Result,2) -> 2025 | F62: =LEFT(dms_MultiYear_FinalYear_Result,2)&RIGHT(dms_MultiYear_FinalYear_Result,2) | N62: Reconductor - Single circuit | O62: Number | P62: net circuit km added | Q62: net circuit km added | R62: net circuit km added | S62: net circuit km added | U62: years | V62: years | W62: Average frequency of cutting cycle | AC62: Years | AE62: number
B63: Reset | C63: REGULATORY REPORTING STATEMENT | E63: =LEFT(dms_MultiYear_FinalYear_Result,2)&RIGHT(dms_MultiYear_FinalYear_Result,2) -> 2025 | F63: =LEFT(dms_MultiYear_FinalYear_Result,2)&RIGHT(dms_MultiYear_FinalYear_Result,2) | H63: Formula errors are OK | N63: Reconductor - Dual circuit | O63: Number | P63: total spend $0s | Q63: total spend $0s | R63: total spend $0s | S63: total spend $0s | AC63: Years | AE63: number
B64: RFM | C64: ROLL FORWARD MODEL | E64: =LEFT(dms_CRCP_FinalYear_Result,2)&RIGHT(dms_CRCP_FinalYear_Result,2) -> 2020 | F64: =LEFT(dms_CRCP_FinalYear_Result,2)&RIGHT(dms_CRCP_FinalYear_Result,2) | N64: Other | P64: net circuit km added | Q64: net circuit km added | R64: net circuit km added | S64: net circuit km added | AC64: Trees | AE64: number
B65: WACC | C65: WEIGHTED AVERAGE COST OF CAPITAL | E65: =LEFT(dms_MultiYear_FinalYear_Result,2)&RIGHT(dms_MultiYear_FinalYear_Result,2) -> 2025 | F65: =LEFT(dms_MultiYear_FinalYear_Result,2)&RIGHT(dms_MultiYear_FinalYear_Result,2) | P65: total spend $0s | Q65: total spend $0s | R65: total spend $0s | S65: total spend $0s | AC65: Trees | AE65: number
P66: 0's | R66: $0s | AC66: Defects | AE66: number
B67: dms_DataQuality_List | C67: dms_Confid_status_List | P67: 0's | AC67: Defects | AE67: number
B68: Actual | C68: Public | P68: 0's | AC68: Spans | AE68: number
B69: Estimate | C69: Confidential | P69: $0s | AC69: km | AE69: (per cent)
B70: Consolidated | AC70: Spans | AE70: (per cent)
K73: STYLES IN USE | O73: For PTRM files - this field set the text for the named range "DMS_Xfactor" which in all cases is simply the text "x factors" - this saves putting in each old gas PTRM file | Z73: for TNSP only
B74: For all files either AER or business needs to be able to specify the type of submission | C74: For PTRM & RFM templates we must provide a choice in case they change their form of control - otherwise it is drawn from the business specific lookup table above. | O74: DMS_Xfactor | Z74: dms_030601_01_UOM | AB74: dms_030701_01_UOM | AC74: dms_030702_01_UOM
B75: dms_SourceList | C75: dms_FormControl_Choices | O75: x factors | Z75: % | AB75: Number of spans | AC75: km
B76: After appeal | C76: Revenue cap | Z76: number | AB76: Years | AC76: %
B77: Draft decision | C77: Revenue yield | Z77: number | AB77: Trees | AC77: km
B78: Final decision | C78: Weighted average price cap | Z78: % | AB78: Defects | AC78: number
B79: PTRM update 1 | Z79: number | AB79: Number of spans
B80: PTRM update 2 | Z80: number | AB80: km
B81: PTRM update 3 | Z81: % | AB81: km
B82: PTRM update 4 | Z82: number | AB82: Number of spans
B83: PTRM update 5 | Z83: number
B84: PTRM update 6 | Z84: %
B85: PTRM update 7 | Z85: number
B86: Regulatory proposal | Z86: %
B87: Reporting | Z87: number
B88: Revised regulatory proposal | Z88: %
Z89: number
B93: Reason for interruption | C93: dms_Reason_Interruption_Detailed | D93: dms_Reason_Interruption | E93: dms_STPIS_Exclusion_List | F93: dms_020301_ProjectType_List | G93: dms_020302_ProjectType_List | H93: dms_N0205_AssetType
B94: Animal | C94: Animal impact | D94: Animal | E94: Weather | F94: New substation establishment | G94: New line on new route - single circuit | H94: Cast Iron
C95: Animal nesting/burrowing, etc and other | D95: Asset failure | E95: Equipment failure | F95: Capacity upgrade | G95: New line on new route - dual circuit | H95: PVC
C96: Other | D96: Other | E96: Operational error | F96: Voltage upgrade | G96: New line on new route - other | H96: Polyamide
B97: Asset failure | C97: LV | D97: Overloads | E97: Vegetation | F97: Other | G97: Line rebuild over existing route - single circuit | H97: High density polyethylene (80)
C98: Distribution substation | D98: Planned | E98: Animals | G98: Line rebuild over existing route - dual circuit | H98: High density polyethylene (100)
C99: HV | D99: Network business | E99: Third party impacts | G99: Reconductor - Single circuit | H99: High density polyethylene (250)
C100: Zone substation | D100: Third party | E100: Transmission failure | G100: Reconductor - Dual circuit | H100: High density polyethylene (575)
C101: Subtransmission | D101: Unknown | E101: Load shedding | G101: Reconductor - Other | H101: Medium density polyethylene
B102: Other | C102: insert description of 'other' | D102: Vegetation | E102: Inter-distributor connection failure | G102: Line upgrade - raising/retensoring | H102: Unprotected steel
B103: Overloads | C103: - | D103: Weather | E103: Other | G103: Line upgrade - voltage upgrade | H103: Protected steel
B104: Planned | C104: - | D104: 2 - STPIS Exclusion (3.3)(a) | G104: Line upgrade - capacity | H104: Other
B105: Network business | C105: Network error | D105: 3 - STPIS Exclusion (3.3)(a) | G105: String spare circuit
C106: Switching and protection error | D106: 4 - STPIS Exclusion (3.3)(a) | G106: Other
B107: Third party | C107: Fire | D107: 5 - STPIS Exclusion (3.3)(a)
C108: Other | D108: 6 - STPIS Exclusion (3.3)(a)
C109: Dig-in | D109: 7 - STPIS Exclusion (3.3)(a)
C110: Unauthorised access
C111: Vehicle impact
B112: Unknown | C112: Unknown
B113: Vegetation | C113: Blow-in/Fall-in - NSP responsibility
C114: Grow-in - NSP responsibility
C115: Blow-in/Fall-in - Other responsible party
C116: Grow-in - Other responsible party
B117: Weather
B118: 2 - STPIS Exclusion (3.3)(a)
B119: 3 - STPIS Exclusion (3.3)(a)
B120: 4 - STPIS Exclusion (3.3)(a)
B121: 5 - STPIS Exclusion (3.3)(a)
B122: 6 - STPIS Exclusion (3.3)(a)
B123: 7 - STPIS Exclusion (3.3)(a)
P128: The first row in these tables always refers to CRY in either it's financial or calendar format.
P129: The correct column headings will be correctly generated in the relevant worksheets in Recast RIN templates
B131: These are indeces and lookup values for various dates. All step from the value placed in FRCP_y1 on the business and other details worksheet | O131: These date tables are currently used in the Recast templates to provide column headings and conditional formatting
B132: dms_FRCPlength_Num_List | C132: dms_FinalYear_List | D132: dms_CRCPlength_Num_List | E132: dms_CFinalYear_List | F132: dms_FRCP_years | H132: dms_CRCP_years | J132: dms_CRCP_index | L132: dms_Financial_Years | M132: dms_Calendar_Years | O132: CRY from input cell on business sheet | P132: CRY - financial | Q132: dms_FinYears | R132: CRY calendar | S132: dms_CalYears
B133: 1 | C133: dms_FRCP_y1 | D133: 1 | E133: CRCP_y1 | F133: =FRCP_y1 -> 2020-21 | G133: dms_FRCP_y1 | H133: =IF(dms_RPT="financial",VALUE(LEFT(dms_FRCP_y1,4)-1)&"-"&TEXT(VALUE(MID(dms_FRCP_y1,3,2)),"00"),VALUE(LEFT(dms_FRCP_y1,4)-1)) -> 2019-20 | I133: dms_CRCP_yZ | J133: 1 | L133: 2005-06 | M133: 2006 | O133: =CRY ->  | P133: =CRY ->  | Q133: dms_CRYf_y1 | R133: =CRY ->  | S133: dms_CRYc_y1
B134: 2 | C134: dms_FRCP_y2 | D134: 2 | E134: CRCP_y2 | F134: =IF(dms_RPT="financial",VALUE(LEFT(dms_FRCP_y1,4)+1)&"-"&TEXT(VALUE(RIGHT(dms_FRCP_y1,2)+1),"00"),VALUE(LEFT(dms_FRCP_y1,4)+1)) -> 2021-22 | G134: dms_FRCP_y2 | H134: =IF(dms_RPT="financial",VALUE(LEFT(dms_CRCP_yZ,4)-1)&"-"&TEXT(VALUE(MID(dms_CRCP_yZ,3,2)),"00"),VALUE(LEFT(dms_CRCP_yZ,4)-1)) -> 2018-19 | I134: dms_CRCP_yY | J134: 2 | L134: 2006-07 | M134: 2007 | P134: =VALUE(LEFT(dms_CRYf_y1,4)+1)&"-"&TEXT(MID(dms_CRYf_y1,3,2)+2,"00") ->  | Q134: dms_CRYf_y2 | R134: =VALUE(LEFT(dms_CRYc_y1,4)+1) ->  | S134: dms_CRYc_y2
B135: 3 | C135: dms_FRCP_y3 | D135: 3 | E135: CRCP_y3 | F135: =IF(dms_RPT="financial",VALUE(LEFT(dms_FRCP_y2,4)+1)&"-"&TEXT(VALUE(RIGHT(dms_FRCP_y2,2)+1),"00"),VALUE(LEFT(dms_FRCP_y2,4)+1)) -> 2022-23 | G135: dms_FRCP_y3 | H135: =IF(dms_RPT="financial",VALUE(LEFT(dms_CRCP_yY,4)-1)&"-"&TEXT(VALUE(MID(dms_CRCP_yY,3,2)),"00"),VALUE(LEFT(dms_CRCP_yY,4)-1)) -> 2017-18 | I135: dms_CRCP_yX | J135: 3 | L135: 2007-08 | M135: 2008 | P135: =VALUE(LEFT(dms_CRYf_y2,4)+1)&"-"&TEXT(MID(dms_CRYf_y2,3,2)+2,"00") ->  | Q135: dms_CRYf_y3 | R135: =VALUE(LEFT(dms_CRYc_y2,4)+1) ->  | S135: dms_CRYc_y3
B136: 4 | C136: dms_FRCP_y4 | D136: 4 | E136: CRCP_y4 | F136: =IF(dms_RPT="financial",VALUE(LEFT(dms_FRCP_y3,4)+1)&"-"&TEXT(VALUE(RIGHT(dms_FRCP_y3,2)+1),"00"),VALUE(LEFT(dms_FRCP_y3,4)+1)) -> 2023-24 | G136: dms_FRCP_y4 | H136: =IF(dms_RPT="financial",VALUE(LEFT(dms_CRCP_yX,4)-1)&"-"&TEXT(VALUE(MID(dms_CRCP_yX,3,2)),"00"),VALUE(LEFT(dms_CRCP_yX,4)-1)) -> 2016-17 | I136: dms_CRCP_yW | J136: 4 | L136: 2008-09 | M136: 2009 | P136: =VALUE(LEFT(dms_CRYf_y3,4)+1)&"-"&TEXT(MID(dms_CRYf_y3,3,2)+2,"00") ->  | Q136: dms_CRYf_y4 | R136: =VALUE(LEFT(dms_CRYc_y3,4)+1) ->  | S136: dms_CRYc_y4
B137: 5 | C137: dms_FRCP_y5 | D137: 5 | E137: CRCP_y5 | F137: =IF(dms_RPT="financial",VALUE(LEFT(dms_FRCP_y4,4)+1)&"-"&TEXT(VALUE(RIGHT(dms_FRCP_y4,2)+1),"00"),VALUE(LEFT(dms_FRCP_y4,4)+1)) -> 2024-25 | G137: dms_FRCP_y5 | H137: =IF(dms_RPT="financial",VALUE(LEFT(dms_CRCP_yW,4)-1)&"-"&TEXT(VALUE(MID(dms_CRCP_yW,3,2)),"00"),VALUE(LEFT(dms_CRCP_yW,4)-1)) -> 2015-16 | I137: dms_CRCP_yV | J137: 5 | L137: 2009-10 | M137: 2010 | P137: =VALUE(LEFT(dms_CRYf_y4,4)+1)&"-"&TEXT(MID(dms_CRYf_y4,3,2)+2,"00") ->  | Q137: dms_CRYf_y5 | R137: =VALUE(LEFT(dms_CRYc_y4,4)+1) ->  | S137: dms_CRYc_y5
B138: 6 | C138: dms_FRCP_y6 | D138: 6 | E138: CRCP_y6 | F138: =IF(dms_RPT="financial",VALUE(LEFT(dms_FRCP_y5,4)+1)&"-"&TEXT(VALUE(RIGHT(dms_FRCP_y5,2)+1),"00"),VALUE(LEFT(dms_FRCP_y5,4)+1)) -> 2025-26 | G138: dms_FRCP_y6 | H138: =IF(dms_RPT="financial",VALUE(LEFT(dms_CRCP_yV,4)-1)&"-"&TEXT(VALUE(MID(dms_CRCP_yV,3,2)),"00"),VALUE(LEFT(dms_CRCP_yV,4)-1)) -> 2014-15 | I138: dms_CRCP_yU | J138: 6 | L138: 2010-11 | M138: 2011 | P138: =VALUE(LEFT(dms_CRYf_y5,4)+1)&"-"&TEXT(MID(dms_CRYf_y5,3,2)+2,"00") ->  | Q138: dms_CRYf_y6 | R138: =VALUE(LEFT(dms_CRYc_y5,4)+1) ->  | S138: dms_CRYc_y6
B139: 7 | C139: dms_FRCP_y7 | D139: 7 | E139: CRCP_y7 | F139: =IF(dms_RPT="financial",VALUE(LEFT(dms_FRCP_y6,4)+1)&"-"&TEXT(VALUE(RIGHT(dms_FRCP_y6,2)+1),"00"),VALUE(LEFT(dms_FRCP_y6,4)+1)) -> 2026-27 | G139: dms_FRCP_y7 | H139: =IF(dms_RPT="financial",VALUE(LEFT(dms_CRCP_yU,4)-1)&"-"&TEXT(VALUE(MID(dms_CRCP_yU,3,2)),"00"),VALUE(LEFT(dms_CRCP_yU,4)-1)) -> 2013-14 | I139: dms_CRCP_yT | J139: 7 | L139: 2011-12 | M139: 2012 | P139: =VALUE(LEFT(dms_CRYf_y6,4)+1)&"-"&TEXT(MID(dms_CRYf_y6,3,2)+2,"00") ->  | Q139: dms_CRYf_y7 | R139: =VALUE(LEFT(dms_CRYc_y6,4)+1) ->  | S139: dms_CRYc_y7
B140: 8 | C140: dms_FRCP_y8 | D140: 8 | E140: CRCP_y8 | F140: =IF(dms_RPT="financial",VALUE(LEFT(dms_FRCP_y7,4)+1)&"-"&TEXT(VALUE(RIGHT(dms_FRCP_y7,2)+1),"00"),VALUE(LEFT(dms_FRCP_y7,4)+1)) -> 2027-28 | G140: dms_FRCP_y8 | H140: =IF(dms_RPT="financial",VALUE(LEFT(dms_CRCP_yT,4)-1)&"-"&TEXT(VALUE(MID(dms_CRCP_yT,3,2)),"00"),VALUE(LEFT(dms_CRCP_yT,4)-1)) -> 2012-13 | I140: dms_CRCP_yS | J140: 8 | L140: 2012-13 | M140: 2013 | P140: =VALUE(LEFT(dms_CRYf_y7,4)+1)&"-"&TEXT(MID(dms_CRYf_y7,3,2)+2,"00") ->  | Q140: dms_CRYf_y8 | R140: =VALUE(LEFT(dms_CRYc_y7,4)+1) ->  | S140: dms_CRYc_y8
B141: 9 | C141: dms_FRCP_y9 | D141: 9 | E141: CRCP_y9 | F141: =IF(dms_RPT="financial",VALUE(LEFT(dms_FRCP_y8,4)+1)&"-"&TEXT(VALUE(RIGHT(dms_FRCP_y8,2)+1),"00"),VALUE(LEFT(dms_FRCP_y8,4)+1)) -> 2028-29 | G141: dms_FRCP_y9 | H141: =IF(dms_RPT="financial",VALUE(LEFT(dms_CRCP_yS,4)-1)&"-"&TEXT(VALUE(MID(dms_CRCP_yS,3,2)),"00"),VALUE(LEFT(dms_CRCP_yS,4)-1)) -> 2011-12 | I141: dms_CRCP_yR | J141: 9 | L141: 2013-14 | M141: 2014 | P141: =VALUE(LEFT(dms_CRYf_y8,4)+1)&"-"&TEXT(MID(dms_CRYf_y8,3,2)+2,"00") ->  | Q141: dms_CRYf_y9 | R141: =VALUE(LEFT(dms_CRYc_y8,4)+1) ->  | S141: dms_CRYc_y9
B142: 10 | C142: dms_FRCP_y10 | D142: 10 | E142: CRCP_y10 | F142: =IF(dms_RPT="financial",VALUE(LEFT(dms_FRCP_y9,4)+1)&"-"&TEXT(VALUE(RIGHT(dms_FRCP_y9,2)+1),"00"),VALUE(LEFT(dms_FRCP_y9,4)+1)) -> 2029-30 | G142: dms_FRCP_y10 | H142: =IF(dms_RPT="financial",VALUE(LEFT(dms_CRCP_yR,4)-1)&"-"&TEXT(VALUE(MID(dms_CRCP_yR,3,2)),"00"),VALUE(LEFT(dms_CRCP_yR,4)-1)) -> 2010-11 | I142: dms_CRCP_yQ | J142: 10 | L142: 2014-15 | M142: 2015 | P142: =VALUE(LEFT(dms_CRYf_y9,4)+1)&"-"&TEXT(MID(dms_CRYf_y9,3,2)+2,"00") ->  | Q142: dms_CRYf_y10 | R142: =VALUE(LEFT(dms_CRYc_y9,4)+1) ->  | S142: dms_CRYc_y10
B143: 11 | C143: dms_FRCP_y11 | D143: 11 | E143: CRCP_y11 | F143: =IF(dms_RPT="financial",VALUE(LEFT(dms_FRCP_y10,4)+1)&"-"&TEXT(VALUE(RIGHT(dms_FRCP_y10,2)+1),"00"),VALUE(LEFT(dms_FRCP_y10,4)+1)) -> 2030-31 | G143: dms_FRCP_y11 | H143: =IF(dms_RPT="financial",VALUE(LEFT(dms_CRCP_yQ,4)-1)&"-"&TEXT(VALUE(MID(dms_CRCP_yQ,3,2)),"00"),VALUE(LEFT(dms_CRCP_yQ,4)-1)) -> 2009-10 | I143: dms_CRCP_yP | J143: 11 | L143: 2015-16 | M143: 2016 | P143: =VALUE(LEFT(dms_CRYf_y10,4)+1)&"-"&TEXT(MID(dms_CRYf_y10,3,2)+2,"00") ->  | Q143: dms_CRYf_y11 | R143: =VALUE(LEFT(dms_CRYc_y10,4)+1) ->  | S143: dms_CRYc_y11
B144: 12 | C144: dms_FRCP_y12 | D144: 12 | E144: CRCP_y12 | F144: =IF(dms_RPT="financial",VALUE(LEFT(dms_FRCP_y11,4)+1)&"-"&TEXT(VALUE(RIGHT(dms_FRCP_y11,2)+1),"00"),VALUE(LEFT(dms_FRCP_y11,4)+1)) -> 2031-32 | G144: dms_FRCP_y12 | H144: =IF(dms_RPT="financial",VALUE(LEFT(dms_CRCP_yP,4)-1)&"-"&TEXT(VALUE(MID(dms_CRCP_yP,3,2)),"00"),VALUE(LEFT(dms_CRCP_yP,4)-1)) -> 2008-09 | I144: dms_CRCP_yO | J144: 12 | L144: 2016-17 | M144: 2017 | P144: =VALUE(LEFT(dms_CRYf_y11,4)+1)&"-"&TEXT(MID(dms_CRYf_y11,3,2)+2,"00") ->  | Q144: dms_CRYf_y12 | R144: =VALUE(LEFT(dms_CRYc_y11,4)+1) ->  | S144: dms_CRYc_y12
B145: 13 | C145: dms_FRCP_y13 | D145: 13 | E145: CRCP_y13 | F145: =IF(dms_RPT="financial",VALUE(LEFT(dms_FRCP_y12,4)+1)&"-"&TEXT(VALUE(RIGHT(dms_FRCP_y12,2)+1),"00"),VALUE(LEFT(dms_FRCP_y12,4)+1)) -> 2032-33 | G145: dms_FRCP_y13 | H145: =IF(dms_RPT="financial",VALUE(LEFT(dms_CRCP_yO,4)-1)&"-"&TEXT(VALUE(MID(dms_CRCP_yO,3,2)),"00"),VALUE(LEFT(dms_CRCP_yO,4)-1)) -> 2007-08 | I145: dms_CRCP_yN | J145: 13 | L145: 2017-18 | M145: 2018 | P145: =VALUE(LEFT(dms_CRYf_y12,4)+1)&"-"&TEXT(MID(dms_CRYf_y12,3,2)+2,"00") ->  | Q145: dms_CRYf_y13 | R145: =VALUE(LEFT(dms_CRYc_y12,4)+1) ->  | S145: dms_CRYc_y13
B146: 14 | C146: dms_FRCP_y14 | D146: 14 | E146: CRCP_y14 | F146: =IF(dms_RPT="financial",VALUE(LEFT(dms_FRCP_y13,4)+1)&"-"&TEXT(VALUE(RIGHT(dms_FRCP_y13,2)+1),"00"),VALUE(LEFT(dms_FRCP_y13,4)+1)) -> 2033-34 | G146: dms_FRCP_y14 | H146: =IF(dms_RPT="financial",VALUE(LEFT(dms_CRCP_yN,4)-1)&"-"&TEXT(VALUE(MID(dms_CRCP_yN,3,2)),"00"),VALUE(LEFT(dms_CRCP_yN,4)-1)) -> 2006-07 | I146: dms_CRCP_yM | J146: 14 | L146: 2018-19 | M146: 2019 | P146: =VALUE(LEFT(dms_CRYf_y13,4)+1)&"-"&TEXT(MID(dms_CRYf_y13,3,2)+2,"00") ->  | Q146: dms_CRYf_y14 | R146: =VALUE(LEFT(dms_CRYc_y13,4)+1) ->  | S146: dms_CRYc_y14
B147: 15 | C147: dms_FRCP_y15 | D147: 15 | E147: CRCP_y15 | F147: =IF(dms_RPT="financial",VALUE(LEFT(dms_FRCP_y14,4)+1)&"-"&TEXT(VALUE(RIGHT(dms_FRCP_y14,2)+1),"00"),VALUE(LEFT(dms_FRCP_y14,4)+1)) -> 2034-35 | G147: dms_FRCP_y15 | H147: =IF(dms_RPT="financial",VALUE(LEFT(dms_CRCP_yM,4)-1)&"-"&TEXT(VALUE(MID(dms_CRCP_yM,3,2)),"00"),VALUE(LEFT(dms_CRCP_yM,4)-1)) -> 2005-06 | I147: dms_CRCP_yL | J147: 15 | L147: 2019-20 | M147: 2020 | P147: =VALUE(LEFT(dms_CRYf_y14,4)+1)&"-"&TEXT(MID(dms_CRYf_y14,3,2)+2,"00") ->  | Q147: dms_CRYf_y15 | R147: =VALUE(LEFT(dms_CRYc_y14,4)+1) ->  | S147: dms_CRYc_y15
L148: 2020-21 | M148: 2021 | P148: =VALUE(LEFT(dms_CRYf_y15,4)+1)&"-"&TEXT(MID(dms_CRYf_y15,3,2)+2,"00") ->  | Q148: dms_CRYf_y16 | R148: =VALUE(LEFT(dms_CRYc_y15,4)+1) ->  | S148: dms_CRYc_y16
B149: These are drop down lists for businesses to select the correct FRCP_y1 on the business and other details worksheet. This also populates the column headings in the worksheets | L149: 2021-22 | M149: 2022 | P149: =VALUE(LEFT(dms_CRYf_y16,4)+1)&"-"&TEXT(MID(dms_CRYf_y16,3,2)+2,"00") ->  | Q149: dms_CRYf_y17 | R149: =VALUE(LEFT(dms_CRYc_y16,4)+1) ->  | S149: dms_CRYc_y17
B150: dms_RCP_fyear_list | C150: dms_CRY_ListF | D150: dms_CRY_ListC | E150: dms_RCP_cyear_list | F150: dms_FRCP_fyear_list | G150: dms_FRCP_ListF | H150: dms_FRCP_ListC | I150: dms_FRCP_cyear_list | L150: 2022-23 | M150: 2023 | P150: =VALUE(LEFT(dms_CRYf_y17,4)+1)&"-"&TEXT(MID(dms_CRYf_y17,3,2)+2,"00") ->  | Q150: dms_CRYf_y18 | R150: =VALUE(LEFT(dms_CRYc_y17,4)+1) ->  | S150: dms_CRYc_y18
B151: dms_y1 | C151: =CRY ->  | D151: 2006 | E151: dms_cy1 | F151: dms_frcp_fy1 | G151: 2010-11 | H151: 2011 | I151: dms_crcp_cy1 | L151: 2023-24 | M151: 2024 | P151: =VALUE(LEFT(dms_CRYf_y18,4)+1)&"-"&TEXT(MID(dms_CRYf_y18,3,2)+2,"00") ->  | Q151: dms_CRYf_y19 | R151: =VALUE(LEFT(dms_CRYc_y18,4)+1) ->  | S151: dms_CRYc_y19
B152: dms_y2 | C152: =IF(dms_RPT="financial",VALUE(LEFT(CRY,4)+1)&"-"&TEXT(MID(CRY,3,2)+2,"00"),VALUE(LEFT(CRY,4)+1)) ->  | D152: 2007 | E152: dms_cy2 | F152: dms_frcp_fy2 | G152: 2011-12 | H152: 2012 | I152: dms_crcp_cy2 | L152: 2024-25 | M152: 2025 | P152: =VALUE(LEFT(dms_CRYf_y19,4)+1)&"-"&TEXT(MID(dms_CRYf_y19,3,2)+2,"00") ->  | Q152: dms_CRYf_y20 | R152: =VALUE(LEFT(dms_CRYc_y19,4)+1) ->  | S152: dms_CRYc_y20
B153: dms_y3 | C153: =IF(dms_RPT="financial",VALUE(LEFT(dms_fy2,4)+1)&"-"&TEXT(MID(dms_fy2,3,2)+2,"00"),VALUE(LEFT(dms_fy2,4)+1)) ->  | D153: 2008 | E153: dms_cy3 | F153: dms_frcp_fy3 | G153: 2012-13 | H153: 2013 | I153: dms_crcp_cy3 | L153: 2025-26 | M153: 2026
B154: dms_y4 | C154: =IF(dms_RPT="financial",VALUE(LEFT(dms_fy3,4)+1)&"-"&TEXT(MID(dms_fy3,3,2)+2,"00"),VALUE(LEFT(dms_fy3,4)+1)) ->  | D154: 2009 | E154: dms_cy4 | F154: dms_frcp_fy4 | G154: 2013-14 | H154: 2014 | I154: dms_crcp_cy4 | L154: 2026-27 | M154: 2027
B155: dms_y5 | C155: =IF(dms_RPT="financial",VALUE(LEFT(dms_fy4,4)+1)&"-"&TEXT(MID(dms_fy4,3,2)+2,"00"),VALUE(LEFT(dms_fy4,4)+1)) ->  | D155: 2010 | E155: dms_cy5 | F155: dms_frcp_fy5 | G155: 2014-15 | H155: 2015 | I155: dms_crcp_cy5 | L155: 2027-28 | M155: 2028
B156: dms_y6 | C156: =IF(dms_RPT="financial",VALUE(LEFT(dms_fy5,4)+1)&"-"&TEXT(MID(dms_fy5,3,2)+2,"00"),VALUE(LEFT(dms_fy5,4)+1)) ->  | D156: 2011 | E156: dms_cy6 | F156: dms_frcp_fy6 | G156: 2015-16 | H156: 2016 | I156: dms_crcp_cy6 | L156: 2028-29 | M156: 2029
B157: dms_y7 | C157: =IF(dms_RPT="financial",VALUE(LEFT(dms_fy6,4)+1)&"-"&TEXT(MID(dms_fy6,3,2)+2,"00"),VALUE(LEFT(dms_fy6,4)+1)) ->  | D157: 2012 | E157: dms_cy7 | F157: dms_frcp_fy7 | G157: 2016-17 | H157: 2017 | I157: dms_crcp_cy7 | L157: 2029-30 | M157: 2030
B158: dms_y8 | C158: =IF(dms_RPT="financial",VALUE(LEFT(dms_fy7,4)+1)&"-"&TEXT(MID(dms_fy7,3,2)+2,"00"),VALUE(LEFT(dms_fy7,4)+1)) ->  | D158: 2013 | E158: dms_cy8 | F158: dms_frcp_fy8 | G158: 2017-18 | H158: 2018 | I158: dms_crcp_cy8 | L158: 2030-31 | M158: 2031
B159: dms_y9 | C159: =IF(dms_RPT="financial",VALUE(LEFT(dms_fy8,4)+1)&"-"&TEXT(MID(dms_fy8,3,2)+2,"00"),VALUE(LEFT(dms_fy8,4)+1)) ->  | D159: 2014 | E159: dms_cy9 | F159: dms_frcp_fy9 | G159: 2018-19 | H159: 2019 | I159: dms_crcp_cy9 | L159: 2031-32 | M159: 2032
B160: dms_y10 | C160: =IF(dms_RPT="financial",VALUE(LEFT(dms_fy9,4)+1)&"-"&TEXT(MID(dms_fy9,3,2)+2,"00"),VALUE(LEFT(dms_fy9,4)+1)) ->  | D160: 2015 | E160: dms_cy10 | F160: dms_frcp_fy10 | G160: 2019-20 | H160: 2020 | I160: dms_crcp_cy10 | L160: 2032-33 | M160: 2033
B161: dms_y11 | C161: =IF(dms_RPT="financial",VALUE(LEFT(dms_fy10,4)+1)&"-"&TEXT(MID(dms_fy10,3,2)+2,"00"),VALUE(LEFT(dms_fy10,4)+1)) ->  | D161: 2016 | E161: dms_cy11 | F161: dms_frcp_fy11 | G161: 2020-21 | H161: 2021 | I161: dms_crcp_cy11 | L161: 2033-34 | M161: 2034
B162: dms_y12 | C162: =IF(dms_RPT="financial",VALUE(LEFT(dms_fy11,4)+1)&"-"&TEXT(MID(dms_fy11,3,2)+2,"00"),VALUE(LEFT(dms_fy11,4)+1)) ->  | D162: 2017 | E162: dms_cy12 | F162: dms_frcp_fy12 | G162: 2021-22 | H162: 2022 | I162: dms_crcp_cy12 | L162: 2034-35 | M162: 2035
B163: dms_y13 | C163: =IF(dms_RPT="financial",VALUE(LEFT(dms_fy12,4)+1)&"-"&TEXT(MID(dms_fy12,3,2)+2,"00"),VALUE(LEFT(dms_fy12,4)+1)) ->  | D163: 2018 | E163: dms_cy13 | F163: dms_frcp_fy13 | G163: 2022-23 | H163: 2023 | I163: dms_crcp_cy13 | L163: 2035-36 | M163: 2036
B164: dms_y14 | C164: =IF(dms_RPT="financial",VALUE(LEFT(dms_fy13,4)+1)&"-"&TEXT(MID(dms_fy13,3,2)+2,"00"),VALUE(LEFT(dms_fy13,4)+1)) ->  | D164: 2019 | E164: dms_cy14 | F164: dms_frcp_fy14 | G164: 2023-24 | H164: 2024 | I164: dms_crcp_cy14
B165: dms_y15 | C165: =IF(dms_RPT="financial",VALUE(LEFT(dms_fy14,4)+1)&"-"&TEXT(MID(dms_fy14,3,2)+2,"00"),VALUE(LEFT(dms_fy14,4)+1)) ->  | D165: 2020 | E165: dms_cy15 | F165: dms_frcp_fy15 | G165: 2024-25 | H165: 2025 | I165: dms_crcp_cy15
B166: dms_y16 | C166: =IF(dms_RPT="financial",VALUE(LEFT(dms_fy15,4)+1)&"-"&TEXT(MID(dms_fy15,3,2)+2,"00"),VALUE(LEFT(dms_fy15,4)+1)) ->  | D166: 2021 | E166: dms_cy16
B167: dms_y17 | C167: =IF(dms_RPT="financial",VALUE(LEFT(dms_fy16,4)+1)&"-"&TEXT(MID(dms_fy16,3,2)+2,"00"),VALUE(LEFT(dms_fy16,4)+1)) ->  | D167: 2022 | E167: dms_cy17
B168: dms_y18 | C168: =IF(dms_RPT="financial",VALUE(LEFT(dms_fy17,4)+1)&"-"&TEXT(MID(dms_fy17,3,2)+2,"00"),VALUE(LEFT(dms_fy17,4)+1)) ->  | D168: 2023 | E168: dms_cy18
B169: dms_y19 | C169: =IF(dms_RPT="financial",VALUE(LEFT(dms_fy18,4)+1)&"-"&TEXT(MID(dms_fy18,3,2)+2,"00"),VALUE(LEFT(dms_fy18,4)+1)) ->  | D169: 2024 | E169: dms_cy19
B170: dms_y20 | C170: =IF(dms_RPT="financial",VALUE(LEFT(dms_fy19,4)+1)&"-"&TEXT(MID(dms_fy19,3,2)+2,"00"),VALUE(LEFT(dms_fy19)+1)) ->  | D170: 2025 | E170: dms_cy20
B176: These "row descriptions" are the column headings in the various templates but become row descriptions in the ETL process
C177: Table 6.3 sustained interruptions - row descriptions
C178: dms_060301_CustNo_Affected_Row | D178: dms_060301_Avg_Duration_Sustained_Int_Row | E178: dms_060301_Effect_unplanned_SAIDI_Row | F178: dms_060301_Effect_unplanned_SAIFI_Row
C179: Number of customers affected by the interruption | D179: Average duration of sustained customer interruption | E179: Effect on unplanned SAIDI | F179: Effect on unplanned SAIFI
C183: Table 6.1 telephone answering - row descriptions and start date
C184: dms_060101_Rows | D184: dms_060102_Rows | E184: dms_060101_StartDateTxt
C185: Total number of calls (after removing excluded events) | D185: Number of calls answered within 30 seconds (after excluding excluded events) | E185: =dms_060701_StartDateTxt -> 1-Jul-2013
H189: dms_0603_FeederList | I189: =INDEX(dms_FeederName_1,MATCH(dms_TradingName,dms_TradingName_List)) -> CBD | J189: =INDEX(dms_FeederName_2,MATCH(dms_TradingName,dms_TradingName_List)) -> Urban | K189: =INDEX(dms_FeederName_3,MATCH(dms_TradingName,dms_TradingName_List)) -> Short rural | L189: =INDEX(dms_FeederName_4,MATCH(dms_TradingName,dms_TradingName_List)) -> Long rural
C190: Table 6.7.1 - daily performance data - unplanned - MAIFI -- row descriptions and header named range values
C191: These headings (Lists) are determined from the INDEX/MATCH function on the NSP selected on the Business & other details sheet
B192: dms_060701_Feeder_Header_Lvl4 | C192: =INDEX(dms_FeederName_1,MATCH(dms_TradingName,dms_TradingName_List)) -> CBD | D192: =INDEX(dms_FeederName_1,MATCH(dms_TradingName,dms_TradingName_List)) -> CBD | E192: =INDEX(dms_FeederName_2,MATCH(dms_TradingName,dms_TradingName_List)) -> Urban | F192: =INDEX(dms_FeederName_2,MATCH(dms_TradingName,dms_TradingName_List)) -> Urban | G192: =INDEX(dms_FeederName_3,MATCH(dms_TradingName,dms_TradingName_List)) -> Short rural | H192: =INDEX(dms_FeederName_3,MATCH(dms_TradingName,dms_TradingName_List)) -> Short rural | I192: =INDEX(dms_FeederName_4,MATCH(dms_TradingName,dms_TradingName_List)) -> Long rural | J192: =INDEX(dms_FeederName_4,MATCH(dms_TradingName,dms_TradingName_List)) -> Long rural | K192: =IF((INDEX(dms_FeederName_5,MATCH(dms_TradingName,dms_TradingName_List))=0),"Network",(INDEX(dms_FeederName_5,MATCH(dms_TradingName,dms_TradingName_List)))) -> Network | L192: =IF((INDEX(dms_FeederName_5,MATCH(dms_TradingName,dms_TradingName_List))=0),"Network",(INDEX(dms_FeederName_5,MATCH(dms_TradingName,dms_TradingName_List)))) -> Network | M192: Network | N192: Network
B194: dms_060701_Rows | C194: All events | D194: After removing excluded events | E194: All events | F194: After removing excluded events | G194: All events | H194: After removing excluded events | I194: All events | J194: After removing excluded events | K194: All events | L194: After removing excluded events | M194: All events | N194: After removing excluded events
C195: the number of column headings changes from 10 to 12 depending on the number of feeder categories for the NSP
C200: Table 6.8.1 - row descriptions
C201: dms_060801_01_Rows | D201: dms_060801_02_Rows | E201: dms_060801_03_Rows | F201: dms_060801_04_Rows
C202: Number of interruptions | D202: Duration of interruptions | E202: Total unplanned minutes off supply | F202: Effect on unplanned MAIFI
C207: Table 7.9.4 - market impact component - row descriptions
B208: dms_070904_01_Rows | C208: without exclusions | D208: with exclusions
C214: Use this to add to existing files
C215: ARRs 6.7 STPIS daily performance
C216: dms_060101_Values | D216: dms_060102_Values | E216: dms_060701_Values
C217: dms_LeapYear
C219: ARR's 6.8 STPIS exclusions
C220: dms_060801_Event_Date | D220: dms_060801_OutageID | E220: dms_060801_FeederID | F220: dms_060801_FeederClass | G220: dms_060801_CauseID | H220: dms_060801_01_Values | I220: dms_060801_02_Values | J220: dms_060801_03_Values | K220: dms_060801_Excl_Cat | L220: dms_060801_04_Values
C221: dms_060801_StartCell
C223: CA 6.3 sustained interruptions
C224: dms_060301_Event_Date | D224: dms_060301_Event_Time | E224: dms_060301_AssetID | F224: dms_060301_FeederClass | G224: dms_060301_Reason | H224: dms_060301_DetailedReason | I224: dms_060301_CustNo_Affected_Values | J224: dms_060301_Avg_Duration_Sustained_Int_Values | K224: dms_060301_Effect_unplanned_SAIDI_Values | L224: dms_060301_Effect_unplanned_SAIFI_Values | M224: dms_060301_MED

Sheet Instructions
B2: =CONCATENATE(dms_Sector," ",dms_Segment," ", "Network Service Provider") -> Gas Distribution Network Service Provider
B3: =IF(dms_Model="Reset","Regulatory Proposal RIN Template","Annual Reporting RIN") -> Regulatory Proposal RIN Template
B4: =CONCATENATE("This template is to be used by ",dms_TradingNameFull," to fulfil its reporting obligations to the AER.") -> This template is to be used by Jemena Gas Networks (NSW) Ltd to fulfil its reporting obligations to the AER.
B5: INSTRUCTIONS
B6: GENERAL | C6: Complete the Business & other details worksheet before entering data or values in any other worksheets. The Business & other details worksheet is linked to other worksheets within the workbook and automatically generates certain column headings and conditional formatting.
B8: CONFIDENTIAL INFORMATION | C8: Please use the macro at the top of each worksheet to identify confidential information in the confidential workbook.
C9: -Do this by selecting the cell or cells that contain confidential information and then run the Mark selection as CONFIDENTIAL macro. This will format the cells a specific colour that is identified by the AER's database which in turn marks that information as confidential. -To reverse this, select the cell or cells and run the Return selection to NON-CONFIDENTIAL macro.
B11: RESPONSES | C11: Please return two (2) files to the AER: 1. A confidential version which must contain a complete set of all responses with confidential information marked using the Mark selection CONFIDENTIAL macro and which has been completed using the locked template file provided by the AER. 2. A public version with confidential information either removed completely or aggregated in some form together with writtten consent to disclose the public version of the response. Use the drop down box on the Business and other details worksheet to identify the file as either confidential ('consolidated') or public.
B13: AMENDMENTS | C13: If an NSP wishes to correct data previously submitted to the AER it should resubmit that data using the original completed submission as the starting point. Please make any necessary changes to the data. Data that is not being amended should be left unchanged. NSPs must identify the reason for the amendments in the Amendment Reason box on the Business and other details worksheet. NSPs may provide further details regarding any amendments in the Amendments worksheet. .
C14: NSP may use Amended Data macro to highlight cells that contain amended data. NB: if data is also CONFIDENTIAL, re-apply the Confidentiality macro after applying the Amended macro
C15: Please resubmit two (2) files - a confidential version and a public version of the amended submission to the AER
B17: UNITS OF MEASURE | C17: All amounts are to be unrounded and reported on a one for one basis: that is 1000 is to be entered as '1000'. Applicable units of measure may be identified in the table column headings or row descriptors.
B19: INPUT / NON-INPUT CELLS
D20: Yellow = Input cell (mandatory)
D21: Darker yellow = input cell (mandatory)
D22: Orange = input cell (if data available)
D23: Grey = Not applicable/No inputs required
D24: PLEASE DO NOT ENTER TEXT into cells that are to contain numeric data.
B27: NAVIGATION | C27: Many tables in the worksheets have been "grouped" to allow for easy navigation. To ungroup or group data use the outline symbols in the left margin (for Row groupings) or above the columns (for column groupings).

Sheet CONTENTS
C3: CONTENTS
C5: SUBMISSION | D5: Business & other details
C7: EXPENDITURE | D7: E1. Expenditure Summary
D8: E2. Mains Repex
D9: E3. Mains Augex
D10: E4. Meter replacement
D11: E5. New Connections
D12: E6. Non-network
D13: E10. Overheads
D14: E11. Labour
D15: E12. ICT
D16: E13. Other capex
D17: E17. Step changes
D18: E20. Opex
D19: E21. ARS
D20: E25. Escalators
C22: NETWORK | D22: N1.1. Demand - by customer type
D23: N1.2. Demand - by tariff
D24: N2. Network characteristcs
C26: SERVICE | D26: S1.1. Customer numbers - by customer type
D27: S1.2. Customer numbers - by tariff
D28: S11. Network reliability
C30: FINANCIAL | D30: F3. Revenue
D31: F8. WACC inputs

Sheet Business & other details
B1: =IF(dms_DataQuality="backcast",INDEX(dms_Worksheet_List,MATCH(dms_Model,dms_Model_List))&" BACKCAST",INDEX(dms_Worksheet_List,MATCH(dms_Model,dms_Model_List))) -> REGULATORY REPORTING STATEMENT
B2: =INDEX(dms_TradingNameFull_List,MATCH(dms_TradingName,dms_TradingName_List)) -> Jemena Gas Networks (NSW) Ltd
B3: =IF(SUM(dms_SingleYear_Model)>0,CONCATENATE(CRY),CONCATENATE(FRCP_y1," to ",dms_MultiYear_FinalYear_Result)) -> 2020-21 to 2024-25
B4: BUSINESS & OTHER DETAILS
B7: Instructions
B8: Complete the following business details regulatory template before entering data or values in any other regulatory template. This regulatory template is linked to other cells within the spreadsheet and automatically generates column headings and conditional formatting to distinguish business specific input and non-input cells.
B10: SUBMISSION PARTICULARS INPUT SHEET
B11: ENTITY DETAILS
B13: Short name | C13: JGN | F13: Select business name from drop down list first
B14: ACN / ABN | C14: =INDEX(dms_ABN_List,MATCH(dms_TradingName,dms_TradingName_List)) -> 003 004 322
B17: Business address | C17: Address 1 | E17: Level 14, 99 Walker Street
D18: Address 2
C19: Suburb | E19: North Sydney
D20: State | E20: NSW | F20: p/code | G20: 2060
B22: Postal address | C22: Address 1
D23: Address 2 | E23: =IF(ISBLANK(INDEX(dms_PAddr2_List,MATCH(dms_TradingName,dms_TradingName_List))),"",(INDEX(dms_PAddr2_List,MATCH(dms_TradingName,dms_TradingName_List)))) -> 
C24: Suburb
D25: State | F25: p/code
B28: Contact name/s | C28: Ms Ana Dijanosic
B29: Contact phone/s
B30: Contact email address/s | C30: Ana.Dijanosic@jemena.com.au
B32: REGULATORY CONTROL PERIODS
C33: FRPC_y1 | D33: FRCP_y2 | E33: FRPC_y3 | F33: FRCP_y4 | G33: FRCP_y5
B34: Forthcoming regulatory control period | C34: 2020-21 | D34: =dms_FRCP_y2 -> 2021-22 | E34: =dms_FRCP_y3 -> 2022-23 | F34: =dms_FRCP_y4 -> 2023-24 | G34: =dms_FRCP_y5 -> 2024-25
C35: =dms_FRCP_y6 -> 2025-26 | D35: =dms_FRCP_y7 -> 2026-27 | E35: =dms_FRCP_y8 -> 2027-28 | F35: =dms_FRCP_y9 -> 2028-29 | G35: =dms_FRCP_y10 -> 2029-30
C37: CRPC_y1 | D37: CRCP_y2 | E37: CRPC_y3 | F37: CRCP_y4 | G37: CRCP_y5
B38: Current regulatory control period | C38: =dms_CRCP_FirstYear_Result -> 2015-16 | D38: =IF(dms_RPT="financial",VALUE(LEFT(CRCP_y1,4)+1)&"-"&TEXT(MID(CRCP_y1,3,2)+2,"00"),VALUE(LEFT(CRCP_y1,4)+1)) -> 2016-17 | E38: =IF(dms_RPT="financial",VALUE(LEFT(CRCP_y1,4)+2)&"-"&TEXT(VALUE(MID(CRCP_y1,3,2)+3),"00"),VALUE(LEFT(CRCP_y1,4)+2)) -> 2017-18 | F38: =IF(dms_RPT="financial",VALUE(LEFT(CRCP_y1,4)+3)&"-"&TEXT(MID(CRCP_y1,3,2)+4,"00"),VALUE(LEFT(CRCP_y1,4)+3)) -> 2018-19 | G38: =IF(dms_RPT="financial",VALUE(LEFT(CRCP_y1,4)+4)&"-"&TEXT(MID(CRCP_y1,3,2)+5,"00"),VALUE(LEFT(CRCP_y1,4)+4)) -> 2019-20
C39: =IF(dms_RPT="financial",VALUE(LEFT(CRCP_y1,4)+5)&"-"&TEXT(MID(CRCP_y1,3,2)+6,"00"),VALUE(LEFT(CRCP_y1,4)+5)) -> 2020-21 | D39: =IF(dms_RPT="financial",VALUE(LEFT(CRCP_y1,4)+6)&"-"&TEXT(MID(CRCP_y1,3,2)+7,"00"),VALUE(LEFT(CRCP_y1,4)+6)) -> 2021-22 | E39: =IF(dms_RPT="financial",VALUE(LEFT(CRCP_y1,4)+7)&"-"&TEXT(MID(CRCP_y1,3,2)+8,"00"),VALUE(LEFT(CRCP_y1,4)+7)) -> 2022-23 | F39: =IF(dms_RPT="financial",VALUE(LEFT(CRCP_y1,4)+8)&"-"&TEXT(MID(CRCP_y1,3,2)+9,"00"),VALUE(LEFT(CRCP_y1,4)+8)) -> 2023-24 | G39: =IF(dms_RPT="financial",VALUE(LEFT(CRCP_y1,4)+9)&"-"&TEXT(MID(CRCP_y1,3,2)+10,"00"),VALUE(LEFT(CRCP_y1,4)+9)) -> 2024-25
C40: =IF(dms_RPT="financial",VALUE(LEFT(CRCP_y1,4)+10)&"-"&TEXT(MID(CRCP_y1,3,2)+11,"00"),VALUE(LEFT(CRCP_y1,4)+10)) -> 2025-26 | D40: =IF(dms_RPT="financial",VALUE(LEFT(CRCP_y1,4)+11)&"-"&TEXT(MID(CRCP_y1,3,2)+12,"00"),VALUE(LEFT(CRCP_y1,4)+11)) -> 2026-27 | E40: =IF(dms_RPT="financial",VALUE(LEFT(CRCP_y1,4)+12)&"-"&TEXT(MID(CRCP_y1,3,2)+13,"00"),VALUE(LEFT(CRCP_y1,4)+12)) -> 2027-28 | F40: =IF(dms_RPT="financial",VALUE(LEFT(CRCP_y1,4)+13)&"-"&TEXT(MID(CRCP_y1,3,2)+14,"00"),VALUE(LEFT(CRCP_y1,4)+13)) -> 2028-29 | G40: =IF(dms_RPT="financial",VALUE(LEFT(CRCP_y1,4)+14)&"-"&TEXT(MID(CRCP_y1,3,2)+15,"00"),VALUE(LEFT(CRCP_y1,4)+14)) -> 2029-30
C42: PRCP_y1 | D42: PRCP_y2 | E42: PRCP_y3 | F42: PRCP_y4 | G42: PRCP_y5
B43: Previous regulatory control period | C43: =IF(dms_RPT="financial",VALUE(LEFT(PRCP_y2,4)-1)&"-"&TEXT(VALUE(MID(PRCP_y2,3,2)),"00"),VALUE(LEFT(PRCP_y2,4)-1)) -> 2010-11 | D43: =IF(dms_RPT="financial",VALUE(LEFT(PRCP_y3,4)-1)&"-"&TEXT(VALUE(MID(PRCP_y3,3,2)),"00"),VALUE(LEFT(PRCP_y3,4)-1)) -> 2011-12 | E43: =IF(dms_RPT="financial",VALUE(LEFT(PRCP_y4,4)-1)&"-"&TEXT(VALUE(MID(PRCP_y4,3,2)),"00"),VALUE(LEFT(PRCP_y4,4)-1)) -> 2012-13 | F43: =IF(dms_RPT="financial",VALUE(LEFT(PRCP_y5,4)-1)&"-"&TEXT(VALUE(RIGHT(PRCP_y5,2)-1),"00"),VALUE(LEFT(PRCP_y5,4)-1)) -> 2013-14 | G43: =IF(dms_RPT="financial",VALUE(LEFT(CRCP_y1,4)-1)&"-"&TEXT(VALUE(RIGHT(CRCP_y1,2)-1),"00"),VALUE(LEFT(CRCP_y1,4)-1)) -> 2014-15
B47: Commencing regulatory year | C47: 2010-11 | D47: CRY
B49: Last completed regulatory year | C49: 2017-18 | D49: dms_FinalYear
C53: IF THIS IS AN ABC RIN - make sure the the named range CRY is applied and the named range dms_dollar_nom_UOM is applied
C54: IF THIS IS A RESET RIN - make sure the named ranges CRY and dms_dollar_nom_UOM are NOT present in the workbook
C55: FOR ABC RINS THAT SPAN MULTIPLE YEARS - make sure MultiYear Flag is set and final year entered as required
B57: Source | C57: Regulatory proposal | E57: Please select the correct submission type from the dropdown list.
B58: Data quality (actual, estimate, consolidated) | C58: Consolidated
B59: Confidentiality Status (public, confidential) | C59: Confidential
B60: Amended RIN submission - amendment reason | C60: .
B61: Submission Date | C61: 2019-06-28 | D61: dms_SubmissionDate | E61: Please enter date this file submitted to AER (dd/mm/yyyy)
B62: EBSS - First application of scheme in forthcoming period? | C62: No
B63: Data ingestion data quality | C63: =IF(dms_DQ_2="Confidential","Consolidated","Public") -> Consolidated | D63: dms_DataQuality | E63: =IF(dms_DQ_2="Confidential","Consolidated","Public")
B64: Sector | C64: =INDEX(dms_Sector_List,MATCH(dms_TradingName,dms_TradingName_List)) -> Gas | D64: dms_Sector | E64: =INDEX(dms_Sector_List,MATCH(dms_TradingName,dms_TradingName_List))
B65: Segment | C65: =INDEX(dms_Segment_List,MATCH(dms_TradingName,dms_TradingName_List)) -> Distribution | D65: dms_Segment | E65: =INDEX(dms_Segment_List,MATCH(dms_TradingName,dms_TradingName_List))
B66: Regulatory Year Ending | C66: =IF(dms_MultiYear_Flag=1,LEFT(dms_Specified_FinalYear,2)&RIGHT(dms_Specified_FinalYear,2),INDEX(dms_RYE_Formula_Result,MATCH(dms_Model,dms_Model_List))) -> 2025 | D66: dms_RYE | E66: =IF(dms_MultiYear_Flag=1,LEFT(dms_Specified_FinalYear,2)&RIGHT(dms_Specified_FinalYear,2),INDEX(dms_RYE_Formula_Result,MATCH(dms_Model,dms_Model_List)))
B67: Reporting Period Type | C67: =INDEX(dms_RPT_List,MATCH(dms_TradingName,dms_TradingName_List)) -> Financial | D67: dms_RPT | E67: =INDEX(dms_RPT_List,MATCH(dms_TradingName,dms_TradingName_List))
B68: Model or RIN Type | C68: Reset | D68: dms_Model | E68: Drop down selection
B69: EB/CA Unit of Measure for Monetary Values | C69: $0s | D69: dms_dollar_nom_UOM | E69: If the cover sheet is attached to an ABC RIN apply the NAMED RANGE to the cell
B70: Security Classification | C70: Public | D70: dms_Classification | E70: Always Public
B71: Jurisdiction | C71: =INDEX(dms_JurisdictionList,MATCH(dms_TradingName,dms_TradingName_List)) -> NSW | D71: dms_Jurisdiction | E71: =INDEX(dms_JurisdictionList,MATCH(dms_TradingName,dms_TradingName_List))
B72: FORECAST and MultiYear RINS
B73: CRY-1 (last full calendar year before CRY) | C73: =IF(dms_RPT="financial",VALUE(LEFT(dms_SingleYear_FinalYear_Result,4)),VALUE(LEFT(dms_SingleYear_FinalYear_Result,4)-1)) ->  | D73: dms_Cal_Year_B4_CRY | E73: '=IF(dms_RPT="financial",VALUE(LEFT(dms_SingleYear_FinalYear_Result,4)),VALUE(LEFT(dms_SingleYear_FinalYear_Result,4)-1))
B74: Dollar $ real month | C74: =INDEX(dms_RPTMonth_List,MATCH(dms_TradingName,dms_TradingName_List)) -> June | D74: dms_RPTMonth | E74: =INDEX(dms_RPTMonth_List,MATCH(dms_TradingName,dms_TradingName_List))
B75: Dollar $ real (the last month before the FRCP_y1) | C75: =IF(SUM(dms_SingleYear_Model)>0,CONCATENATE(dms_RPTMonth)&" "&VALUE((LEFT(CRY,2))&RIGHT(CRY,2)),CONCATENATE(dms_RPTMonth)&" "&VALUE((LEFT(dms_CRCP_FinalYear_Result,2)&RIGHT(dms_CRCP_FinalYear_Result,2)))) -> June 2020 | D75: dms_DollarReal | E75: =IF(SUM(dms_SingleYear_Model)>0,CONCATENATE(dms_RPTMonth)&" "&VALUE((LEFT(CRY,2))&RIGHT(CRY,2)),CONCATENATE(dms_RPTMonth)&" "&VALUE((LEFT(dms_CRCP_FinalYear_Result,2)&RIGHT(dms_CRCP_FinalYear_Result,2))))
B76: Dollar $ real previous year (PRCP_y5) | C76: =IF(SUM(dms_SingleYear_Model)>0,CONCATENATE(dms_RPTMonth)&" "&VALUE(((LEFT(CRY,2))&RIGHT(CRY,2))-1),CONCATENATE(dms_RPTMonth)&" "&VALUE(((LEFT(dms_CRCP_FirstYear_Result,2)&RIGHT(dms_CRCP_FirstYear_Result,2))))-1) -> June 2015 | D76: dms_DollarReal_Prev | E76: =IF(SUM(dms_SingleYear_Model)>0,CONCATENATE(dms_RPTMonth)&" "&VALUE(((LEFT(CRY,2))&RIGHT(CRY,2))-1),CONCATENATE(dms_RPTMonth)&" "&VALUE(((LEFT(dms_CRCP_FirstYear_Result,2)&RIGHT(dms_CRCP_FirstYear_Result,2))))-1)
B77: This block works out the various RYE's for ALL RIN types and MODELS
B78: Single Year Model T/F | C78: =IF(dms_Model="EB",1,0) -> 0 | D78: dms_EB
C79: =IF(dms_Model="CA",1,0) -> 0 | D79: dms_CA | E79: =dms_SingleYear_Model
C80: =IF(dms_Model="ARR",1,0) -> 0 | D80: dms_ARR
B81: Is this a single Year RIN? | C81: =IF(SUM(dms_SingleYear_Model)=1,"yes","no") -> no | D81: dms_SingleYearModel | E81: =IF(SUM(dms_SingleYear_Model)=1,"yes","no")
B82: Single Year Final Year Reference | C82: CRY | D82: dms_SingleYear_FinalYear_Ref | E82: This is the reference for EB, CA & ARR RINs
B83: Single Year Final Year Result | C83: =IFERROR(IF(SUM(dms_SingleYear_Model)<>0,(INDIRECT(dms_SingleYear_FinalYear_Ref)),"not a single year RIN"),"CRY not present") -> not a single year RIN | D83: dms_SingleYear_FinalYear_Result | E83: =IFERROR(IF(SUM(dms_SingleYear_Model)<>0,(INDIRECT(dms_SingleYear_FinalYear_Ref)),"not a single year RIN"),"CRY not present")
B84: FRCP length in years | C84: =INDEX(dms_FRCPlength_List,MATCH(dms_TradingName,dms_TradingName_List)) -> 5 | D84: dms_FRCPlength_Num | E84: =INDEX(dms_FRCPlength_List,MATCH(dms_TradingName,dms_TradingName_List))
B85: Multi Year Final Year Reference | C85: =INDEX(dms_FinalYear_List,MATCH(dms_FRCPlength_Num,dms_FRCPlength_Num_List)) -> dms_FRCP_y5 | D85: dms_MultiYear_FinalYear_Ref | E85: =INDEX(dms_FinalYear_List,MATCH(dms_FRCPlength_Num,dms_FRCPlength_Num_List))
B86: Multi Year Final Year Result | C86: =IF(dms_MultiYear_Flag=0,INDIRECT(dms_MultiYear_FinalYear_Ref),dms_Specified_FinalYear) -> 2024-25 | D86: dms_MultiYear_FinalYear_Result | E86: =IF(dms_MultiYear_Flag=0,INDIRECT(dms_MultiYear_FinalYear_Ref),dms_Specified_FinalYear) | I86: Formula errors OK
B87: CRCP length in years | C87: =INDEX(dms_CRCPlength_List,MATCH(dms_TradingName,dms_TradingName_List)) -> 5 | D87: dms_CRCPlength_Num | E87: =INDEX(dms_CRCPlength_List,MATCH(dms_TradingName,dms_TradingName_List))
B88: CRCP Final Year Reference | C88: =INDEX(dms_CFinalYear_List,MATCH(dms_CRCPlength_Num,dms_CRCPlength_Num_List)) -> CRCP_y5 | D88: dms_CRCP_FinalYear_Ref | E88: =INDEX(dms_CFinalYear_List,MATCH(dms_CRCPlength_Num,dms_CRCPlength_Num_List))
B89: CRCP First Year Result | C89: =INDEX(dms_CRCP_years,MATCH(dms_CRCPlength_Num,dms_CRCP_index)) -> 2015-16 | D89: dms_CRCP_FirstYear_Result | E89: =INDEX(dms_CRCP_years,MATCH(dms_CRCPlength_Num,dms_CRCP_index))
B90: CRCP Final Year Result | C90: =IF(dms_MultiYear_Flag=0,(IF(SUM(dms_SingleYear_Model)>0,CRY,dms_CRCP_yZ)),dms_Specified_FinalYear) -> 2019-20 | D90: dms_CRCP_FinalYear_Result | E90: =IF(dms_MultiYear_Flag=0,(IF(SUM(dms_SingleYear_Model)>0,CRY,dms_CRCP_yZ)),dms_Specified_FinalYear)
B91: PTRM/ RFMs
B92: Form of control | C92: =INDEX(dms_FormControl_List,MATCH(dms_TradingName,dms_TradingName_List)) -> Weighted average price cap | D92: dms_FormControl | E92: =INDEX(dms_FormControl_List,MATCH(dms_TradingName,dms_TradingName_List))
B93: ABC RINS THAT SPAN MULTIPLE YEARS
B94: Is this a multi year ABC RIN? | C94: No
B95: Multiyear EB, CA or ARR? | C95: =IF(dms_MultiYear_ResponseFlag="No",0,1) -> 0 | D95: dms_MultiYear_Flag | E95: This is set from the answer provided above
C96: =IF(dms_MultiYear_Flag=1,FRY,"not a Multiple year submission") -> not a Multiple year submission | D96: dms_Specified_FinalYear | E96: The result here is returned to dms_CRCP_FinalYear_Result if response to Q in C73 is "yes" and dms_MultiYear_Flag is set to 1
B97: Start year for 5.2 in Multi year ABC RINS | C97: =IFERROR(IF(dms_MultiYear_Flag=1,FRY,CRY),"not an ABC") -> not an ABC | D97: dms_0502_Inst_Year | E97: =IF(dms_MultiYear_Flag=1,FRY,CRY) | G97: For single year RINS this is CRY - multi year RINS need to start a the end of the span of years (ie. FRY)
B98: EB RINS
B99: Calendar Year for table 3.6 data | C99: =IF(dms_MultiYear_Flag=0,CRY, FRY) ->  | D99: dms_0306_Year | E99: =IF(dms_MultiYear_Flag=0,CRY, FRY)
B100: CA RINS
B101: Find how many rows in tables 6.3 sustained interruptions? | E101: dms_060301_MaxRows only returns a valid value when cover sheet is attached to a CA file
C102: =IF(dms_Model<>"CA","not a CA","Is a CA") -> not a CA | E102: =IF(dms_Model<>"CA","not a CA","Is a CA")
B103: dms_060301_Avg_Duration_Sustained_Int_Values present? | C103: =IFERROR(IF(INDEX(dms_060301_Avg_Duration_Sustained_Int_Values,1,1)<>"","yes","no"),"no") -> no | D103: dms_060301_checkvalue | E103: =IFERROR(IF(INDEX(dms_060301_Avg_Duration_Sustained_Int_Values,1,1)<>"","yes","no"),"no")
C104: =IF(AND(dms_Model="CA",(dms_060301_checkvalue="no")),"error - NR not present","no errors") -> no errors | E104: =IF(AND(dms_Model="CA",(dms_060301_checkvalue="no")),"error - NR not present","no errors")
B105: Table 6.3.1 - last row reference | C105: =IFERROR(IF(dms_Model="CA",LOOKUP(2,1/(dms_060301_Avg_Duration_Sustained_Int_Values<>""),(ROW(dms_060301_Avg_Duration_Sustained_Int_Values))),"not a CA"),"6.3 not present") -> not a CA | D105: dms_060301_LastRow | E105: =IFERROR(IF(dms_Model="CA",LOOKUP(2,1/(dms_060301_Avg_Duration_Sustained_Int_Values<>""),(ROW(dms_060301_Avg_Duration_Sustained_Int_Values))),"not a CA"),"6.3 not present")
B106: Table 6.3.1 - max number rows | C106: =IFERROR(IF(dms_Model="CA",(dms_060301_LastRow-15),"not a CA"),"error") -> not a CA | D106: dms_060301_MaxRows | E106: =IFERROR(IF(dms_Model="CA",(dms_060301_LastRow-15),"not a CA"),"error")
B107: Table 6.6.3 - Public lighting repair - no. business days | C107: =INDEX(dms_663_List,MATCH(dms_TradingName,dms_TradingName_List)) -> 0 | D107: dms_663 | E107: =INDEX(dms_663_List,MATCH(dms_TradingName,dms_TradingName_List))
B108: ARR or RESET RINS
B109: How many rows in tables 6.1 or 6.7? (leap year?) | C109: insert dms_LeapYear NR if required | E109: 'dms_LeapYear is used to determine dms_060701_Max_Rows BUT it is only found on worksheet 6.1 or 6.7 and the date value in the cell is used to determine whether it is a leap year
B110: Is dms_LeapYear named range present? | C110: =IFERROR(IF(dms_LeapYear,"yes"),"no") -> no
B111: Table 6.7.1 - includes a leap year? | C111: =IFERROR(IF(MONTH(DATE(YEAR(dms_LeapYear),2,29))=2,"is a leap year","not a leap year"), "dms_LeapYear not present") -> dms_LeapYear not present | D111: dms_LeapYear_Result | E111: =IFERROR(IF(MONTH(DATE(YEAR(dms_LeapYear),2,29))=2,"is a leap year","not a leap year"),"dms_LeapYear not present")
B112: MaxRows if Reset and leap year | C112: =IF(dms_LeapYear_Result="is a leap year",1827,1826) -> 1826 | D112: dms_060701_Reset_MaxRows | E112: =IF(dms_LeapYear_Result="is a leap year",1827,1826) | H112: number of days present in Reset RIN table
B113: MaxRows if ARR and leap year | C113: =IF(dms_LeapYear_Result="is a leap year",366,365) -> 365 | D113: dms_060701_ARR_MaxRows | E113: =IF(dms_LeapYear_Result="is a leap year",366,365) | H113: number of days present in ARR RIN table
B114: Table 6.7.1 - Max Rows (leap year/ non leap year) | C114: =IF(dms_Model="ARR",dms_060701_ARR_MaxRows,IF(dms_Model="Reset",dms_060701_Reset_MaxRows,"not a relevant RIN type")) -> 1826 | D114: dms_060701_MaxRows | E114: =IF(dms_Model="ARR",dms_060701_ARR_MaxRows,IF(dms_Model="Reset",dms_060701_Reset_MaxRows,"not a relevant RIN type"))
B115: How many columns in 6.7? (4 or 5 feeder categories) | C115: =IF(dms_FifthFeeder_flag_NSP="NO","This NSP has only 4 feeder categories","This NSP has 5 feeder categories") -> This NSP has only 4 feeder categories
B116: Table 6.7.1 - Last column (# of feeder categories > 4) | C116: =IF(dms_FifthFeeder_flag_NSP="NO",10,12) -> 10 | D116: dms_060701_MaxCols | E116: =IF(dms_FifthFeeder_flag_NSP="NO",8,10)
B117: Table 6.7.1 - Number of offset rows | C117: =IF(dms_Model="ARR",15,9) -> 9 | D117: dms_060701_OffsetRows | E117: =IF(dms_Model="ARR",15,9)
B118: Start date for telephone answering in 6.1 or 6.7? | E118: Using 060101 as naming standard not 060701 for start dates
B119: Table 6.1.1 and 6.7.1 - Start Date as Text | C119: =IF(dms_SingleYearModel="yes",(CONCATENATE(IF(LEN(CRY)=4,"1-Jan-","1-Jul-"),LEFT(CRY,4))),(CONCATENATE(IF(LEN(PRCP_y4)=4,"1-Jan-","1-Jul-"),LEFT(PRCP_y4,4)))) -> 1-Jul-2013 | D119: dms_060101_StartDateTxt | E119: =IF(SUM(dms_SingleYear_Model)>1,(CONCATENATE(IF(LEN(CRY)=4,"1-Jan-","1-Jul-"),LEFT(CRY,4))),(CONCATENATE(IF(LEN(CRCP_y4)=4,"1-Jan-","1-Jul-"),LEFT(CRCP_y4,4))))
B120: Table 6.1.1 and 6.7.1 - Start Date as Date Value | C120: =DATEVALUE(dms_060701_StartDateTxt) -> 41456 | D120: dms_060101_StartDateVal | E120: =DATEVALUE(dms_060701_StartDateTxt)
B121: ARRs
B122: How many rows in table 6.8? | C122: insert dms_060801_StartCell NR if required | E122: dms_060801_StartCell is only found on worksheet 6.8 and is used to determine the starting date for the date range
B123: Is dms_060801_StartCell named range present? | C123: yes | E123: =IFERROR(IF((ROW(dms_060801_StartCell)-1)=1,"yes","yes"),"no")
B124: Table 6.8 - Number of offset rows | C124: 12 | D124: dms_0608_OffsetRows | E124: =IFERROR(IF(dms_Model="ARR",(ROW(dms_060801_StartCell)-1),"not an ARR"),"6.8 error")
B125: Table 6.8 - Last row | C125: 0 | D125: dms_0608_LastRow | E125: =IFERROR(IF(dms_060801_StartCell<>"",IF(dms_Model="ARR",(LOOKUP(2,1/(dms_060801_01_Values<>""),(ROW(dms_060801_01_Values)))),"not an ARR"),0),"0")
B126: Table 6.8 - MaxRows | C126: =IFERROR(IF(dms_Model="ARR",(MAX(0,dms_0608_LastRow-dms_0608_OffsetRows)),"not an ARR"),"0") -> not an ARR | D126: dms_060801_MaxRows | E126: =IFERROR(IF(dms_Model="ARR",(MAX(0,dms_0608_LastRow-dms_0608_OffsetRows)),"not an ARR"),"0")
B127: TNSP RESET RINS
B128: Table 7.9.4 only appears in TNSPs Reset RIN
B129: Table 7.9.4 - first year | C129: =LEFT(PRCP_y3,4) -> 2012 | D129: dms_070904_Start_Year | E129: =LEFT(PRCP_y3,4)
B130: SUBSET FILES
B131: Is this Submission File a Subset File | C131: NO | D131: dms_Partial
B132: MISC
B133: Distribution Determination Reference | C133: =INDEX(dms_DeterminationRef_List,MATCH(dms_TradingName,dms_TradingName_List)) -> 0 | D133: dms_DeterminationRef
B134: Public lighting NSP? | C134: =INDEX(dms_Public_Lighting_List,MATCH(dms_TradingName,dms_TradingName_List)) -> NO | D134: dms_Public_Lighting | E134: =INDEX(dms_Public_Lighting_List,MATCH(dms_TradingName,dms_TradingName_List))
B135: CBD Feeder for this business | C135: =INDEX(dms_CBD_flag,MATCH(dms_TradingName,dms_TradingName_List)) -> NO | D135: dms_CBD_flag_NSP
B136: Urban Feeder for this business | C136: =INDEX(dms_Urban_flag,MATCH(dms_TradingName,dms_TradingName_List)) -> NO | D136: dms_Urban_flag_NSP
B137: Short rural Feeder for this business | C137: =INDEX(dms_ShortRural_flag,MATCH(dms_TradingName,dms_TradingName_List)) -> NO | D137: dms_ShortRural_flag_NSP
B138: Long rural Feeder for this business | C138: =INDEX(dms_LongRural_flag,MATCH(dms_TradingName,dms_TradingName_List)) -> NO | D138: dms_LongRural_flag_NSP
B139: Fifth Feeder Category (eg. TasNetworks (D)) | C139: =INDEX(dms_FeederType_5_flag,MATCH(dms_TradingName,dms_TradingName_List)) -> NO | D139: dms_FifthFeeder_flag_NSP | E139: =INDEX(dms_FeederType_5_flag,MATCH(dms_TradingName,dms_TradingName_List))
B141: DISCARD FILES
B142: discard this record? | C142: NO | D142: dms_DISCARD | E142: If record is to be discarded from DB set this flag to YES
B144: USES NAMED RANGES FLAG | C144: yes | D144: dms_Defined_Names_Used
B146: REGULATORY YEARS FOR MULTI RYE SUBMISSIONS
B147: Multiple RYE flag | C147: NO | D147: dms_Multi_RYE_flag
C148: Manually specify RYE | D148: Named ranges to apply
C149: 2011 | D149: dms_RYE_01
C150: 2012 | D150: dms_RYE_02
C151: 2013 | D151: dms_RYE_03
C152: 2014 | D152: dms_RYE_04
C153: 2015 | D153: dms_RYE_05
C154: 2016 | D154: dms_RYE_06
C155: 2017 | D155: dms_RYE_07
C156: 2018 | D156: dms_RYE_08
C157: 2019 | D157: dms_RYE_09

Sheet E1. Expenditure Summary
B1: =IF(dms_MultiYear_ResponseFlag="Yes","REGULATORY REPORTING STATEMENT - HISTORICAL INFORMATION",INDEX(dms_Worksheet_List,MATCH(dms_Model,dms_Model_List))) -> REGULATORY REPORTING STATEMENT
B2: =INDEX(dms_TradingNameFull_List,MATCH(dms_TradingName,dms_TradingName_List)) -> Jemena Gas Networks (NSW) Ltd
B3: =IF(SUM(dms_SingleYear_Model)>0,CONCATENATE(CRY),CONCATENATE(FRCP_y1," to ",dms_MultiYear_FinalYear_Result)) -> 2020-21 to 2024-25
B4: E1. EXPENDITURE SUMMARY
B7: E1.1 - CAPEX
B8: E1.1.1 - REFERENCE SERVICES
C9: EXPENDITURE
C10: =CONCATENATE("$0's, real ",dms_DollarReal) -> $0's, real June 2020
C11: =CRCP_y4 -> 2018-19 | D11: =CRCP_y5 -> 2019-20 | E11: =FRCP_y1 -> 2020-21 | F11: =FRCP_y2 -> 2021-22 | G11: =FRCP_y3 -> 2022-23 | H11: =FRCP_y4 -> 2023-24 | I11: =FRCP_y5 -> 2024-25
B12: Connections | C12: 100999291.4 | D12: 94018588.18 | E12: 79985973.22 | F12: 76165996.85 | G12: 75199003.03 | H12: 76504908.83 | I12: 79653265.22
B13: Mains replacement | C13: 3245988.287 | D13: 9834110.836 | E13: 11713297.62 | F13: 6149639.997 | G13: 6777412.504 | H13: 9679285.32 | I13: 10457227.57
B14: Mains augmentation | C14: 7184321.098 | D14: 3388286.216 | E14: 16459007.06 | F14: 19865216.58 | G14: 13183756.08 | H14: 10683075.72 | I14: 582800.6031
B15: Telemetry | C15: 852536.8762 | D15: 415999.9774 | E15: 489256.9132 | F15: 540294.9222 | G15: 512783.3868 | H15: 351462.4927 | I15: 304808.761
B16: Meter replacement | C16: 22142482.4 | D16: 19498389.27 | E16: 18172353.29 | F16: 20362773.77 | G16: 23591753.85 | H16: 26808097.41 | I16: 29075912.07
B17: ICT | C17: 16973025.77 | D17: 15690914.25 | E17: 16266629.33 | F17: 22797316.87 | G17: 26974878.32 | H17: 19868091.19 | I17: 21289792.91
B18: Capitalised network overheads | C18: 15981141.33 | D18: 16245583.62 | E18: 16295340.01 | F18: 16101438.58 | G18: 15623986.85 | H18: 15781676.3 | I18: 15837105.74
B19: Capitalised corporate overheads | C19: 16548108.54 | D19: 16838116.69 | E19: 8419058.344 | F19: 0 | G19: 0 | H19: 0 | I19: 0
B20: Other capex | C20: 11041248.44 | D20: 30690026.59 | E20: 34306234.64 | F20: 28917880.49 | G20: 13163190.62 | H20: 11241135.72 | I20: 16678829.88
B21: Related party expenditure | C21: 0 | D21: 0 | E21: 0 | F21: 0 | G21: 0 | H21: 0 | I21: 0
B22: Customer contributions included in the above | C22: 7425468.951 | D22: 2100862.748 | E22: 5123845.604 | F22: 2033207.083 | G22: 2042609.145 | H22: 2058933.946 | I22: 2106090.283
B23: Total (less customer contributions) | C23: =SUM(C12:C21)-C22 -> 187542675.1 | D23: =SUM(D12:D21)-D22 -> 204519152.9 | E23: 196983304.8 | F23: 188867351 | G23: 172984155.5 | H23: 168858799.1 | I23: 171773652.5
B25: E1.1.2 - NON-REFERENCE SERVICES
B26: Connections | C26: 0 | D26: 0 | E26: 0 | F26: 0 | G26: 0 | H26: 0 | I26: 0
B27: Mains replacement | C27: 0 | D27: 0 | E27: 0 | F27: 0 | G27: 0 | H27: 0 | I27: 0
B28: Mains augmentation | C28: 0 | D28: 0 | E28: 0 | F28: 0 | G28: 0 | H28: 0 | I28: 0
B29: Telemetry | C29: 0 | D29: 0 | E29: 0 | F29: 0 | G29: 0 | H29: 0 | I29: 0
B30: Meter replacement | C30: 0 | D30: 0 | E30: 0 | F30: 0 | G30: 0 | H30: 0 | I30: 0
B31: ICT | C31: 0 | D31: 0 | E31: 0 | F31: 0 | G31: 0 | H31: 0 | I31: 0
B32: Capitalised network overheads | C32: 0 | D32: 0 | E32: 0 | F32: 0 | G32: 0 | H32: 0 | I32: 0
B33: Capitalised corporate overheads | C33: 0 | D33: 0 | E33: 0 | F33: 0 | G33: 0 | H33: 0 | I33: 0
B34: Other capex | C34: 0 | D34: 0 | E34: 0 | F34: 0 | G34: 0 | H34: 0 | I34: 0
B35: Related party expenditure | C35: 0 | D35: 0 | E35: 0 | F35: 0 | G35: 0 | H35: 0 | I35: 0
B36: Customer contributions included in the above | C36: 0 | D36: 0 | E36: 0 | F36: 0 | G36: 0 | H36: 0 | I36: 0
B37: Total (less customer contributions) | C37: =SUM(C26:C35)-C36 -> 0 | D37: =SUM(D26:D35)-D36 -> 0 | E37: 0 | F37: 0 | G37: 0 | H37: 0 | I37: 0
B40: E1.2 - OPEX
B41: E1.2.1 - REFERENCE SERVICES
C42: EXPENDITURE
C43: =CONCATENATE("$0's, real ",dms_DollarReal) -> $0's, real June 2020
C44: =CRCP_y4 -> 2018-19 | D44: =CRCP_y5 -> 2019-20 | E44: =FRCP_y1 -> 2020-21 | F44: =FRCP_y2 -> 2021-22 | G44: =FRCP_y3 -> 2022-23 | H44: =FRCP_y4 -> 2023-24 | I44: =FRCP_y5 -> 2024-25
B45: Connections
B46: Mains replacement
B47: Mains augmentation
B48: Telemetry
B49: Meter replacement
B50: ICT
B51: Capitalised network overheads
B52: Capitalised corporate overheads
B53: Other capex
B54: Related party expenditure
B55: Customer contributions included in the above
B56: Total (less customer contributions) | C56: =SUM(C45:C54)-C55 -> 0 | D56: =SUM(D45:D54)-D55 -> 0 | E56: 0 | F56: 0 | G56: 0 | H56: 0 | I56: 0
B58: E1.2.2 - NON-REFERENCE SERVICES
B59: Connections
B60: Mains replacement
B61: Mains augmentation
B62: Telemetry
B63: Meter replacement
B64: ICT
B65: Capitalised network overheads
B66: Capitalised corporate overheads
B67: Other capex
B68: Related party expenditure
B69: Customer contributions included in the above
B70: Total (less customer contributions) | C70: =SUM(C59:C68)-C69 -> 0 | D70: =SUM(D59:D68)-D69 -> 0 | E70: 0 | F70: 0 | G70: 0 | H70: 0 | I70: 0
B73: E1.3 - CAPCONS
B74: E1.3.1 - REFERENCE SERVICES
C75: EXPENDITURE
C76: =CONCATENATE("$0's, real ",dms_DollarReal) -> $0's, real June 2020
C77: =CRCP_y4 -> 2018-19 | D77: =CRCP_y5 -> 2019-20 | E77: =FRCP_y1 -> 2020-21 | F77: =FRCP_y2 -> 2021-22 | G77: =FRCP_y3 -> 2022-23 | H77: =FRCP_y4 -> 2023-24 | I77: =FRCP_y5 -> 2024-25
B78: Connections | C78: 2084232.896 | D78: 2094998.96 | E78: 2207762.311 | F78: 2033207.083 | G78: 2042609.145 | H78: 2058933.946 | I78: 2106090.283
B79: Mains replacement | C79: 0 | D79: 0 | E79: 0 | F79: 0 | G79: 0 | H79: 0 | I79: 0
B80: Mains augmentation | C80: 5341236.055 | D80: 5863.78785 | E80: 2916083.293 | F80: 0 | G80: 0 | H80: 0 | I80: 0
B81: Telemetry | C81: 0 | D81: 0 | E81: 0 | F81: 0 | G81: 0 | H81: 0 | I81: 0
B82: Meter replacement | C82: 0 | D82: 0 | E82: 0 | F82: 0 | G82: 0 | H82: 0 | I82: 0
B83: ICT | C83: 0 | D83: 0 | E83: 0 | F83: 0 | G83: 0 | H83: 0 | I83: 0
B84: Capitalised network overheads | C84: 0 | D84: 0 | E84: 0 | F84: 0 | G84: 0 | H84: 0 | I84: 0
B85: Capitalised corporate overheads | C85: 0 | D85: 0 | E85: 0 | F85: 0 | G85: 0 | H85: 0 | I85: 0
B86: Other capex | C86: 0 | D86: 0 | E86: 0 | F86: 0 | G86: 0 | H86: 0 | I86: 0
B87: Related party expenditure | C87: 0 | D87: 0 | E87: 0 | F87: 0 | G87: 0 | H87: 0 | I87: 0
B88: Total | C88: =SUM(C78:C87) -> 7425468.951 | D88: =SUM(D78:D87) -> 2100862.748 | E88: 5123845.604 | F88: 2033207.083 | G88: 2042609.145 | H88: 2058933.946 | I88: 2106090.283
B90: E1.3.2 - NON-REFERENCE SERVICES
C91: EXPENDITURE
C92: =CONCATENATE("$0's, real ",dms_DollarReal) -> $0's, real June 2020
C93: =CRCP_y4 -> 2018-19 | D93: =CRCP_y5 -> 2019-20 | E93: =FRCP_y1 -> 2020-21 | F93: =FRCP_y2 -> 2021-22 | G93: =FRCP_y3 -> 2022-23 | H93: =FRCP_y4 -> 2023-24 | I93: =FRCP_y5 -> 2024-25
B94: Connections | C94: 0 | D94: 0 | E94: 0 | F94: 0 | G94: 0 | H94: 0 | I94: 0
B95: Mains replacement | C95: 0 | D95: 0 | E95: 0 | F95: 0 | G95: 0 | H95: 0 | I95: 0
B96: Mains augmentation | C96: 0 | D96: 0 | E96: 0 | F96: 0 | G96: 0 | H96: 0 | I96: 0
B97: Telemetry | C97: 0 | D97: 0 | E97: 0 | F97: 0 | G97: 0 | H97: 0 | I97: 0
B98: Meter replacement | C98: 0 | D98: 0 | E98: 0 | F98: 0 | G98: 0 | H98: 0 | I98: 0
B99: ICT | C99: 0 | D99: 0 | E99: 0 | F99: 0 | G99: 0 | H99: 0 | I99: 0
B100: Capitalised network overheads | C100: 0 | D100: 0 | E100: 0 | F100: 0 | G100: 0 | H100: 0 | I100: 0
B101: Capitalised corporate overheads | C101: 0 | D101: 0 | E101: 0 | F101: 0 | G101: 0 | H101: 0 | I101: 0
B102: Other capex | C102: 0 | D102: 0 | E102: 0 | F102: 0 | G102: 0 | H102: 0 | I102: 0
B103: Related party expenditure | C103: 0 | D103: 0 | E103: 0 | F103: 0 | G103: 0 | H103: 0 | I103: 0
B104: Total | C104: =SUM(C94:C103) -> 0 | D104: =SUM(D94:D103) -> 0 | E104: 0 | F104: 0 | G104: 0 | H104: 0 | I104: 0
B107: E1.4 - CAPITALISED OVERHEADS
B108: E1.4.1 - REFERENCE SERVICES
C109: EXPENDITURE
C110: =CONCATENATE("$0's, real ",dms_DollarReal) -> $0's, real June 2020
C111: =CRCP_y4 -> 2018-19 | D111: =CRCP_y5 -> 2019-20 | E111: =FRCP_y1 -> 2020-21 | F111: =FRCP_y2 -> 2021-22 | G111: =FRCP_y3 -> 2022-23 | H111: =FRCP_y4 -> 2023-24 | I111: =FRCP_y5 -> 2024-25
B112: Connections | C112: 23134417.91 | D112: 20615930.52 | E112: 12993264.82 | F112: 8489941.5 | G112: 9287951.822 | H112: 9193851.767 | I112: 9516546.984
B113: Mains replacement | C113: 743510.6579 | D113: 2156375.135 | E113: 1902758.343 | F113: 685477.5883 | G113: 837089.3001 | H113: 1163192.216 | I113: 1249373.735
B114: Mains augmentation | C114: 1645606.464 | D114: 742966.6257 | E114: 2673671.754 | F114: 2214302.098 | G114: 1628347.27 | H114: 1283821.079 | I114: 69629.90539
B115: Telemetry | C115: 0 | D115: 0 | E115: 0 | F115: 0 | G115: 0 | H115: 0 | I115: 0
B116: Meter replacement | C116: 5071851.837 | D116: 4275510.261 | E116: 2951995.069 | F116: 2269762.955 | G116: 2913856.093 | H116: 3221619.077 | I116: 3473834.783
B117: ICT | C117: 0 | D117: 0 | E117: 0 | F117: 0 | G117: 0 | H117: 0 | I117: 0
B118: Other capex | C118: 1933862.993 | D118: 5292917.77 | E118: 4192708.369 | F118: 2441954.442 | G118: 956742.3691 | H118: 919192.1654 | I118: 1527720.335
B119: Related party expenditure | C119: 0 | D119: 0 | E119: 0 | F119: 0 | G119: 0 | H119: 0 | I119: 0
B120: Customer contributions included in the above | C120: 0 | D120: 0 | E120: 0 | F120: 0 | G120: 0 | H120: 0 | I120: 0
B121: Total (less customer contributions) | C121: =SUM(C112:C119)-C120 -> 32529249.86 | D121: =SUM(D112:D119)-D120 -> 33083700.31 | E121: =SUM(E112:E119)-E120 -> 24714398.35 | F121: 16101438.58 | G121: 15623986.85 | H121: 15781676.3 | I121: 15837105.74

Sheet E2. Mains Repex
B1: =IF(dms_DataQuality="backcast",INDEX(dms_Worksheet_List,MATCH(dms_Model,dms_Model_List))&" BACKCAST",INDEX(dms_Worksheet_List,MATCH(dms_Model,dms_Model_List))) -> REGULATORY REPORTING STATEMENT
B2: =INDEX(dms_TradingNameFull_List,MATCH(dms_TradingName,dms_TradingName_List)) -> Jemena Gas Networks (NSW) Ltd
B3: =IF(SUM(dms_SingleYear_Model)>0,CONCATENATE(CRY),CONCATENATE(FRCP_y1," to ",dms_MultiYear_FinalYear_Result)) -> 2020-21 to 2024-25
B4: E2. MAINS REPLACEMENT
B8: Please list all projects here:
B9: Mt Druitt Steel Main Stage 6: Oakhurst
B10: Bidwill Mains and Serivce Area Renewal
B11: Maitland 2kPa Rehabilitation
B12: Kurri Kurri Rehabilitation (100kPa)
B13: Matraville 2kPa and 7kPa
B14: Mittagong Rehab
B15: Newcastle MP1 (30kPa) Rehabilitation
B16: 0
B17: 0
B18: 0
B19: 0
B61: E2.1 - CAPEX
B62: E2.1.1 - PROACTIVE - BY CONNECTION TYPE - BY PROJECT
D63: EXPENDITURE
D64: =CONCATENATE("$0's, real ",dms_DollarReal) -> $0's, real June 2020
D65: =CRCP_y4 -> 2018-19 | E65: =CRCP_y5 -> 2019-20 | F65: =FRCP_y1 -> 2020-21 | G65: =FRCP_y2 -> 2021-22 | H65: =FRCP_y3 -> 2022-23 | I65: =FRCP_y4 -> 2023-24 | J65: =FRCP_y5 -> 2024-25
B66: A. DIRECT INTERNAL LABOUR EXPENDITURE
B67: =IF(ISBLANK(dms_E2_Projects_01),"",dms_E2_Projects_01) -> Mt Druitt Steel Main Stage 6: Oakhurst | D67: 63400.17437 | E67: 0 | F67: 0 | G67: 0 | H67: 0 | I67: 0 | J67: 0
B68: =IF(ISBLANK(dms_E2_Projects_02),"",dms_E2_Projects_02) -> Bidwill Mains and Serivce Area Renewal | D68: 74014.93493 | E68: 147116.0833 | F68: 0 | G68: 0 | H68: 0 | I68: 0 | J68: 0
B69: =IF(ISBLANK(dms_E2_Projects_03),"",dms_E2_Projects_03) -> Maitland 2kPa Rehabilitation | D69: 2624.174951 | E69: 125411.0248 | F69: 0 | G69: 0 | H69: 0 | I69: 0 | J69: 0
B70: =IF(ISBLANK(dms_E2_Projects_04),"",dms_E2_Projects_04) -> Kurri Kurri Rehabilitation (100kPa) | D70: 10401.79447 | E70: 2845.25174 | F70: 263758.5262 | G70: 0 | H70: 0 | I70: 0 | J70: 0
B71: =IF(ISBLANK(dms_E2_Projects_05),"",dms_E2_Projects_05) -> Matraville 2kPa and 7kPa | D71: 0 | E71: 329580.716 | F71: 391926.9152 | G71: 323362.5023 | H71: 0 | I71: 0 | J71: 0
B72: =IF(ISBLANK(dms_E2_Projects_06),"",dms_E2_Projects_06) -> Mittagong Rehab | D72: 0 | E72: 8151.440365 | F72: 92655.10479 | G72: 1383.453925 | H72: 0 | I72: 0 | J72: 0
B73: =IF(ISBLANK(dms_E2_Projects_07),"",dms_E2_Projects_07) -> Newcastle MP1 (30kPa) Rehabilitation | D73: 0 | E73: 0 | F73: 0 | G73: 22857.03509 | H73: 392677.6433 | I73: 601508.496 | J73: 606507.6521
B74: =IF(ISBLANK(dms_E2_Projects_08),"",dms_E2_Projects_08) -> 0 | D74: 0 | E74: 0 | F74: 0 | G74: 0 | H74: 0 | I74: 0 | J74: 0
B75: =IF(ISBLANK(dms_E2_Projects_09),"",dms_E2_Projects_09) -> 0 | D75: 0 | E75: 0 | F75: 0 | G75: 0 | H75: 0 | I75: 0 | J75: 0
B76: =IF(ISBLANK(dms_E2_Projects_10),"",dms_E2_Projects_10) -> 0 | D76: 0 | E76: 0 | F76: 0 | G76: 0 | H76: 0 | I76: 0 | J76: 0
B77: =IF(ISBLANK(dms_E2_Projects_11),"",dms_E2_Projects_11) -> 0 | D77: 0 | E77: 0 | F77: 0 | G77: 0 | H77: 0 | I77: 0 | J77: 0
B78: =IF(ISBLANK(dms_E2_Projects_12),"",dms_E2_Projects_12) -> 
B79: =IF(ISBLANK(dms_E2_Projects_13),"",dms_E2_Projects_13) -> 
B80: =IF(ISBLANK(dms_E2_Projects_14),"",dms_E2_Projects_14) -> 
B81: =IF(ISBLANK(dms_E2_Projects_15),"",dms_E2_Projects_15) -> 
B82: =IF(ISBLANK(dms_E2_Projects_16),"",dms_E2_Projects_16) -> 
B83: =IF(ISBLANK(dms_E2_Projects_17),"",dms_E2_Projects_17) -> 
B84: =IF(ISBLANK(dms_E2_Projects_18),"",dms_E2_Projects_18) -> 
B85: =IF(ISBLANK(dms_E2_Projects_19),"",dms_E2_Projects_19) -> 
B86: =IF(ISBLANK(dms_E2_Projects_20),"",dms_E2_Projects_20) -> 
B87: =IF(ISBLANK(dms_E2_Projects_21),"",dms_E2_Projects_21) -> 
B88: =IF(ISBLANK(dms_E2_Projects_22),"",dms_E2_Projects_22) -> 
B89: =IF(ISBLANK(dms_E2_Projects_23),"",dms_E2_Projects_23) -> 
B90: =IF(ISBLANK(dms_E2_Projects_24),"",dms_E2_Projects_24) -> 
B91: =IF(ISBLANK(dms_E2_Projects_25),"",dms_E2_Projects_25) -> 
B92: =IF(ISBLANK(dms_E2_Projects_26),"",dms_E2_Projects_26) -> 
B93: =IF(ISBLANK(dms_E2_Projects_27),"",dms_E2_Projects_27) -> 
B94: =IF(ISBLANK(dms_E2_Projects_28),"",dms_E2_Projects_28) -> 
B95: =IF(ISBLANK(dms_E2_Projects_29),"",dms_E2_Projects_29) -> 
B96: =IF(ISBLANK(dms_E2_Projects_30),"",dms_E2_Projects_30) -> 
B97: =IF(ISBLANK(dms_E2_Projects_31),"",dms_E2_Projects_31) -> 
B98: =IF(ISBLANK(dms_E2_Projects_32),"",dms_E2_Projects_32) -> 
B99: =IF(ISBLANK(dms_E2_Projects_33),"",dms_E2_Projects_33) -> 
B100: =IF(ISBLANK(dms_E2_Projects_34),"",dms_E2_Projects_34) -> 
B101: =IF(ISBLANK(dms_E2_Projects_35),"",dms_E2_Projects_35) -> 
B102: =IF(ISBLANK(dms_E2_Projects_36),"",dms_E2_Projects_36) -> 
B103: =IF(ISBLANK(dms_E2_Projects_37),"",dms_E2_Projects_37) -> 
B104: =IF(ISBLANK(dms_E2_Projects_38),"",dms_E2_Projects_38) -> 
B105: =IF(ISBLANK(dms_E2_Projects_39),"",dms_E2_Projects_39) -> 
B106: =IF(ISBLANK(dms_E2_Projects_40),"",dms_E2_Projects_40) -> 
B107: =IF(ISBLANK(dms_E2_Projects_41),"",dms_E2_Projects_41) -> 
B108: =IF(ISBLANK(dms_E2_Projects_42),"",dms_E2_Projects_42) -> 
B109: =IF(ISBLANK(dms_E2_Projects_43),"",dms_E2_Projects_43) -> 
B110: =IF(ISBLANK(dms_E2_Projects_44),"",dms_E2_Projects_44) -> 
B111: =IF(ISBLANK(dms_E2_Projects_45),"",dms_E2_Projects_45) -> 
B112: =IF(ISBLANK(dms_E2_Projects_46),"",dms_E2_Projects_46) -> 
B113: =IF(ISBLANK(dms_E2_Projects_47),"",dms_E2_Projects_47) -> 
B114: =IF(ISBLANK(dms_E2_Projects_48),"",dms_E2_Projects_48) -> 
B115: =IF(ISBLANK(dms_E2_Projects_49),"",dms_E2_Projects_49) -> 
B116: =IF(ISBLANK(dms_E2_Projects_50),"",dms_E2_Projects_50) -> 
B117: Aggregate of other projects with total expenditure of less than $500,000 | D117: 0 | E117: 0 | F117: 0 | G117: 0 | H117: 0 | I117: 0 | J117: 50903.67708
C118: Total | D118: =SUM(D67:D117) -> 150441.0787 | E118: =SUM(E67:E117) -> 613104.5162 | F118: =SUM(F67:F117) -> 748340.5461 | G118: =SUM(G67:G117) -> 347602.9914 | H118: =SUM(H67:H117) -> 392677.6433 | I118: =SUM(I67:I117) -> 601508.496 | J118: =SUM(J67:J117) -> 657411.3292
B120: B. DIRECT CONTRACTOR EXPENDITURE
D121: EXPENDITURE
D122: =CONCATENATE("$0's, real ",dms_DollarReal) -> $0's, real June 2020
D123: =CRCP_y4 -> 2018-19 | E123: =CRCP_y5 -> 2019-20 | F123: =FRCP_y1 -> 2020-21 | G123: =FRCP_y2 -> 2021-22 | H123: =FRCP_y3 -> 2022-23 | I123: =FRCP_y4 -> 2023-24 | J123: =FRCP_y5 -> 2024-25
B124: =IF(ISBLANK(dms_E2_Projects_01),"",dms_E2_Projects_01) -> Mt Druitt Steel Main Stage 6: Oakhurst
B125: =IF(ISBLANK(dms_E2_Projects_02),"",dms_E2_Projects_02) -> Bidwill Mains and Serivce Area Renewal
B126: =IF(ISBLANK(dms_E2_Projects_03),"",dms_E2_Projects_03) -> Maitland 2kPa Rehabilitation
B127: =IF(ISBLANK(dms_E2_Projects_04),"",dms_E2_Projects_04) -> Kurri Kurri Rehabilitation (100kPa)
B128: =IF(ISBLANK(dms_E2_Projects_05),"",dms_E2_Projects_05) -> Matraville 2kPa and 7kPa
B129: =IF(ISBLANK(dms_E2_Projects_06),"",dms_E2_Projects_06) -> Mittagong Rehab
B130: =IF(ISBLANK(dms_E2_Projects_07),"",dms_E2_Projects_07) -> Newcastle MP1 (30kPa) Rehabilitation
B131: =IF(ISBLANK(dms_E2_Projects_08),"",dms_E2_Projects_08) -> 0 | D131: 0 | E131: 0 | F131: 0 | G131: 0 | H131: 0 | I131: 0 | J131: 0
B132: =IF(ISBLANK(dms_E2_Projects_09),"",dms_E2_Projects_09) -> 0 | D132: 0 | E132: 0 | F132: 0 | G132: 0 | H132: 0 | I132: 0 | J132: 0
B133: =IF(ISBLANK(dms_E2_Projects_10),"",dms_E2_Projects_10) -> 0 | D133: 0 | E133: 0 | F133: 0 | G133: 0 | H133: 0 | I133: 0 | J133: 0
B134: =IF(ISBLANK(dms_E2_Projects_11),"",dms_E2_Projects_11) -> 0 | D134: 0 | E134: 0 | F134: 0 | G134: 0 | H134: 0 | I134: 0 | J134: 0
B135: =IF(ISBLANK(dms_E2_Projects_12),"",dms_E2_Projects_12) -> 
B136: =IF(ISBLANK(dms_E2_Projects_13),"",dms_E2_Projects_13) -> 
B137: =IF(ISBLANK(dms_E2_Projects_14),"",dms_E2_Projects_14) -> 
B138: =IF(ISBLANK(dms_E2_Projects_15),"",dms_E2_Projects_15) -> 
B139: =IF(ISBLANK(dms_E2_Projects_16),"",dms_E2_Projects_16) -> 
B140: =IF(ISBLANK(dms_E2_Projects_17),"",dms_E2_Projects_17) -> 
B141: =IF(ISBLANK(dms_E2_Projects_18),"",dms_E2_Projects_18) -> 
B142: =IF(ISBLANK(dms_E2_Projects_19),"",dms_E2_Projects_19) -> 
B143: =IF(ISBLANK(dms_E2_Projects_20),"",dms_E2_Projects_20) -> 
B144: =IF(ISBLANK(dms_E2_Projects_21),"",dms_E2_Projects_21) -> 
B145: =IF(ISBLANK(dms_E2_Projects_22),"",dms_E2_Projects_22) -> 
B146: =IF(ISBLANK(dms_E2_Projects_23),"",dms_E2_Projects_23) -> 
B147: =IF(ISBLANK(dms_E2_Projects_24),"",dms_E2_Projects_24) -> 
B148: =IF(ISBLANK(dms_E2_Projects_25),"",dms_E2_Projects_25) -> 
B149: =IF(ISBLANK(dms_E2_Projects_26),"",dms_E2_Projects_26) -> 
B150: =IF(ISBLANK(dms_E2_Projects_27),"",dms_E2_Projects_27) -> 
B151: =IF(ISBLANK(dms_E2_Projects_28),"",dms_E2_Projects_28) -> 
B152: =IF(ISBLANK(dms_E2_Projects_29),"",dms_E2_Projects_29) -> 
B153: =IF(ISBLANK(dms_E2_Projects_30),"",dms_E2_Projects_30) -> 
B154: =IF(ISBLANK(dms_E2_Projects_31),"",dms_E2_Projects_31) -> 
B155: =IF(ISBLANK(dms_E2_Projects_32),"",dms_E2_Projects_32) -> 
B156: =IF(ISBLANK(dms_E2_Projects_33),"",dms_E2_Projects_33) -> 
B157: =IF(ISBLANK(dms_E2_Projects_34),"",dms_E2_Projects_34) -> 
B158: =IF(ISBLANK(dms_E2_Projects_35),"",dms_E2_Projects_35) -> 
B159: =IF(ISBLANK(dms_E2_Projects_36),"",dms_E2_Projects_36) -> 
B160: =IF(ISBLANK(dms_E2_Projects_37),"",dms_E2_Projects_37) -> 
B161: =IF(ISBLANK(dms_E2_Projects_38),"",dms_E2_Projects_38) -> 
B162: =IF(ISBLANK(dms_E2_Projects_39),"",dms_E2_Projects_39) -> 
B163: =IF(ISBLANK(dms_E2_Projects_40),"",dms_E2_Projects_40) -> 
B164: =IF(ISBLANK(dms_E2_Projects_41),"",dms_E2_Projects_41) -> 
B165: =IF(ISBLANK(dms_E2_Projects_42),"",dms_E2_Projects_42) -> 
B166: =IF(ISBLANK(dms_E2_Projects_43),"",dms_E2_Projects_43) -> 
B167: =IF(ISBLANK(dms_E2_Projects_44),"",dms_E2_Projects_44) -> 
B168: =IF(ISBLANK(dms_E2_Projects_45),"",dms_E2_Projects_45) -> 
B169: =IF(ISBLANK(dms_E2_Projects_46),"",dms_E2_Projects_46) -> 
B170: =IF(ISBLANK(dms_E2_Projects_47),"",dms_E2_Projects_47) -> 
B171: =IF(ISBLANK(dms_E2_Projects_48),"",dms_E2_Projects_48) -> 
B172: =IF(ISBLANK(dms_E2_Projects_49),"",dms_E2_Projects_49) -> 
B173: =IF(ISBLANK(dms_E2_Projects_50),"",dms_E2_Projects_50) -> 
B174: Aggregate of other projects with total expenditure of less than $500,000
C175: Total
B177: C. OTHER INTERNAL DIRECT EXPENDITURE
D178: EXPENDITURE
D179: =CONCATENATE("$0's, real ",dms_DollarReal) -> $0's, real June 2020
D180: =CRCP_y4 -> 2018-19 | E180: =CRCP_y5 -> 2019-20 | F180: =FRCP_y1 -> 2020-21 | G180: =FRCP_y2 -> 2021-22 | H180: =FRCP_y3 -> 2022-23 | I180: =FRCP_y4 -> 2023-24 | J180: =FRCP_y5 -> 2024-25
B181: =IF(ISBLANK(dms_E2_Projects_01),"",dms_E2_Projects_01) -> Mt Druitt Steel Main Stage 6: Oakhurst | D181: 40969.28002 | E181: 0 | F181: 0 | G181: 0 | H181: 0 | I181: 0 | J181: 0
B182: =IF(ISBLANK(dms_E2_Projects_02),"",dms_E2_Projects_02) -> Bidwill Mains and Serivce Area Renewal | D182: 47828.55291 | E182: 95066.61567 | F182: 0 | G182: 0 | H182: 0 | I182: 0 | J182: 0
B183: =IF(ISBLANK(dms_E2_Projects_03),"",dms_E2_Projects_03) -> Maitland 2kPa Rehabilitation | D183: 1695.745468 | E183: 81040.77701 | F183: 0 | G183: 0 | H183: 0 | I183: 0 | J183: 0
B184: =IF(ISBLANK(dms_E2_Projects_04),"",dms_E2_Projects_04) -> Kurri Kurri Rehabilitation (100kPa) | D184: 6721.653913 | E184: 1838.605594 | F184: 170441.1229 | G184: 0 | H184: 0 | I184: 0 | J184: 0
B185: =IF(ISBLANK(dms_E2_Projects_05),"",dms_E2_Projects_05) -> Matraville 2kPa and 7kPa | D185: 0 | E185: 212975.5127 | F185: 253263.7125 | G185: 208957.2945 | H185: 0 | I185: 0 | J185: 0
B186: =IF(ISBLANK(dms_E2_Projects_06),"",dms_E2_Projects_06) -> Mittagong Rehab | D186: 0 | E186: 5267.471993 | F186: 59873.85636 | G186: 893.9898324 | H186: 0 | I186: 0 | J186: 0
B187: =IF(ISBLANK(dms_E2_Projects_07),"",dms_E2_Projects_07) -> Newcastle MP1 (30kPa) Rehabilitation | D187: 0 | E187: 0 | F187: 0 | G187: 14770.24756 | H187: 253748.834 | I187: 388695.6188 | J187: 391926.0803
B188: =IF(ISBLANK(dms_E2_Projects_08),"",dms_E2_Projects_08) -> 0 | D188: 0 | E188: 0 | F188: 0 | G188: 0 | H188: 0 | I188: 0 | J188: 0
B189: =IF(ISBLANK(dms_E2_Projects_09),"",dms_E2_Projects_09) -> 0 | D189: 0 | E189: 0 | F189: 0 | G189: 0 | H189: 0 | I189: 0 | J189: 0
B190: =IF(ISBLANK(dms_E2_Projects_10),"",dms_E2_Projects_10) -> 0 | D190: 0 | E190: 0 | F190: 0 | G190: 0 | H190: 0 | I190: 0 | J190: 0
B191: =IF(ISBLANK(dms_E2_Projects_11),"",dms_E2_Projects_11) -> 0 | D191: 0 | E191: 0 | F191: 0 | G191: 0 | H191: 0 | I191: 0 | J191: 0
B192: =IF(ISBLANK(dms_E2_Projects_12),"",dms_E2_Projects_12) -> 
B193: =IF(ISBLANK(dms_E2_Projects_13),"",dms_E2_Projects_13) -> 
B194: =IF(ISBLANK(dms_E2_Projects_14),"",dms_E2_Projects_14) -> 
B195: =IF(ISBLANK(dms_E2_Projects_15),"",dms_E2_Projects_15) -> 
B196: =IF(ISBLANK(dms_E2_Projects_16),"",dms_E2_Projects_16) -> 
B197: =IF(ISBLANK(dms_E2_Projects_17),"",dms_E2_Projects_17) -> 
B198: =IF(ISBLANK(dms_E2_Projects_18),"",dms_E2_Projects_18) -> 
B199: =IF(ISBLANK(dms_E2_Projects_19),"",dms_E2_Projects_19) -> 
B200: =IF(ISBLANK(dms_E2_Projects_20),"",dms_E2_Projects_20) -> 
B201: =IF(ISBLANK(dms_E2_Projects_21),"",dms_E2_Projects_21) -> 
B202: =IF(ISBLANK(dms_E2_Projects_22),"",dms_E2_Projects_22) -> 
B203: =IF(ISBLANK(dms_E2_Projects_23),"",dms_E2_Projects_23) -> 
B204: =IF(ISBLANK(dms_E2_Projects_24),"",dms_E2_Projects_24) -> 
B205: =IF(ISBLANK(dms_E2_Projects_25),"",dms_E2_Projects_25) -> 
B206: =IF(ISBLANK(dms_E2_Projects_26),"",dms_E2_Projects_26) -> 
B207: =IF(ISBLANK(dms_E2_Projects_27),"",dms_E2_Projects_27) -> 
B208: =IF(ISBLANK(dms_E2_Projects_28),"",dms_E2_Projects_28) -> 
B209: =IF(ISBLANK(dms_E2_Projects_29),"",dms_E2_Projects_29) -> 
B210: =IF(ISBLANK(dms_E2_Projects_30),"",dms_E2_Projects_30) -> 
B211: =IF(ISBLANK(dms_E2_Projects_31),"",dms_E2_Projects_31) -> 
B212: =IF(ISBLANK(dms_E2_Projects_32),"",dms_E2_Projects_32) -> 
B213: =IF(ISBLANK(dms_E2_Projects_33),"",dms_E2_Projects_33) -> 
B214: =IF(ISBLANK(dms_E2_Projects_34),"",dms_E2_Projects_34) -> 
B215: =IF(ISBLANK(dms_E2_Projects_35),"",dms_E2_Projects_35) -> 
B216: =IF(ISBLANK(dms_E2_Projects_36),"",dms_E2_Projects_36) -> 
B217: =IF(ISBLANK(dms_E2_Projects_37),"",dms_E2_Projects_37) -> 
B218: =IF(ISBLANK(dms_E2_Projects_38),"",dms_E2_Projects_38) -> 
B219: =IF(ISBLANK(dms_E2_Projects_39),"",dms_E2_Projects_39) -> 
B220: =IF(ISBLANK(dms_E2_Projects_40),"",dms_E2_Projects_40) -> 
B221: =IF(ISBLANK(dms_E2_Projects_41),"",dms_E2_Projects_41) -> 
B222: =IF(ISBLANK(dms_E2_Projects_42),"",dms_E2_Projects_42) -> 
B223: =IF(ISBLANK(dms_E2_Projects_43),"",dms_E2_Projects_43) -> 
B224: =IF(ISBLANK(dms_E2_Projects_44),"",dms_E2_Projects_44) -> 
B225: =IF(ISBLANK(dms_E2_Projects_45),"",dms_E2_Projects_45) -> 
B226: =IF(ISBLANK(dms_E2_Projects_46),"",dms_E2_Projects_46) -> 
B227: =IF(ISBLANK(dms_E2_Projects_47),"",dms_E2_Projects_47) -> 
B228: =IF(ISBLANK(dms_E2_Projects_48),"",dms_E2_Projects_48) -> 
B229: =IF(ISBLANK(dms_E2_Projects_49),"",dms_E2_Projects_49) -> 
B230: =IF(ISBLANK(dms_E2_Projects_50),"",dms_E2_Projects_50) -> 
B231: Aggregate of other projects with total expenditure of less than $500,000 | D231: 0 | E231: 0 | F231: 0 | G231: 0 | H231: 0 | I231: 0 | J231: 32894.02625
C232: Total | D232: =SUM(D181:D231) -> 97215.23231 | E232: =SUM(E181:E231) -> 396188.983 | F232: 483578.6918 | G232: 224621.5319 | H232: 253748.834 | I232: 388695.6188 | J232: 424820.1066
B234: D. TOTAL OVERHEAD EXPENDITURE
D235: EXPENDITURE
D236: =CONCATENATE("$0's, real ",dms_DollarReal) -> $0's, real June 2020
D237: =CRCP_y4 -> 2018-19 | E237: =CRCP_y5 -> 2019-20 | F237: =FRCP_y1 -> 2020-21 | G237: =FRCP_y2 -> 2021-22 | H237: =FRCP_y3 -> 2022-23 | I237: =FRCP_y4 -> 2023-24 | J237: =FRCP_y5 -> 2024-25
B238: =IF(ISBLANK(dms_E2_Projects_01),"",dms_E2_Projects_01) -> Mt Druitt Steel Main Stage 6: Oakhurst | D238: 201675.8907 | E238: 0 | F238: 0 | G238: 0 | H238: 0 | I238: 0 | J238: 0
B239: =IF(ISBLANK(dms_E2_Projects_02),"",dms_E2_Projects_02) -> Bidwill Mains and Serivce Area Renewal | D239: 235441.4334 | E239: 447994.4688 | F239: 0 | G239: 0 | H239: 0 | I239: 0 | J239: 0
B240: =IF(ISBLANK(dms_E2_Projects_03),"",dms_E2_Projects_03) -> Maitland 2kPa Rehabilitation | D240: 8347.497871 | E240: 381898.7306 | F240: 0 | G240: 0 | H240: 0 | I240: 0 | J240: 0
B241: =IF(ISBLANK(dms_E2_Projects_04),"",dms_E2_Projects_04) -> Kurri Kurri Rehabilitation (100kPa) | D241: 33088.0977 | E241: 8664.294301 | F241: 595023.6741 | G241: 0 | H241: 0 | I241: 0 | J241: 0
B242: =IF(ISBLANK(dms_E2_Projects_05),"",dms_E2_Projects_05) -> Matraville 2kPa and 7kPa | D242: 0 | E242: 1003631.517 | F242: 884163.9983 | G242: 500560.4193 | H242: 0 | I242: 0 | J242: 0
B243: =IF(ISBLANK(dms_E2_Projects_06),"",dms_E2_Projects_06) -> Mittagong Rehab | D243: 0 | E243: 24822.57626 | F243: 209024.4501 | G243: 2141.566422 | H243: 0 | I243: 0 | J243: 0
B244: =IF(ISBLANK(dms_E2_Projects_07),"",dms_E2_Projects_07) -> Newcastle MP1 (30kPa) Rehabilitation | D244: 0 | E244: 0 | F244: 0 | G244: 35382.35567 | H244: 673546.104 | I244: 1003860.215 | J244: 1006318.319
B245: =IF(ISBLANK(dms_E2_Projects_08),"",dms_E2_Projects_08) -> 0 | D245: 0 | E245: 0 | F245: 0 | G245: 0 | H245: 0 | I245: 0 | J245: 0
B246: =IF(ISBLANK(dms_E2_Projects_09),"",dms_E2_Projects_09) -> 0 | D246: 0 | E246: 0 | F246: 0 | G246: 0 | H246: 0 | I246: 0 | J246: 0
B247: =IF(ISBLANK(dms_E2_Projects_10),"",dms_E2_Projects_10) -> 0 | D247: 0 | E247: 0 | F247: 0 | G247: 0 | H247: 0 | I247: 0 | J247: 0
... 534 more rows

Sheet E3. Mains Augex
B1: =IF(dms_MultiYear_ResponseFlag="Yes","REGULATORY REPORTING STATEMENT - HISTORICAL INFORMATION",INDEX(dms_Worksheet_List,MATCH(dms_Model,dms_Model_List))) -> REGULATORY REPORTING STATEMENT
B2: =INDEX(dms_TradingNameFull_List,MATCH(dms_TradingName,dms_TradingName_List)) -> Jemena Gas Networks (NSW) Ltd
B3: =IF(SUM(dms_SingleYear_Model)>0,CONCATENATE(CRY),CONCATENATE(FRCP_y1," to ",dms_MultiYear_FinalYear_Result)) -> 2020-21 to 2024-25
B4: E3. MAINS AUGMENTATION
B7: Please list all projects here:
B8: Minor Capital: ME and CD Projects
B9: Gas feed offtake
B10: Sydney West Development
B11: Edmondson Park RMS Component
B12: Cecil Park (Elizabeth Dr) CDP
B13: Edmondson Park Soldiers Parade Steel
B14: Largs Low CDP
B15: Burwood (Sydney South)
B16: Liverpool - Shepherd ST (Sydney West)
B17: Lidcombe CBD (Sydney West)
B18: Aerotropolis Core
B19: Sydney Science Park (near WSA)
B20: Sydney South West Development
B21: Wilton North (Sth Highlands)
B22: Western Sydney Airport (itself)
B23: Box Hill (Sydney North West)
B24: Campsie (Sydney West)
B25: Mt Gilead (Sydney West)
B26: Sydney Primary Main Integrity Management (Lane Cove to Willoughby) – Stage 1
B27: Sydney Primary Main Integrity Management (Lane Cove to Willoughby) – Stage 2
B28: 0
B29: 0
B30: 0
B60: E3.1 - CAPEX BY PROJECT
B61: A. DIRECT INTERNAL LABOUR EXPENDITURE
C62: EXPENDITURE
C63: =CONCATENATE("$0's, real ",dms_DollarReal) -> $0's, real June 2020
C64: =CRCP_y4 -> 2018-19 | D64: =CRCP_y5 -> 2019-20 | E64: =FRCP_y1 -> 2020-21 | F64: =FRCP_y2 -> 2021-22 | G64: =FRCP_y3 -> 2022-23 | H64: =FRCP_y4 -> 2023-24 | I64: =FRCP_y5 -> 2024-25
B65: =IF(ISBLANK(dms_E3_Projects_01),"",dms_E3_Projects_01) -> Minor Capital: ME and CD Projects | C65: 74974.23816 | D65: 47417.47646 | E65: 47445.8871 | F65: 47486.56322 | G65: 47533.01856 | H65: 47577.91318 | I65: 47619.01027
B66: =IF(ISBLANK(dms_E3_Projects_02),"",dms_E3_Projects_02) -> Gas feed offtake | C66: 410618.5353 | D66: 0 | E66: 0 | F66: 0 | G66: 0 | H66: 0 | I66: 0
B67: =IF(ISBLANK(dms_E3_Projects_03),"",dms_E3_Projects_03) -> Sydney West Development | C67: 63747.55107 | D67: 269.9647876 | E67: 0 | F67: 0 | G67: 0 | H67: 0 | I67: 0
B68: =IF(ISBLANK(dms_E3_Projects_04),"",dms_E3_Projects_04) -> Edmondson Park RMS Component | C68: 26178.69043 | D68: 26197.14049 | E68: 0 | F68: 0 | G68: 0 | H68: 0 | I68: 0
B69: =IF(ISBLANK(dms_E3_Projects_05),"",dms_E3_Projects_05) -> Cecil Park (Elizabeth Dr) CDP | C69: 0 | D69: 0 | E69: 102815.3236 | F69: 0 | G69: 0 | H69: 0 | I69: 0
B70: =IF(ISBLANK(dms_E3_Projects_06),"",dms_E3_Projects_06) -> Edmondson Park Soldiers Parade Steel | C70: 0 | D70: 0 | E70: 0 | F70: 62010.28541 | G70: 0 | H70: 0 | I70: 0
B71: =IF(ISBLANK(dms_E3_Projects_07),"",dms_E3_Projects_07) -> Largs Low CDP | C71: 0 | D71: 0 | E71: 0 | F71: 67956.55286 | G71: 0 | H71: 0 | I71: 0
B72: =IF(ISBLANK(dms_E3_Projects_08),"",dms_E3_Projects_08) -> Burwood (Sydney South) | C72: 48779.68583 | D72: 0 | E72: 0 | F72: 0 | G72: 0 | H72: 0 | I72: 0
B73: =IF(ISBLANK(dms_E3_Projects_09),"",dms_E3_Projects_09) -> Liverpool - Shepherd ST (Sydney West) | C73: 9939.564811 | D73: 50442.02461 | E73: 0 | F73: 0 | G73: 0 | H73: 0 | I73: 0
B74: =IF(ISBLANK(dms_E3_Projects_10),"",dms_E3_Projects_10) -> Lidcombe CBD (Sydney West) | C74: 0 | D74: 11255.62948 | E74: 95748.84093 | F74: 0 | G74: 0 | H74: 0 | I74: 0
B75: =IF(ISBLANK(dms_E3_Projects_11),"",dms_E3_Projects_11) -> Aerotropolis Core | C75: 0 | D75: 0 | E75: 25873.76208 | F75: 224110.3535 | G75: 0 | H75: 0 | I75: 0
B76: =IF(ISBLANK(dms_E3_Projects_12),"",dms_E3_Projects_12) -> Sydney Science Park (near WSA) | C76: 0 | D76: 0 | E76: 27318.50855 | F76: 236880.1186 | G76: 0 | H76: 0 | I76: 0
B77: =IF(ISBLANK(dms_E3_Projects_13),"",dms_E3_Projects_13) -> Sydney South West Development | C77: 0 | D77: 25822.44558 | E77: 320149.7373 | F77: 0 | G77: 0 | H77: 0 | I77: 0
B78: =IF(ISBLANK(dms_E3_Projects_14),"",dms_E3_Projects_14) -> Wilton North (Sth Highlands) | C78: 0 | D78: 0 | E78: 0 | F78: 11403.09203 | G78: 104592.623 | H78: 0 | I78: 0
B79: =IF(ISBLANK(dms_E3_Projects_15),"",dms_E3_Projects_15) -> Western Sydney Airport (itself) | C79: 0 | D79: 0 | E79: 0 | F79: 0 | G79: 18401.42862 | H79: 159407.3693 | I79: 0
B80: =IF(ISBLANK(dms_E3_Projects_16),"",dms_E3_Projects_16) -> Box Hill (Sydney North West) | C80: 0 | D80: 0 | E80: 0 | F80: 0 | G80: 11809.34611 | H80: 102129.181 | I80: 0
B81: =IF(ISBLANK(dms_E3_Projects_17),"",dms_E3_Projects_17) -> Campsie (Sydney West) | C81: 0 | D81: 0 | E81: 0 | F81: 0 | G81: 2894.426296 | H81: 25071.78465 | I81: 0
B82: =IF(ISBLANK(dms_E3_Projects_18),"",dms_E3_Projects_18) -> Mt Gilead (Sydney West) | C82: 19338.3773 | D82: 32591.73943 | E82: 0 | F82: 0 | G82: 0 | H82: 0 | I82: 0
B83: =IF(ISBLANK(dms_E3_Projects_19),"",dms_E3_Projects_19) -> Sydney Primary Main Integrity Management (Lane Cove to Willoughby) – Stage 1 | C83: 73.45394144 | D83: 0 | E83: 343618.3833 | F83: 457369.0785 | G83: 0 | H83: 0 | I83: 0
B84: =IF(ISBLANK(dms_E3_Projects_20),"",dms_E3_Projects_20) -> Sydney Primary Main Integrity Management (Lane Cove to Willoughby) – Stage 2 | C84: 0 | D84: 0 | E84: 7579.678875 | F84: 101149.462 | G84: 760677.2914 | H84: 333282.4167 | I84: 0
B85: =IF(ISBLANK(dms_E3_Projects_21),"",dms_E3_Projects_21) -> 0 | C85: 0 | D85: 0 | E85: 0 | F85: 0 | G85: 0 | H85: 0 | I85: 0
B86: =IF(ISBLANK(dms_E3_Projects_22),"",dms_E3_Projects_22) -> 0 | C86: 0 | D86: 0 | E86: 0 | F86: 0 | G86: 0 | H86: 0 | I86: 0
B87: =IF(ISBLANK(dms_E3_Projects_23),"",dms_E3_Projects_23) -> 0 | C87: 0 | D87: 0 | E87: 0 | F87: 0 | G87: 0 | H87: 0 | I87: 0
B88: =IF(ISBLANK(dms_E3_Projects_24),"",dms_E3_Projects_24) ->  | C88: 0 | D88: 0 | E88: 0 | F88: 0 | G88: 0 | H88: 0 | I88: 0
B89: =IF(ISBLANK(dms_E3_Projects_25),"",dms_E3_Projects_25) -> 
B90: =IF(ISBLANK(dms_E3_Projects_26),"",dms_E3_Projects_26) -> 
B91: =IF(ISBLANK(dms_E3_Projects_27),"",dms_E3_Projects_27) -> 
B92: =IF(ISBLANK(dms_E3_Projects_28),"",dms_E3_Projects_28) -> 
B93: =IF(ISBLANK(dms_E3_Projects_29),"",dms_E3_Projects_29) -> 
B94: =IF(ISBLANK(dms_E3_Projects_30),"",dms_E3_Projects_30) -> 
B95: =IF(ISBLANK(dms_E3_Projects_31),"",dms_E3_Projects_31) -> 
B96: =IF(ISBLANK(dms_E3_Projects_32),"",dms_E3_Projects_32) -> 
B97: =IF(ISBLANK(dms_E3_Projects_33),"",dms_E3_Projects_33) -> 
B98: =IF(ISBLANK(dms_E3_Projects_34),"",dms_E3_Projects_34) -> 
B99: =IF(ISBLANK(dms_E3_Projects_35),"",dms_E3_Projects_35) -> 
B100: =IF(ISBLANK(dms_E3_Projects_36),"",dms_E3_Projects_36) -> 
B101: =IF(ISBLANK(dms_E3_Projects_37),"",dms_E3_Projects_37) -> 
B102: =IF(ISBLANK(dms_E3_Projects_38),"",dms_E3_Projects_38) -> 
B103: =IF(ISBLANK(dms_E3_Projects_39),"",dms_E3_Projects_39) -> 
B104: =IF(ISBLANK(dms_E3_Projects_40),"",dms_E3_Projects_40) -> 
B105: =IF(ISBLANK(dms_E3_Projects_41),"",dms_E3_Projects_41) -> 
B106: =IF(ISBLANK(dms_E3_Projects_42),"",dms_E3_Projects_42) -> 
B107: =IF(ISBLANK(dms_E3_Projects_43),"",dms_E3_Projects_43) -> 
B108: =IF(ISBLANK(dms_E3_Projects_44),"",dms_E3_Projects_44) -> 
B109: =IF(ISBLANK(dms_E3_Projects_45),"",dms_E3_Projects_45) -> 
B110: =IF(ISBLANK(dms_E3_Projects_46),"",dms_E3_Projects_46) -> 
B111: =IF(ISBLANK(dms_E3_Projects_47),"",dms_E3_Projects_47) -> 
B112: =IF(ISBLANK(dms_E3_Projects_48),"",dms_E3_Projects_48) -> 
B113: =IF(ISBLANK(dms_E3_Projects_49),"",dms_E3_Projects_49) -> 
B114: =IF(ISBLANK(dms_E3_Projects_50),"",dms_E3_Projects_50) -> 
B115: Aggregate of other projects with total expenditure of less than $500,000 | C115: 3159.953489 | D115: 0 | E115: 4556.789263 | F115: 11437.7863 | G115: 18291.05124 | H115: 188.6680521 | I115: 0
B116: Total | C116: =SUM(C65:C115) -> 656810.0504 | D116: =SUM(D65:D115) -> 193996.4208 | E116: 975106.9111 | F116: 1219803.292 | G116: 964199.1853 | H116: 667657.3329 | I116: 47619.01027
B118: B. DIRECT CONTRACTOR EXPENDITURE
C119: EXPENDITURE
C120: =CONCATENATE("$0's, real ",dms_DollarReal) -> $0's, real June 2020
C121: =CRCP_y4 -> 2018-19 | D121: =CRCP_y5 -> 2019-20 | E121: =FRCP_y1 -> 2020-21 | F121: =FRCP_y2 -> 2021-22 | G121: =FRCP_y3 -> 2022-23 | H121: =FRCP_y4 -> 2023-24 | I121: =FRCP_y5 -> 2024-25
B122: =IF(ISBLANK(dms_E3_Projects_01),"",dms_E3_Projects_01) -> Minor Capital: ME and CD Projects
B123: =IF(ISBLANK(dms_E3_Projects_02),"",dms_E3_Projects_02) -> Gas feed offtake
B124: =IF(ISBLANK(dms_E3_Projects_03),"",dms_E3_Projects_03) -> Sydney West Development
B125: =IF(ISBLANK(dms_E3_Projects_04),"",dms_E3_Projects_04) -> Edmondson Park RMS Component
B126: =IF(ISBLANK(dms_E3_Projects_05),"",dms_E3_Projects_05) -> Cecil Park (Elizabeth Dr) CDP
B127: =IF(ISBLANK(dms_E3_Projects_06),"",dms_E3_Projects_06) -> Edmondson Park Soldiers Parade Steel
B128: =IF(ISBLANK(dms_E3_Projects_07),"",dms_E3_Projects_07) -> Largs Low CDP
B129: =IF(ISBLANK(dms_E3_Projects_08),"",dms_E3_Projects_08) -> Burwood (Sydney South)
B130: =IF(ISBLANK(dms_E3_Projects_09),"",dms_E3_Projects_09) -> Liverpool - Shepherd ST (Sydney West)
B131: =IF(ISBLANK(dms_E3_Projects_10),"",dms_E3_Projects_10) -> Lidcombe CBD (Sydney West)
B132: =IF(ISBLANK(dms_E3_Projects_11),"",dms_E3_Projects_11) -> Aerotropolis Core
B133: =IF(ISBLANK(dms_E3_Projects_12),"",dms_E3_Projects_12) -> Sydney Science Park (near WSA)
B134: =IF(ISBLANK(dms_E3_Projects_13),"",dms_E3_Projects_13) -> Sydney South West Development
B135: =IF(ISBLANK(dms_E3_Projects_14),"",dms_E3_Projects_14) -> Wilton North (Sth Highlands)
B136: =IF(ISBLANK(dms_E3_Projects_15),"",dms_E3_Projects_15) -> Western Sydney Airport (itself)
B137: =IF(ISBLANK(dms_E3_Projects_16),"",dms_E3_Projects_16) -> Box Hill (Sydney North West)
B138: =IF(ISBLANK(dms_E3_Projects_17),"",dms_E3_Projects_17) -> Campsie (Sydney West)
B139: =IF(ISBLANK(dms_E3_Projects_18),"",dms_E3_Projects_18) -> Mt Gilead (Sydney West)
B140: =IF(ISBLANK(dms_E3_Projects_19),"",dms_E3_Projects_19) -> Sydney Primary Main Integrity Management (Lane Cove to Willoughby) – Stage 1
B141: =IF(ISBLANK(dms_E3_Projects_20),"",dms_E3_Projects_20) -> Sydney Primary Main Integrity Management (Lane Cove to Willoughby) – Stage 2
B142: =IF(ISBLANK(dms_E3_Projects_21),"",dms_E3_Projects_21) -> 0 | C142: 0 | D142: 0 | E142: 0 | F142: 0 | G142: 0 | H142: 0 | I142: 0
B143: =IF(ISBLANK(dms_E3_Projects_22),"",dms_E3_Projects_22) -> 0 | C143: 0 | D143: 0 | E143: 0 | F143: 0 | G143: 0 | H143: 0 | I143: 0
B144: =IF(ISBLANK(dms_E3_Projects_23),"",dms_E3_Projects_23) -> 0 | C144: 0 | D144: 0 | E144: 0 | F144: 0 | G144: 0 | H144: 0 | I144: 0
B145: =IF(ISBLANK(dms_E3_Projects_24),"",dms_E3_Projects_24) ->  | C145: 0 | D145: 0 | E145: 0 | F145: 0 | G145: 0 | H145: 0 | I145: 0
B146: =IF(ISBLANK(dms_E3_Projects_25),"",dms_E3_Projects_25) -> 
B147: =IF(ISBLANK(dms_E3_Projects_26),"",dms_E3_Projects_26) -> 
B148: =IF(ISBLANK(dms_E3_Projects_27),"",dms_E3_Projects_27) -> 
B149: =IF(ISBLANK(dms_E3_Projects_28),"",dms_E3_Projects_28) -> 
B150: =IF(ISBLANK(dms_E3_Projects_29),"",dms_E3_Projects_29) -> 
B151: =IF(ISBLANK(dms_E3_Projects_30),"",dms_E3_Projects_30) -> 
B152: =IF(ISBLANK(dms_E3_Projects_31),"",dms_E3_Projects_31) -> 
B153: =IF(ISBLANK(dms_E3_Projects_32),"",dms_E3_Projects_32) -> 
B154: =IF(ISBLANK(dms_E3_Projects_33),"",dms_E3_Projects_33) -> 
B155: =IF(ISBLANK(dms_E3_Projects_34),"",dms_E3_Projects_34) -> 
B156: =IF(ISBLANK(dms_E3_Projects_35),"",dms_E3_Projects_35) -> 
B157: =IF(ISBLANK(dms_E3_Projects_36),"",dms_E3_Projects_36) -> 
B158: =IF(ISBLANK(dms_E3_Projects_37),"",dms_E3_Projects_37) -> 
B159: =IF(ISBLANK(dms_E3_Projects_38),"",dms_E3_Projects_38) -> 
B160: =IF(ISBLANK(dms_E3_Projects_39),"",dms_E3_Projects_39) -> 
B161: =IF(ISBLANK(dms_E3_Projects_40),"",dms_E3_Projects_40) -> 
B162: =IF(ISBLANK(dms_E3_Projects_41),"",dms_E3_Projects_41) -> 
B163: =IF(ISBLANK(dms_E3_Projects_42),"",dms_E3_Projects_42) -> 
B164: =IF(ISBLANK(dms_E3_Projects_43),"",dms_E3_Projects_43) -> 
B165: =IF(ISBLANK(dms_E3_Projects_44),"",dms_E3_Projects_44) -> 
B166: =IF(ISBLANK(dms_E3_Projects_45),"",dms_E3_Projects_45) -> 
B167: =IF(ISBLANK(dms_E3_Projects_46),"",dms_E3_Projects_46) -> 
B168: =IF(ISBLANK(dms_E3_Projects_47),"",dms_E3_Projects_47) -> 
B169: =IF(ISBLANK(dms_E3_Projects_48),"",dms_E3_Projects_48) -> 
B170: =IF(ISBLANK(dms_E3_Projects_49),"",dms_E3_Projects_49) -> 
B171: =IF(ISBLANK(dms_E3_Projects_50),"",dms_E3_Projects_50) -> 
B172: Aggregate of other projects with total expenditure of less than $500,000
B173: Total
B175: C. OTHER INTERNAL DIRECT EXPENDITURE
C176: EXPENDITURE
C177: =CONCATENATE("$0's, real ",dms_DollarReal) -> $0's, real June 2020
C178: =CRCP_y4 -> 2018-19 | D178: =CRCP_y5 -> 2019-20 | E178: =FRCP_y1 -> 2020-21 | F178: =FRCP_y2 -> 2021-22 | G178: =FRCP_y3 -> 2022-23 | H178: =FRCP_y4 -> 2023-24 | I178: =FRCP_y5 -> 2024-25
B179: =IF(ISBLANK(dms_E3_Projects_01),"",dms_E3_Projects_01) -> Minor Capital: ME and CD Projects | C179: 89054.55711 | D179: 56322.57785 | E179: 56356.32407 | F179: 56404.63925 | G179: 56459.81901 | H179: 56513.14492 | I179: 56561.96013
B180: =IF(ISBLANK(dms_E3_Projects_02),"",dms_E3_Projects_02) -> Gas feed offtake | C180: 556604.3113 | D180: 0 | E180: 0 | F180: 0 | G180: 0 | H180: 0 | I180: 0
B181: =IF(ISBLANK(dms_E3_Projects_03),"",dms_E3_Projects_03) -> Sydney West Development | C181: 69241.52805 | D181: 293.2312551 | E181: 0 | F181: 0 | G181: 0 | H181: 0 | I181: 0
B182: =IF(ISBLANK(dms_E3_Projects_04),"",dms_E3_Projects_04) -> Edmondson Park RMS Component | C182: 31095.10332 | D182: 31117.01835 | E182: 0 | F182: 0 | G182: 0 | H182: 0 | I182: 0
B183: =IF(ISBLANK(dms_E3_Projects_05),"",dms_E3_Projects_05) -> Cecil Park (Elizabeth Dr) CDP | C183: 0 | D183: 0 | E183: 122124.2567 | F183: 0 | G183: 0 | H183: 0 | I183: 0
B184: =IF(ISBLANK(dms_E3_Projects_06),"",dms_E3_Projects_06) -> Edmondson Park Soldiers Parade Steel | C184: 0 | D184: 0 | E184: 0 | F184: 73655.94689 | G184: 0 | H184: 0 | I184: 0
B185: =IF(ISBLANK(dms_E3_Projects_07),"",dms_E3_Projects_07) -> Largs Low CDP | C185: 0 | D185: 0 | E185: 0 | F185: 80718.93582 | G185: 0 | H185: 0 | I185: 0
B186: =IF(ISBLANK(dms_E3_Projects_08),"",dms_E3_Projects_08) -> Burwood (Sydney South) | C186: 52983.68218 | D186: 0 | E186: 0 | F186: 0 | G186: 0 | H186: 0 | I186: 0
B187: =IF(ISBLANK(dms_E3_Projects_09),"",dms_E3_Projects_09) -> Liverpool - Shepherd ST (Sydney West) | C187: 10796.18972 | D187: 54789.28686 | E187: 0 | F187: 0 | G187: 0 | H187: 0 | I187: 0
B188: =IF(ISBLANK(dms_E3_Projects_10),"",dms_E3_Projects_10) -> Lidcombe CBD (Sydney West) | C188: 0 | D188: 12225.67724 | E188: 104000.796 | F188: 0 | G188: 0 | H188: 0 | I188: 0
B189: =IF(ISBLANK(dms_E3_Projects_11),"",dms_E3_Projects_11) -> Aerotropolis Core | C189: 0 | D189: 0 | E189: 21864.72674 | F189: 189385.3558 | G189: 0 | H189: 0 | I189: 0
B190: =IF(ISBLANK(dms_E3_Projects_12),"",dms_E3_Projects_12) -> Sydney Science Park (near WSA) | C190: 0 | D190: 0 | E190: 23085.61556 | F190: 200176.4972 | G190: 0 | H190: 0 | I190: 0
B191: =IF(ISBLANK(dms_E3_Projects_13),"",dms_E3_Projects_13) -> Sydney South West Development | C191: 0 | D191: 21821.36153 | E191: 270543.8235 | F191: 0 | G191: 0 | H191: 0 | I191: 0
B192: =IF(ISBLANK(dms_E3_Projects_14),"",dms_E3_Projects_14) -> Wilton North (Sth Highlands) | C192: 0 | D192: 0 | E192: 0 | F192: 9636.228795 | G192: 88386.41686 | H192: 0 | I192: 0
B193: =IF(ISBLANK(dms_E3_Projects_15),"",dms_E3_Projects_15) -> Western Sydney Airport (itself) | C193: 0 | D193: 0 | E193: 0 | F193: 0 | G193: 35969.78605 | H193: 311598.0333 | I193: 0
B194: =IF(ISBLANK(dms_E3_Projects_16),"",dms_E3_Projects_16) -> Box Hill (Sydney North West) | C194: 0 | D194: 0 | E194: 0 | F194: 0 | G194: 9979.535441 | H194: 86304.67529 | I194: 0
B195: =IF(ISBLANK(dms_E3_Projects_17),"",dms_E3_Projects_17) -> Campsie (Sydney West) | C195: 0 | D195: 0 | E195: 0 | F195: 0 | G195: 2445.946586 | H195: 21187.01248 | I195: 0
B196: =IF(ISBLANK(dms_E3_Projects_18),"",dms_E3_Projects_18) -> Mt Gilead (Sydney West) | C196: 16341.97354 | D196: 27541.78053 | E196: 0 | F196: 0 | G196: 0 | H196: 0 | I196: 0
B197: =IF(ISBLANK(dms_E3_Projects_19),"",dms_E3_Projects_19) -> Sydney Primary Main Integrity Management (Lane Cove to Willoughby) – Stage 1 | C197: 87.24874549 | D197: 0 | E197: 408150.6354 | F197: 543263.9494 | G197: 0 | H197: 0 | I197: 0
B198: =IF(ISBLANK(dms_E3_Projects_20),"",dms_E3_Projects_20) -> Sydney Primary Main Integrity Management (Lane Cove to Willoughby) – Stage 2 | C198: 0 | D198: 0 | E198: 9003.158442 | F198: 120145.5428 | G198: 903534.08 | H198: 395873.5526 | I198: 0
B199: =IF(ISBLANK(dms_E3_Projects_21),"",dms_E3_Projects_21) -> 0 | C199: 0 | D199: 0 | E199: 0 | F199: 0 | G199: 0 | H199: 0 | I199: 0
B200: =IF(ISBLANK(dms_E3_Projects_22),"",dms_E3_Projects_22) -> 0 | C200: 0 | D200: 0 | E200: 0 | F200: 0 | G200: 0 | H200: 0 | I200: 0
B201: =IF(ISBLANK(dms_E3_Projects_23),"",dms_E3_Projects_23) -> 0 | C201: 0 | D201: 0 | E201: 0 | F201: 0 | G201: 0 | H201: 0 | I201: 0
B202: =IF(ISBLANK(dms_E3_Projects_24),"",dms_E3_Projects_24) ->  | C202: 0 | D202: 0 | E202: 0 | F202: 0 | G202: 0 | H202: 0 | I202: 0
B203: =IF(ISBLANK(dms_E3_Projects_25),"",dms_E3_Projects_25) -> 
B204: =IF(ISBLANK(dms_E3_Projects_26),"",dms_E3_Projects_26) -> 
B205: =IF(ISBLANK(dms_E3_Projects_27),"",dms_E3_Projects_27) -> 
B206: =IF(ISBLANK(dms_E3_Projects_28),"",dms_E3_Projects_28) -> 
B207: =IF(ISBLANK(dms_E3_Projects_29),"",dms_E3_Projects_29) -> 
B208: =IF(ISBLANK(dms_E3_Projects_30),"",dms_E3_Projects_30) -> 
B209: =IF(ISBLANK(dms_E3_Projects_31),"",dms_E3_Projects_31) -> 
B210: =IF(ISBLANK(dms_E3_Projects_32),"",dms_E3_Projects_32) -> 
B211: =IF(ISBLANK(dms_E3_Projects_33),"",dms_E3_Projects_33) -> 
B212: =IF(ISBLANK(dms_E3_Projects_34),"",dms_E3_Projects_34) -> 
B213: =IF(ISBLANK(dms_E3_Projects_35),"",dms_E3_Projects_35) -> 
B214: =IF(ISBLANK(dms_E3_Projects_36),"",dms_E3_Projects_36) -> 
B215: =IF(ISBLANK(dms_E3_Projects_37),"",dms_E3_Projects_37) -> 
B216: =IF(ISBLANK(dms_E3_Projects_38),"",dms_E3_Projects_38) -> 
B217: =IF(ISBLANK(dms_E3_Projects_39),"",dms_E3_Projects_39) -> 
B218: =IF(ISBLANK(dms_E3_Projects_40),"",dms_E3_Projects_40) -> 
B219: =IF(ISBLANK(dms_E3_Projects_41),"",dms_E3_Projects_41) -> 
B220: =IF(ISBLANK(dms_E3_Projects_42),"",dms_E3_Projects_42) -> 
B221: =IF(ISBLANK(dms_E3_Projects_43),"",dms_E3_Projects_43) -> 
B222: =IF(ISBLANK(dms_E3_Projects_44),"",dms_E3_Projects_44) -> 
B223: =IF(ISBLANK(dms_E3_Projects_45),"",dms_E3_Projects_45) -> 
B224: =IF(ISBLANK(dms_E3_Projects_46),"",dms_E3_Projects_46) -> 
B225: =IF(ISBLANK(dms_E3_Projects_47),"",dms_E3_Projects_47) -> 
B226: =IF(ISBLANK(dms_E3_Projects_48),"",dms_E3_Projects_48) -> 
B227: =IF(ISBLANK(dms_E3_Projects_49),"",dms_E3_Projects_49) -> 
B228: =IF(ISBLANK(dms_E3_Projects_50),"",dms_E3_Projects_50) -> 
B229: Aggregate of other projects with total expenditure of less than $500,000 | C229: 2207.555844 | D229: 0 | E229: 5412.56383 | F229: 13585.82652 | G229: 21726.14897 | H229: 224.1003074 | I229: 0
B230: Total | C230: =SUM(C179:C229) -> 828412.1498 | D230: =SUM(D179:D229) -> 204110.9336 | E230: 1020541.9 | F230: 1286972.922 | G230: 1118501.733 | H230: 871700.5189 | I230: 56561.96013
B232: D. TOTAL OVERHEAD EXPENDITURE
C233: EXPENDITURE
C234: =CONCATENATE("$0's, real ",dms_DollarReal) -> $0's, real June 2020
... 502 more rows

Sheet E4. Meter replacement
B1: =IF(dms_MultiYear_ResponseFlag="Yes","REGULATORY REPORTING STATEMENT - HISTORICAL INFORMATION",INDEX(dms_Worksheet_List,MATCH(dms_Model,dms_Model_List))) -> REGULATORY REPORTING STATEMENT
B2: =INDEX(dms_TradingNameFull_List,MATCH(dms_TradingName,dms_TradingName_List)) -> Jemena Gas Networks (NSW) Ltd
B3: =IF(SUM(dms_SingleYear_Model)>0,CONCATENATE(CRY),CONCATENATE(FRCP_y1," to ",dms_MultiYear_FinalYear_Result)) -> 2020-21 to 2024-25
B4: E4. METER REPLACEMENT
B6: E4.1 - CAPEX
B7: E4.1.1 - NEW METERS ACQUIRED
C8: EXPENDITURE
C9: =CONCATENATE("$0's, real ",dms_DollarReal) -> $0's, real June 2020
C10: =CRCP_y4 -> 2018-19 | D10: =CRCP_y5 -> 2019-20 | E10: =FRCP_y1 -> 2020-21 | F10: =FRCP_y2 -> 2021-22 | G10: =FRCP_y3 -> 2022-23 | H10: =FRCP_y4 -> 2023-24 | I10: =FRCP_y5 -> 2024-25
B11: A. DIRECT INTERNAL LABOUR EXPENDITURE
B12: Residential | C12: 0 | D12: 0 | E12: 0 | F12: 0 | G12: 0 | H12: 0 | I12: 0
B13: Industrial and Commercial | C13: 0 | D13: 0 | E13: 0 | F13: 0 | G13: 0 | H13: 0 | I13: 0
B14: Other | C14: 0 | D14: 0 | E14: 0 | F14: 0 | G14: 0 | H14: 0 | I14: 0
B15: Total | C15: =SUM(C12:C14) -> 0 | D15: =SUM(D12:D14) -> 0 | E15: 0 | F15: 0 | G15: 0 | H15: 0 | I15: 0
B16: B. DIRECT CONTRACTOR EXPENDITURE
B17: Residential | C17: 0 | D17: 0 | E17: 0 | F17: 0 | G17: 0 | H17: 0 | I17: 0
B18: Industrial and Commercial | C18: 0 | D18: 0 | E18: 0 | F18: 0 | G18: 0 | H18: 0 | I18: 0
B19: Other | C19: 0 | D19: 0 | E19: 0 | F19: 0 | G19: 0 | H19: 0 | I19: 0
B20: Total | C20: =SUM(C17:C19) -> 0 | D20: =SUM(D17:D19) -> 0 | E20: 0 | F20: 0 | G20: 0 | H20: 0 | I20: 0
B21: C. OTHER INTERNAL DIRECT EXPENDITURE
B22: Residential
B23: Industrial and Commercial
B24: Other
B25: Total
B26: D. TOTAL OVERHEAD EXPENDITURE
B27: Residential | C27: 820288.1695 | D27: 735734.878 | E27: 465897.3717 | F27: 449596.7563 | G27: 670066.0786 | H27: 761895.8553 | I27: 845957.2601
B28: Industrial and Commercial | C28: 319224.1618 | D28: 299811.5417 | E28: 229765.652 | F28: 174430.4055 | G28: 233460.3226 | H28: 302481.1033 | I28: 349338.3224
B29: Other | C29: 904707.1627 | D29: 620245.557 | E29: 450294.2299 | F29: 322858.6885 | G29: 338908.384 | H29: 282756.9365 | I29: 246326.7422
B30: Total | C30: =SUM(C27:C29) -> 2044219.494 | D30: =SUM(D27:D29) -> 1655791.977 | E30: 1145957.254 | F30: 946885.8503 | G30: 1242434.785 | H30: 1347133.895 | I30: 1441622.325
B31: E. RELATED PARTY MARGIN EXPENDITURE
B32: Residential | C32: 0 | D32: 0 | E32: 0 | F32: 0 | G32: 0 | H32: 0 | I32: 0
B33: Industrial and Commercial | C33: 0 | D33: 0 | E33: 0 | F33: 0 | G33: 0 | H33: 0 | I33: 0
B34: Other | C34: 0 | D34: 0 | E34: 0 | F34: 0 | G34: 0 | H34: 0 | I34: 0
B35: Total | C35: =SUM(C32:C34) -> 0 | D35: =SUM(D32:D34) -> 0 | E35: 0 | F35: 0 | G35: 0 | H35: 0 | I35: 0
B36: F. CUSTOMER CONTRIBUTIONS included in the above
B37: Residential | C37: 0 | D37: 0 | E37: 0 | F37: 0 | G37: 0 | H37: 0 | I37: 0
B38: Industrial and Commercial | C38: 0 | D38: 0 | E38: 0 | F38: 0 | G38: 0 | H38: 0 | I38: 0
B39: Other | C39: 0 | D39: 0 | E39: 0 | F39: 0 | G39: 0 | H39: 0 | I39: 0
B40: Total | C40: =SUM(C37:C39) -> 0 | D40: =SUM(D37:D39) -> 0 | E40: 0 | F40: 0 | G40: 0 | H40: 0 | I40: 0
B41: TOTAL | C41: =SUM(C15,C20,C25,C30,C35,C40) -> 2044219.494 | D41: =SUM(D15,D20,D25,D30,D35,D40) -> 1655791.977 | E41: 1145957.254 | F41: 946885.8503 | G41: 1242434.785 | H41: 1347133.895 | I41: 1441622.325
B43: E4.1.2 - METER REFURBISHMENT
C44: EXPENDITURE
C45: =CONCATENATE("$0's, real ",dms_DollarReal) -> $0's, real June 2020
C46: =CRCP_y4 -> 2018-19 | D46: =CRCP_y5 -> 2019-20 | E46: =FRCP_y1 -> 2020-21 | F46: =FRCP_y2 -> 2021-22 | G46: =FRCP_y3 -> 2022-23 | H46: =FRCP_y4 -> 2023-24 | I46: =FRCP_y5 -> 2024-25
B47: A. DIRECT INTERNAL LABOUR EXPENDITURE
B48: Residential | C48: 0 | D48: 0 | E48: 0 | F48: 0 | G48: 0 | H48: 0 | I48: 0
B49: Industrial and Commercial | C49: 0 | D49: 0 | E49: 0 | F49: 0 | G49: 0 | H49: 0 | I49: 0
B50: Other | C50: 0 | D50: 0 | E50: 0 | F50: 0 | G50: 0 | H50: 0 | I50: 0
B51: Total | C51: =SUM(C48:C50) -> 0 | D51: =SUM(D48:D50) -> 0 | E51: 0 | F51: 0 | G51: 0 | H51: 0 | I51: 0
B52: B. DIRECT CONTRACTOR EXPENDITURE
B53: Residential | C53: 0 | D53: 0 | E53: 0 | F53: 0 | G53: 0 | H53: 0 | I53: 0
B54: Industrial and Commercial | C54: 0 | D54: 0 | E54: 0 | F54: 0 | G54: 0 | H54: 0 | I54: 0
B55: Other | C55: 0 | D55: 0 | E55: 0 | F55: 0 | G55: 0 | H55: 0 | I55: 0
B56: Total | C56: =SUM(C53:C55) -> 0 | D56: =SUM(D53:D55) -> 0 | E56: 0 | F56: 0 | G56: 0 | H56: 0 | I56: 0
B57: C. OTHER INTERNAL DIRECT EXPENDITURE
B58: Residential | C58: 0 | D58: 0 | E58: 0 | F58: 0 | G58: 0 | H58: 0 | I58: 0
B59: Industrial and Commercial
B60: Other | C60: 0 | D60: 0 | E60: 0 | F60: 0 | G60: 0 | H60: 0 | I60: 0
B61: Total
B62: D. TOTAL OVERHEAD EXPENDITURE
B63: Residential | C63: 0 | D63: 0 | E63: 0 | F63: 0 | G63: 0 | H63: 0 | I63: 0
B64: Industrial and Commercial | C64: 339281.2048 | D64: 288277.9296 | E64: 195649.1136 | F64: 139261.0011 | G64: 201157.7743 | H64: 283795.9368 | I64: 334449.5697
B65: Other | C65: 0 | D65: 0 | E65: 0 | F65: 0 | G65: 0 | H65: 0 | I65: 0
B66: Total | C66: =SUM(C63:C65) -> 339281.2048 | D66: =SUM(D63:D65) -> 288277.9296 | E66: 195649.1136 | F66: 139261.0011 | G66: 201157.7743 | H66: 283795.9368 | I66: 334449.5697
B67: E. RELATED PARTY MARGIN EXPENDITURE
B68: Residential | C68: 0 | D68: 0 | E68: 0 | F68: 0 | G68: 0 | H68: 0 | I68: 0
B69: Industrial and Commercial | C69: 0 | D69: 0 | E69: 0 | F69: 0 | G69: 0 | H69: 0 | I69: 0
B70: Other | C70: 0 | D70: 0 | E70: 0 | F70: 0 | G70: 0 | H70: 0 | I70: 0
B71: Total | C71: =SUM(C68:C70) -> 0 | D71: =SUM(D68:D70) -> 0 | E71: 0 | F71: 0 | G71: 0 | H71: 0 | I71: 0
B72: F. CUSTOMER CONTRIBUTIONS included in the above
B73: Residential | C73: 0 | D73: 0 | E73: 0 | F73: 0 | G73: 0 | H73: 0 | I73: 0
B74: Industrial and Commercial | C74: 0 | D74: 0 | E74: 0 | F74: 0 | G74: 0 | H74: 0 | I74: 0
B75: Other | C75: 0 | D75: 0 | E75: 0 | F75: 0 | G75: 0 | H75: 0 | I75: 0
B76: Total | C76: =SUM(C73:C75) -> 0 | D76: =SUM(D73:D75) -> 0 | E76: 0 | F76: 0 | G76: 0 | H76: 0 | I76: 0
B77: TOTAL | C77: =SUM(C51,C56,C61,C66,C71,C76) -> 339281.2048 | D77: =SUM(D51,D56,D61,D66,D71,D76) -> 288277.9296 | E77: 195649.1136 | F77: 139261.0011 | G77: 201157.7743 | H77: 283795.9368 | I77: 334449.5697
B79: E4.1.3 - METER INSTALLATION
C80: EXPENDITURE
C81: =CONCATENATE("$0's, real ",dms_DollarReal) -> $0's, real June 2020
C82: =CRCP_y4 -> 2018-19 | D82: =CRCP_y5 -> 2019-20 | E82: =FRCP_y1 -> 2020-21 | F82: =FRCP_y2 -> 2021-22 | G82: =FRCP_y3 -> 2022-23 | H82: =FRCP_y4 -> 2023-24 | I82: =FRCP_y5 -> 2024-25
B83: A. DIRECT INTERNAL LABOUR EXPENDITURE
B84: Residential | C84: 1992401.133 | D84: 1872591.565 | E84: 1605679.979 | F84: 2244505.775 | G84: 3007762.06 | H84: 3510149.159 | I84: 3916865.31
B85: Industrial and Commercial | C85: 842044.8551 | D85: 744222.3591 | E85: 718406.2574 | F85: 821822.1198 | G85: 1235100.368 | H85: 1963414.493 | I85: 2423823.951
B86: Other | C86: 98938.80069 | D86: 96075.48698 | E86: 95956.69869 | F86: 96317.51465 | G86: 95968.44294 | H86: 95001.84543 | I86: 94289.50756
B87: Total | C87: =SUM(C84:C86) -> 2933384.788 | D87: =SUM(D84:D86) -> 2712889.412 | E87: 2420042.935 | F87: 3162645.41 | G87: 4338830.871 | H87: 5568565.498 | I87: 6434978.769
B88: B. DIRECT CONTRACTOR EXPENDITURE
B89: Residential
B90: Industrial and Commercial
B91: Other
B92: Total
B93: C. OTHER INTERNAL DIRECT EXPENDITURE
B94: Residential | C94: 0 | D94: 0 | E94: 0 | F94: 0 | G94: 0 | H94: 0 | I94: 0
B95: Industrial and Commercial | C95: 0 | D95: 0 | E95: 0 | F95: 0 | G95: 0 | H95: 0 | I95: 0
B96: Other | C96: 0 | D96: 0 | E96: 0 | F96: 0 | G96: 0 | H96: 0 | I96: 0
B97: Total | C97: =SUM(C94:C96) -> 0 | D97: =SUM(D94:D96) -> 0 | E97: 0 | F97: 0 | G97: 0 | H97: 0 | I97: 0
B98: D. TOTAL OVERHEAD EXPENDITURE
B99: Residential | C99: 665154.9398 | D99: 599397.3967 | E99: 378967.0546 | F99: 366866.0162 | G99: 548072.7368 | H99: 624083.7873 | I99: 693541.6344
B100: Industrial and Commercial | C100: 255534.3272 | D100: 222612.8245 | E100: 159976.8078 | F100: 123301.9002 | G100: 202129.879 | H100: 299065.4959 | I100: 361533.1379
B101: Other | C101: 661458.2943 | D101: 477991.5487 | E101: 348318.0744 | F101: 247791.6695 | G101: 262695.3438 | H101: 225940.9188 | I101: 202679.088
B102: Total | C102: =SUM(C99:C101) -> 1582147.561 | D102: =SUM(D99:D101) -> 1300001.77 | E102: 887261.9369 | F102: 737959.5858 | G102: 1012897.96 | H102: 1149090.202 | I102: 1257753.86
B103: E. RELATED PARTY MARGIN EXPENDITURE
B104: Residential | C104: 0 | D104: 0 | E104: 0 | F104: 0 | G104: 0 | H104: 0 | I104: 0
B105: Industrial and Commercial | C105: 0 | D105: 0 | E105: 0 | F105: 0 | G105: 0 | H105: 0 | I105: 0
B106: Other | C106: 0 | D106: 0 | E106: 0 | F106: 0 | G106: 0 | H106: 0 | I106: 0
B107: Total | C107: =SUM(C104:C106) -> 0 | D107: =SUM(D104:D106) -> 0 | E107: 0 | F107: 0 | G107: 0 | H107: 0 | I107: 0
B108: F. CUSTOMER CONTRIBUTIONS included in the above
B109: Residential | C109: 0 | D109: 0 | E109: 0 | F109: 0 | G109: 0 | H109: 0 | I109: 0
B110: Industrial and Commercial | C110: 0 | D110: 0 | E110: 0 | F110: 0 | G110: 0 | H110: 0 | I110: 0
B111: Other | C111: 0 | D111: 0 | E111: 0 | F111: 0 | G111: 0 | H111: 0 | I111: 0
B112: Total | C112: =SUM(C109:C111) -> 0 | D112: =SUM(D109:D111) -> 0 | E112: 0 | F112: 0 | G112: 0 | H112: 0 | I112: 0
B113: TOTAL
B115: E4.1.4 - OTHER METER REPLACEMENT CAPEX
C116: EXPENDITURE
C117: =CONCATENATE("$0's, real ",dms_DollarReal) -> $0's, real June 2020
C118: =CRCP_y4 -> 2018-19 | D118: =CRCP_y5 -> 2019-20 | E118: =FRCP_y1 -> 2020-21 | F118: =FRCP_y2 -> 2021-22 | G118: =FRCP_y3 -> 2022-23 | H118: =FRCP_y4 -> 2023-24 | I118: =FRCP_y5 -> 2024-25
B119: A. DIRECT INTERNAL LABOUR EXPENDITURE
B120: Residential | C120: 0 | D120: 0 | E120: 0 | F120: 0 | G120: 0 | H120: 0 | I120: 0
B121: Industrial and Commercial | C121: 0 | D121: 0 | E121: 0 | F121: 0 | G121: 0 | H121: 0 | I121: 0
B122: Other | C122: 841543.1354 | D122: 858499.3702 | E122: 840816.9365 | F122: 819574.6979 | G122: 784035.9716 | H122: 773894.2385 | I122: 776013.9706
B123: Total | C123: =SUM(C120:C122) -> 841543.1354 | D123: =SUM(D120:D122) -> 858499.3702 | E123: 840816.9365 | F123: 819574.6979 | G123: 784035.9716 | H123: 773894.2385 | I123: 776013.9706
B124: B. DIRECT CONTRACTOR EXPENDITURE
B125: Residential | C125: 0 | D125: 0 | E125: 0 | F125: 0 | G125: 0 | H125: 0 | I125: 0
B126: Industrial and Commercial | C126: 0 | D126: 0 | E126: 0 | F126: 0 | G126: 0 | H126: 0 | I126: 0
B127: Other
B128: Total
B129: C. OTHER INTERNAL DIRECT EXPENDITURE
B130: Residential | C130: 0 | D130: 0 | E130: 0 | F130: 0 | G130: 0 | H130: 0 | I130: 0
B131: Industrial and Commercial | C131: 0 | D131: 0 | E131: 0 | F131: 0 | G131: 0 | H131: 0 | I131: 0
B132: Other
B133: Total
B134: D. TOTAL OVERHEAD EXPENDITURE
B135: Residential | C135: 0 | D135: 0 | E135: 0 | F135: 0 | G135: 0 | H135: 0 | I135: 0
B136: Industrial and Commercial | C136: 0 | D136: 0 | E136: 0 | F136: 0 | G136: 0 | H136: 0 | I136: 0
B137: Other | C137: 1106203.577 | D137: 1031438.585 | E137: 723126.7651 | F137: 445656.5176 | G137: 457365.5739 | H137: 441599.0433 | I137: 440009.0287
B138: Total | C138: =SUM(C135:C137) -> 1106203.577 | D138: =SUM(D135:D137) -> 1031438.585 | E138: 723126.7651 | F138: 445656.5176 | G138: 457365.5739 | H138: 441599.0433 | I138: 440009.0287
B139: E. RELATED PARTY MARGIN EXPENDITURE
B140: Residential | C140: 0 | D140: 0 | E140: 0 | F140: 0 | G140: 0 | H140: 0 | I140: 0
B141: Industrial and Commercial | C141: 0 | D141: 0 | E141: 0 | F141: 0 | G141: 0 | H141: 0 | I141: 0
B142: Other | C142: 0 | D142: 0 | E142: 0 | F142: 0 | G142: 0 | H142: 0 | I142: 0
B143: Total | C143: =SUM(C140:C142) -> 0 | D143: =SUM(D140:D142) -> 0 | E143: 0 | F143: 0 | G143: 0 | H143: 0 | I143: 0
B144: F. CUSTOMER CONTRIBUTIONS included in the above
B145: Residential | C145: 0 | D145: 0 | E145: 0 | F145: 0 | G145: 0 | H145: 0 | I145: 0
B146: Industrial and Commercial | C146: 0 | D146: 0 | E146: 0 | F146: 0 | G146: 0 | H146: 0 | I146: 0
B147: Other | C147: 0 | D147: 0 | E147: 0 | F147: 0 | G147: 0 | H147: 0 | I147: 0
B148: Total | C148: =SUM(C145:C147) -> 0 | D148: =SUM(D145:D147) -> 0 | E148: 0 | F148: 0 | G148: 0 | H148: 0 | I148: 0
B149: TOTAL
B152: E4.2 - VOLUMES
B153: E4.2.1 - NUMBER OF NEW METERS ACQUIRED
C154: VOLUMES
C155: 0s
C156: =CRCP_y4 -> 2018-19 | D156: =CRCP_y5 -> 2019-20 | E156: =FRCP_y1 -> 2020-21 | F156: =FRCP_y2 -> 2021-22 | G156: =FRCP_y3 -> 2022-23 | H156: =FRCP_y4 -> 2023-24 | I156: =FRCP_y5 -> 2024-25
B157: Residential
B158: Industrial and commercial
B159: Other meters
B160: Total
B163: E4.2.2 - NUMBER OF METERS REFURBISHED
C164: VOLUMES
C165: 0s
C166: =CRCP_y4 -> 2018-19 | D166: =CRCP_y5 -> 2019-20 | E166: =FRCP_y1 -> 2020-21 | F166: =FRCP_y2 -> 2021-22 | G166: =FRCP_y3 -> 2022-23 | H166: =FRCP_y4 -> 2023-24 | I166: =FRCP_y5 -> 2024-25
B167: A. REFURBISHABLE METERS REMOVED
B168: Residential | C168: 0 | D168: 0 | E168: 0 | F168: 0 | G168: 0 | H168: 0 | I168: 0
B169: Industrial and commercial
B170: Other meters | C170: 0 | D170: 0 | E170: 0 | F170: 0 | G170: 0 | H170: 0 | I170: 0
B171: Total
B172: B. METERS DECOMMISSIONED
B173: Residential | C173: 0 | D173: 0 | E173: 0 | F173: 0 | G173: 0 | H173: 0 | I173: 0
B174: Industrial and commercial
B175: Other meters | C175: 0 | D175: 0 | E175: 0 | F175: 0 | G175: 0 | H175: 0 | I175: 0
B176: Total
B177: TOTAL
B180: E4.2.3 - NUMBER OF METERS INSTALLED
C181: VOLUMES
C182: 0s
C183: =CRCP_y4 -> 2018-19 | D183: =CRCP_y5 -> 2019-20 | E183: =FRCP_y1 -> 2020-21 | F183: =FRCP_y2 -> 2021-22 | G183: =FRCP_y3 -> 2022-23 | H183: =FRCP_y4 -> 2023-24 | I183: =FRCP_y5 -> 2024-25
B184: Residential
B185: Industrial and commercial
B186: Other meters
B187: Total
B190: E4.2.4 - NUMBER OF METERS REMOVED / DECOMMISSIONED
C191: VOLUMES
C192: 0s
C193: =CRCP_y4 -> 2018-19 | D193: =CRCP_y5 -> 2019-20 | E193: =FRCP_y1 -> 2020-21 | F193: =FRCP_y2 -> 2021-22 | G193: =FRCP_y3 -> 2022-23 | H193: =FRCP_y4 -> 2023-24 | I193: =FRCP_y5 -> 2024-25
B194: Residential
B195: Industrial and commercial
B196: Other meters
B197: Total | C197: =SUM(C194:C196) -> 0 | D197: =SUM(D194:D196) -> 0 | E197: 0 | F197: 0 | G197: 0 | H197: 0 | I197: 0
B200: E4.2.5 - OTHER METER REPLACEMENT VOLUMES
C201: VOLUMES
C202: 0s
C203: =CRCP_y4 -> 2018-19 | D203: =CRCP_y5 -> 2019-20 | E203: =FRCP_y1 -> 2020-21 | F203: =FRCP_y2 -> 2021-22 | G203: =FRCP_y3 -> 2022-23 | H203: =FRCP_y4 -> 2023-24 | I203: =FRCP_y5 -> 2024-25
B204: Residential | C204: 0 | D204: 0 | E204: 0 | F204: 0 | G204: 0 | H204: 0 | I204: 0
B205: Industrial and commercial | C205: 0 | D205: 0 | E205: 0 | F205: 0 | G205: 0 | H205: 0 | I205: 0
B206: Other meters | C206: 0 | D206: 0 | E206: 0 | F206: 0 | G206: 0 | H206: 0 | I206: 0
B207: Total | C207: =SUM(C204:C206) -> 0 | D207: =SUM(D204:D206) -> 0 | E207: 0 | F207: 0 | G207: 0 | H207: 0 | I207: 0

Sheet E5. New Connections
B1: =IF(dms_MultiYear_ResponseFlag="Yes","REGULATORY REPORTING STATEMENT - HISTORICAL INFORMATION",INDEX(dms_Worksheet_List,MATCH(dms_Model,dms_Model_List))) -> REGULATORY REPORTING STATEMENT
B2: =INDEX(dms_TradingNameFull_List,MATCH(dms_TradingName,dms_TradingName_List)) -> Jemena Gas Networks (NSW) Ltd
B3: =IF(SUM(dms_SingleYear_Model)>0,CONCATENATE(CRY),CONCATENATE(FRCP_y1," to ",dms_MultiYear_FinalYear_Result)) -> 2020-21 to 2024-25
B4: E5. NEW CONNECTIONS
B6: E5.1 - EXPENDITURE
B7: E5.1.1 - CAPEX - BY CONNECTION TYPE
B8: A. DIRECT INTERNAL LABOUR EXPENDITURE
D9: EXPENDITURE
D10: $0's, nominal
D11: =CRCP_y4 -> 2018-19 | E11: =CRCP_y5 -> 2019-20 | F11: =FRCP_y1 -> 2020-21 | G11: =FRCP_y2 -> 2021-22 | H11: =FRCP_y3 -> 2022-23 | I11: =FRCP_y4 -> 2023-24 | J11: =FRCP_y5 -> 2024-25
B12: (i) ELECTRICITY TO GAS
B13: Distribution Mains | D13: 233534.6119 | E13: 233655.9086 | F13: 233759.0819 | G13: 233906.774 | H13: 234075.412 | I13: 234238.3426 | J13: 234387.4542
B14: Inlet service pipes | D14: 648985.2662 | E14: 649299.6217 | F14: 649566.9988 | G14: 649949.7365 | H14: 650386.7362 | I14: 650808.9252 | J14: 651195.2883
B15: Meters | D15: 40951.6083 | E15: 40964.16247 | F15: 40974.83859 | G15: 40990.11866 | H15: 41007.56126 | I15: 41024.40854 | J15: 41039.82253
C16: Total | D16: =SUM(D13:D15) -> 923471.4863 | E16: =SUM(E13:E15) -> 923919.6928 | F16: 924300.9192 | G16: 924846.6292 | H16: 925469.7095 | I16: 926071.6763 | J16: 926622.565
B17: (ii) NEW HOMES
B18: Distribution Mains | D18: 801741.4293 | E18: 744477.6835 | F18: 627746.6089 | G18: 588448.0084 | H18: 576083.7357 | I18: 591173.2256 | J18: 629310.6591
B19: Inlet service pipes | D19: 968404.8651 | E19: 899103.3671 | F19: 758031.6024 | G19: 710448.0714 | H19: 695376.5857 | I19: 713448.3086 | J19: 759335.2413
B20: Meters | D20: 65408.18657 | E20: 60720.25961 | F20: 51187.95991 | G20: 47967.89163 | H20: 46942.62351 | I20: 48154.98619 | J20: 51244.77821
C21: Total | D21: =SUM(D18:D20) -> 1835554.481 | E21: =SUM(E18:E20) -> 1704301.31 | F21: =SUM(F18:F20) -> 1436966.171 | G21: =SUM(G18:G20) -> 1346863.971 | H21: =SUM(H18:H20) -> 1318402.945 | I21: =SUM(I18:I20) -> 1352776.52 | J21: =SUM(J18:J20) -> 1439890.679
B22: (iii) NEW MEDIUM DENSITY / HIGH RISE
B23: Distribution Mains | D23: 210372.9994 | E23: 180592.7948 | F23: 135805.0668 | G23: 120476.5931 | H23: 119429.6134 | I23: 122432.7658 | J23: 127768.325
B24: Inlet service pipes | D24: 136443.3933 | E24: 117112.2994 | F24: 88057.56872 | G24: 78105.19102 | H24: 77411.48291 | I24: 79343.2628 | J24: 82786.88591
B25: Meters | D25: 106759.4888 | E25: 85920.6462 | F25: 38802.98963 | G25: 34207.3142 | H25: 33876.90792 | I25: 34755.88382 | J25: 36331.1861
C26: Total | D26: =SUM(D23:D25) -> 453575.8815 | E26: =SUM(E23:E25) -> 383625.7404 | F26: =SUM(F23:F25) -> 262665.6251 | G26: =SUM(G23:G25) -> 232789.0983 | H26: =SUM(H23:H25) -> 230718.0042 | I26: =SUM(I23:I25) -> 236531.9124 | J26: =SUM(J23:J25) -> 246886.397
B27: (iv) INDUSTRIAL & COMMERCIAL TARIFF
B28: Distribution Mains | D28: 95885.33706 | E28: 95927.41154 | F28: 95963.19661 | G28: 96014.41928 | H28: 96072.90071 | I28: 96129.39653 | J28: 96181.0951
B29: Inlet service pipes | D29: 136224.7625 | E29: 136298.1008 | F29: 136360.4824 | G29: 136449.783 | H29: 136551.7507 | I29: 136650.2699 | J29: 136740.4355
B30: Meters | D30: 35596.28958 | E30: 35601.89904 | F30: 35606.66864 | G30: 35613.49421 | H30: 35621.28436 | I30: 35628.80708 | J30: 35635.68843
C31: Total | D31: =SUM(D28:D30) -> 267706.3891 | E31: =SUM(E28:E30) -> 267827.4113 | F31: =SUM(F28:F30) -> 267930.3477 | G31: =SUM(G28:G30) -> 268077.6965 | H31: =SUM(H28:H30) -> 268245.9358 | I31: =SUM(I28:I30) -> 268408.4735 | J31: =SUM(J28:J30) -> 268557.2191
B32: (v) INDUSTRIAL & COMMERCIAL CONTRACT
B33: Distribution Mains | D33: 149655.7035 | E33: 149823.466 | F33: 149966.2483 | G33: 150170.745 | H33: 150404.4145 | I33: 150630.364 | J33: 150837.3162
B34: Inlet service pipes | D34: 156477.8758 | E34: 156659.5347 | F34: 156814.1503 | G34: 157035.6026 | H34: 157288.6588 | I34: 157533.3679 | J34: 157757.5145
B35: Meters | D35: 65075.11065 | E35: 65137.0429 | F35: 65189.74436 | G35: 65265.21399 | H35: 65351.43214 | I35: 65434.78221 | J35: 65511.10713
C36: Total | D36: =SUM(D33:D35) -> 371208.6899 | E36: =SUM(E33:E35) -> 371620.0437 | F36: =SUM(F33:F35) -> 371970.143 | G36: =SUM(G33:G35) -> 372471.5616 | H36: =SUM(H33:H35) -> 373044.5055 | I36: =SUM(I33:I35) -> 373598.5141 | J36: =SUM(J33:J35) -> 374105.9378
C37: TOTAL | D37: =SUM(D36,D31,D26,D21,D16) -> 3851516.928 | E37: =SUM(E36,E31,E26,E21,E16) -> 3651294.198 | F37: 3263833.206 | G37: 3145048.957 | H37: 3115881.1 | I37: 3157387.097 | J37: 3256062.798
B39: B. DIRECT CONTRACTOR EXPENDITURE
D40: EXPENDITURE
D41: $0's, nominal
D42: =CRCP_y4 -> 2018-19 | E42: =CRCP_y5 -> 2019-20 | F42: =FRCP_y1 -> 2020-21 | G42: =FRCP_y2 -> 2021-22 | H42: =FRCP_y3 -> 2022-23 | I42: =FRCP_y4 -> 2023-24 | J42: =FRCP_y5 -> 2024-25
B43: (i) ELECTRICITY TO GAS
B44: Distribution Mains
B45: Inlet service pipes
B46: Meters
C47: Total
B48: (ii) NEW HOMES
B49: Distribution Mains
B50: Inlet service pipes
B51: Meters
C52: Total
B53: (iii) NEW MEDIUM DENSITY / HIGH RISE
B54: Distribution Mains
B55: Inlet service pipes
B56: Meters
C57: Total
B58: (iv) INDUSTRIAL & COMMERCIAL TARIFF
B59: Distribution Mains
B60: Inlet service pipes
B61: Meters
C62: Total
B63: (v) INDUSTRIAL & COMMERCIAL CONTRACT
B64: Distribution Mains
B65: Inlet service pipes
B66: Meters
C67: Total
C68: TOTAL
B70: C. OTHER INTERNAL DIRECT EXPENDITURE
D71: EXPENDITURE
D72: $0's, nominal
D73: =CRCP_y4 -> 2018-19 | E73: =CRCP_y5 -> 2019-20 | F73: =FRCP_y1 -> 2020-21 | G73: =FRCP_y2 -> 2021-22 | H73: =FRCP_y3 -> 2022-23 | I73: =FRCP_y4 -> 2023-24 | J73: =FRCP_y5 -> 2024-25
B74: (i) ELECTRICITY TO GAS
B75: Distribution Mains | D75: 340661.6825 | E75: 340838.6205 | F75: 340989.1214 | G75: 341204.5629 | H75: 341450.5586 | I75: 341688.2287 | J75: 341905.7409
B76: Inlet service pipes | D76: 620155.3893 | E76: 620455.7802 | F76: 620711.2796 | G76: 621077.015 | H76: 621494.6018 | I76: 621898.0359 | J76: 622267.2356
B77: Meters | D77: 677140.0034 | E77: 677347.5882 | F77: 677524.1193 | G77: 677776.7771 | H77: 678065.1926 | I77: 678343.7645 | J77: 678598.6368
C78: Total | D78: =SUM(D75:D77) -> 1637957.075 | E78: =SUM(E75:E77) -> 1638641.989 | F78: =SUM(F75:F77) -> 1639224.52 | G78: =SUM(G75:G77) -> 1640058.355 | H78: =SUM(H75:H77) -> 1641010.353 | I78: =SUM(I75:I77) -> 1641930.029 | J78: =SUM(J75:J77) -> 1642771.613
B79: (ii) NEW HOMES
B80: Distribution Mains | D80: 677514.8203 | E80: 629123.8615 | F80: 530479.7973 | G80: 497270.3569 | H80: 486821.8785 | I80: 499573.3127 | J80: 531801.5043
B81: Inlet service pipes | D81: 1067939.408 | E81: 991514.9668 | F81: 835943.5707 | G81: 783469.3115 | H81: 766848.7491 | I81: 786777.9189 | J81: 837381.2002
B82: Meters | D82: 3819888.486 | E82: 3546109.94 | F82: 2989416.294 | G82: 2801361.826 | H82: 2741485.377 | I82: 2812288.292 | J82: 2992734.526
C83: Total | D83: =SUM(D80:D82) -> 5565342.714 | E83: =SUM(E80:E82) -> 5166748.768 | F83: =SUM(F80:F82) -> 4355839.662 | G83: =SUM(G80:G82) -> 4082101.494 | H83: =SUM(H80:H82) -> 3995156.005 | I83: =SUM(I80:I82) -> 4098639.523 | J83: =SUM(J80:J82) -> 4361917.23
B84: (iii) NEW MEDIUM DENSITY / HIGH RISE
B85: Distribution Mains | D85: 228503.6475 | E85: 196156.8854 | F85: 147509.2013 | G85: 130859.6685 | H85: 129722.4565 | I85: 132984.4307 | J85: 138779.8263
B86: Inlet service pipes | D86: 344125.2074 | E86: 295370.0677 | F86: 222090.8493 | G86: 196989.8609 | H86: 195240.2529 | I86: 200112.4137 | J86: 208797.609
B87: Meters | D87: 6435808.647 | E87: 5179575.549 | F87: 2339170.213 | G87: 2062127.976 | H87: 2042210.012 | I87: 2095197.534 | J87: 2190161.87
C88: Total | D88: =SUM(D85:D87) -> 7008437.502 | E88: =SUM(E85:E87) -> 5671102.502 | F88: =SUM(F85:F87) -> 2708770.264 | G88: =SUM(G85:G87) -> 2389977.505 | H88: =SUM(H85:H87) -> 2367172.722 | I88: =SUM(I85:I87) -> 2428294.378 | J88: =SUM(J85:J87) -> 2537739.305
B89: (iv) INDUSTRIAL & COMMERCIAL TARIFF
B90: Distribution Mains | D90: 187429.7442 | E90: 187511.9884 | F90: 187581.9385 | G90: 187682.0649 | H90: 187796.3801 | I90: 187906.8141 | J90: 188007.8707
B91: Inlet service pipes | D91: 95167.15091 | E91: 95218.38532 | F91: 95261.96542 | G91: 95324.35114 | H91: 95395.58616 | I91: 95464.41206 | J91: 95527.40212
B92: Meters | D92: 1543768.267 | E92: 1544011.543 | F92: 1544218.395 | G92: 1544514.411 | H92: 1544852.261 | I92: 1545178.512 | J92: 1545476.948
C93: Total | D93: =SUM(D90:D92) -> 1826365.162 | E93: =SUM(E90:E92) -> 1826741.917 | F93: =SUM(F90:F92) -> 1827062.299 | G93: =SUM(G90:G92) -> 1827520.827 | H93: =SUM(H90:H92) -> 1828044.227 | I93: =SUM(I90:I92) -> 1828549.738 | J93: =SUM(J90:J92) -> 1829012.221
B94: (v) INDUSTRIAL & COMMERCIAL CONTRACT
B95: Distribution Mains | D95: 202862.2738 | E95: 203089.6804 | F95: 203283.2256 | G95: 203560.4263 | H95: 203877.1716 | I95: 204183.452 | J95: 204463.9812
B96: Inlet service pipes | D96: 124664.6106 | E96: 124809.3367 | F96: 124932.5177 | G96: 125108.9468 | H96: 125310.5546 | I96: 125505.5123 | J96: 125684.088
B97: Meters | D97: 489060.1401 | E97: 489525.5806 | F97: 489921.6489 | G97: 490488.8271 | H97: 491136.7839 | I97: 491763.1862 | J97: 492336.7923
C98: Total | D98: =SUM(D95:D97) -> 816587.0246 | E98: =SUM(E95:E97) -> 817424.5978 | F98: =SUM(F95:F97) -> 818137.3921 | G98: =SUM(G95:G97) -> 819158.2003 | H98: =SUM(H95:H97) -> 820324.5101 | I98: =SUM(I95:I97) -> 821452.1505 | J98: =SUM(J95:J97) -> 822484.8615
C99: TOTAL | D99: =SUM(D98,D93,D88,D83,D78) -> 16854689.48 | E99: =SUM(E98,E93,E88,E83,E78) -> 15120659.77 | F99: =SUM(F98,F93,F88,F83,F78) -> 11349034.14 | G99: =SUM(G98,G93,G88,G83,G78) -> 10758816.38 | H99: =SUM(H98,H93,H88,H83,H78) -> 10651707.82 | I99: =SUM(I98,I93,I88,I83,I78) -> 10818865.82 | J99: =SUM(J98,J93,J88,J83,J78) -> 11193925.23
B101: D. TOTAL OVERHEAD EXPENDITURE
D102: EXPENDITURE
D103: $0's, nominal
D104: =CRCP_y4 -> 2018-19 | E104: =CRCP_y5 -> 2019-20 | F104: =FRCP_y1 -> 2020-21 | G104: =FRCP_y2 -> 2021-22 | H104: =FRCP_y3 -> 2022-23 | I104: =FRCP_y4 -> 2023-24 | J104: =FRCP_y5 -> 2024-25
B105: (i) ELECTRICITY TO GAS
B106: Distribution Mains | D106: 888348.2947 | E106: 850859.3026 | F106: 630615.6093 | G106: 432990.2665 | H106: 480126.2322 | I106: 467474.5249 | J106: 465052.4553
B107: Inlet service pipes | D107: 2647148.509 | E107: 2535348.041 | F107: 1879020.976 | G107: 1290109.457 | H107: 1430483.215 | I107: 1392723.536 | J107: 1385448.164
B108: Meters | D108: 263926.9888 | E108: 252735.2895 | F108: 187281.2495 | G108: 128556.8828 | H108: 142509.6928 | I108: 138714.9003 | J108: 137960.2196
C109: Total | D109: =SUM(D106:D108) -> 3799423.792 | E109: =SUM(E106:E108) -> 3638942.633 | F109: =SUM(F106:F108) -> 2696917.835 | G109: =SUM(G106:G108) -> 1851656.606 | H109: =SUM(H106:H108) -> 2053119.14 | I109: =SUM(I106:I108) -> 1998912.961 | J109: =SUM(J106:J108) -> 1988460.839
B110: (ii) NEW HOMES
B111: Distribution Mains | D111: 4166547.368 | E111: 3703758.388 | F111: 2313612.273 | G111: 1488172.971 | H111: 1614340.837 | I111: 1611850.282 | J111: 1705857.102
B112: Inlet service pipes | D112: 8276868.935 | E112: 7356440.154 | F112: 4594736.748 | G112: 2954913.503 | H112: 3204769.51 | I112: 3199186.612 | J112: 3385152.47
B113: Meters | D113: 1139932.274 | E113: 1013046.843 | F113: 632672.5163 | G113: 406818.6821 | H113: 441145.5675 | I113: 440307.567 | J113: 465835.0063
C114: Total | D114: =SUM(D111:D113) -> 13583348.58 | E114: =SUM(E111:E113) -> 12073245.38 | F114: =SUM(F111:F113) -> 7541021.537 | G114: =SUM(G111:G113) -> 4849905.156 | H114: =SUM(H111:H113) -> 5260255.914 | I114: =SUM(I111:I113) -> 5251344.461 | J114: =SUM(J111:J113) -> 5556844.579
B115: (iii) NEW MEDIUM DENSITY / HIGH RISE
B116: Distribution Mains | D116: 903599.7144 | E116: 742566.7037 | F116: 413681.6586 | G116: 251821.0794 | H116: 276608.635 | I116: 275899.9946 | J116: 286249.5747
B117: Inlet service pipes | D117: 840326.9318 | E117: 690473.8662 | F117: 384615.3986 | G117: 234087.9117 | H117: 257080.2888 | I117: 256373.8777 | J117: 265945.6433
B118: Meters | D118: 1964594.04 | E118: 1513605.99 | F118: 506402.3715 | G118: 306329.3651 | H118: 336153.5651 | I118: 335554.1535 | J118: 348723.7094
C119: Total | D119: =SUM(D116:D118) -> 3708520.686 | E119: =SUM(E116:E118) -> 2946646.56 | F119: =SUM(F116:F118) -> 1304699.429 | G119: =SUM(G116:G118) -> 792238.3562 | H119: =SUM(H116:H118) -> 869842.4889 | I119: =SUM(I116:I118) -> 867828.0258 | J119: =SUM(J116:J118) -> 900918.9274
B120: (iv) INDUSTRIAL & COMMERCIAL TARIFF
B121: Distribution Mains | D121: 431733.2356 | E121: 413480.4458 | F121: 306430.6456 | G121: 210379.3265 | H121: 233255.4545 | I121: 227084.4754 | J121: 225885.6092
B122: Inlet service pipes | D122: 499932.2669 | E122: 478843.8122 | F122: 354901.5078 | G122: 243686.3907 | H122: 270221.5635 | I122: 263107.6939 | J122: 261750.5665
B123: Meters | D123: 446291 | E123: 427302.5934 | F123: 316598.5688 | G123: 217285.7781 | H123: 240818.9138 | I123: 234359.5335 | J123: 233041.9542
C124: Total | D124: =SUM(D121:D123) -> 1377956.503 | E124: =SUM(E121:E123) -> 1319626.851 | F124: =SUM(F121:F123) -> 977930.7222 | G124: =SUM(G121:G123) -> 671351.4953 | H124: =SUM(H121:H123) -> 744295.9318 | I124: =SUM(I121:I123) -> 724551.7028 | J124: =SUM(J121:J123) -> 720678.1299
B125: (v) INDUSTRIAL & COMMERCIAL CONTRACT
B126: Distribution Mains | D126: 263767.5112 | E126: 252788.222 | F126: 187450.137 | G126: 128800.2427 | H126: 142940.8082 | I126: 139286.3313 | J126: 138666.7663
B127: Inlet service pipes | D127: 266304.7517 | E127: 255230.0307 | F127: 189267.2315 | G127: 130055.1087 | H127: 144341.4301 | I127: 140658.6604 | J127: 140039.8354
B128: Meters | D128: 135096.0906 | E128: 129450.8396 | F128: 95977.92378 | G128: 65934.53537 | H128: 73156.10878 | I128: 71269.62491 | J128: 70937.90659
C129: Total | D129: =SUM(D126:D128) -> 665168.3534 | E129: =SUM(E126:E128) -> 637469.0922 | F129: =SUM(F126:F128) -> 472695.2922 | G129: =SUM(G126:G128) -> 324789.8868 | H129: =SUM(H126:H128) -> 360438.3472 | I129: =SUM(I126:I128) -> 351214.6166 | J129: =SUM(J126:J128) -> 349644.5083
C130: TOTAL | D130: =SUM(D129,D124,D119,D114,D109) -> 23134417.91 | E130: =SUM(E129,E124,E119,E114,E109) -> 20615930.52 | F130: =SUM(F129,F124,F119,F114,F109) -> 12993264.82 | G130: =SUM(G129,G124,G119,G114,G109) -> 8489941.5 | H130: =SUM(H129,H124,H119,H114,H109) -> 9287951.822 | I130: =SUM(I129,I124,I119,I114,I109) -> 9193851.767 | J130: =SUM(J129,J124,J119,J114,J109) -> 9516546.984
B132: E. RELATED PARTY MARGIN EXPENDITURE
D133: EXPENDITURE
D134: $0's, nominal
D135: =CRCP_y4 -> 2018-19 | E135: =CRCP_y5 -> 2019-20 | F135: =FRCP_y1 -> 2020-21 | G135: =FRCP_y2 -> 2021-22 | H135: =FRCP_y3 -> 2022-23 | I135: =FRCP_y4 -> 2023-24 | J135: =FRCP_y5 -> 2024-25
B136: (i) ELECTRICITY TO GAS
B137: Distribution Mains | D137: 0 | E137: 0 | F137: 0 | G137: 0 | H137: 0 | I137: 0 | J137: 0
B138: Inlet service pipes | D138: 0 | E138: 0 | F138: 0 | G138: 0 | H138: 0 | I138: 0 | J138: 0
B139: Meters | D139: 0 | E139: 0 | F139: 0 | G139: 0 | H139: 0 | I139: 0 | J139: 0
C140: Total | D140: =SUM(D137:D139) -> 0 | E140: =SUM(E137:E139) -> 0 | F140: =SUM(F137:F139) -> 0 | G140: =SUM(G137:G139) -> 0 | H140: =SUM(H137:H139) -> 0 | I140: =SUM(I137:I139) -> 0 | J140: =SUM(J137:J139) -> 0
B141: (ii) NEW HOMES
B142: Distribution Mains | D142: 0 | E142: 0 | F142: 0 | G142: 0 | H142: 0 | I142: 0 | J142: 0
B143: Inlet service pipes | D143: 0 | E143: 0 | F143: 0 | G143: 0 | H143: 0 | I143: 0 | J143: 0
B144: Meters | D144: 0 | E144: 0 | F144: 0 | G144: 0 | H144: 0 | I144: 0 | J144: 0
C145: Total | D145: =SUM(D142:D144) -> 0 | E145: =SUM(E142:E144) -> 0 | F145: =SUM(F142:F144) -> 0 | G145: =SUM(G142:G144) -> 0 | H145: =SUM(H142:H144) -> 0 | I145: =SUM(I142:I144) -> 0 | J145: =SUM(J142:J144) -> 0
B146: (iii) NEW MEDIUM DENSITY / HIGH RISE
B147: Distribution Mains | D147: 0 | E147: 0 | F147: 0 | G147: 0 | H147: 0 | I147: 0 | J147: 0
B148: Inlet service pipes | D148: 0 | E148: 0 | F148: 0 | G148: 0 | H148: 0 | I148: 0 | J148: 0
B149: Meters | D149: 0 | E149: 0 | F149: 0 | G149: 0 | H149: 0 | I149: 0 | J149: 0
C150: Total | D150: =SUM(D147:D149) -> 0 | E150: =SUM(E147:E149) -> 0 | F150: =SUM(F147:F149) -> 0 | G150: =SUM(G147:G149) -> 0 | H150: =SUM(H147:H149) -> 0 | I150: =SUM(I147:I149) -> 0 | J150: =SUM(J147:J149) -> 0
B151: (iv) INDUSTRIAL & COMMERCIAL TARIFF
B152: Distribution Mains | D152: 0 | E152: 0 | F152: 0 | G152: 0 | H152: 0 | I152: 0 | J152: 0
B153: Inlet service pipes | D153: 0 | E153: 0 | F153: 0 | G153: 0 | H153: 0 | I153: 0 | J153: 0
B154: Meters | D154: 0 | E154: 0 | F154: 0 | G154: 0 | H154: 0 | I154: 0 | J154: 0
C155: Total | D155: =SUM(D152:D154) -> 0 | E155: =SUM(E152:E154) -> 0 | F155: =SUM(F152:F154) -> 0 | G155: =SUM(G152:G154) -> 0 | H155: =SUM(H152:H154) -> 0 | I155: =SUM(I152:I154) -> 0 | J155: =SUM(J152:J154) -> 0
B156: (v) INDUSTRIAL & COMMERCIAL CONTRACT
B157: Distribution Mains | D157: 0 | E157: 0 | F157: 0 | G157: 0 | H157: 0 | I157: 0 | J157: 0
B158: Inlet service pipes | D158: 0 | E158: 0 | F158: 0 | G158: 0 | H158: 0 | I158: 0 | J158: 0
B159: Meters | D159: 0 | E159: 0 | F159: 0 | G159: 0 | H159: 0 | I159: 0 | J159: 0
C160: Total | D160: =SUM(D157:D159) -> 0 | E160: =SUM(E157:E159) -> 0 | F160: =SUM(F157:F159) -> 0 | G160: =SUM(G157:G159) -> 0 | H160: =SUM(H157:H159) -> 0 | I160: =SUM(I157:I159) -> 0 | J160: =SUM(J157:J159) -> 0
C161: TOTAL | D161: =SUM(D160,D155,D150,D145,D140) -> 0 | E161: =SUM(E160,E155,E150,E145,E140) -> 0 | F161: =SUM(F160,F155,F150,F145,F140) -> 0 | G161: =SUM(G160,G155,G150,G145,G140) -> 0 | H161: =SUM(H160,H155,H150,H145,H140) -> 0 | I161: =SUM(I160,I155,I150,I145,I140) -> 0 | J161: =SUM(J160,J155,J150,J145,J140) -> 0
B163: F. CUSTOMER CONTRIBUTIONS included in the above
D164: EXPENDITURE
D165: $0's, nominal
D166: =CRCP_y4 -> 2018-19 | E166: =CRCP_y5 -> 2019-20 | F166: =FRCP_y1 -> 2020-21 | G166: =FRCP_y2 -> 2021-22 | H166: =FRCP_y3 -> 2022-23 | I166: =FRCP_y4 -> 2023-24 | J166: =FRCP_y5 -> 2024-25
B167: (i) ELECTRICITY TO GAS
B168: Distribution Mains
B169: Inlet service pipes
B170: Meters
C171: Total
B172: (ii) NEW HOMES
B173: Distribution Mains
B174: Inlet service pipes
B175: Meters
C176: Total
B177: (iii) NEW MEDIUM DENSITY / HIGH RISE
B178: Distribution Mains
B179: Inlet service pipes
B180: Meters
C181: Total
B182: (iv) INDUSTRIAL & COMMERCIAL TARIFF
B183: Distribution Mains
B184: Inlet service pipes
B185: Meters
C186: Total
B187: (v) INDUSTRIAL & COMMERCIAL CONTRACT
B188: Distribution Mains
B189: Inlet service pipes
B190: Meters
C191: Total
C192: TOTAL
B195: E5.1.2 - UNIT RATES - PER CONNECTION - BY CONNECTION TYPE
D196: RATES PER CONNECTION
D197: $0's
C198: Units | D198: =CRCP_y4 -> 2018-19 | E198: =CRCP_y5 -> 2019-20 | F198: =FRCP_y1 -> 2020-21 | G198: =FRCP_y2 -> 2021-22 | H198: =FRCP_y3 -> 2022-23 | I198: =FRCP_y4 -> 2023-24 | J198: =FRCP_y5 -> 2024-25
B199: A. ELECTRICITY TO GAS
B200: Distribution mains | C200: per metre per connection
B201: Inlet service pipes | C201: per service per connection
B202: Meters | C202: number per connection
B203: B. NEW HOMES
B204: Distribution mains | C204: per metre per connection
B205: Inlet service pipes | C205: per service per connection
B206: Meters | C206: number per connection
B207: C. NEW MEDIUM DENSITY / HIGH RISE
B208: Distribution mains | C208: per metre per connection
... 66 more rows

Sheet E6. Non-network
B1: =IF(dms_MultiYear_ResponseFlag="Yes","REGULATORY REPORTING STATEMENT - HISTORICAL INFORMATION",INDEX(dms_Worksheet_List,MATCH(dms_Model,dms_Model_List))) -> REGULATORY REPORTING STATEMENT
B2: =INDEX(dms_TradingNameFull_List,MATCH(dms_TradingName,dms_TradingName_List)) -> Jemena Gas Networks (NSW) Ltd
B3: =IF(SUM(dms_SingleYear_Model)>0,CONCATENATE(CRY),CONCATENATE(FRCP_y1," to ",dms_MultiYear_FinalYear_Result)) -> 2020-21 to 2024-25
B4: E6. NON-NETWORK EXPENDITURE
B6: E6.5 - TELEMETRY
B8: Please list all projects here:
B9: RTU's End of Life Replacement
B10: Scada Security Infrastructure
B11: SCADA/RTS Branch Network Replacement
B12: 0
B13: 0
B14: 0
B15: 0
B16: 0
B17: 0
B18: 0
B26: E6.5.1 - CAPEX - BY PROJECT
B27: A. DIRECT INTERNAL LABOUR EXPENDITURE
C28: EXPENDITURE
C29: =CONCATENATE("$0's, real ",dms_DollarReal) -> $0's, real June 2020
C30: =CRCP_y4 -> 2018-19 | D30: =CRCP_y5 -> 2019-20 | E30: =FRCP_y1 -> 2020-21 | F30: =FRCP_y2 -> 2021-22 | G30: =FRCP_y3 -> 2022-23 | H30: =FRCP_y4 -> 2023-24 | I30: =FRCP_y5 -> 2024-25
B31: =IF(ISBLANK(dms_E65_Projects_01),"",dms_E65_Projects_01) -> RTU's End of Life Replacement | C31: 14284.29437 | D31: 41394.94202 | E31: 71798.1697 | F31: 82821.03572 | G31: 52600.77938 | H31: 28784.85346 | I31: 34329.82984
B32: =IF(ISBLANK(dms_E65_Projects_02),"",dms_E65_Projects_02) -> Scada Security Infrastructure | C32: 31409.2063 | D32: 50745.58298 | E32: 52854.58611 | F32: 36234.79624 | G32: 37539.46167 | H32: 38727.73952 | I32: 39773.42647
B33: =IF(ISBLANK(dms_E65_Projects_03),"",dms_E65_Projects_03) -> SCADA/RTS Branch Network Replacement | C33: 0 | D33: 0 | E33: 21373.13568 | F33: 42203.1008 | G33: 62907.47103 | H33: 37386.53553 | I33: 16871.38267
B34: =IF(ISBLANK(dms_E65_Projects_04),"",dms_E65_Projects_04) -> 0 | C34: 0 | D34: 0 | E34: 0 | F34: 0 | G34: 0 | H34: 0 | I34: 0
B35: =IF(ISBLANK(dms_E65_Projects_05),"",dms_E65_Projects_05) -> 0 | C35: 0 | D35: 0 | E35: 0 | F35: 0 | G35: 0 | H35: 0 | I35: 0
B36: =IF(ISBLANK(dms_E65_Projects_06),"",dms_E65_Projects_06) -> 0 | C36: 0 | D36: 0 | E36: 0 | F36: 0 | G36: 0 | H36: 0 | I36: 0
B37: =IF(ISBLANK(dms_E65_Projects_07),"",dms_E65_Projects_07) -> 0 | C37: 0 | D37: 0 | E37: 0 | F37: 0 | G37: 0 | H37: 0 | I37: 0
B38: =IF(ISBLANK(dms_E65_Projects_08),"",dms_E65_Projects_08) -> 0 | C38: 0 | D38: 0 | E38: 0 | F38: 0 | G38: 0 | H38: 0 | I38: 0
B39: =IF(ISBLANK(dms_E65_Projects_09),"",dms_E65_Projects_09) -> 0 | C39: 0 | D39: 0 | E39: 0 | F39: 0 | G39: 0 | H39: 0 | I39: 0
B40: =IF(ISBLANK(dms_E65_Projects_10),"",dms_E65_Projects_10) -> 0 | C40: 0 | D40: 0 | E40: 0 | F40: 0 | G40: 0 | H40: 0 | I40: 0
B41: =IF(ISBLANK(dms_E65_Projects_11),"",dms_E65_Projects_11) ->  | C41: 0 | D41: 0 | E41: 0 | F41: 0 | G41: 0 | H41: 0 | I41: 0
B42: =IF(ISBLANK(dms_E65_Projects_12),"",dms_E65_Projects_12) ->  | C42: 0 | D42: 0 | E42: 0 | F42: 0 | G42: 0 | H42: 0 | I42: 0
B43: =IF(ISBLANK(dms_E65_Projects_13),"",dms_E65_Projects_13) ->  | C43: 0 | D43: 0 | E43: 0 | F43: 0 | G43: 0 | H43: 0 | I43: 0
B44: =IF(ISBLANK(dms_E65_Projects_14),"",dms_E65_Projects_14) ->  | C44: 0 | D44: 0 | E44: 0 | F44: 0 | G44: 0 | H44: 0 | I44: 0
B45: =IF(ISBLANK(dms_E65_Projects_15),"",dms_E65_Projects_15) ->  | C45: 0 | D45: 0 | E45: 0 | F45: 0 | G45: 0 | H45: 0 | I45: 0
B46: Aggregate of other projects with total expenditure of less than $500,000 | C46: 208758.6164 | D46: 32020.76104 | E46: 0 | F46: 0 | G46: 0 | H46: 0 | I46: 0
B47: Total | C47: =SUM(C31:C46) -> 254452.1171 | D47: =SUM(D31:D46) -> 124161.286 | E47: 146025.8915 | F47: 161258.9328 | G47: 153047.7121 | H47: 104899.1285 | I47: 90974.63898
B49: B. DIRECT CONTRACTOR EXPENDITURE
B50: =IF(ISBLANK(dms_E65_Projects_01),"",dms_E65_Projects_01) -> RTU's End of Life Replacement | C50: 6128.823657 | D50: 17760.92632 | E50: 30805.74437 | F50: 35535.2186 | G50: 22568.90629 | H50: 12350.43792 | I50: 14729.56716
B51: =IF(ISBLANK(dms_E65_Projects_02),"",dms_E65_Projects_02) -> Scada Security Infrastructure | C51: 13476.44354 | D51: 21772.91516 | E51: 22677.80468 | F51: 15546.91262 | G51: 16106.69276 | H51: 16616.53561 | I51: 17065.19837
B52: =IF(ISBLANK(dms_E65_Projects_03),"",dms_E65_Projects_03) -> SCADA/RTS Branch Network Replacement | C52: 0 | D52: 0 | E52: 9170.364048 | F52: 18107.67517 | G52: 26991.09852 | H52: 16041.07823 | I52: 7238.840544
B53: =IF(ISBLANK(dms_E65_Projects_04),"",dms_E65_Projects_04) -> 0 | C53: 0 | D53: 0 | E53: 0 | F53: 0 | G53: 0 | H53: 0 | I53: 0
B54: =IF(ISBLANK(dms_E65_Projects_05),"",dms_E65_Projects_05) -> 0 | C54: 0 | D54: 0 | E54: 0 | F54: 0 | G54: 0 | H54: 0 | I54: 0
B55: =IF(ISBLANK(dms_E65_Projects_06),"",dms_E65_Projects_06) -> 0 | C55: 0 | D55: 0 | E55: 0 | F55: 0 | G55: 0 | H55: 0 | I55: 0
B56: =IF(ISBLANK(dms_E65_Projects_07),"",dms_E65_Projects_07) -> 0 | C56: 0 | D56: 0 | E56: 0 | F56: 0 | G56: 0 | H56: 0 | I56: 0
B57: =IF(ISBLANK(dms_E65_Projects_08),"",dms_E65_Projects_08) -> 0 | C57: 0 | D57: 0 | E57: 0 | F57: 0 | G57: 0 | H57: 0 | I57: 0
B58: =IF(ISBLANK(dms_E65_Projects_09),"",dms_E65_Projects_09) -> 0 | C58: 0 | D58: 0 | E58: 0 | F58: 0 | G58: 0 | H58: 0 | I58: 0
B59: =IF(ISBLANK(dms_E65_Projects_10),"",dms_E65_Projects_10) -> 0 | C59: 0 | D59: 0 | E59: 0 | F59: 0 | G59: 0 | H59: 0 | I59: 0
B60: =IF(ISBLANK(dms_E65_Projects_11),"",dms_E65_Projects_11) ->  | C60: 0 | D60: 0 | E60: 0 | F60: 0 | G60: 0 | H60: 0 | I60: 0
B61: =IF(ISBLANK(dms_E65_Projects_12),"",dms_E65_Projects_12) ->  | C61: 0 | D61: 0 | E61: 0 | F61: 0 | G61: 0 | H61: 0 | I61: 0
B62: =IF(ISBLANK(dms_E65_Projects_13),"",dms_E65_Projects_13) ->  | C62: 0 | D62: 0 | E62: 0 | F62: 0 | G62: 0 | H62: 0 | I62: 0
B63: =IF(ISBLANK(dms_E65_Projects_14),"",dms_E65_Projects_14) ->  | C63: 0 | D63: 0 | E63: 0 | F63: 0 | G63: 0 | H63: 0 | I63: 0
B64: =IF(ISBLANK(dms_E65_Projects_15),"",dms_E65_Projects_15) ->  | C64: 0 | D64: 0 | E64: 0 | F64: 0 | G64: 0 | H64: 0 | I64: 0
B65: Aggregate of other projects with total expenditure of less than $500,000 | C65: 89570.035 | D65: 13738.8374 | E65: 0 | F65: 0 | G65: 0 | H65: 0 | I65: 0
B66: Total | C66: =SUM(C50:C65) -> 109175.3022 | D66: =SUM(D50:D65) -> 53272.67888 | E66: =SUM(E50:E65) -> 62653.9131 | F66: =SUM(F50:F65) -> 69189.80638 | G66: =SUM(G50:G65) -> 65666.69757 | H66: =SUM(H50:H65) -> 45008.05176 | I66: =SUM(I50:I65) -> 39033.60607
B68: C. OTHER INTERNAL DIRECT EXPENDITURE
B69: =IF(ISBLANK(dms_E65_Projects_01),"",dms_E65_Projects_01) -> RTU's End of Life Replacement | C69: 27446.13283 | D69: 79537.08091 | E69: 137954.459 | F69: 159134.0173 | G69: 101068.204 | H69: 55307.80107 | I69: 65962.03111
B70: =IF(ISBLANK(dms_E65_Projects_02),"",dms_E65_Projects_02) -> Scada Security Infrastructure | C70: 60350.28582 | D70: 97503.59204 | E70: 101555.8734 | F70: 69622.27217 | G70: 72129.08279 | H70: 74412.26395 | I70: 76421.46805
B71: =IF(ISBLANK(dms_E65_Projects_03),"",dms_E65_Projects_03) -> SCADA/RTS Branch Network Replacement | C71: 0 | D71: 0 | E71: 41066.77624 | F71: 81089.89357 | G71: 120871.6903 | H71: 71835.24741 | I71: 32417.01675
B72: =IF(ISBLANK(dms_E65_Projects_04),"",dms_E65_Projects_04) -> 0 | C72: 0 | D72: 0 | E72: 0 | F72: 0 | G72: 0 | H72: 0 | I72: 0
B73: =IF(ISBLANK(dms_E65_Projects_05),"",dms_E65_Projects_05) -> 0 | C73: 0 | D73: 0 | E73: 0 | F73: 0 | G73: 0 | H73: 0 | I73: 0
B74: =IF(ISBLANK(dms_E65_Projects_06),"",dms_E65_Projects_06) -> 0 | C74: 0 | D74: 0 | E74: 0 | F74: 0 | G74: 0 | H74: 0 | I74: 0
B75: =IF(ISBLANK(dms_E65_Projects_07),"",dms_E65_Projects_07) -> 0 | C75: 0 | D75: 0 | E75: 0 | F75: 0 | G75: 0 | H75: 0 | I75: 0
B76: =IF(ISBLANK(dms_E65_Projects_08),"",dms_E65_Projects_08) -> 0 | C76: 0 | D76: 0 | E76: 0 | F76: 0 | G76: 0 | H76: 0 | I76: 0
B77: =IF(ISBLANK(dms_E65_Projects_09),"",dms_E65_Projects_09) -> 0 | C77: 0 | D77: 0 | E77: 0 | F77: 0 | G77: 0 | H77: 0 | I77: 0
B78: =IF(ISBLANK(dms_E65_Projects_10),"",dms_E65_Projects_10) -> 0 | C78: 0 | D78: 0 | E78: 0 | F78: 0 | G78: 0 | H78: 0 | I78: 0
B79: =IF(ISBLANK(dms_E65_Projects_11),"",dms_E65_Projects_11) ->  | C79: 0 | D79: 0 | E79: 0 | F79: 0 | G79: 0 | H79: 0 | I79: 0
B80: =IF(ISBLANK(dms_E65_Projects_12),"",dms_E65_Projects_12) ->  | C80: 0 | D80: 0 | E80: 0 | F80: 0 | G80: 0 | H80: 0 | I80: 0
B81: =IF(ISBLANK(dms_E65_Projects_13),"",dms_E65_Projects_13) ->  | C81: 0 | D81: 0 | E81: 0 | F81: 0 | G81: 0 | H81: 0 | I81: 0
B82: =IF(ISBLANK(dms_E65_Projects_14),"",dms_E65_Projects_14) ->  | C82: 0 | D82: 0 | E82: 0 | F82: 0 | G82: 0 | H82: 0 | I82: 0
B83: =IF(ISBLANK(dms_E65_Projects_15),"",dms_E65_Projects_15) ->  | C83: 0 | D83: 0 | E83: 0 | F83: 0 | G83: 0 | H83: 0 | I83: 0
B84: Aggregate of other projects with total expenditure of less than $500,000 | C84: 401113.0383 | D84: 61525.33949 | E84: 0 | F84: 0 | G84: 0 | H84: 0 | I84: 0
B85: Total
B87: D. TOTAL OVERHEAD EXPENDITURE
B88: =IF(ISBLANK(dms_E65_Projects_01),"",dms_E65_Projects_01) -> RTU's End of Life Replacement | C88: 0 | D88: 0 | E88: 0 | F88: 0 | G88: 0 | H88: 0 | I88: 0
B89: =IF(ISBLANK(dms_E65_Projects_02),"",dms_E65_Projects_02) -> Scada Security Infrastructure | C89: 0 | D89: 0 | E89: 0 | F89: 0 | G89: 0 | H89: 0 | I89: 0
B90: =IF(ISBLANK(dms_E65_Projects_03),"",dms_E65_Projects_03) -> SCADA/RTS Branch Network Replacement | C90: 0 | D90: 0 | E90: 0 | F90: 0 | G90: 0 | H90: 0 | I90: 0
B91: =IF(ISBLANK(dms_E65_Projects_04),"",dms_E65_Projects_04) -> 0 | C91: 0 | D91: 0 | E91: 0 | F91: 0 | G91: 0 | H91: 0 | I91: 0
B92: =IF(ISBLANK(dms_E65_Projects_05),"",dms_E65_Projects_05) -> 0 | C92: 0 | D92: 0 | E92: 0 | F92: 0 | G92: 0 | H92: 0 | I92: 0
B93: =IF(ISBLANK(dms_E65_Projects_06),"",dms_E65_Projects_06) -> 0 | C93: 0 | D93: 0 | E93: 0 | F93: 0 | G93: 0 | H93: 0 | I93: 0
B94: =IF(ISBLANK(dms_E65_Projects_07),"",dms_E65_Projects_07) -> 0 | C94: 0 | D94: 0 | E94: 0 | F94: 0 | G94: 0 | H94: 0 | I94: 0
B95: =IF(ISBLANK(dms_E65_Projects_08),"",dms_E65_Projects_08) -> 0 | C95: 0 | D95: 0 | E95: 0 | F95: 0 | G95: 0 | H95: 0 | I95: 0
B96: =IF(ISBLANK(dms_E65_Projects_09),"",dms_E65_Projects_09) -> 0 | C96: 0 | D96: 0 | E96: 0 | F96: 0 | G96: 0 | H96: 0 | I96: 0
B97: =IF(ISBLANK(dms_E65_Projects_10),"",dms_E65_Projects_10) -> 0 | C97: 0 | D97: 0 | E97: 0 | F97: 0 | G97: 0 | H97: 0 | I97: 0
B98: =IF(ISBLANK(dms_E65_Projects_11),"",dms_E65_Projects_11) ->  | C98: 0 | D98: 0 | E98: 0 | F98: 0 | G98: 0 | H98: 0 | I98: 0
B99: =IF(ISBLANK(dms_E65_Projects_12),"",dms_E65_Projects_12) ->  | C99: 0 | D99: 0 | E99: 0 | F99: 0 | G99: 0 | H99: 0 | I99: 0
B100: =IF(ISBLANK(dms_E65_Projects_13),"",dms_E65_Projects_13) ->  | C100: 0 | D100: 0 | E100: 0 | F100: 0 | G100: 0 | H100: 0 | I100: 0
B101: =IF(ISBLANK(dms_E65_Projects_14),"",dms_E65_Projects_14) ->  | C101: 0 | D101: 0 | E101: 0 | F101: 0 | G101: 0 | H101: 0 | I101: 0
B102: =IF(ISBLANK(dms_E65_Projects_15),"",dms_E65_Projects_15) ->  | C102: 0 | D102: 0 | E102: 0 | F102: 0 | G102: 0 | H102: 0 | I102: 0
B103: Aggregate of other projects with total expenditure of less than $500,000 | C103: 0 | D103: 0 | E103: 0 | F103: 0 | G103: 0 | H103: 0 | I103: 0
B104: Total | C104: =SUM(C88:C103) -> 0 | D104: =SUM(D88:D103) -> 0 | E104: =SUM(E88:E103) -> 0 | F104: =SUM(F88:F103) -> 0 | G104: =SUM(G88:G103) -> 0 | H104: =SUM(H88:H103) -> 0 | I104: =SUM(I88:I103) -> 0
B106: E. RELATED PARTY MARGIN EXPENDITURE
B107: =IF(ISBLANK(dms_E65_Projects_01),"",dms_E65_Projects_01) -> RTU's End of Life Replacement | C107: 0 | D107: 0 | E107: 0 | F107: 0 | G107: 0 | H107: 0 | I107: 0
B108: =IF(ISBLANK(dms_E65_Projects_02),"",dms_E65_Projects_02) -> Scada Security Infrastructure | C108: 0 | D108: 0 | E108: 0 | F108: 0 | G108: 0 | H108: 0 | I108: 0
B109: =IF(ISBLANK(dms_E65_Projects_03),"",dms_E65_Projects_03) -> SCADA/RTS Branch Network Replacement | C109: 0 | D109: 0 | E109: 0 | F109: 0 | G109: 0 | H109: 0 | I109: 0
B110: =IF(ISBLANK(dms_E65_Projects_04),"",dms_E65_Projects_04) -> 0 | C110: 0 | D110: 0 | E110: 0 | F110: 0 | G110: 0 | H110: 0 | I110: 0
B111: =IF(ISBLANK(dms_E65_Projects_05),"",dms_E65_Projects_05) -> 0 | C111: 0 | D111: 0 | E111: 0 | F111: 0 | G111: 0 | H111: 0 | I111: 0
B112: =IF(ISBLANK(dms_E65_Projects_06),"",dms_E65_Projects_06) -> 0 | C112: 0 | D112: 0 | E112: 0 | F112: 0 | G112: 0 | H112: 0 | I112: 0
B113: =IF(ISBLANK(dms_E65_Projects_07),"",dms_E65_Projects_07) -> 0 | C113: 0 | D113: 0 | E113: 0 | F113: 0 | G113: 0 | H113: 0 | I113: 0
B114: =IF(ISBLANK(dms_E65_Projects_08),"",dms_E65_Projects_08) -> 0 | C114: 0 | D114: 0 | E114: 0 | F114: 0 | G114: 0 | H114: 0 | I114: 0
B115: =IF(ISBLANK(dms_E65_Projects_09),"",dms_E65_Projects_09) -> 0 | C115: 0 | D115: 0 | E115: 0 | F115: 0 | G115: 0 | H115: 0 | I115: 0
B116: =IF(ISBLANK(dms_E65_Projects_10),"",dms_E65_Projects_10) -> 0 | C116: 0 | D116: 0 | E116: 0 | F116: 0 | G116: 0 | H116: 0 | I116: 0
B117: =IF(ISBLANK(dms_E65_Projects_11),"",dms_E65_Projects_11) ->  | C117: 0 | D117: 0 | E117: 0 | F117: 0 | G117: 0 | H117: 0 | I117: 0
B118: =IF(ISBLANK(dms_E65_Projects_12),"",dms_E65_Projects_12) ->  | C118: 0 | D118: 0 | E118: 0 | F118: 0 | G118: 0 | H118: 0 | I118: 0
B119: =IF(ISBLANK(dms_E65_Projects_13),"",dms_E65_Projects_13) ->  | C119: 0 | D119: 0 | E119: 0 | F119: 0 | G119: 0 | H119: 0 | I119: 0
B120: =IF(ISBLANK(dms_E65_Projects_14),"",dms_E65_Projects_14) ->  | C120: 0 | D120: 0 | E120: 0 | F120: 0 | G120: 0 | H120: 0 | I120: 0
B121: =IF(ISBLANK(dms_E65_Projects_15),"",dms_E65_Projects_15) ->  | C121: 0 | D121: 0 | E121: 0 | F121: 0 | G121: 0 | H121: 0 | I121: 0
B122: Aggregate of other projects with total expenditure of less than $500,000 | C122: 0 | D122: 0 | E122: 0 | F122: 0 | G122: 0 | H122: 0 | I122: 0
B123: Total | C123: =SUM(C107:C122) -> 0 | D123: =SUM(D107:D122) -> 0 | E123: =SUM(E107:E122) -> 0 | F123: =SUM(F107:F122) -> 0 | G123: =SUM(G107:G122) -> 0 | H123: =SUM(H107:H122) -> 0 | I123: =SUM(I107:I122) -> 0
B125: F. CUSTOMER CONTRIBUTIONS included in the above
B126: =IF(ISBLANK(dms_E65_Projects_01),"",dms_E65_Projects_01) -> RTU's End of Life Replacement | C126: 0 | D126: 0 | E126: 0 | F126: 0 | G126: 0 | H126: 0 | I126: 0
B127: =IF(ISBLANK(dms_E65_Projects_02),"",dms_E65_Projects_02) -> Scada Security Infrastructure | C127: 0 | D127: 0 | E127: 0 | F127: 0 | G127: 0 | H127: 0 | I127: 0
B128: =IF(ISBLANK(dms_E65_Projects_03),"",dms_E65_Projects_03) -> SCADA/RTS Branch Network Replacement | C128: 0 | D128: 0 | E128: 0 | F128: 0 | G128: 0 | H128: 0 | I128: 0
B129: =IF(ISBLANK(dms_E65_Projects_04),"",dms_E65_Projects_04) -> 0 | C129: 0 | D129: 0 | E129: 0 | F129: 0 | G129: 0 | H129: 0 | I129: 0
B130: =IF(ISBLANK(dms_E65_Projects_05),"",dms_E65_Projects_05) -> 0 | C130: 0 | D130: 0 | E130: 0 | F130: 0 | G130: 0 | H130: 0 | I130: 0
B131: =IF(ISBLANK(dms_E65_Projects_06),"",dms_E65_Projects_06) -> 0 | C131: 0 | D131: 0 | E131: 0 | F131: 0 | G131: 0 | H131: 0 | I131: 0
B132: =IF(ISBLANK(dms_E65_Projects_07),"",dms_E65_Projects_07) -> 0 | C132: 0 | D132: 0 | E132: 0 | F132: 0 | G132: 0 | H132: 0 | I132: 0
B133: =IF(ISBLANK(dms_E65_Projects_08),"",dms_E65_Projects_08) -> 0 | C133: 0 | D133: 0 | E133: 0 | F133: 0 | G133: 0 | H133: 0 | I133: 0
B134: =IF(ISBLANK(dms_E65_Projects_09),"",dms_E65_Projects_09) -> 0 | C134: 0 | D134: 0 | E134: 0 | F134: 0 | G134: 0 | H134: 0 | I134: 0
B135: =IF(ISBLANK(dms_E65_Projects_10),"",dms_E65_Projects_10) -> 0 | C135: 0 | D135: 0 | E135: 0 | F135: 0 | G135: 0 | H135: 0 | I135: 0
B136: =IF(ISBLANK(dms_E65_Projects_11),"",dms_E65_Projects_11) ->  | C136: 0 | D136: 0 | E136: 0 | F136: 0 | G136: 0 | H136: 0 | I136: 0
B137: =IF(ISBLANK(dms_E65_Projects_12),"",dms_E65_Projects_12) ->  | C137: 0 | D137: 0 | E137: 0 | F137: 0 | G137: 0 | H137: 0 | I137: 0
B138: =IF(ISBLANK(dms_E65_Projects_13),"",dms_E65_Projects_13) ->  | C138: 0 | D138: 0 | E138: 0 | F138: 0 | G138: 0 | H138: 0 | I138: 0
B139: =IF(ISBLANK(dms_E65_Projects_14),"",dms_E65_Projects_14) ->  | C139: 0 | D139: 0 | E139: 0 | F139: 0 | G139: 0 | H139: 0 | I139: 0
B140: =IF(ISBLANK(dms_E65_Projects_15),"",dms_E65_Projects_15) ->  | C140: 0 | D140: 0 | E140: 0 | F140: 0 | G140: 0 | H140: 0 | I140: 0
B141: Aggregate of other projects with total expenditure of less than $500,000 | C141: 0 | D141: 0 | E141: 0 | F141: 0 | G141: 0 | H141: 0 | I141: 0
B142: Total | C142: =SUM(C126:C141) -> 0 | D142: =SUM(D126:D141) -> 0 | E142: =SUM(E126:E141) -> 0 | F142: =SUM(F126:F141) -> 0 | G142: =SUM(G126:G141) -> 0 | H142: =SUM(H126:H141) -> 0 | I142: =SUM(I126:I141) -> 0

Sheet E10. Overheads
B1: =IF(dms_MultiYear_ResponseFlag="Yes","REGULATORY REPORTING STATEMENT - HISTORICAL INFORMATION",INDEX(dms_Worksheet_List,MATCH(dms_Model,dms_Model_List))) -> REGULATORY REPORTING STATEMENT
B2: =INDEX(dms_TradingNameFull_List,MATCH(dms_TradingName,dms_TradingName_List)) -> Jemena Gas Networks (NSW) Ltd
B3: =IF(SUM(dms_SingleYear_Model)>0,CONCATENATE(CRY),CONCATENATE(FRCP_y1," to ",dms_MultiYear_FinalYear_Result)) -> 2020-21 to 2024-25
B4: E10. OVERHEADS EXPENDITURE
B6: E10.1 - NETWORK
C7: EXPENDITURE
C8: =CONCATENATE("$0's, real ",dms_DollarReal) -> $0's, real June 2020
C9: =CRCP_y4 -> 2018-19 | D9: =CRCP_y5 -> 2019-20 | E9: =FRCP_y1 -> 2020-21 | F9: =FRCP_y2 -> 2021-22 | G9: =FRCP_y3 -> 2022-23 | H9: =FRCP_y4 -> 2023-24 | I9: =FRCP_y5 -> 2024-25
B10: E10.1.1 - OPEX
B11: Reference services | C11: 63112224.81 | D11: 62744530.58 | E11: 63608344.85 | F11: 64467730.72 | G11: 65343127.1 | H11: 66207697.22 | I11: 67067737.05
B12: Non-reference services | C12: 0 | D12: 0 | E12: 0 | F12: 0 | G12: 0 | H12: 0 | I12: 0
B13: Total | C13: =SUM(C11:C12) -> 63112224.81 | D13: =SUM(D11:D12) -> 62744530.58 | E13: 63608344.85 | F13: 64467730.72 | G13: 65343127.1 | H13: 66207697.22 | I13: 67067737.05
B14: E10.1.2 - CAPEX
B15: Reference services | C15: 15981141.33 | D15: 16245583.62 | E15: 16295340.01 | F15: 16101438.58 | G15: 15623986.85 | H15: 15781676.3 | I15: 15837105.74
B16: Non-reference services | C16: 0 | D16: 0 | E16: 0 | F16: 0 | G16: 0 | H16: 0 | I16: 0
B17: Total | C17: =SUM(C15:C16) -> 15981141.33 | D17: =SUM(D15:D16) -> 16245583.62 | E17: 16295340.01 | F17: 16101438.58 | G17: 15623986.85 | H17: 15781676.3 | I17: 15837105.74
B21: E10.2 - CORPORATE
C22: EXPENDITURE
C23: =CONCATENATE("$0's, real ",dms_DollarReal) -> $0's, real June 2020
C24: =CRCP_y4 -> 2018-19 | D24: =CRCP_y5 -> 2019-20 | E24: =FRCP_y1 -> 2020-21 | F24: =FRCP_y2 -> 2021-22 | G24: =FRCP_y3 -> 2022-23 | H24: =FRCP_y4 -> 2023-24 | I24: =FRCP_y5 -> 2024-25
B25: E10.2.1 - OPEX
B26: Reference services | C26: 23968752.04 | D26: 23829109.17 | E26: 32808039.91 | F26: 41784100.41 | G26: 42351479.62 | H26: 42911841.9 | I26: 43469267.93
B27: Non-reference services | C27: 0 | D27: 0 | E27: 0 | F27: 0 | G27: 0 | H27: 0 | I27: 0
B28: Total | C28: =SUM(C26:C27) -> 23968752.04 | D28: 23829109.17 | E28: 32808039.91 | F28: 41784100.41 | G28: 42351479.62 | H28: 42911841.9 | I28: 43469267.93
B29: E10.2.2 - CAPEX
B30: Reference services | C30: 16548108.54 | D30: 16838116.69 | E30: 8419058.344 | F30: 0 | G30: 0 | H30: 0 | I30: 0
B31: Non-reference services | C31: 0 | D31: 0 | E31: 0 | F31: 0 | G31: 0 | H31: 0 | I31: 0
B32: Total | C32: =SUM(C30:C31) -> 16548108.54 | D32: 16838116.69 | E32: 8419058.344 | F32: 0 | G32: 0 | H32: 0 | I32: 0

Sheet E11. Labour
B1: =IF(dms_MultiYear_ResponseFlag="Yes","REGULATORY REPORTING STATEMENT - HISTORICAL INFORMATION",INDEX(dms_Worksheet_List,MATCH(dms_Model,dms_Model_List))) -> REGULATORY REPORTING STATEMENT
B2: =INDEX(dms_TradingNameFull_List,MATCH(dms_TradingName,dms_TradingName_List)) -> Jemena Gas Networks (NSW) Ltd
B3: =IF(SUM(dms_SingleYear_Model)>0,CONCATENATE(CRY),CONCATENATE(FRCP_y1," to ",dms_MultiYear_FinalYear_Result)) -> 2020-21 to 2024-25
B4: E11. LABOUR
B6: E11.3 - LABOUR / NON-LABOUR EXPENDITURE SPLIT
C7: EXPENDITURE
C8: =CONCATENATE("$0's, real ",dms_DollarReal) -> $0's, real June 2020
C9: =CRCP_y4 -> 2018-19 | D9: =CRCP_y5 -> 2019-20 | E9: =FRCP_y1 -> 2020-21 | F9: =FRCP_y2 -> 2021-22 | G9: =FRCP_y3 -> 2022-23 | H9: =FRCP_y4 -> 2023-24 | I9: =FRCP_y5 -> 2024-25
B10: E11.3.1 - OPEX
B11: In-house labour expenditure | C11: 99679211.18 | D11: 92420918.8 | E11: 101720542.7 | F11: 107530639.8 | G11: 110525668.1 | H11: 110560382.8 | I11: 112586549.9
B12: Labour expenditure outsourced to related parties | C12: 8475306.538 | D12: 7858164.285 | E12: 8648872.418 | F12: 9142880.68 | G12: 9397535.415 | H12: 9400487.059 | I12: 9572763.583
B13: Labour expenditure outsourced to unrelated parties | C13: 0 | D13: 0 | E13: 0 | F13: 0 | G13: 0 | H13: 0 | I13: 0
B14: Controllable non-labour expenditure | C14: 76789612.15 | D14: 71198060.51 | E14: 78362187.32 | F14: 82838096.57 | G14: 85145368.66 | H14: 85172111.72 | I14: 86733004.81
B15: Uncontrollable non-labour expenditure | C15: 5472299.082 | D15: 5073825.355 | E15: 5584366.345 | F15: 5903335.452 | G15: 6067759.814 | H15: 6069665.619 | I15: 6180900.375
B16: Total | C16: =SUM(C11:C15) -> 190416429 | D16: =SUM(D11:D15) -> 176550969 | E16: 194315968.7 | F16: 205414952.5 | G16: 211136332 | H16: 211202647.2 | I16: 215073218.7
B17: E11.3.2 - CAPEX
B18: In-house labour expenditure | C18: 26518871.55 | D18: 28020071.06 | E18: 26061181.39 | F18: 32062311.97 | G18: 30506170.69 | H18: 30749267.53 | I18: 32433315.74
B19: Labour expenditure outsourced to related parties | C19: 0 | D19: 0 | E19: 0 | F19: 0 | G19: 0 | H19: 0 | I19: 0
B20: Labour expenditure outsourced to unrelated parties | C20: 122917247.9 | D20: 131356551.2 | E20: 131118682.1 | F20: 116991314 | G20: 99102885.17 | H20: 101252316.3 | I20: 99682531.43
B21: Controllable non-labour expenditure | C21: 45532024.63 | D21: 47243393.33 | E21: 44927286.98 | F21: 41846932.05 | G21: 45417708.78 | H21: 38916149.21 | I21: 41763895.58
B22: Uncontrollable non-labour expenditure | C22: 0 | D22: 0 | E22: 0 | F22: 0 | G22: 0 | H22: 0 | I22: 0
B23: Total | C23: =SUM(C18:C22) -> 194968144.1 | D23: =SUM(D18:D22) -> 206620015.6 | E23: =SUM(E18:E22) -> 202107150.4 | F23: =SUM(F18:F22) -> 190900558.1 | G23: =SUM(G18:G22) -> 175026764.6 | H23: =SUM(H18:H22) -> 170917733 | I23: =SUM(I18:I22) -> 173879742.8

Sheet E12. ICT
B1: =IF(dms_MultiYear_ResponseFlag="Yes","REGULATORY REPORTING STATEMENT - HISTORICAL INFORMATION",INDEX(dms_Worksheet_List,MATCH(dms_Model,dms_Model_List))) -> REGULATORY REPORTING STATEMENT
B2: =INDEX(dms_TradingNameFull_List,MATCH(dms_TradingName,dms_TradingName_List)) -> Jemena Gas Networks (NSW) Ltd
B3: =IF(SUM(dms_SingleYear_Model)>0,CONCATENATE(CRY),CONCATENATE(FRCP_y1," to ",dms_MultiYear_FinalYear_Result)) -> 2020-21 to 2024-25
B4: E12. INFORMATION AND COMMUNICATION TECHNOLOGY
B6: Please list all projects here:
B7: Asset Management & Geospatial Systems
B8: Corporate Systems/SAP ERP
B9: Customer Experience
B10: Cyber-Security
B11: Data Warehouse & Reporting
B12: Document & Content Management
B13: Enabling Platforms & Networking
B14: End User Services & Support
B15: Market Interactions & Regulatory Compliance
B16: Metering
B17: Real Time Systems/SCADA
B23: E12.1 - CAPEX - BY PROJECT
B24: A. DIRECT INTERNAL LABOUR EXPENDITURE
D25: EXPENDITURE
D26: =CONCATENATE("$0's, real ",dms_DollarReal) -> $0's, real June 2020
D27: =CRCP_y4 -> 2018-19 | E27: =CRCP_y5 -> 2019-20 | F27: =FRCP_y1 -> 2020-21 | G27: =FRCP_y2 -> 2021-22 | H27: =FRCP_y3 -> 2022-23 | I27: =FRCP_y4 -> 2023-24 | J27: =FRCP_y5 -> 2024-25
B28: =IF(ISBLANK(dms_E12_Projects_01),"",dms_E12_Projects_01) -> Asset Management & Geospatial Systems | D28: 1689040.618 | E28: 3697815.043 | F28: 1176048.008 | G28: 2211695.228 | H28: 2169518.858 | I28: 1378880.522 | J28: 1882378.407
B29: =IF(ISBLANK(dms_E12_Projects_02),"",dms_E12_Projects_02) -> Corporate Systems/SAP ERP | D29: 3747885.308 | E29: 3610671.745 | F29: 3191113.189 | G29: 2375851.517 | H29: 4212622.787 | I29: 6478904.745 | J29: 2567764.898
B30: =IF(ISBLANK(dms_E12_Projects_03),"",dms_E12_Projects_03) -> Customer Experience | D30: 22292.89528 | E30: 202285.7048 | F30: 1517889.157 | G30: 2601100.675 | H30: 1122131.067 | I30: 229766.1711 | J30: 891272.2731
B31: =IF(ISBLANK(dms_E12_Projects_04),"",dms_E12_Projects_04) -> Cyber-Security | D31: 1100134.689 | E31: 1225107.518 | F31: 2017205.826 | G31: 2667320.755 | H31: 1731116.489 | I31: 1200069.84 | J31: 1500979.052
B32: =IF(ISBLANK(dms_E12_Projects_05),"",dms_E12_Projects_05) -> Data Warehouse & Reporting | D32: 0 | E32: 0 | F32: 0 | G32: 0 | H32: 0 | I32: 0 | J32: 0
B33: =IF(ISBLANK(dms_E12_Projects_06),"",dms_E12_Projects_06) -> Document & Content Management | D33: 0 | E33: 0 | F33: 0 | G33: 0 | H33: 0 | I33: 0 | J33: 0
B34: =IF(ISBLANK(dms_E12_Projects_07),"",dms_E12_Projects_07) -> Enabling Platforms & Networking | D34: 1464666.732 | E34: 1410979.074 | F34: 1330897.862 | G34: 2826778.763 | H34: 3032578.828 | I34: 1392891.488 | J34: 1780276.763
B35: =IF(ISBLANK(dms_E12_Projects_08),"",dms_E12_Projects_08) -> End User Services & Support | D35: 464448.1449 | E35: 750946.4701 | F35: 1409792.338 | G35: 524481.8036 | H35: 1130038.608 | I35: 351369.8712 | J35: 812454.6587
B36: =IF(ISBLANK(dms_E12_Projects_09),"",dms_E12_Projects_09) -> Market Interactions & Regulatory Compliance | D36: 869996.8521 | E36: 0 | F36: 0 | G36: 0 | H36: 0 | I36: 4293257.861 | J36: 4335343.022
B37: =IF(ISBLANK(dms_E12_Projects_10),"",dms_E12_Projects_10) -> Metering | D37: 414362.4244 | E37: 0 | F37: 909754.0637 | G37: 5135003.32 | H37: 4140296.851 | I37: 1379975.741 | J37: 3611732.562
B38: =IF(ISBLANK(dms_E12_Projects_11),"",dms_E12_Projects_11) -> Real Time Systems/SCADA | D38: 4311444.47 | E38: 2016378.101 | F38: 386044.1684 | G38: 396781.7263 | H38: 93239.65866 | I38: 300458.5401 | J38: 303403.82
B39: =IF(ISBLANK(dms_E12_Projects_12),"",dms_E12_Projects_12) -> 
B40: =IF(ISBLANK(dms_E12_Projects_13),"",dms_E12_Projects_13) -> 
B41: =IF(ISBLANK(dms_E12_Projects_14),"",dms_E12_Projects_14) -> 
B42: =IF(ISBLANK(dms_E12_Projects_15),"",dms_E12_Projects_15) -> 
B43: Aggregate of other projects with total expenditure of less than $500,000 | D43: 0 | E43: 0 | F43: 0 | G43: 0 | H43: 0 | I43: 0 | J43: 0
C44: Total | D44: =SUM(D28:D43) -> 14084272.13 | E44: =SUM(E28:E43) -> 12914183.66 | F44: 11938744.61 | G44: 18739013.79 | H44: 17631543.15 | I44: 17005574.78 | J44: 17685605.46
B46: B. DIRECT CONTRACTOR EXPENDITURE
B47: =IF(ISBLANK(dms_E12_Projects_01),"",dms_E12_Projects_01) -> Asset Management & Geospatial Systems
B48: =IF(ISBLANK(dms_E12_Projects_02),"",dms_E12_Projects_02) -> Corporate Systems/SAP ERP
B49: =IF(ISBLANK(dms_E12_Projects_03),"",dms_E12_Projects_03) -> Customer Experience
B50: =IF(ISBLANK(dms_E12_Projects_04),"",dms_E12_Projects_04) -> Cyber-Security
B51: =IF(ISBLANK(dms_E12_Projects_05),"",dms_E12_Projects_05) -> Data Warehouse & Reporting
B52: =IF(ISBLANK(dms_E12_Projects_06),"",dms_E12_Projects_06) -> Document & Content Management
B53: =IF(ISBLANK(dms_E12_Projects_07),"",dms_E12_Projects_07) -> Enabling Platforms & Networking
B54: =IF(ISBLANK(dms_E12_Projects_08),"",dms_E12_Projects_08) -> End User Services & Support
B55: =IF(ISBLANK(dms_E12_Projects_09),"",dms_E12_Projects_09) -> Market Interactions & Regulatory Compliance
B56: =IF(ISBLANK(dms_E12_Projects_10),"",dms_E12_Projects_10) -> Metering
B57: =IF(ISBLANK(dms_E12_Projects_11),"",dms_E12_Projects_11) -> Real Time Systems/SCADA
B58: =IF(ISBLANK(dms_E12_Projects_12),"",dms_E12_Projects_12) -> 
B59: =IF(ISBLANK(dms_E12_Projects_13),"",dms_E12_Projects_13) -> 
B60: =IF(ISBLANK(dms_E12_Projects_14),"",dms_E12_Projects_14) -> 
B61: =IF(ISBLANK(dms_E12_Projects_15),"",dms_E12_Projects_15) -> 
B62: Aggregate of other projects with total expenditure of less than $500,000
C63: Total
B65: C. OTHER INTERNAL DIRECT EXPENDITURE
B66: =IF(ISBLANK(dms_E12_Projects_01),"",dms_E12_Projects_01) -> Asset Management & Geospatial Systems | D66: 92689.31297 | E66: 202924.6261 | F66: 64537.86884 | G66: 121370.9777 | H66: 119056.4693 | I66: 75668.68844 | J66: 103299.0915
B67: =IF(ISBLANK(dms_E12_Projects_02),"",dms_E12_Projects_02) -> Corporate Systems/SAP ERP | D67: 205672.327 | E67: 198142.472 | F67: 175118.3991 | G67: 130379.3659 | H67: 231175.6791 | I67: 355542.2074 | J67: 140910.9774
B68: =IF(ISBLANK(dms_E12_Projects_03),"",dms_E12_Projects_03) -> Customer Experience | D68: 1223.364983 | E68: 11100.81238 | F68: 83297.05139 | G68: 142740.3414 | H68: 61579.07425 | I68: 12608.85518 | J68: 48910.25934
B69: =IF(ISBLANK(dms_E12_Projects_04),"",dms_E12_Projects_04) -> Cyber-Security | D69: 60371.98124 | E69: 202813.7344 | F69: 285444.4507 | G69: 229911.6363 | H69: 94998.30633 | I69: 65856.11251 | J69: 259291.3112
B70: =IF(ISBLANK(dms_E12_Projects_05),"",dms_E12_Projects_05) -> Data Warehouse & Reporting | D70: 0 | E70: 0 | F70: 0 | G70: 0 | H70: 0 | I70: 0 | J70: 0
B71: =IF(ISBLANK(dms_E12_Projects_06),"",dms_E12_Projects_06) -> Document & Content Management | D71: 0 | E71: 0 | F71: 0 | G71: 0 | H71: 0 | I71: 0 | J71: 0
B72: =IF(ISBLANK(dms_E12_Projects_07),"",dms_E12_Projects_07) -> Enabling Platforms & Networking | D72: 1598831.835 | E72: 1421538.004 | F72: 1459847.613 | G72: 1700560.276 | H72: 5948766.28 | I72: 1202703.302 | J72: 453541.0401
B73: =IF(ISBLANK(dms_E12_Projects_08),"",dms_E12_Projects_08) -> End User Services & Support | D73: 307450.4246 | E73: 341527.3585 | F73: 1938732.679 | G73: 1012101.193 | H73: 2314149.057 | I73: 435606.9794 | J73: 1749166.602
B74: =IF(ISBLANK(dms_E12_Projects_09),"",dms_E12_Projects_09) -> Market Interactions & Regulatory Compliance | D74: 47742.73019 | E74: 0 | F74: 0 | G74: 0 | H74: 0 | I74: 235600.682 | J74: 237910.1852
B75: =IF(ISBLANK(dms_E12_Projects_10),"",dms_E12_Projects_10) -> Metering | D75: 22738.9253 | E75: 0 | F75: 49924.48271 | G75: 281793.0633 | H75: 227206.656 | I75: 75728.79065 | J75: 198200.6864
B76: =IF(ISBLANK(dms_E12_Projects_11),"",dms_E12_Projects_11) -> Real Time Systems/SCADA | D76: 236598.7068 | E76: 110652.5793 | F76: 21184.9072 | G76: 21774.15109 | H76: 5116.703418 | I76: 16488.23324 | J76: 16649.86107
B77: =IF(ISBLANK(dms_E12_Projects_12),"",dms_E12_Projects_12) -> 
B78: =IF(ISBLANK(dms_E12_Projects_13),"",dms_E12_Projects_13) -> 
B79: =IF(ISBLANK(dms_E12_Projects_14),"",dms_E12_Projects_14) -> 
B80: =IF(ISBLANK(dms_E12_Projects_15),"",dms_E12_Projects_15) -> 
B81: Aggregate of other projects with total expenditure of less than $500,000 | D81: 0 | E81: 0 | F81: 0 | G81: 0 | H81: 0 | I81: 0 | J81: 0
C82: Total | D82: =SUM(D66:D81) -> 2573319.608 | E82: =SUM(E66:E81) -> 2488699.586 | F82: =SUM(F66:F81) -> 4078087.452 | G82: =SUM(G66:G81) -> 3640631.004 | H82: =SUM(H66:H81) -> 9002048.225 | I82: =SUM(I66:I81) -> 2475803.85 | J82: =SUM(J66:J81) -> 3207880.014
B84: D. TOTAL OVERHEAD EXPENDITURE
B85: =IF(ISBLANK(dms_E12_Projects_01),"",dms_E12_Projects_01) -> Asset Management & Geospatial Systems | D85: 0 | E85: 0 | F85: 0 | G85: 0 | H85: 0 | I85: 0 | J85: 0
B86: =IF(ISBLANK(dms_E12_Projects_02),"",dms_E12_Projects_02) -> Corporate Systems/SAP ERP | D86: 0 | E86: 0 | F86: 0 | G86: 0 | H86: 0 | I86: 0 | J86: 0
B87: =IF(ISBLANK(dms_E12_Projects_03),"",dms_E12_Projects_03) -> Customer Experience | D87: 0 | E87: 0 | F87: 0 | G87: 0 | H87: 0 | I87: 0 | J87: 0
B88: =IF(ISBLANK(dms_E12_Projects_04),"",dms_E12_Projects_04) -> Cyber-Security | D88: 0 | E88: 0 | F88: 0 | G88: 0 | H88: 0 | I88: 0 | J88: 0
B89: =IF(ISBLANK(dms_E12_Projects_05),"",dms_E12_Projects_05) -> Data Warehouse & Reporting | D89: 0 | E89: 0 | F89: 0 | G89: 0 | H89: 0 | I89: 0 | J89: 0
B90: =IF(ISBLANK(dms_E12_Projects_06),"",dms_E12_Projects_06) -> Document & Content Management | D90: 0 | E90: 0 | F90: 0 | G90: 0 | H90: 0 | I90: 0 | J90: 0
B91: =IF(ISBLANK(dms_E12_Projects_07),"",dms_E12_Projects_07) -> Enabling Platforms & Networking | D91: 0 | E91: 0 | F91: 0 | G91: 0 | H91: 0 | I91: 0 | J91: 0
B92: =IF(ISBLANK(dms_E12_Projects_08),"",dms_E12_Projects_08) -> End User Services & Support | D92: 0 | E92: 0 | F92: 0 | G92: 0 | H92: 0 | I92: 0 | J92: 0
B93: =IF(ISBLANK(dms_E12_Projects_09),"",dms_E12_Projects_09) -> Market Interactions & Regulatory Compliance | D93: 0 | E93: 0 | F93: 0 | G93: 0 | H93: 0 | I93: 0 | J93: 0
B94: =IF(ISBLANK(dms_E12_Projects_10),"",dms_E12_Projects_10) -> Metering | D94: 0 | E94: 0 | F94: 0 | G94: 0 | H94: 0 | I94: 0 | J94: 0
B95: =IF(ISBLANK(dms_E12_Projects_11),"",dms_E12_Projects_11) -> Real Time Systems/SCADA | D95: 0 | E95: 0 | F95: 0 | G95: 0 | H95: 0 | I95: 0 | J95: 0
B96: =IF(ISBLANK(dms_E12_Projects_12),"",dms_E12_Projects_12) -> 
B97: =IF(ISBLANK(dms_E12_Projects_13),"",dms_E12_Projects_13) -> 
B98: =IF(ISBLANK(dms_E12_Projects_14),"",dms_E12_Projects_14) -> 
B99: =IF(ISBLANK(dms_E12_Projects_15),"",dms_E12_Projects_15) -> 
B100: Aggregate of other projects with total expenditure of less than $500,000 | D100: 0 | E100: 0 | F100: 0 | G100: 0 | H100: 0 | I100: 0 | J100: 0
C101: Total | D101: =SUM(D85:D100) -> 0 | E101: =SUM(E85:E100) -> 0 | F101: =SUM(F85:F100) -> 0 | G101: =SUM(G85:G100) -> 0 | H101: =SUM(H85:H100) -> 0 | I101: =SUM(I85:I100) -> 0 | J101: =SUM(J85:J100) -> 0
B103: E. RELATED PARTY MARGIN EXPENDITURE
B104: =IF(ISBLANK(dms_E12_Projects_01),"",dms_E12_Projects_01) -> Asset Management & Geospatial Systems | D104: 0 | E104: 0 | F104: 0 | G104: 0 | H104: 0 | I104: 0 | J104: 0
B105: =IF(ISBLANK(dms_E12_Projects_02),"",dms_E12_Projects_02) -> Corporate Systems/SAP ERP | D105: 0 | E105: 0 | F105: 0 | G105: 0 | H105: 0 | I105: 0 | J105: 0
B106: =IF(ISBLANK(dms_E12_Projects_03),"",dms_E12_Projects_03) -> Customer Experience | D106: 0 | E106: 0 | F106: 0 | G106: 0 | H106: 0 | I106: 0 | J106: 0
B107: =IF(ISBLANK(dms_E12_Projects_04),"",dms_E12_Projects_04) -> Cyber-Security | D107: 0 | E107: 0 | F107: 0 | G107: 0 | H107: 0 | I107: 0 | J107: 0
B108: =IF(ISBLANK(dms_E12_Projects_05),"",dms_E12_Projects_05) -> Data Warehouse & Reporting | D108: 0 | E108: 0 | F108: 0 | G108: 0 | H108: 0 | I108: 0 | J108: 0
B109: =IF(ISBLANK(dms_E12_Projects_06),"",dms_E12_Projects_06) -> Document & Content Management | D109: 0 | E109: 0 | F109: 0 | G109: 0 | H109: 0 | I109: 0 | J109: 0
B110: =IF(ISBLANK(dms_E12_Projects_07),"",dms_E12_Projects_07) -> Enabling Platforms & Networking | D110: 0 | E110: 0 | F110: 0 | G110: 0 | H110: 0 | I110: 0 | J110: 0
B111: =IF(ISBLANK(dms_E12_Projects_08),"",dms_E12_Projects_08) -> End User Services & Support | D111: 0 | E111: 0 | F111: 0 | G111: 0 | H111: 0 | I111: 0 | J111: 0
B112: =IF(ISBLANK(dms_E12_Projects_09),"",dms_E12_Projects_09) -> Market Interactions & Regulatory Compliance | D112: 0 | E112: 0 | F112: 0 | G112: 0 | H112: 0 | I112: 0 | J112: 0
B113: =IF(ISBLANK(dms_E12_Projects_10),"",dms_E12_Projects_10) -> Metering | D113: 0 | E113: 0 | F113: 0 | G113: 0 | H113: 0 | I113: 0 | J113: 0
B114: =IF(ISBLANK(dms_E12_Projects_11),"",dms_E12_Projects_11) -> Real Time Systems/SCADA | D114: 0 | E114: 0 | F114: 0 | G114: 0 | H114: 0 | I114: 0 | J114: 0
B115: =IF(ISBLANK(dms_E12_Projects_12),"",dms_E12_Projects_12) -> 
B116: =IF(ISBLANK(dms_E12_Projects_13),"",dms_E12_Projects_13) -> 
B117: =IF(ISBLANK(dms_E12_Projects_14),"",dms_E12_Projects_14) -> 
B118: =IF(ISBLANK(dms_E12_Projects_15),"",dms_E12_Projects_15) -> 
B119: Aggregate of other projects with total expenditure of less than $500,000 | D119: 0 | E119: 0 | F119: 0 | G119: 0 | H119: 0 | I119: 0 | J119: 0
C120: Total | D120: =SUM(D104:D119) -> 0 | E120: =SUM(E104:E119) -> 0 | F120: =SUM(F104:F119) -> 0 | G120: =SUM(G104:G119) -> 0 | H120: =SUM(H104:H119) -> 0 | I120: =SUM(I104:I119) -> 0 | J120: =SUM(J104:J119) -> 0
B122: F. CUSTOMER CONTRIBUTIONS included in the above
B123: =IF(ISBLANK(dms_E12_Projects_01),"",dms_E12_Projects_01) -> Asset Management & Geospatial Systems | D123: 0 | E123: 0 | F123: 0 | G123: 0 | H123: 0 | I123: 0 | J123: 0
B124: =IF(ISBLANK(dms_E12_Projects_02),"",dms_E12_Projects_02) -> Corporate Systems/SAP ERP | D124: 0 | E124: 0 | F124: 0 | G124: 0 | H124: 0 | I124: 0 | J124: 0
B125: =IF(ISBLANK(dms_E12_Projects_03),"",dms_E12_Projects_03) -> Customer Experience | D125: 0 | E125: 0 | F125: 0 | G125: 0 | H125: 0 | I125: 0 | J125: 0
B126: =IF(ISBLANK(dms_E12_Projects_04),"",dms_E12_Projects_04) -> Cyber-Security | D126: 0 | E126: 0 | F126: 0 | G126: 0 | H126: 0 | I126: 0 | J126: 0
B127: =IF(ISBLANK(dms_E12_Projects_05),"",dms_E12_Projects_05) -> Data Warehouse & Reporting | D127: 0 | E127: 0 | F127: 0 | G127: 0 | H127: 0 | I127: 0 | J127: 0
B128: =IF(ISBLANK(dms_E12_Projects_06),"",dms_E12_Projects_06) -> Document & Content Management | D128: 0 | E128: 0 | F128: 0 | G128: 0 | H128: 0 | I128: 0 | J128: 0
B129: =IF(ISBLANK(dms_E12_Projects_07),"",dms_E12_Projects_07) -> Enabling Platforms & Networking | D129: 0 | E129: 0 | F129: 0 | G129: 0 | H129: 0 | I129: 0 | J129: 0
B130: =IF(ISBLANK(dms_E12_Projects_08),"",dms_E12_Projects_08) -> End User Services & Support | D130: 0 | E130: 0 | F130: 0 | G130: 0 | H130: 0 | I130: 0 | J130: 0
B131: =IF(ISBLANK(dms_E12_Projects_09),"",dms_E12_Projects_09) -> Market Interactions & Regulatory Compliance | D131: 0 | E131: 0 | F131: 0 | G131: 0 | H131: 0 | I131: 0 | J131: 0
B132: =IF(ISBLANK(dms_E12_Projects_10),"",dms_E12_Projects_10) -> Metering | D132: 0 | E132: 0 | F132: 0 | G132: 0 | H132: 0 | I132: 0 | J132: 0
B133: =IF(ISBLANK(dms_E12_Projects_11),"",dms_E12_Projects_11) -> Real Time Systems/SCADA | D133: 0 | E133: 0 | F133: 0 | G133: 0 | H133: 0 | I133: 0 | J133: 0
B134: =IF(ISBLANK(dms_E12_Projects_12),"",dms_E12_Projects_12) -> 
B135: =IF(ISBLANK(dms_E12_Projects_13),"",dms_E12_Projects_13) -> 
B136: =IF(ISBLANK(dms_E12_Projects_14),"",dms_E12_Projects_14) -> 
B137: =IF(ISBLANK(dms_E12_Projects_15),"",dms_E12_Projects_15) -> 
B138: Aggregate of other projects with total expenditure of less than $500,000 | D138: 0 | E138: 0 | F138: 0 | G138: 0 | H138: 0 | I138: 0 | J138: 0
C139: Total | D139: =SUM(D123:D138) -> 0 | E139: =SUM(E123:E138) -> 0 | F139: =SUM(F123:F138) -> 0 | G139: =SUM(G123:G138) -> 0 | H139: =SUM(H123:H138) -> 0 | I139: =SUM(I123:I138) -> 0 | J139: =SUM(J123:J138) -> 0

Sheet E13. Other capex
B1: =IF(dms_MultiYear_ResponseFlag="Yes","REGULATORY REPORTING STATEMENT - HISTORICAL INFORMATION",INDEX(dms_Worksheet_List,MATCH(dms_Model,dms_Model_List))) -> REGULATORY REPORTING STATEMENT
B2: =INDEX(dms_TradingNameFull_List,MATCH(dms_TradingName,dms_TradingName_List)) -> Jemena Gas Networks (NSW) Ltd
B3: =IF(SUM(dms_SingleYear_Model)>0,CONCATENATE(CRY),CONCATENATE(FRCP_y1," to ",dms_MultiYear_FinalYear_Result)) -> 2020-21 to 2024-25
B4: E13. OTHER CAPITAL EXPENDITURE
B6: Please list all projects here:
B7: Other capex - Allocations - Facilities projects
B8: Other capex - Facility upgrade projects - TRS
B9: Other capex - Facility upgrade projects - PRS
B10: Other capex - Mains relocation projects
B11: Other capex - Allocations - Networks projects
B12: Other capex - Networks upgrade projects
B13: Other capex - Non Network General - Property
B14: Other capex - Pipes upgrade projects
B15: Other capex - Pipes washaway projects
B16: Other capex - Pigging facilities projects
B17: Other capex - Pigging & Validation digs
B18: Other capex - Primary mains integrity projects - SPM
B19: Other capex - Allocations - Pipes projects
B20: Other capex - Non Network General - Vehicles
B21: Other capex - Non Network General - Plant & Equipt
B23: E13.1 - OTHER CAPEX - BY PROJECT
C24: EXPENDITURE
C25: =CONCATENATE("$0's, real ",dms_DollarReal) -> $0's, real June 2020
C26: =CRCP_y4 -> 2018-19 | D26: =CRCP_y5 -> 2019-20 | E26: =FRCP_y1 -> 2020-21 | F26: =FRCP_y2 -> 2021-22 | G26: =FRCP_y3 -> 2022-23 | H26: =FRCP_y4 -> 2023-24 | I26: =FRCP_y5 -> 2024-25
B27: A. DIRECT INTERNAL LABOUR EXPENDITURE
B28: =IF(ISBLANK(dms_E13_Projects_01),"",dms_E13_Projects_01) -> Other capex - Allocations - Facilities projects | C28: 55771.99735 | D28: 114490.2316 | E28: 257162.558 | F28: 218023.1584 | G28: 98455.31748 | H28: 98784.23383 | I28: 99086.05181
B29: =IF(ISBLANK(dms_E13_Projects_02),"",dms_E13_Projects_02) -> Other capex - Facility upgrade projects - TRS | C29: 246763.4659 | D29: 493106.4595 | E29: 112902.9566 | F29: 244943.807 | G29: 788414.4816 | H29: 332360.1104 | I29: 356220.5842
B30: =IF(ISBLANK(dms_E13_Projects_03),"",dms_E13_Projects_03) -> Other capex - Facility upgrade projects - PRS | C30: 377183.4864 | D30: 1670904.022 | E30: 837151.791 | F30: 585340.1916 | G30: 195324.6291 | H30: 91063.35716 | I30: 86061.17441
B31: =IF(ISBLANK(dms_E13_Projects_04),"",dms_E13_Projects_04) -> Other capex - Mains relocation projects | C31: 60817.74373 | D31: 101820.9282 | E31: 63290.41437 | F31: 63347.27901 | G31: 63412.22559 | H31: 63474.99314 | I31: 63532.45396
B32: =IF(ISBLANK(dms_E13_Projects_05),"",dms_E13_Projects_05) -> Other capex - Allocations - Networks projects | C32: 91554.86833 | D32: 63484.16548 | E32: 84600.42514 | F32: 84725.05381 | G32: 84867.48029 | H32: 85005.22182 | I32: 85131.40066
B33: =IF(ISBLANK(dms_E13_Projects_06),"",dms_E13_Projects_06) -> Other capex - Networks upgrade projects | C33: 1152.494605 | D33: 193410.5519 | E33: 834629.0012 | F33: 1204023.719 | G33: 135114.78 | H33: 47909.66652 | I33: 47985.76341
B34: =IF(ISBLANK(dms_E13_Projects_07),"",dms_E13_Projects_07) -> Other capex - Non Network General - Property | C34: 5773.878548 | D34: 10267.83066 | E34: 19706.02567 | F34: 12962.2968 | G34: 11909.8952 | H34: 15012.66563 | I34: 6626.791788
B35: =IF(ISBLANK(dms_E13_Projects_08),"",dms_E13_Projects_08) -> Other capex - Pipes upgrade projects | C35: 20674.20229 | D35: 142690.0367 | E35: 0 | F35: 0 | G35: 0 | H35: 0 | I35: 0
B36: =IF(ISBLANK(dms_E13_Projects_09),"",dms_E13_Projects_09) -> Other capex - Pipes washaway projects | C36: 17507.66256 | D36: 35048.75047 | E36: 35077.19396 | F36: 35117.92575 | G36: 35164.4588 | H36: 35209.44409 | I36: 35250.63796
B37: =IF(ISBLANK(dms_E13_Projects_10),"",dms_E13_Projects_10) -> Other capex - Pigging facilities projects | C37: 115667.4261 | D37: 333611.4005 | E37: 200663.6481 | F37: 372622.9653 | G37: 52017.9634 | H37: 361732.4394 | I37: 959274.1915
B38: =IF(ISBLANK(dms_E13_Projects_11),"",dms_E13_Projects_11) -> Other capex - Pigging & Validation digs | C38: 250455.6719 | D38: 245612.8811 | E38: 0 | F38: 0 | G38: 0 | H38: 0 | I38: 0
B39: =IF(ISBLANK(dms_E13_Projects_12),"",dms_E13_Projects_12) -> Other capex - Primary mains integrity projects - SPM | C39: 22043.43106 | D39: 472189.968 | E39: 1003811.566 | F39: 143850.5157 | G39: 62867.95717 | H39: 1153.226659 | I39: 0
B40: =IF(ISBLANK(dms_E13_Projects_13),"",dms_E13_Projects_13) -> Other capex - Allocations - Pipes projects | C40: 19165.88565 | D40: 29207.29206 | E40: 29230.99496 | F40: 29264.93813 | G40: 29303.71567 | H40: 29341.20341 | I40: 29375.53164
B41: =IF(ISBLANK(dms_E13_Projects_14),"",dms_E13_Projects_14) -> Other capex - Non Network General - Vehicles | C41: 0 | D41: 0 | E41: 0 | F41: 0 | G41: 0 | H41: 0 | I41: 0
B42: =IF(ISBLANK(dms_E13_Projects_15),"",dms_E13_Projects_15) -> Other capex - Non Network General - Plant & Equipt | C42: 0 | D42: 0 | E42: 0 | F42: 0 | G42: 0 | H42: 0 | I42: 0
B43: Aggregate of other projects with total expenditure of less than $500,000 | C43: 61547.63811 | D43: 203637.9289 | E43: 149571.8519 | F43: 4163.541153 | G43: 21389.31498 | H43: 96469.78771 | I43: 1716.60966
B44: Total | C44: =SUM(C28:C43) -> 1346079.852 | D44: =SUM(D28:D43) -> 4109482.447 | E44: 3627798.427 | F44: 2998385.392 | G44: 1578242.219 | H44: 1257516.35 | I44: 1770261.191
B46: B. DIRECT CONTRACTOR EXPENDITURE
B47: =IF(ISBLANK(dms_E13_Projects_01),"",dms_E13_Projects_01) -> Other capex - Allocations - Facilities projects
B48: =IF(ISBLANK(dms_E13_Projects_02),"",dms_E13_Projects_02) -> Other capex - Facility upgrade projects - TRS
B49: =IF(ISBLANK(dms_E13_Projects_03),"",dms_E13_Projects_03) -> Other capex - Facility upgrade projects - PRS
B50: =IF(ISBLANK(dms_E13_Projects_04),"",dms_E13_Projects_04) -> Other capex - Mains relocation projects
B51: =IF(ISBLANK(dms_E13_Projects_05),"",dms_E13_Projects_05) -> Other capex - Allocations - Networks projects
B52: =IF(ISBLANK(dms_E13_Projects_06),"",dms_E13_Projects_06) -> Other capex - Networks upgrade projects
B53: =IF(ISBLANK(dms_E13_Projects_07),"",dms_E13_Projects_07) -> Other capex - Non Network General - Property
B54: =IF(ISBLANK(dms_E13_Projects_08),"",dms_E13_Projects_08) -> Other capex - Pipes upgrade projects
B55: =IF(ISBLANK(dms_E13_Projects_09),"",dms_E13_Projects_09) -> Other capex - Pipes washaway projects
B56: =IF(ISBLANK(dms_E13_Projects_10),"",dms_E13_Projects_10) -> Other capex - Pigging facilities projects
B57: =IF(ISBLANK(dms_E13_Projects_11),"",dms_E13_Projects_11) -> Other capex - Pigging & Validation digs
B58: =IF(ISBLANK(dms_E13_Projects_12),"",dms_E13_Projects_12) -> Other capex - Primary mains integrity projects - SPM
B59: =IF(ISBLANK(dms_E13_Projects_13),"",dms_E13_Projects_13) -> Other capex - Allocations - Pipes projects
B60: =IF(ISBLANK(dms_E13_Projects_14),"",dms_E13_Projects_14) -> Other capex - Non Network General - Vehicles
B61: =IF(ISBLANK(dms_E13_Projects_15),"",dms_E13_Projects_15) -> Other capex - Non Network General - Plant & Equipt
B62: Aggregate of other projects with total expenditure of less than $500,000
B63: Total
B65: C. OTHER INTERNAL DIRECT EXPENDITURE
B66: =IF(ISBLANK(dms_E13_Projects_01),"",dms_E13_Projects_01) -> Other capex - Allocations - Facilities projects | C66: 24633.5255 | D66: 50906.9565 | E66: 116013.9038 | F66: 98148.01815 | G66: 43577.21734 | H66: 43722.61883 | I66: 43856.04063
B67: =IF(ISBLANK(dms_E13_Projects_02),"",dms_E13_Projects_02) -> Other capex - Facility upgrade projects - TRS | C67: 113333.4034 | D67: 214638.0492 | E67: 49144.09432 | F67: 106618.4794 | G67: 343178.9283 | H67: 144668.8121 | I67: 155054.7347
B68: =IF(ISBLANK(dms_E13_Projects_03),"",dms_E13_Projects_03) -> Other capex - Facility upgrade projects - PRS | C68: 176376.22 | D68: 800567.7379 | E68: 477216.612 | F68: 402327.4759 | G68: 95382.65281 | H68: 41557.64888 | I68: 39274.85412
B69: =IF(ISBLANK(dms_E13_Projects_04),"",dms_E13_Projects_04) -> Other capex - Mains relocation projects | C69: 128934.0457 | D69: 215861.0861 | E69: 134176.1249 | F69: 134296.6784 | G69: 134434.3656 | H69: 134567.4332 | I69: 134689.2506
B70: =IF(ISBLANK(dms_E13_Projects_05),"",dms_E13_Projects_05) -> Other capex - Allocations - Networks projects | C70: 227044.3578 | D70: 157432.6068 | E70: 184204.7337 | F70: 184484.0776 | G70: 184803.325 | H70: 185112.0836 | I70: 185394.9345
B71: =IF(ISBLANK(dms_E13_Projects_06),"",dms_E13_Projects_06) -> Other capex - Networks upgrade projects | C71: 2858.039143 | D71: 302335.6131 | E71: 1119707.045 | F71: 1658426.386 | G71: 302995.9069 | H71: 118809.8423 | I71: 118998.5529
B72: =IF(ISBLANK(dms_E13_Projects_07),"",dms_E13_Projects_07) -> Other capex - Non Network General - Property | C72: 570900.7784 | D72: 1009897.257 | E72: 1938195.315 | F72: 1274912.728 | G72: 1171403.278 | H72: 1476577.707 | I72: 651781.1868
B73: =IF(ISBLANK(dms_E13_Projects_08),"",dms_E13_Projects_08) -> Other capex - Pipes upgrade projects | C73: 26128.39276 | D73: 180333.9867 | E73: 0 | F73: 0 | G73: 0 | H73: 0 | I73: 0
B74: =IF(ISBLANK(dms_E13_Projects_09),"",dms_E13_Projects_09) -> Other capex - Pipes washaway projects | C74: 22126.4684 | D74: 44295.18029 | E74: 44331.12763 | F74: 44382.60513 | G74: 44441.41436 | H74: 44498.2675 | I74: 44550.32899
B75: =IF(ISBLANK(dms_E13_Projects_10),"",dms_E13_Projects_10) -> Other capex - Pigging facilities projects | C75: 146182.3723 | D75: 421623.5082 | E75: 253601.9787 | F75: 470926.9577 | G75: 65741.1473 | H75: 457163.3341 | I75: 1212346.309
B76: =IF(ISBLANK(dms_E13_Projects_11),"",dms_E13_Projects_11) -> Other capex - Pigging & Validation digs | C76: 316529.9474 | D76: 310409.5497 | E76: 0 | F76: 0 | G76: 0 | H76: 0 | I76: 0
B77: =IF(ISBLANK(dms_E13_Projects_12),"",dms_E13_Projects_12) -> Other capex - Primary mains integrity projects - SPM | C77: 27858.84632 | D77: 596761.3534 | E77: 1268633.366 | F77: 181800.6189 | G77: 79453.5457 | H77: 1457.466588 | I77: 0
B78: =IF(ISBLANK(dms_E13_Projects_13),"",dms_E13_Projects_13) -> Other capex - Allocations - Pipes projects | C78: 24222.15768 | D78: 36912.65024 | E78: 36942.60636 | F78: 36985.50428 | G78: 37034.51197 | H78: 37081.88958 | I78: 37125.27416
B79: =IF(ISBLANK(dms_E13_Projects_14),"",dms_E13_Projects_14) -> Other capex - Non Network General - Vehicles | C79: 1730788.734 | D79: 4897244.14 | E79: 5853464.153 | F79: 5073704.752 | G79: 3590581.296 | H79: 1440974.299 | I79: 2618516.367
B80: =IF(ISBLANK(dms_E13_Projects_15),"",dms_E13_Projects_15) -> Other capex - Non Network General - Plant & Equipt | C80: 259973.4906 | D80: 579084.431 | E80: 579084.431 | F80: 579084.431 | G80: 579084.431 | H80: 579084.431 | I80: 579084.431
B81: Aggregate of other projects with total expenditure of less than $500,000 | C81: 62125.29958 | D81: 272467.8902 | E81: 74546.19691 | F81: 1812.294959 | G81: 9310.283314 | H81: 41991.10891 | I81: 747.2012211
B82: Total | C82: =SUM(C66:C81) -> 3860016.079 | D82: =SUM(D66:D81) -> 10090772 | E82: 12129261.69 | F82: 10247911.01 | G82: 6681422.304 | H82: 4747266.942 | I82: 5821419.465
B84: D. TOTAL OVERHEAD EXPENDITURE
B85: =IF(ISBLANK(dms_E13_Projects_01),"",dms_E13_Projects_01) -> Other capex - Allocations - Facilities projects | C85: 44108.10747 | D85: 88128.40074 | E85: 151934.7984 | F85: 87933.37388 | G85: 42206.17635 | H85: 41202.19451 | I85: 41087.41211
B86: =IF(ISBLANK(dms_E13_Projects_02),"",dms_E13_Projects_02) -> Other capex - Facility upgrade projects - TRS | C86: 197441.0668 | D86: 359819.6278 | E86: 61032.99936 | F86: 90858.37655 | G86: 324054.0142 | H86: 132914.3989 | I86: 141628.2098
B87: =IF(ISBLANK(dms_E13_Projects_03),"",dms_E13_Projects_03) -> Other capex - Facility upgrade projects - PRS | C87: 329413.5499 | D87: 1424638.037 | E87: 609890.9676 | F87: 342816.2874 | G87: 95262.567 | H87: 40917.4738 | I87: 38445.01559
B88: =IF(ISBLANK(dms_E13_Projects_04),"",dms_E13_Projects_04) -> Other capex - Mains relocation projects | C88: 162684.7306 | D88: 260736.9052 | E88: 120065.6105 | F88: 82460.84305 | G88: 91465.45628 | H88: 89081.41279 | I88: 88643.66036
B89: =IF(ISBLANK(dms_E13_Projects_05),"",dms_E13_Projects_05) -> Other capex - Allocations - Networks projects | C89: 139580.0287 | D89: 92652.30381 | E89: 99607.1597 | F89: 68447.55257 | G89: 75969.4666 | H89: 74034.05374 | I89: 73710.98135
B90: =IF(ISBLANK(dms_E13_Projects_06),"",dms_E13_Projects_06) -> Other capex - Networks upgrade projects | C90: 1757.036332 | D90: 358364.8937 | E90: 1204464.241 | F90: 1182855.455 | G90: 118826.9149 | H90: 38320.65594 | I90: 38158.36976
B91: =IF(ISBLANK(dms_E13_Projects_07),"",dms_E13_Projects_07) -> Other capex - Non Network General - Property | C91: 0 | D91: 0 | E91: 0 | F91: 0 | G91: 0 | H91: 0 | I91: 0
B92: =IF(ISBLANK(dms_E13_Projects_08),"",dms_E13_Projects_08) -> Other capex - Pipes upgrade projects | C92: 42789.86264 | D92: 282718.8379 | E92: 0 | F92: 0 | G92: 0 | H92: 0 | I92: 0
B93: =IF(ISBLANK(dms_E13_Projects_09),"",dms_E13_Projects_09) -> Other capex - Pipes washaway projects | C93: 36236.00396 | D93: 69443.82546 | E93: 51487.42609 | F93: 35370.75292 | G93: 39244.94184 | H93: 38233.07638 | I93: 38055.25835
B94: =IF(ISBLANK(dms_E13_Projects_10),"",dms_E13_Projects_10) -> Other capex - Pigging facilities projects | C94: 239399.4797 | D94: 661000.7934 | E94: 294540.5143 | F94: 375305.6183 | G94: 58054.12675 | H94: 392796.4313 | I94: 1035596.213
B95: =IF(ISBLANK(dms_E13_Projects_11),"",dms_E13_Projects_11) -> Other capex - Pigging & Validation digs | C95: 518373.7512 | D95: 486644.9679 | E95: 0 | F95: 0 | G95: 0 | H95: 0 | I95: 0
B96: =IF(ISBLANK(dms_E13_Projects_12),"",dms_E13_Projects_12) -> Other capex - Primary mains integrity projects - SPM | C96: 45623.78629 | D96: 935573.3738 | E96: 1473426.691 | F96: 144886.1497 | G96: 70163.15355 | H96: 1252.260695 | I96: 0
B97: =IF(ISBLANK(dms_E13_Projects_13),"",dms_E13_Projects_13) -> Other capex - Allocations - Pipes projects | C97: 39668.06567 | D97: 57869.85455 | E97: 42906.18841 | F97: 29475.62743 | G97: 32704.1182 | H97: 31860.89698 | I97: 31712.71529
B98: =IF(ISBLANK(dms_E13_Projects_14),"",dms_E13_Projects_14) -> Other capex - Non Network General - Vehicles | C98: 0 | D98: 0 | E98: 0 | F98: 0 | G98: 0 | H98: 0 | I98: 0
B99: =IF(ISBLANK(dms_E13_Projects_15),"",dms_E13_Projects_15) -> Other capex - Non Network General - Plant & Equipt | C99: 0 | D99: 0 | E99: 0 | F99: 0 | G99: 0 | H99: 0 | I99: 0
B100: Aggregate of other projects with total expenditure of less than $500,000 | C100: 136787.5234 | D100: 215325.9486 | E100: 83351.77362 | F100: 1544.405611 | G100: 8791.433368 | H100: 38579.31036 | I100: 682.499451
B101: Total | C101: =SUM(C85:C100) -> 1933862.993 | D101: =SUM(D85:D100) -> 5292917.77 | E101: 4192708.369 | F101: 2441954.442 | G101: 956742.3691 | H101: 919192.1654 | I101: 1527720.335
B103: E. RELATED PARTY MARGIN EXPENDITURE
B104: =IF(ISBLANK(dms_E13_Projects_01),"",dms_E13_Projects_01) -> Other capex - Allocations - Facilities projects | C104: 0 | D104: 0 | E104: 0 | F104: 0 | G104: 0 | H104: 0 | I104: 0
B105: =IF(ISBLANK(dms_E13_Projects_02),"",dms_E13_Projects_02) -> Other capex - Facility upgrade projects - TRS | C105: 0 | D105: 0 | E105: 0 | F105: 0 | G105: 0 | H105: 0 | I105: 0
B106: =IF(ISBLANK(dms_E13_Projects_03),"",dms_E13_Projects_03) -> Other capex - Facility upgrade projects - PRS | C106: 0 | D106: 0 | E106: 0 | F106: 0 | G106: 0 | H106: 0 | I106: 0
B107: =IF(ISBLANK(dms_E13_Projects_04),"",dms_E13_Projects_04) -> Other capex - Mains relocation projects | C107: 0 | D107: 0 | E107: 0 | F107: 0 | G107: 0 | H107: 0 | I107: 0
B108: =IF(ISBLANK(dms_E13_Projects_05),"",dms_E13_Projects_05) -> Other capex - Allocations - Networks projects | C108: 0 | D108: 0 | E108: 0 | F108: 0 | G108: 0 | H108: 0 | I108: 0
B109: =IF(ISBLANK(dms_E13_Projects_06),"",dms_E13_Projects_06) -> Other capex - Networks upgrade projects | C109: 0 | D109: 0 | E109: 0 | F109: 0 | G109: 0 | H109: 0 | I109: 0
B110: =IF(ISBLANK(dms_E13_Projects_07),"",dms_E13_Projects_07) -> Other capex - Non Network General - Property | C110: 0 | D110: 0 | E110: 0 | F110: 0 | G110: 0 | H110: 0 | I110: 0
B111: =IF(ISBLANK(dms_E13_Projects_08),"",dms_E13_Projects_08) -> Other capex - Pipes upgrade projects | C111: 0 | D111: 0 | E111: 0 | F111: 0 | G111: 0 | H111: 0 | I111: 0
B112: =IF(ISBLANK(dms_E13_Projects_09),"",dms_E13_Projects_09) -> Other capex - Pipes washaway projects | C112: 0 | D112: 0 | E112: 0 | F112: 0 | G112: 0 | H112: 0 | I112: 0
B113: =IF(ISBLANK(dms_E13_Projects_10),"",dms_E13_Projects_10) -> Other capex - Pigging facilities projects | C113: 0 | D113: 0 | E113: 0 | F113: 0 | G113: 0 | H113: 0 | I113: 0
B114: =IF(ISBLANK(dms_E13_Projects_11),"",dms_E13_Projects_11) -> Other capex - Pigging & Validation digs | C114: 0 | D114: 0 | E114: 0 | F114: 0 | G114: 0 | H114: 0 | I114: 0
B115: =IF(ISBLANK(dms_E13_Projects_12),"",dms_E13_Projects_12) -> Other capex - Primary mains integrity projects - SPM | C115: 0 | D115: 0 | E115: 0 | F115: 0 | G115: 0 | H115: 0 | I115: 0
B116: =IF(ISBLANK(dms_E13_Projects_13),"",dms_E13_Projects_13) -> Other capex - Allocations - Pipes projects | C116: 0 | D116: 0 | E116: 0 | F116: 0 | G116: 0 | H116: 0 | I116: 0
B117: =IF(ISBLANK(dms_E13_Projects_14),"",dms_E13_Projects_14) -> Other capex - Non Network General - Vehicles | C117: 0 | D117: 0 | E117: 0 | F117: 0 | G117: 0 | H117: 0 | I117: 0
B118: =IF(ISBLANK(dms_E13_Projects_15),"",dms_E13_Projects_15) -> Other capex - Non Network General - Plant & Equipt | C118: 0 | D118: 0 | E118: 0 | F118: 0 | G118: 0 | H118: 0 | I118: 0
B119: Aggregate of other projects with total expenditure of less than $500,000 | C119: 0 | D119: 0 | E119: 0 | F119: 0 | G119: 0 | H119: 0 | I119: 0
B120: Total | C120: =SUM(C104:C119) -> 0 | D120: =SUM(D104:D119) -> 0 | E120: 0 | F120: 0 | G120: 0 | H120: 0 | I120: 0
B122: F. CUSTOMER CONTRIBUTIONS included in the above
B123: =IF(ISBLANK(dms_E13_Projects_01),"",dms_E13_Projects_01) -> Other capex - Allocations - Facilities projects | C123: 0 | D123: 0 | E123: 0 | F123: 0 | G123: 0 | H123: 0 | I123: 0
B124: =IF(ISBLANK(dms_E13_Projects_02),"",dms_E13_Projects_02) -> Other capex - Facility upgrade projects - TRS | C124: 0 | D124: 0 | E124: 0 | F124: 0 | G124: 0 | H124: 0 | I124: 0
B125: =IF(ISBLANK(dms_E13_Projects_03),"",dms_E13_Projects_03) -> Other capex - Facility upgrade projects - PRS | C125: 0 | D125: 0 | E125: 0 | F125: 0 | G125: 0 | H125: 0 | I125: 0
B126: =IF(ISBLANK(dms_E13_Projects_04),"",dms_E13_Projects_04) -> Other capex - Mains relocation projects | C126: 0 | D126: 0 | E126: 0 | F126: 0 | G126: 0 | H126: 0 | I126: 0
B127: =IF(ISBLANK(dms_E13_Projects_05),"",dms_E13_Projects_05) -> Other capex - Allocations - Networks projects | C127: 0 | D127: 0 | E127: 0 | F127: 0 | G127: 0 | H127: 0 | I127: 0
B128: =IF(ISBLANK(dms_E13_Projects_06),"",dms_E13_Projects_06) -> Other capex - Networks upgrade projects | C128: 0 | D128: 0 | E128: 0 | F128: 0 | G128: 0 | H128: 0 | I128: 0
B129: =IF(ISBLANK(dms_E13_Projects_07),"",dms_E13_Projects_07) -> Other capex - Non Network General - Property | C129: 0 | D129: 0 | E129: 0 | F129: 0 | G129: 0 | H129: 0 | I129: 0
B130: =IF(ISBLANK(dms_E13_Projects_08),"",dms_E13_Projects_08) -> Other capex - Pipes upgrade projects | C130: 0 | D130: 0 | E130: 0 | F130: 0 | G130: 0 | H130: 0 | I130: 0
B131: =IF(ISBLANK(dms_E13_Projects_09),"",dms_E13_Projects_09) -> Other capex - Pipes washaway projects | C131: 0 | D131: 0 | E131: 0 | F131: 0 | G131: 0 | H131: 0 | I131: 0
B132: =IF(ISBLANK(dms_E13_Projects_10),"",dms_E13_Projects_10) -> Other capex - Pigging facilities projects | C132: 0 | D132: 0 | E132: 0 | F132: 0 | G132: 0 | H132: 0 | I132: 0
B133: =IF(ISBLANK(dms_E13_Projects_11),"",dms_E13_Projects_11) -> Other capex - Pigging & Validation digs | C133: 0 | D133: 0 | E133: 0 | F133: 0 | G133: 0 | H133: 0 | I133: 0
B134: =IF(ISBLANK(dms_E13_Projects_12),"",dms_E13_Projects_12) -> Other capex - Primary mains integrity projects - SPM | C134: 0 | D134: 0 | E134: 0 | F134: 0 | G134: 0 | H134: 0 | I134: 0
B135: =IF(ISBLANK(dms_E13_Projects_13),"",dms_E13_Projects_13) -> Other capex - Allocations - Pipes projects | C135: 0 | D135: 0 | E135: 0 | F135: 0 | G135: 0 | H135: 0 | I135: 0
B136: =IF(ISBLANK(dms_E13_Projects_14),"",dms_E13_Projects_14) -> Other capex - Non Network General - Vehicles | C136: 0 | D136: 0 | E136: 0 | F136: 0 | G136: 0 | H136: 0 | I136: 0
B137: =IF(ISBLANK(dms_E13_Projects_15),"",dms_E13_Projects_15) -> Other capex - Non Network General - Plant & Equipt | C137: 0 | D137: 0 | E137: 0 | F137: 0 | G137: 0 | H137: 0 | I137: 0
B138: Aggregate of other projects with total expenditure of less than $500,000 | C138: 0 | D138: 0 | E138: 0 | F138: 0 | G138: 0 | H138: 0 | I138: 0
B139: Total | C139: =SUM(C123:C138) -> 0 | D139: =SUM(D123:D138) -> 0 | E139: 0 | F139: 0 | G139: 0 | H139: 0 | I139: 0

Sheet E17. Step changes
B1: =IF(dms_MultiYear_ResponseFlag="Yes","REGULATORY REPORTING STATEMENT - HISTORICAL INFORMATION",INDEX(dms_Worksheet_List,MATCH(dms_Model,dms_Model_List))) -> REGULATORY REPORTING STATEMENT
B2: =INDEX(dms_TradingNameFull_List,MATCH(dms_TradingName,dms_TradingName_List)) -> Jemena Gas Networks (NSW) Ltd
B3: =IF(SUM(dms_SingleYear_Model)>0,CONCATENATE(CRY),CONCATENATE(FRCP_y1," to ",dms_MultiYear_FinalYear_Result)) -> 2020-21 to 2024-25
B4: E17. STEP CHANGES
B6: E17.1 - STEP CHANGES FOR REFERENCE SERVICES
B7: E17.1.1 - FORECAST OPEX
D8: EXPENDITURE
D9: =CONCATENATE("$0's, real ",dms_DollarReal) -> $0's, real June 2020
B10: Step change | C10: Description | D10: =CRCP_y4 -> 2018-19 | E10: =CRCP_y5 -> 2019-20 | F10: =FRCP_y1 -> 2020-21 | G10: =FRCP_y2 -> 2021-22 | H10: =FRCP_y3 -> 2022-23 | I10: =FRCP_y4 -> 2023-24 | J10: =FRCP_y5 -> 2024-25
B11: Expensing of corporate overheads | C11: Negative adjustment to account for capitalised corporate overheads in the first half of 2020-21 | D11: 0 | E11: 0 | F11: -8419058.344 | G11: 0 | H11: 0 | I11: 0 | J11: 0
B12: Pigging and inspection costs | C12: Pigging and inspection costs to be expensed from 2020-21 onwards | D12: 0 | E12: 0 | F12: 0 | G12: 0 | H12: 3319065.439 | I12: 1296801.138 | J12: 3085514.03
B21: Total | D21: =SUM(D11:D20) -> 0 | E21: 0 | F21: -8419058.344 | G21: 0 | H21: 3319065.439 | I21: 1296801.138 | J21: 3085514.03
B23: E17.1.2 - FORECAST CAPEX
D24: EXPENDITURE
D25: =CONCATENATE("$0's, real ", dms_DollarReal) -> $0's, real June 2020
B26: Step change | C26: Description | D26: =CRCP_y4 -> 2018-19 | E26: =CRCP_y5 -> 2019-20 | F26: =FRCP_y1 -> 2020-21 | G26: =FRCP_y2 -> 2021-22 | H26: =FRCP_y3 -> 2022-23 | I26: =FRCP_y4 -> 2023-24 | J26: =FRCP_y5 -> 2024-25
B27: None to report
B37: Total | D37: =SUM(D27:D36) -> 0 | E37: 0 | F37: 0 | G37: 0 | H37: 0 | I37: 0 | J37: 0
B41: E17.2 - CATEGORY SPECIFIC FORECASTS
D42: EXPENDITURE
D43: =CONCATENATE("$0's, real ",dms_DollarReal) -> $0's, real June 2020
B44: Category desription | D44: =CRCP_y4 -> 2018-19 | E44: =CRCP_y5 -> 2019-20 | F44: =FRCP_y1 -> 2020-21 | G44: =FRCP_y2 -> 2021-22 | H44: =FRCP_y3 -> 2022-23 | I44: =FRCP_y4 -> 2023-24 | J44: =FRCP_y5 -> 2024-25
B45: Total UAG (tariff and demand market) | D45: 24066133.99 | E45: 24108825.01 | F45: 31201028.82 | G45: 31630239.98 | H45: 31739908.6 | I45: 31564196.43 | J45: 31393628.15
B46: Total Government levies (Mains tax and licence fees) | D46: 4833680.891 | E46: 4842255.38 | F46: 4833680.891 | G46: 4833680.891 | H46: 4833680.891 | I46: 4833680.891 | J46: 4833680.891
B70: Total | D70: =SUM(D45:D69) -> 28899814.88 | E70: 28951080.39 | F70: 36034709.72 | G70: 36463920.87 | H70: 36573589.49 | I70: 36397877.32 | J70: 36227309.04

Sheet E20. Opex
B1: =IF(dms_MultiYear_ResponseFlag="Yes","REGULATORY REPORTING STATEMENT - HISTORICAL INFORMATION",INDEX(dms_Worksheet_List,MATCH(dms_Model,dms_Model_List))) -> REGULATORY REPORTING STATEMENT
B2: =INDEX(dms_TradingNameFull_List,MATCH(dms_TradingName,dms_TradingName_List)) -> Jemena Gas Networks (NSW) Ltd
B3: =IF(SUM(dms_SingleYear_Model)>0,CONCATENATE(CRY),CONCATENATE(FRCP_y1," to ",dms_MultiYear_FinalYear_Result)) -> 2020-21 to 2024-25
B4: E20. OPERATING EXPENDITURE
B6: Instructions
B7: This template asks for information relating to a base-step-trend approach to forecasting operating expenditure. Step changes should be EXCLUSIVE of base level opex | F7: IMPORTANT!
F8: =CONCATENATE("Has ",dms_TradingName," used a base-step-trend model to derive its opex forecast? ") -> Has JGN used a base-step-trend model to derive its opex forecast? | H8: Yes
F9: Yes / No
F10: Please nominate the base year. | H10: 2018-19
E11: 2015-16 | F11: 2016-17 | G11: 2017-18 | H11: 2018-19 | I11: 2019-20
B12: E20.1 - OPEX BY DRIVER
B13: E20.1.1 - REFERENCE SERVICES
C14: EXPENDITURE
C15: =CONCATENATE("$0's, real ",dms_DollarReal) -> $0's, real June 2020
C16: =CRCP_y1 -> 2015-16 | D16: =CRCP_y2 -> 2016-17 | E16: =CRCP_y3 -> 2017-18 | F16: =CRCP_y4 -> 2018-19 | G16: =CRCP_y5 -> 2019-20 | H16: =FRCP_y1 -> 2020-21 | I16: =FRCP_y2 -> 2021-22 | J16: =FRCP_y3 -> 2022-23 | K16: =FRCP_y4 -> 2023-24 | L16: =FRCP_y5 -> 2024-25
B17: Base year total opex, excluding category specific | D17: 188718522 | E17: 183196853.8 | F17: 148352850.5 | G17: 148301585 | H17: 164326657.8 | I17: 164326657.8 | J17: 164326657.8 | K17: 164326657.8 | L17: 164326657.8
B18: Increment from base year to final year | G18: -813043.8652
B19: Price growth | H19: 719390.3005 | I19: 1753246.232 | J19: 2940369.941 | K19: 4094681.706 | L19: 5157641.394
B20: Output growth | H20: 2776416.948 | I20: 5269357.542 | J20: 7694926.763 | K20: 10168210.52 | L20: 12764663.94
B21: Productivity growth | H21: -1233495.118 | I21: -2509577.43 | J21: -3829624.922 | K21: -5192928.774 | L21: -6599914.943
B22: Step changes | H22: -8419058.344 | I22: 0 | J22: 3319065.439 | K22: 1296801.138 | L22: 3085514.03
B23: Category specific | F23: =IF(ISBLANK('E17. Step changes'!D70),"",'E17. Step changes'!D70) -> 28899814.88 | G23: =IF(ISBLANK('E17. Step changes'!E70),"",'E17. Step changes'!E70) -> 28951080.39 | H23: =IF(ISBLANK('E17. Step changes'!F70),"",'E17. Step changes'!F70) -> 36034709.72 | I23: =IF(ISBLANK('E17. Step changes'!G70),"",'E17. Step changes'!G70) -> 36463920.87 | J23: =IF(ISBLANK('E17. Step changes'!H70),"",'E17. Step changes'!H70) -> 36573589.49 | K23: =IF(ISBLANK('E17. Step changes'!I70),"",'E17. Step changes'!I70) -> 36397877.32 | L23: =IF(ISBLANK('E17. Step changes'!J70),"",'E17. Step changes'!J70) -> 36227309.04
B25: E20.1.2 - NON-REFERENCE SERVICES
C26: EXPENDITURE
C27: =CONCATENATE("$0's, real ",dms_DollarReal) -> $0's, real June 2020
C28: =CRCP_y1 -> 2015-16 | D28: =CRCP_y2 -> 2016-17 | E28: =CRCP_y3 -> 2017-18 | F28: =CRCP_y4 -> 2018-19 | G28: =CRCP_y5 -> 2019-20 | H28: =FRCP_y1 -> 2020-21 | I28: =FRCP_y2 -> 2021-22 | J28: =FRCP_y3 -> 2022-23 | K28: =FRCP_y4 -> 2023-24 | L28: =FRCP_y5 -> 2024-25
B29: Base year total opex, excluding category specific | D29: 148352850.5 | E29: 148352850.5 | F29: 148352850.5 | G29: 111347.4083 | H29: 111347.4083 | I29: 111347.4083 | J29: 111347.4083 | K29: 111347.4083 | L29: 111347.4083
B30: Increment from base year to final year
B31: Price growth
B32: Output growth
B33: Productivity growth
B34: Step changes
B35: Category specific
B39: E20.2 - OPEX BY CATEGORY
B40: E20.2.1 - REFERENCE SERVICES
C41: EXPENDITURE
C42: =CONCATENATE("$0's, real ",dms_DollarReal) -> $0's, real June 2020
C43: =CRCP_y1 -> 2015-16 | D43: =CRCP_y2 -> 2016-17 | E43: =CRCP_y3 -> 2017-18 | F43: =CRCP_y4 -> 2018-19 | G43: =CRCP_y5 -> 2019-20 | H43: =FRCP_y1 -> 2020-21 | I43: =FRCP_y2 -> 2021-22 | J43: =FRCP_y3 -> 2022-23 | K43: =FRCP_y4 -> 2023-24 | L43: =FRCP_y5 -> 2024-25
B44: A. OPERATING EXPENDITURE
B45: Maintenance | F45: 33302840.76 | G45: 33108817.14 | H45: 33564631.67 | I45: 34018109.44 | J45: 34480035.57 | K45: 34936248.95 | L45: 35390071.79
B46: Emergency Response | F46: 4791973.697 | G46: 4764055.475 | H46: 4829643.011 | I46: 4894894.307 | J46: 4961361.246 | K46: 5027006.171 | L46: 5092307.121
B47: Management | F47: 5561770.8 | G47: 5529367.711 | H47: 5605491.426 | I47: 5681224.887 | J47: 5758369.276 | K47: 5834559.6 | L47: 5910350.691
B48: Network planning | F48: 8448441.479 | G48: 8399220.536 | H48: 8514853.987 | I48: 8629894.634 | J48: 8747078.509 | K48: 8862813.14 | L48: 8977941.33
B49: Network control and operational switching | F49: 7189035.524 | G49: 7147151.928 | H49: 7245547.944 | I49: 7343439.526 | J49: 7443154.846 | K49: 7541636.959 | L49: 7639603.033
B50: Project governance and related functions | F50: 992769.1043 | G50: 986985.1936 | H50: 1000573.181 | I50: 1014091.509 | J50: 1027861.685 | K50: 1041461.562 | L50: 1054990.177
B51: Quality and standard functions | F51: 3889895.05 | G51: 3867232.373 | H51: 3920473.197 | I51: 3973441.078 | J51: 4027395.761 | K51: 4080683.171 | L51: 4133691.359
B52: Other network overheads | F52: 20818277.59 | G52: 20696989.51 | H52: 20981928.37 | I52: 21265406.46 | J52: 21554165.81 | K52: 21839354 | L52: 22123047.81
B53: Information technology | F53: 7527576.25 | G53: 7483720.303 | H53: 7586749.911 | I53: 7689251.331 | J53: 7793662.37 | K53: 7896782.131 | L53: 7999361.55
B54: Corporate overheads | F54: 23475181.31 | G54: 23338414.01 | H54: 40378139.21 | I54: 40923671.44 | J54: 41479367.03 | K54: 42028190.19 | L54: 42574137.55
B55: Pigging/integrity digs, adhoc, mains renewal | F55: 0 | G55: 0 | H55: 0 | I55: 0 | J55: 0 | K55: 0 | L55: 0
B56: Step changes | F56: 0 | G56: 0 | H56: -8419058.344 | I56: 0 | J56: 3319065.439 | K56: 1296801.138 | L56: 3085514.03
B57: Transformation cost | F57: 13052416.14 | G57: 0 | H57: 0 | I57: 0 | J57: 0 | K57: 0 | L57: 0
F58: 0 | G58: 0 | H58: 0 | I58: 0 | J58: 0 | K58: 0 | L58: 0
F59: 0 | G59: 0 | H59: 0 | I59: 0 | J59: 0 | K59: 0 | L59: 0
B60: Total | F60: =SUM(F45:F59) -> 129050177.7 | G60: =SUM(G45:G59) -> 115321954.2 | H60: 125208973.6 | I60: 135433424.6 | J60: 140591517.5 | K60: 140385537 | L60: 143981016.4
B61: B. NON- OPERATING EXPENDITURE
B62: Administration and overheads | F62: 0 | G62: 0 | H62: 0 | I62: 0 | J62: 0 | K62: 0 | L62: 0
B63: Corporate overheads | F63: 493570.7252 | G63: 490695.1632 | H63: 848959.0425 | I63: 860428.9746 | J63: 872112.5937 | K63: 883651.7184 | L63: 895130.3788
B64: Management administration and overheads | F64: 8684459.02 | G64: 8633863.03 | H64: 8752726.843 | I64: 8870981.291 | J64: 8991438.842 | K64: 9110406.661 | L64: 9228751.097
B65: Other direct expenditure | F65: 6937700.914 | G65: 6897281.604 | H65: 6992237.614 | I65: 7086706.825 | J65: 7182936.016 | K65: 7277975.113 | L65: 7372516.213
B66: Government levies | F66: 4833680.891 | G66: 4842255.38 | H66: 4833680.891 | I66: 4833680.891 | J66: 4833680.891 | K66: 4833680.891 | L66: 4833680.891
B67: Marketing | F67: 4439513.253 | G67: 4413648.479 | H67: 4474411.904 | I67: 4534863.82 | J67: 4596441.967 | K67: 4657258.56 | L67: 4717756.479
B68: Unaccounted for gas expenditure | F68: 24066133.99 | G68: 24108825.01 | H68: 31201028.82 | I68: 31630239.98 | J68: 31739908.6 | K68: 31564196.43 | L68: 31393628.15
B69: Carbon costs | F69: 0 | G69: 0 | H69: 0 | I69: 0 | J69: 0 | K69: 0 | L69: 0
B70: Self insurance | F70: 0 | G70: 0 | H70: 0 | I70: 0 | J70: 0 | K70: 0 | L70: 0
B71: Debt raising costs | F71: 0 | G71: 0 | H71: 1820538.4 | I71: 1847247.287 | J71: 1864069.514 | K71: 1868403.223 | L71: 1865877.48
B72: Step changes | F72: 0 | G72: 0 | H72: 0 | I72: 0 | J72: 0 | K72: 0 | L72: 0
F73: 0 | G73: 0 | H73: 0 | I73: 0 | J73: 0 | K73: 0 | L73: 0
F74: 0 | G74: 0 | H74: 0 | I74: 0 | J74: 0 | K74: 0 | L74: 0
F75: 0 | G75: 0 | H75: 0 | I75: 0 | J75: 0 | K75: 0 | L75: 0
B76: Total | F76: =SUM(F62:F75) -> 49455058.79 | G76: =SUM(G62:G75) -> 49386568.67 | H76: 58923583.52 | I76: 59664149.07 | J76: 60080588.43 | K76: 60195572.59 | L76: 60307340.69
B77: C. ANCILLARY REFERENCE SERVICES
B78: Request for service | F78: 11684.98046 | G78: 11804.26252 | H78: 15009.01306 | I78: 15576.97932 | J78: 15538.50095 | K78: 15500.43533 | L78: 15454.34044
B79: Temporary disconnection | F79: 2937066.1 | G79: 3013769.264 | H79: 3729396.753 | I79: 3930331.621 | J79: 3977163.458 | K79: 4023636.943 | L79: 4070019.435
B80: Permanent disconnection | F80: 0 | G80: 0 | H80: 0 | I80: 0 | J80: 0 | K80: 0 | L80: 0
B81: De-commissioning and meter removal | F81: 3365079.09 | G81: 3076239.875 | H81: 2904257.305 | I81: 2586179.373 | J81: 2642188.234 | K81: 2696994.038 | L81: 2751348.067
B82: Special meter reads | F82: 5486014.874 | G82: 5629285.295 | H82: 4441920.449 | I82: 4681245.134 | J82: 4737024.474 | K82: 4792376.999 | L82: 4847621.146
B83: Hourly charge non-standard requests | F83: 0 | G83: 0 | H83: 0 | I83: 0 | J83: 0 | K83: 0 | L83: 0
B84: Disconnection Wasted Truck Visit (NEW) | F84: 0 | G84: 0 | H84: 110271.3935 | I84: 116212.6675 | J84: 117597.3987 | K84: 118971.5341 | L84: 120342.9789
B85: Special Meter Read Wasted Truck Vist (NEW | F85: 0 | G85: 0 | H85: 362178.3647 | I85: 381692.0467 | J85: 386240.0953 | K85: 390753.3429 | L85: 395257.7538
B86: Out of hours reconnection (NEW) | F86: 0 | G86: 0 | H86: 329569.3842 | I86: 342040.8432 | J86: 341195.9314 | K86: 340360.0828 | L86: 339347.9267
B87: Total | F87: =SUM(F78:F86) -> 11799845.04 | G87: 11731098.7 | H87: 11892602.66 | I87: 12053278.67 | J87: 12216948.09 | K87: 12378593.38 | L87: 12539391.65
B88: TOTAL | F88: =SUM(F87,F76,F60) -> 190305081.6 | G88: 176439621.5 | H88: 196025159.7 | I88: 207150852.3 | J88: 212889054.1 | K88: 212959703 | L88: 216827748.8
B90: E20.2.2 - NON-REFERENCE SERVICES
C91: EXPENDITURE
C92: =CONCATENATE("$0's, real ",dms_DollarReal) -> $0's, real June 2020
C93: =CRCP_y1 -> 2015-16 | D93: =CRCP_y2 -> 2016-17 | E93: =CRCP_y3 -> 2017-18 | F93: =CRCP_y4 -> 2018-19 | G93: =CRCP_y5 -> 2019-20 | H93: =FRCP_y1 -> 2020-21 | I93: =FRCP_y2 -> 2021-22 | J93: =FRCP_y3 -> 2022-23 | K93: =FRCP_y4 -> 2023-24 | L93: =FRCP_y5 -> 2024-25
B94: Maintenance | F94: 111347.4083 | G94: 111347.4083 | H94: 111347.4083 | I94: 111347.4083 | J94: 111347.4083 | K94: 111347.4083 | L94: 111347.4083
B119: Total | F119: =SUM(F94:F118) -> 111347.4083 | G119: =SUM(G94:G118) -> 111347.4083 | H119: 111347.4083 | I119: 111347.4083 | J119: 111347.4083 | K119: 111347.4083 | L119: 111347.4083
B123: 20.3 - OPEX BY CATEGORY - RELATED PARTY MARGIN EXPENDITURE
B124: 20.3.1 - REFERENCE SERVICES
C125: EXPENDITURE
C126: =CONCATENATE("$0's, real ",dms_DollarReal) -> $0's, real June 2020
C127: =CRCP_y1 -> 2015-16 | D127: =CRCP_y2 -> 2016-17 | E127: =CRCP_y3 -> 2017-18 | F127: =CRCP_y4 -> 2018-19 | G127: =CRCP_y5 -> 2019-20 | H127: =FRCP_y1 -> 2020-21 | I127: =FRCP_y2 -> 2021-22 | J127: =FRCP_y3 -> 2022-23 | K127: =FRCP_y4 -> 2023-24 | L127: =FRCP_y5 -> 2024-25
B128: A. OPERATING EXPENDITURE
B129: Maintenance
B130: Emergency Response
B131: Management
B132: Network planning
B133: Network control and operational switching
B134: Project governance and related functions
B135: Quality and standard functions
B136: Other network overheads
B137: Information technology
B138: Corporate overheads
B139: Pigging/integrity digs, adhoc, mains renewal
B140: Step changes
B141: =IF(ISBLANK(B57),"",B57) -> Transformation cost
B142: =IF(ISBLANK(B58),"",B58) -> 
B144: Total | F144: =SUM(F129:F143) -> 0 | G144: =SUM(G129:G143) -> 0 | H144: 0 | I144: 0 | J144: 0 | K144: 0 | L144: 0
B145: B. NON- OPERATING EXPENDITURE
B146: Administration and overheads
B147: Corporate overheads
B148: Management administration and overheads
B149: Other direct expenditure
B150: Government levies
B151: Marketing
B152: Unaccounted for gas expenditure
B153: Carbon costs
B154: Self insurance
B155: Debt raising costs
B156: Step changes
B157: =IF(ISBLANK(B73),"",B73) -> 
B158: =IF(ISBLANK(B74),"",B74) -> 
B160: Total | F160: =SUM(F146:F159) -> 0 | G160: =SUM(G146:G159) -> 0 | H160: 0 | I160: 0 | J160: 0 | K160: 0 | L160: 0
B161: C. ANCILLARY REFERENCE SERVICES
B162: Request for service
B163: Temporary disconnection
B164: Permanent disconnection
B165: De-commissioning and meter removal
B166: Special meter reads
B167: Hourly charge non-standard requests
B168: =IF(ISBLANK(B84),"",B84) -> Disconnection Wasted Truck Visit (NEW)
B169: =IF(ISBLANK(B85),"",B85) -> Special Meter Read Wasted Truck Vist (NEW
B170: Out of hours reconnection (NEW)
B171: Total | F171: =SUM(F162:F170) -> 0 | G171: =SUM(G162:G170) -> 0 | H171: 0 | I171: 0 | J171: 0 | K171: 0 | L171: 0
B172: TOTAL | F172: =SUM(F171,F160,F144) -> 0 | G172: =SUM(G171,G160,G144) -> 0 | H172: 0 | I172: 0 | J172: 0 | K172: 0 | L172: 0
B174: 20.3.2 - NON-REFERENCE SERVICES
C175: EXPENDITURE
C176: =CONCATENATE("$0's, real ",dms_DollarReal) -> $0's, real June 2020
C177: =CRCP_y1 -> 2015-16 | D177: =CRCP_y2 -> 2016-17 | E177: =CRCP_y3 -> 2017-18 | F177: =CRCP_y4 -> 2018-19 | G177: =CRCP_y5 -> 2019-20 | H177: =FRCP_y1 -> 2020-21 | I177: =FRCP_y2 -> 2021-22 | J177: =FRCP_y3 -> 2022-23 | K177: =FRCP_y4 -> 2023-24 | L177: =FRCP_y5 -> 2024-25
B178: =IF(ISBLANK(B94),"",B94) -> Maintenance
B179: =IF(ISBLANK(B95),"",B95) -> 
B203: Total | F203: =SUM(F178:F202) -> 0 | G203: =SUM(G178:G202) -> 0 | H203: =SUM(H178:H202) -> 0 | I203: =SUM(I178:I202) -> 0 | J203: =SUM(J178:J202) -> 0 | K203: =SUM(K178:K202) -> 0 | L203: =SUM(L178:L202) -> 0

Sheet E21. ARS
B1: =IF(dms_MultiYear_ResponseFlag="Yes","REGULATORY REPORTING STATEMENT - HISTORICAL INFORMATION",INDEX(dms_Worksheet_List,MATCH(dms_Model,dms_Model_List))) -> REGULATORY REPORTING STATEMENT
B2: =INDEX(dms_TradingNameFull_List,MATCH(dms_TradingName,dms_TradingName_List)) -> Jemena Gas Networks (NSW) Ltd
B3: =IF(SUM(dms_SingleYear_Model)>0,CONCATENATE(CRY),CONCATENATE(FRCP_y1," to ",dms_MultiYear_FinalYear_Result)) -> 2020-21 to 2024-25
B4: E21. ANCILLARY REFERENCE SERVICES
B6: E21.1 - VOLUMES
C7: VOLUME
C8: 0's
C9: =CRCP_y4 -> 2018-19 | D9: =CRCP_y5 -> 2019-20 | E9: =FRCP_y1 -> 2020-21 | F9: =FRCP_y2 -> 2021-22 | G9: =FRCP_y3 -> 2022-23 | H9: =FRCP_y4 -> 2023-24 | I9: =FRCP_y5 -> 2024-25
B10: Request for service | C10: 97.33333333 | D10: 97.33333333 | E10: 97.33333333 | F10: 97.33333333 | G10: 97.33333333 | H10: 97.33333333 | I10: 97.33333333
B11: Temporary Disconnection | C11: 21246.02412 | D11: 21580.57837 | E11: 20331.43781 | F11: 20645.60394 | G11: 20943.34087 | H11: 21240.09873 | I11: 21549.02613
B12: Permanent Disconnection
B13: Decommissioning & meter removal | C13: 3464.467808 | D13: 3133.548636 | E13: 2758.333502 | F13: 2364.152391 | G13: 2421.764275 | H13: 2478.482176 | I13: 2536.386481
B14: Special Meter Reading | C14: 407570.5568 | D14: 413988.4383 | E14: 390025.7001 | F14: 396052.4684 | G14: 401764.0691 | H14: 407456.8878 | I14: 413383.1595
B15: Hourly charge non-standard requests
B16: Total | C16: =SUM(C10:C15) -> 432378.3821 | D16: =SUM(D10:D15) -> 438799.8986 | E16: =SUM(E10:E15) -> 413212.8048 | F16: 419159.5581 | G16: 425226.5076 | H16: 431272.802 | I16: 437565.9055
B18: E21.2 - REVENUE
C19: REVENUE
C20: =CONCATENATE("$0's, real ",dms_DollarReal) -> $0's, real June 2020
C21: =CRCP_y4 -> 2018-19 | D21: =CRCP_y5 -> 2019-20 | E21: =FRCP_y1 -> 2020-21 | F21: =FRCP_y2 -> 2021-22 | G21: =FRCP_y3 -> 2022-23 | H21: =FRCP_y4 -> 2023-24 | I21: =FRCP_y5 -> 2024-25
B22: Request for service | C22: 12848 | D22: 12848 | E22: 14892 | F22: 14490.45672 | G22: 14099.74052 | H22: 14926.13752 | I22: 15800.9703
B23: Temporary Disconnection | C23: 3229395.666 | D23: 3280247.913 | E23: 3700321.682 | F23: 3656183.852 | G23: 3608904.936 | H23: 3874559.46 | I23: 4161307.075
B24: Permanent Disconnection
B25: Decommissioning & meter removal | C25: 3700009.28 | D25: 3348242.2 | E25: 2881615.175 | F25: 2405788.665 | G25: 2397539.418 | H25: 2597069.247 | I25: 2813058.846
B26: Special Meter Reading | C26: 6032044.241 | D26: 6127028.887 | E26: 4407290.412 | F26: 4354719.783 | G26: 4298407.946 | H26: 4614817.366 | I26: 4956349.839
B27: Hourly charge non-standard requests
B28: Total | C28: =SUM(C22:C27) -> 12974297.19 | D28: 12768367 | E28: 11004119.27 | F28: 10431182.76 | G28: 10318952.04 | H28: 11101372.21 | I28: 11946516.73
B30: E21.3 - EXPENDITURE
C31: EXPENDITURE
C32: =CONCATENATE("$0's, real ",dms_DollarReal) -> $0's, real June 2020
C33: =CRCP_y4 -> 2018-19 | D33: =CRCP_y5 -> 2019-20 | E33: =FRCP_y1 -> 2020-21 | F33: =FRCP_y2 -> 2021-22 | G33: =FRCP_y3 -> 2022-23 | H33: =FRCP_y4 -> 2023-24 | I33: =FRCP_y5 -> 2024-25
B34: Request for service | C34: 11684.98046 | D34: 11804.26252 | E34: 15009.01306 | F34: 15576.97932 | G34: 15538.50095 | H34: 15500.43533 | I34: 15454.34044
B35: Temporary Disconnection | C35: 2937066.1 | D35: 3013769.264 | E35: 3729396.753 | F35: 3930331.621 | G35: 3977163.458 | H35: 4023636.943 | I35: 4070019.435
B36: Permanent Disconnection
B37: Decommissioning & meter removal | C37: 3365079.09 | D37: 3076239.875 | E37: 2904257.305 | F37: 2586179.373 | G37: 2642188.234 | H37: 2696994.038 | I37: 2751348.067
B38: Special Meter Reading | C38: 5486014.874 | D38: 5629285.295 | E38: 4441920.449 | F38: 4681245.134 | G38: 4737024.474 | H38: 4792376.999 | I38: 4847621.146
B39: Hourly charge non-standard requests
B40: Total | C40: =SUM(C34:C39) -> 11799845.04 | D40: 11731098.7 | E40: 11090583.52 | F40: 11213333.11 | G40: 11371914.67 | H40: 11528508.42 | I40: 11684442.99
B42: E21.4 - PRICE
C43: PRICE
C44: =CONCATENATE("$0's, real ",dms_DollarReal) -> $0's, real June 2020
C45: =CRCP_y4 -> 2018-19 | D45: =CRCP_y5 -> 2019-20 | E45: =FRCP_y1 -> 2020-21 | F45: =FRCP_y2 -> 2021-22 | G45: =FRCP_y3 -> 2022-23 | H45: =FRCP_y4 -> 2023-24 | I45: =FRCP_y5 -> 2024-25
B46: Request for service | C46: =C34/C10 -> 120.0511691 | D46: =D34/D10 -> 121.2766698 | E46: 154.2021889 | F46: 160.0374587 | G46: 159.642133 | H46: 159.2510479 | I46: 158.7774703
B47: Temporary Disconnection | C47: 138.2407402 | D47: 139.6519228 | E47: 183.4300548 | F47: 190.3713561 | G47: 189.9010994 | H47: 189.435887 | I47: 188.8725463
B48: Permanent Disconnection
B49: Decommissioning & meter removal | C49: 971.311981 | D49: 981.7112268 | E49: 1052.902886 | F49: 1093.913989 | G49: 1091.017925 | H49: 1088.16358 | I49: 1084.751116
B50: Special Meter Reading | C50: 13.4602826 | D50: 13.59768722 | E50: 11.38878912 | F50: 11.81976002 | G50: 11.79056277 | H50: 11.7616787 | I50: 11.72670205
B51: Hourly charge non-standard requests

Sheet E21. ARS (NEW)
B1: REGULATORY REPORTING STATEMENT
B2: Jemena Gas Networks (NSW) Ltd
B3: 2020-21 to 2024-25
B4: E21. ANCILLARY REFERENCE SERVICES (WITH NEW SERVICES)
B5: This sheet has been included as E21. ARS does not include all services included in the AA Proposal.
B6: E21.1 - VOLUMES | J6: MAPPING for E21. ARS
C7: VOLUME
C8: 0's
C9: =CRCP_y4 -> 2018-19 | D9: =CRCP_y5 -> 2019-20 | E9: =FRCP_y1 -> 2020-21 | F9: =FRCP_y2 -> 2021-22 | G9: =FRCP_y3 -> 2022-23 | H9: =FRCP_y4 -> 2023-24 | I9: =FRCP_y5 -> 2024-25
B10: Hourly charge - non-standard User - initiated requests and queries | C10: 97.33333333 | D10: 97.33333333 | E10: 97.33333333 | F10: 97.33333333 | G10: 97.33333333 | H10: 97.33333333 | I10: 97.33333333 | J10: Request for service
B11: Disconnection & Reconnection – Volume Customer Delivery Points | C11: 21246.02412 | D11: 21580.57837 | E11: 20331.43781 | F11: 20645.60394 | G11: 20943.34087 | H11: 21240.09873 | I11: 21549.02613 | J11: Temporary Disconnection
B12: Disconnection Wasted Truck Visit (NEW) | C12: 0 | D12: 0 | E12: 1657.752989 | F12: 1683.368975 | G12: 1707.645384 | H12: 1731.841961 | I12: 1757.030801 | J12: NEW Service not on E21.ARS
B13: Abolishment | C13: 3449.467808 | D13: 3118.548636 | E13: 2743.333502 | F13: 2349.152391 | G13: 2406.764275 | H13: 2463.482176 | I13: 2521.386481 | J13: Decommissioning & meter removal
B14: Abolishment large | C14: 15 | D14: 15 | E14: 15 | F14: 15 | G14: 15 | H14: 15 | I14: 15 | J14: Decommissioning & meter removal
B15: Special Meter Reads | C15: 407570.5568 | D15: 413988.4383 | E15: 390025.7001 | F15: 396052.4684 | G15: 401764.0691 | H15: 407456.8878 | I15: 413383.1595 | J15: Special Meter Reads
B16: Special Meter Read Wasted Truck Vist (NEW) | C16: 0 | D16: 0 | E16: 31801.30574 | F16: 32292.70695 | G16: 32758.41052 | H16: 33222.58267 | I16: 33705.78975 | J16: NEW Service not on E21.ARS
B17: Out of hours reconnection (NEW) | C17: 0 | D17: 0 | E17: 2180 | F17: 2180 | G17: 2180 | H17: 2180 | I17: 2180 | J17: NEW Service not on E21.ARS
B18: Total | C18: =SUM(C10:C17) -> 432378.3821 | D18: =SUM(D10:D17) -> 438799.8986 | E18: 448851.8635 | F18: 455315.634 | G18: 461872.5635 | H18: 468407.2267 | I18: 475208.726
C19: ='E21. ARS'!C17 -> 0
B20: E21.2 - REVENUE | J20: MAPPING for E21. ARS
C21: REVENUE
C22: $0's, real June 2020
C23: =CRCP_y4 -> 2018-19 | D23: =CRCP_y5 -> 2019-20 | E23: =FRCP_y1 -> 2020-21 | F23: =FRCP_y2 -> 2021-22 | G23: =FRCP_y3 -> 2022-23 | H23: =FRCP_y4 -> 2023-24 | I23: =FRCP_y5 -> 2024-25
B24: Hourly charge - non-standard User - initiated requests and queries | C24: 12848 | D24: 12848 | E24: 14892 | F24: 14490.45672 | G24: 14099.74052 | H24: 14926.13752 | I24: 15800.9703 | J24: Request for service
B25: Disconnection & Reconnection – Volume Customer Delivery Points | C25: 3229395.666 | D25: 3280247.913 | E25: 3700321.682 | F25: 3656183.852 | G25: 3608904.936 | H25: 3874559.46 | I25: 4161307.075 | J25: Temporary Disconnection
B26: Disconnection Wasted Truck Visit (NEW) | C26: 0 | D26: 0 | E26: 109411.6973 | F26: 108106.6229 | G26: 106708.6724 | H26: 114563.5875 | I26: 123042.1863 | J26: NEW Service not on E21.ARS
B27: Abolishment | C27: 3666784.28 | D27: 3315017.2 | E27: 2847580.175 | F27: 2372671.374 | G27: 2365315.091 | H27: 2562956.227 | I27: 2776946.435 | J27: Decommissioning & meter removal
B28: Abolishment large | C28: 33225 | D28: 33225 | E28: 34035 | F28: 33117.29079 | G28: 32224.3264 | H28: 34113.01977 | I28: 36112.41097 | J28: Decommissioning & meter removal
B29: Special Meter Reads | C29: 6032044.241 | D29: 6127028.887 | E29: 4407290.412 | F29: 4354719.783 | G29: 4298407.946 | H29: 4614817.366 | I29: 4956349.839 | J29: Special Meter Reads
B30: Special Meter Read Wasted Truck Vist (NEW) | C30: 0 | D30: 0 | E30: 359354.7549 | F30: 355068.3332 | G30: 350476.8666 | H30: 376275.7632 | I30: 404123.104 | J30: NEW Service not on E21.ARS
B31: Out of hours reconnection (NEW) | C31: 0 | D31: 0 | E31: 327000 | F31: 318182.8731 | G31: 309603.4885 | H31: 327749.595 | I31: 346959.2592 | J31: NEW Service not on E21.ARS
B32: Total | C32: =SUM(C24:C31) -> 12974297.19 | D32: =SUM(D24:D31) -> 12768367 | E32: 11799885.72 | F32: 11212540.59 | G32: 11085741.07 | H32: 11919961.16 | I32: 12820641.28
B34: E21.3 - EXPENDITURE | J34: MAPPING for E21. ARS
C35: EXPENDITURE
C36: $0's, real June 2020
C37: =CRCP_y4 -> 2018-19 | D37: =CRCP_y5 -> 2019-20 | E37: =FRCP_y1 -> 2020-21 | F37: =FRCP_y2 -> 2021-22 | G37: =FRCP_y3 -> 2022-23 | H37: =FRCP_y4 -> 2023-24 | I37: =FRCP_y5 -> 2024-25
B38: Hourly charge - non-standard User - initiated requests and queries | C38: 11684.98046 | D38: 11804.26252 | E38: 15009.01306 | F38: 15576.97932 | G38: 15538.50095 | H38: 15500.43533 | I38: 15454.34044 | J38: Request for service
B39: Disconnection & Reconnection – Volume Customer Delivery Points | C39: 2937066.1 | D39: 3013769.264 | E39: 3729396.753 | F39: 3930331.621 | G39: 3977163.458 | H39: 4023636.943 | I39: 4070019.435 | J39: Temporary Disconnection
B40: Disconnection Wasted Truck Visit (NEW) | C40: 0 | D40: 0 | E40: 110271.3935 | F40: 116212.6675 | G40: 117597.3987 | H40: 118971.5341 | I40: 120342.9789 | J40: NEW Service not on E21.ARS
B41: Abolishment | C41: 3334861.665 | D41: 3045713.986 | E41: 2869954.876 | F41: 2550578.884 | G41: 2606675.685 | H41: 2661568.487 | I41: 2716027.863 | J41: Decommissioning & meter removal
B42: Abolishment large | C42: 30217.42496 | D42: 30525.88904 | E42: 34302.42811 | F42: 35600.4896 | G42: 35512.54901 | H42: 35425.55173 | I42: 35320.20393 | J42: Decommissioning & meter removal
B43: Special Meter Reads | C43: 5486014.874 | D43: 5629285.295 | E43: 4441920.449 | F43: 4681245.134 | G43: 4737024.474 | H43: 4792376.999 | I43: 4847621.146 | J43: Special Meter Reads
B44: Special Meter Read Wasted Truck Vist (NEW) | C44: 0 | D44: 0 | E44: 362178.3647 | F44: 381692.0467 | G44: 386240.0953 | H44: 390753.3429 | I44: 395257.7538 | J44: NEW Service not on E21.ARS
B45: Out of hours reconnection (NEW) | C45: 0 | D45: 0 | E45: 329569.3842 | F45: 342040.8432 | G45: 341195.9314 | H45: 340360.0828 | I45: 339347.9267 | J45: NEW Service not on E21.ARS
B46: Total | C46: =SUM(C38:C45) -> 11799845.04 | D46: =SUM(D38:D45) -> 11731098.7 | E46: 11892602.66 | F46: 12053278.67 | G46: 12216948.09 | H46: 12378593.38 | I46: 12539391.65

Sheet E25. Escalators
B1: =IF(dms_MultiYear_ResponseFlag="Yes","REGULATORY REPORTING STATEMENT - HISTORICAL INFORMATION",INDEX(dms_Worksheet_List,MATCH(dms_Model,dms_Model_List))) -> REGULATORY REPORTING STATEMENT
B2: =INDEX(dms_TradingNameFull_List,MATCH(dms_TradingName,dms_TradingName_List)) -> Jemena Gas Networks (NSW) Ltd
B3: =IF(SUM(dms_SingleYear_Model)>0,CONCATENATE(CRY),CONCATENATE(FRCP_y1," to ",dms_MultiYear_FinalYear_Result)) -> 2020-21 to 2024-25
B4: E25. ESCALATORS
B6: E25.1 - FORECAST CAPEX AND OPEX PRICE CHANGES
C7: Price changes (% YoY real)
C8: =CRCP_y4 -> 2018-19 | D8: =CRCP_y5 -> 2019-20 | E8: =FRCP_y1 -> 2020-21 | F8: =FRCP_y2 -> 2021-22 | G8: =FRCP_y3 -> 2022-23 | H8: =FRCP_y4 -> 2023-24 | I8: =FRCP_y5 -> 2024-25
B9: E25.1.1 - OPEX
B10: CPI | C10: 0.02 | D10: 0.0225 | E10: 0.02424874658 | F10: 0.02424874658 | G10: 0.02424874658 | H10: 0.02424874658 | I10: 0.02424874658
B11: Labour | E11: 0.007333009108 | F11: 0.01049253828 | G11: 0.01197304356 | H11: 0.01155948408 | I11: 0.01057171255
B16: E25.1.2 - CAPEX
B17: CPI | C17: 0.02 | D17: 0.0225 | E17: 0.02424874658 | F17: 0.02424874658 | G17: 0.02424874658 | H17: 0.02424874658 | I17: 0.02424874658
B18: Labour | C18: 0.007907423814 | D18: 0.008625604278 | E18: 0.007333009108 | F18: 0.01049253828 | G18: 0.01197304356 | H18: 0.01155948408 | I18: 0.01057171255

Sheet N1.1. Demand
B1: =IF(dms_MultiYear_ResponseFlag="Yes","REGULATORY REPORTING STATEMENT - HISTORICAL INFORMATION",INDEX(dms_Worksheet_List,MATCH(dms_Model,dms_Model_List))) -> REGULATORY REPORTING STATEMENT
B2: =INDEX(dms_TradingNameFull_List,MATCH(dms_TradingName,dms_TradingName_List)) -> Jemena Gas Networks (NSW) Ltd
B3: =IF(SUM(dms_SingleYear_Model)>0,CONCATENATE(CRY),CONCATENATE(FRCP_y1," to ",dms_MultiYear_FinalYear_Result)) -> 2020-21 to 2024-25
B4: N1. DEMAND
B7: N1.1 - DEMAND - BY CUSTOMER TYPE
C8: VOLUME
C9: GJ's
C10: =CRCP_y4 -> 2018-19 | D10: =CRCP_y5 -> 2019-20 | E10: =FRCP_y1 -> 2020-21 | F10: =FRCP_y2 -> 2021-22 | G10: =FRCP_y3 -> 2022-23 | H10: =FRCP_y4 -> 2023-24 | I10: =FRCP_y5 -> 2024-25
B11: Residential | C11: 26108821.54 | D11: 26199266.34 | E11: 26585541.35 | F11: 26886480.07 | G11: 27112545.04 | H11: 27332635.77 | I11: 27550787.72
B12: Commercial | C12: 13289514.19 | D12: 13039687.72 | E12: 13091660.2 | F12: 13175722.77 | G12: 13234527.19 | H12: 13256372.71 | I12: 13289423.67
B13: Industrial | C13: 47896975.46 | D13: 46563806.39 | E13: 45845197.38 | F13: 44898001 | G13: 43955208.22 | H13: 43018110.72 | I13: 42086221.56
B14: Total | C14: =SUM(C11:C13) -> 87295311.2 | D14: 85802760.45 | E14: 85522398.93 | F14: 84960203.85 | G14: 84302280.45 | H14: 83607119.2 | I14: 82926432.94

Sheet N1.2. Demand
B1: =IF(dms_MultiYear_ResponseFlag="Yes","REGULATORY REPORTING STATEMENT - HISTORICAL INFORMATION",INDEX(dms_Worksheet_List,MATCH(dms_Model,dms_Model_List))) -> REGULATORY REPORTING STATEMENT
B2: =INDEX(dms_TradingNameFull_List,MATCH(dms_TradingName,dms_TradingName_List)) -> Jemena Gas Networks (NSW) Ltd
B3: =IF(SUM(dms_SingleYear_Model)>0,CONCATENATE(CRY),CONCATENATE(FRCP_y1," to ",dms_MultiYear_FinalYear_Result)) -> 2020-21 to 2024-25
B4: N1. DEMAND
B6: N1.2 - DEMAND - BY TARIFF
C7: VOLUME
C8: GJ's
B9: Tariff | C9: =CRCP_y4 -> 2018-19 | D9: =CRCP_y5 -> 2019-20 | E9: =FRCP_y1 -> 2020-21 | F9: =FRCP_y2 -> 2021-22 | G9: =FRCP_y3 -> 2022-23 | H9: =FRCP_y4 -> 2023-24 | I9: =FRCP_y5 -> 2024-25
B10: Volume - Individual metered (VI-Coastal) | C10: 35118341.82 | D10: 34925362.58 | E10: 35255353.27 | F10: 35540343.18 | G10: 35741637.84 | H10: 35905222.1 | I10: 36075883.33
B11: Volume - Individual metered (VI-Country) | C11: 4261375.039 | D11: 4235427.373 | E11: 4271623.55 | F11: 4301669.016 | G11: 4321456.984 | H11: 4337004.402 | I11: 4353267.623
B12: Volume - Boundary metered (VB-Coastal) | C12: 18618.87466 | D12: 78164.10535 | E12: 150224.726 | F12: 220190.6518 | G12: 283977.4009 | H12: 346781.9776 | I12: 411060.4347
B13: Volume - Boundary metered (VB-Country) | C13: 0 | D13: 0 | E13: 0 | F13: 0 | G13: 0 | H13: 0 | I13: 0
B14: Volume - Residential distributed generation technology (VRT3) | C14: 0 | D14: 0 | E14: 0 | F14: 0 | G14: 0 | H14: 0 | I14: 0
B15: Volume - Residential distributed generation technology (VRT4) | C15: 0 | D15: 0 | E15: 0 | F15: 0 | G15: 0 | H15: 0 | I15: 0
B16: Volume - Residential distributed generation technology (VRT6) | C16: 0 | D16: 0 | E16: 0 | F16: 0 | G16: 0 | H16: 0 | I16: 0
B17: Volume - Residential distributed generation technology (VRT10) | C17: 0 | D17: 0 | E17: 0 | F17: 0 | G17: 0 | H17: 0 | I17: 0
B18: Demand - Capacity country (DC Country) - Distance | C18: 0 | D18: 0 | E18: 0 | F18: 0 | G18: 0 | H18: 0 | I18: 0
B19: Demand - Capacity country (DC Country) - Pressure reduction | C19: 2672131.646 | D19: 2596198.799 | E19: 2543306.994 | F19: 2478104.553 | G19: 2413757.072 | H19: 2350252 | I19: 2287578.662
B20: Demand - Capacity coastal (DC1) | C20: 3113347.176 | D20: 3033175.52 | E20: 2978053.867 | F20: 2908320.098 | G20: 2839364.818 | H20: 2771175.528 | I20: 2703741.79
B21: Demand - Capacity coastal (DC2) | C21: 4110187.093 | D21: 3995571.65 | E21: 3918784.807 | F21: 3822879.122 | G21: 3728122.574 | H21: 3634497.108 | I21: 3541987.503
B22: Demand - Capacity coastal (DC3) | C22: 7533636.632 | D22: 7266209.885 | E22: 7148642.643 | F22: 6995501.27 | G22: 6843670.118 | H22: 6693119.364 | I22: 6543824.014
B23: Demand - Capacity coastal (DC4) | C23: 1438438.763 | D23: 1413562.322 | E23: 1399917.364 | F23: 1379301.726 | G23: 1358893.666 | H23: 1338680.723 | I23: 1318650.953
B24: Demand - Capacity coastal (DC5)
B25: Demand - Capacity coastal (DC6) | C25: 3555780.405 | D25: 3441693.425 | E25: 3386489.074 | F25: 3314274.116 | G25: 3242524.937 | H25: 3171232.746 | I25: 3100391.173
B26: Demand - Capacity coastal (DC7) | C26: 1297968.31 | D26: 1251857.109 | E26: 1230917.366 | F26: 1203834.398 | G26: 1176963.585 | H26: 1150301.252 | I26: 1123844.59
B27: Demand - Capacity coastal (DC8) | C27: 118985.7335 | D27: 115864.1341 | E27: 113748.2778 | F27: 111078.9078 | G27: 108443.6849 | H27: 105841.8996 | I27: 103272.9181
B28: Demand - Capacity coastal (DC9)
B29: Demand - Capacity coastal (DC10) | C29: 426860.806 | D29: 415563.6644 | E29: 407882.7433 | F29: 398219.0489 | G29: 388680.2848 | H29: 379263.9721 | I29: 369967.9056
B30: Demand - Capacity coastal (DC11) | C30: 0 | D30: 0 | E30: 0 | F30: 0 | G30: 0 | H30: 0 | I30: 0
B31: Demand - Throughput (DT) | C31: 382397.391 | D31: 371752.8093 | E31: 364392.9791 | F31: 355265.3041 | G31: 346255.1729 | H31: 337360.7561 | I31: 328580.4848
B32: Demand - Major end-user (throughput) (DMT1)
B33: Demand - Major end-user (throughput) (DMT2)
B34: Demand - Major end-user (throughput) (DMT3) | C34: 0 | D34: 0 | E34: 0 | F34: 0 | G34: 0 | H34: 0 | I34: 0
B35: Demand - Major end-user (throughput) (DMT4) | C35: 0 | D35: 0 | E35: 0 | F35: 0 | G35: 0 | H35: 0 | I35: 0
B36: Demand - Major end-user (throughput) (DMT5) | C36: 0 | D36: 0 | E36: 0 | F36: 0 | G36: 0 | H36: 0 | I36: 0
B37: Demand - First response (DCFR1)
B38: Demand - First response (DCFR6)
B39: Demand - First response (DMTFR3)
B40: Prudent Discount
C60: =SUM(C10:C59) -> 64048069.69 | D60: 63140403.38 | E60: 63169337.66 | F60: 63028981.39 | G60: 62793748.14 | H60: 62520733.83 | I60: 62262051.38

Sheet N2. Network characteristics
B1: =IF(dms_MultiYear_ResponseFlag="Yes","REGULATORY REPORTING STATEMENT - HISTORICAL INFORMATION",INDEX(dms_Worksheet_List,MATCH(dms_Model,dms_Model_List))) -> REGULATORY REPORTING STATEMENT
B2: =INDEX(dms_TradingNameFull_List,MATCH(dms_TradingName,dms_TradingName_List)) -> Jemena Gas Networks (NSW) Ltd
B3: =IF(SUM(dms_SingleYear_Model)>0,CONCATENATE(CRY),CONCATENATE(FRCP_y1," to ",dms_MultiYear_FinalYear_Result)) -> 2020-21 to 2024-25
B4: N2. NETWORK CHARACTERISTICS
B7: N2.1 - NETWORK LENGTH - BY PRESSURE AND ASSET TYPE
D8: VOLUMES
D9: KM
D10: =CRCP_y4 -> 2018-19 | E10: =CRCP_y5 -> 2019-20 | F10: =FRCP_y1 -> 2020-21 | G10: =FRCP_y2 -> 2021-22 | H10: =FRCP_y3 -> 2022-23 | I10: =FRCP_y4 -> 2023-24 | J10: =FRCP_y5 -> 2024-25
B11: N2.1.1 - LOW PRESSURE
C12: Cast Iron | D12: 37.790015 | E12: 37.790015 | F12: 37.790015 | G12: 37.790015 | H12: 37.790015 | I12: 37.790015 | J12: 37.790015
C13: PVC | D13: 0 | E13: 0 | F13: 0 | G13: 0 | H13: 0 | I13: 0 | J13: 0
C14: Polyamide | D14: 973.393916 | E14: 973.393916 | F14: 973.393916 | G14: 973.393916 | H14: 973.393916 | I14: 973.393916 | J14: 973.393916
C15: High density polyethylene (80) | D15: 30.509879 | E15: 30.509879 | F15: 30.509879 | G15: 30.509879 | H15: 30.509879 | I15: 30.509879 | J15: 30.509879
C16: High density polyethylene (100) | D16: 35.832621 | E16: 35.832621 | F16: 35.87673894 | G16: 35.982621 | H16: 35.982621 | I16: 35.982621 | J16: 35.982621
C17: High density polyethylene (250) | D17: 0 | E17: 0 | F17: 0 | G17: 0 | H17: 0 | I17: 0 | J17: 0
C18: High density polyethylene (575) | D18: 35.291347 | E18: 35.291347 | F18: 35.291347 | G18: 35.291347 | H18: 35.291347 | I18: 35.291347 | J18: 35.291347
C19: Medium density polyethylene | D19: 0 | E19: 0 | F19: 0 | G19: 0 | H19: 0 | I19: 0 | J19: 0
C20: Other polyethylene | D20: 0 | E20: 0 | F20: 0 | G20: 0 | H20: 0 | I20: 0 | J20: 0
C21: Unprotected steel | D21: 0 | E21: 0 | F21: 0 | G21: 0 | H21: 0 | I21: 0 | J21: 0
C22: Protected steel | D22: 7.065993 | E22: 7.285525962 | F22: 9.065993 | G22: 9.065993 | H22: 9.065993 | I22: 9.065993 | J22: 9.065993
C23: Other | D23: 0.257189 | E23: 0.257189 | F23: 0.257189 | G23: 0.257189 | H23: 0.257189 | I23: 0.257189 | J23: 0.257189
B24: N2.1.2 - MEDIUM PRESSURE
C25: Cast Iron | D25: 20.419773 | E25: 20.419773 | F25: 20.419773 | G25: 20.419773 | H25: 20.419773 | I25: 20.419773 | J25: 20.419773
C26: PVC | D26: 0 | E26: 0 | F26: 0 | G26: 0 | H26: 0 | I26: 0 | J26: 0
C27: Polyamide | D27: 18920.91546 | E27: 19140.36271 | F27: 19327.03362 | G27: 19502.75935 | H27: 19675.03956 | I27: 19851.36399 | J27: 20037.99922
C28: High density polyethylene (80) | D28: 642.659077 | E28: 642.659077 | F28: 642.659077 | G28: 642.659077 | H28: 642.659077 | I28: 642.659077 | J28: 642.659077
C29: High density polyethylene (100) | D29: 1884.696887 | E29: 2104.953417 | F29: 2292.104331 | G29: 2470.041591 | H29: 2646.084754 | I29: 2824.834694 | J29: 3011.469925
C30: High density polyethylene (250) | D30: 0 | E30: 0 | F30: 0 | G30: 0 | H30: 0 | I30: 0 | J30: 0
C31: High density polyethylene (575) | D31: 374.746314 | E31: 374.746314 | F31: 374.746314 | G31: 374.746314 | H31: 374.746314 | I31: 374.746314 | J31: 374.746314
C32: Medium density polyethylene | D32: 0 | E32: 0 | F32: 0 | G32: 0 | H32: 0 | I32: 0 | J32: 0
C33: Other polyethylene | D33: 0 | E33: 0 | F33: 0 | G33: 0 | H33: 0 | I33: 0 | J33: 0
C34: Unprotected steel | D34: 0 | E34: 0 | F34: 0 | G34: 0 | H34: 0 | I34: 0 | J34: 0
C35: Protected steel | D35: 363.8308641 | E35: 363.839207 | F35: 363.839207 | G35: 363.839207 | H35: 363.839207 | I35: 363.839207 | J35: 363.839207
C36: Other | D36: 1.112386 | E36: 1.112386 | F36: 1.112386 | G36: 1.112386 | H36: 1.112386 | I36: 1.112386 | J36: 1.112386
B37: N2.1.3 - HIGH PRESSURE
C38: Cast Iron | D38: 0 | E38: 0 | F38: 0 | G38: 0 | H38: 0 | I38: 0 | J38: 0
C39: PVC | D39: 0 | E39: 0 | F39: 0 | G39: 0 | H39: 0 | I39: 0 | J39: 0
C40: Polyamide | D40: 0 | E40: 0 | F40: 0 | G40: 0 | H40: 0 | I40: 0 | J40: 0
C41: High density polyethylene (80) | D41: 9.490011 | E41: 9.490011 | F41: 9.490011 | G41: 9.490011 | H41: 9.490011 | I41: 9.490011 | J41: 9.490011
C42: High density polyethylene (100) | D42: 0 | E42: 0 | F42: 0 | G42: 0 | H42: 0 | I42: 0 | J42: 0
C43: High density polyethylene (250) | D43: 0 | E43: 0 | F43: 0 | G43: 0 | H43: 0 | I43: 0 | J43: 0
C44: High density polyethylene (575) | D44: 0 | E44: 0 | F44: 0 | G44: 0 | H44: 0 | I44: 0 | J44: 0
C45: Medium density polyethylene | D45: 0 | E45: 0 | F45: 0 | G45: 0 | H45: 0 | I45: 0 | J45: 0
C46: Other polyethylene | D46: 0 | E46: 0 | F46: 0 | G46: 0 | H46: 0 | I46: 0 | J46: 0
C47: Unprotected steel | D47: 0 | E47: 0 | F47: 0 | G47: 0 | H47: 0 | I47: 0 | J47: 0
C48: Protected steel | D48: 1447.642845 | E48: 1458.795442 | F48: 1477.480851 | G48: 1491.047595 | H48: 1497.980575 | I48: 1504.575997 | J48: 1507.132234
C49: Other | D49: 0 | E49: 0 | F49: 0 | G49: 0 | H49: 0 | I49: 0 | J49: 0
B50: N2.1.4 - TRANSMISSION
C51: Protected steel | D51: 414.3035378 | E51: 414.3035378 | F51: 414.3035378 | G51: 414.3035378 | H51: 414.3035378 | I51: 414.3035378 | J51: 414.3035378
C52: Other | D52: 0 | E52: 0 | F52: 0 | G52: 0 | H52: 0 | I52: 0 | J52: 0
C53: Total | D53: =SUM(D12:D52) -> 25199.95812 | E53: 25651.04237 | F53: 26045.37419 | G53: 26412.7098 | H53: 26767.96615 | I53: 27129.63594 | J53: 27505.46264
B57: N2.2 - CITY GATES/REGULATORS
D58: VOLUMES
D59: 0's
D60: =CRCP_y4 -> 2018-19 | E60: =CRCP_y5 -> 2019-20 | F60: =FRCP_y1 -> 2020-21 | G60: =FRCP_y2 -> 2021-22 | H60: =FRCP_y3 -> 2022-23 | I60: =FRCP_y4 -> 2023-24 | J60: =FRCP_y5 -> 2024-25
C61: City Gate | D61: 75 | E61: 75 | F61: 75 | G61: 75 | H61: 75 | I61: 75 | J61: 75
C62: Field Regulator
C63: District Regulator | D63: 643 | E63: 644 | F63: 647 | G63: 649 | H63: 650 | I63: 652 | J63: 652
C64: Total | D64: =SUM(D61:D63) -> 718 | E64: =SUM(E61:E63) -> 719 | F64: =SUM(F61:F63) -> 722 | G64: =SUM(G61:G63) -> 724 | H64: 725 | I64: 727 | J64: 727
B67: N2.5 - NETWORK LENGTH - BY POST CODE
D68: VOLUMES
D69: Metres, 0's
B70: Post Code | C70: Asset Type (drop down) | D70: =CRCP_y4 -> 2018-19 | E70: =CRCP_y5 -> 2019-20 | F70: =FRCP_y1 -> 2020-21 | G70: =FRCP_y2 -> 2021-22 | H70: =FRCP_y3 -> 2022-23 | I70: =FRCP_y4 -> 2023-24 | J70: =FRCP_y5 -> 2024-25
B71: 2000 | C71: Cast Iron | D71: 242.309 | E71: 242.309 | F71: 242.309 | G71: 242.309 | H71: 242.309 | I71: 242.309 | J71: 242.309
B72: 2000 | C72: High density polyethylene (100) | D72: 3289.63728 | E72: 3665.839677 | F72: 3985.85301 | G72: 4287.102807 | H72: 4582.445899 | I72: 4884.72206 | J72: 5204.67422
B73: 2000 | C73: High density polyethylene (575) | D73: 179.234 | E73: 179.234 | F73: 179.234 | G73: 179.234 | H73: 179.234 | I73: 179.234 | J73: 179.234
B74: 2000 | C74: High density polyethylene (80) | D74: 1339.952 | E74: 1339.952 | F74: 1339.952 | G74: 1339.952 | H74: 1339.952 | I74: 1339.952 | J74: 1339.952
B75: 2000 | C75: Other | D75: 260.218 | E75: 260.218 | F75: 260.218 | G75: 260.218 | H75: 260.218 | I75: 260.218 | J75: 260.218
B76: 2000 | C76: Polyamide | D76: 58990.24281 | E76: 59640.94378 | F76: 60194.45697 | G76: 60715.51568 | H76: 61226.35781 | I76: 61749.19178 | J76: 62302.59916
B77: 2000 | C77: Protected Steel | D77: 18817.87414 | E77: 18927.49728 | F77: 19037.12043 | G77: 19063.58119 | H77: 19090.04194 | I77: 19116.5027 | J77: 19142.96346
B78: 2007 | C78: High density polyethylene (100) | D78: 170.7106435 | E78: 190.2330856 | F78: 206.839683 | G78: 222.4725758 | H78: 237.7989491 | I78: 253.4851034 | J78: 270.0885264
B79: 2007 | C79: High density polyethylene (80) | D79: 327.903 | E79: 327.903 | F79: 327.903 | G79: 327.903 | H79: 327.903 | I79: 327.903 | J79: 327.903
B80: 2007 | C80: Polyamide | D80: 9975.030732 | E80: 10085.06185 | F80: 10178.65887 | G80: 10266.76796 | H80: 10353.14947 | I80: 10441.55875 | J80: 10535.13788
B81: 2007 | C81: Protected Steel | D81: 2358.806177 | E81: 2372.547355 | F81: 2386.288532 | G81: 2389.605368 | H81: 2392.922204 | I81: 2396.23904 | J81: 2399.555876
B82: 2008 | C82: High density polyethylene (100) | D82: 627.9336282 | E82: 699.7440182 | F82: 760.8289088 | G82: 818.3321719 | H82: 874.7079494 | I82: 932.4071272 | J82: 993.480341
B83: 2008 | C83: High density polyethylene (575) | D83: 2.696 | E83: 2.696 | F83: 2.696 | G83: 2.696 | H83: 2.696 | I83: 2.696 | J83: 2.696
B84: 2008 | C84: Polyamide | D84: 14198.66739 | E84: 14355.28799 | F84: 14488.51594 | G84: 14613.93227 | H84: 14736.88951 | I84: 14862.73313 | J84: 14995.93562
B85: 2008 | C85: Protected Steel | D85: 3344.49026 | E85: 3363.97352 | F85: 3383.45678 | G85: 3388.159635 | H85: 3392.862491 | I85: 3397.565347 | J85: 3402.268203
B86: 2009 | C86: High density polyethylene (100) | D86: 32.2792586 | E86: 35.97070948 | F86: 39.11081043 | G86: 42.06679593 | H86: 44.96482243 | I86: 47.93087903 | J86: 51.07037973
B87: 2009 | C87: High density polyethylene (80) | D87: 116.933 | E87: 116.933 | F87: 116.933 | G87: 116.933 | H87: 116.933 | I87: 116.933 | J87: 116.933
B88: 2009 | C88: Polyamide | D88: 11682.99251 | E88: 11811.86356 | F88: 11921.48661 | G88: 12024.68206 | H88: 12125.85413 | I88: 12229.40118 | J88: 12339.00327
B89: 2009 | C89: Protected Steel | D89: 3500.370336 | E89: 3520.761672 | F89: 3541.153008 | G89: 3546.075055 | H89: 3550.997101 | I89: 3555.919148 | J89: 3560.841195
B90: 2010 | C90: High density polyethylene (100) | D90: 57.77314566 | E90: 64.38007343 | F90: 70.0001997 | G90: 75.2907977 | H90: 80.47766118 | I90: 85.78628434 | J90: 91.40533629
B91: 2010 | C91: Polyamide | D91: 53964.66246 | E91: 54559.92799 | F91: 55066.2855 | G91: 55542.95344 | H91: 56010.27519 | I91: 56488.56714 | J91: 56994.82786
B92: 2010 | C92: Protected Steel | D92: 6637.101298 | E92: 6675.765597 | F92: 6714.429895 | G92: 6723.762657 | H92: 6733.095418 | I92: 6742.42818 | J92: 6751.760942
B93: 2011 | C93: High density polyethylene (100) | D93: 154.8172989 | E93: 172.5221806 | F93: 187.582686 | G93: 201.7601396 | H93: 215.6596111 | I93: 229.8853675 | J93: 244.942994
B94: 2011 | C94: High density polyethylene (575) | D94: 2.053 | E94: 2.053 | F94: 2.053 | G94: 2.053 | H94: 2.053 | I94: 2.053 | J94: 2.053
B95: 2011 | C95: High density polyethylene (80) | D95: 844.882 | E95: 844.882 | F95: 844.882 | G95: 844.882 | H95: 844.882 | I95: 844.882 | J95: 844.882
B96: 2011 | C96: Polyamide | D96: 21497.3647 | E96: 21734.4947 | F96: 21936.20729 | G96: 22126.09275 | H96: 22312.25505 | I96: 22502.78745 | J96: 22704.46149
B97: 2011 | C97: Protected Steel | D97: 2168.135429 | E97: 2180.765858 | F97: 2193.396286 | G97: 2196.44501 | H97: 2199.493735 | I97: 2202.542459 | J97: 2205.591183
B98: 2015 | C98: High density polyethylene (100) | D98: 495.8144289 | E98: 552.5156883 | F98: 600.7481269 | G98: 646.1525236 | H98: 690.6666611 | I98: 736.2257515 | J98: 784.4489701
B99: 2015 | C99: Polyamide | D99: 27420.26193 | E99: 27722.72536 | F99: 27980.01328 | G99: 28222.21547 | H99: 28459.66873 | I99: 28702.69611 | J99: 28959.93484
B100: 2015 | C100: Protected Steel | D100: 10178.70786 | E100: 10238.00371 | F100: 10297.29957 | G100: 10311.61236 | H100: 10325.92515 | I100: 10340.23794 | J100: 10354.55074
B101: 2016 | C101: Polyamide | D101: 22518.43439 | E101: 22766.82746 | F101: 22978.12088 | G101: 23177.02541 | H101: 23372.02995 | I101: 23571.61215 | J101: 23782.86518
B102: 2016 | C102: Protected Steel | D102: 3222.402037 | E102: 3241.174075 | F102: 3259.946112 | G102: 3264.477294 | H102: 3269.008475 | I102: 3273.539657 | J102: 3278.070838
B103: 2017 | C103: High density polyethylene (100) | D103: 629.3737096 | E103: 701.3487871 | F103: 762.5737676 | G103: 820.2089068 | H103: 876.7139745 | I103: 934.5454776 | J103: 995.7587546
B104: 2017 | C104: High density polyethylene (575) | D104: 10.579 | E104: 10.579 | F104: 10.579 | G104: 10.579 | H104: 10.579 | I104: 10.579 | J104: 10.579
B105: 2017 | C105: Polyamide | D105: 25421.39277 | E105: 25701.80736 | F105: 25940.33963 | G105: 26164.88588 | H105: 26385.02938 | I105: 26610.34067 | J105: 26848.82734
B106: 2017 | C106: Protected Steel | D106: 4066.262932 | E106: 4089.950864 | F106: 4113.638796 | G106: 4119.356572 | H106: 4125.074349 | I106: 4130.792126 | J106: 4136.509902
B107: 2018 | C107: High density polyethylene (100) | D107: 171.3343367 | E107: 190.9281042 | F107: 207.5953741 | G107: 223.2853817 | H107: 238.6677502 | I107: 254.411214 | J107: 271.0752978
B108: 2018 | C108: Polyamide | D108: 31935.94854 | E108: 32288.22295 | F108: 32587.88214 | G108: 32869.97123 | H108: 33146.52931 | I108: 33429.57949 | J108: 33729.1814
B109: 2018 | C109: Protected Steel | D109: 2198.569723 | E109: 2211.377446 | F109: 2224.185169 | G109: 2227.276689 | H109: 2230.368208 | I109: 2233.459728 | J109: 2236.551247
B110: 2019 | C110: Cast Iron | D110: 160.433 | E110: 160.433 | F110: 160.433 | G110: 160.433 | H110: 160.433 | I110: 160.433 | J110: 160.433
B111: 2019 | C111: High density polyethylene (100) | D111: 470.927132 | E111: 524.782284 | F111: 570.5937058 | G111: 613.7190388 | H111: 655.9987989 | I111: 699.2710607 | J111: 745.0737254
B112: 2019 | C112: Polyamide | D112: 29115.54533 | E112: 29436.70885 | F112: 29709.90383 | G112: 29967.0804 | H112: 30219.21443 | I112: 30477.2672 | J112: 30750.40996
B113: 2019 | C113: Protected Steel | D113: 12330.13696 | E113: 12401.96592 | F113: 12473.79488 | G113: 12491.13291 | H113: 12508.47094 | I113: 12525.80896 | J113: 12543.14699
B114: 2020 | C114: High density polyethylene (100) | D114: 392.9677626 | E114: 437.9074935 | F114: 476.1350891 | G114: 512.1212628 | H114: 547.4018436 | I114: 583.5106229 | J114: 621.7309111
B115: 2020 | C115: High density polyethylene (575) | D115: 98.427 | E115: 98.427 | F115: 98.427 | G115: 98.427 | H115: 98.427 | I115: 98.427 | J115: 98.427
B116: 2020 | C116: Other | D116: 46.592 | E116: 46.592 | F116: 46.592 | G116: 46.592 | H116: 46.592 | I116: 46.592 | J116: 46.592
B117: 2020 | C117: Polyamide | D117: 32088.79441 | E117: 32442.75481 | F117: 32743.84817 | G117: 33027.28735 | H117: 33305.16904 | I117: 33589.5739 | J117: 33890.60971
B118: 2020 | C118: Protected Steel | D118: 6040.71808 | E118: 6075.90816 | F118: 6111.09824 | G118: 6119.592398 | H118: 6128.086555 | I118: 6136.580712 | J118: 6145.074869
B119: 2021 | C119: High density polyethylene (100) | D119: 999.0413432 | E119: 1113.291553 | F119: 1210.47751 | G119: 1301.965105 | H119: 1391.658872 | I119: 1483.458166 | J119: 1580.625547
B120: 2021 | C120: High density polyethylene (575) | D120: 1.498 | E120: 1.498 | F120: 1.498 | G120: 1.498 | H120: 1.498 | I120: 1.498 | J120: 1.498
B121: 2021 | C121: Polyamide | D121: 42713.74774 | E121: 43184.90832 | F121: 43585.69702 | G121: 43962.98603 | H121: 44332.87741 | I121: 44711.45185 | J121: 45112.16393
B122: 2021 | C122: Protected Steel | D122: 4605.667221 | E122: 4632.497441 | F122: 4659.327662 | G122: 4665.803922 | H122: 4672.280182 | I122: 4678.756442 | J122: 4685.232702
B123: 2022 | C123: High density polyethylene (100) | D123: 9.983652005 | E123: 11.12538086 | F123: 12.0965827 | G123: 13.01083946 | H123: 13.90717009 | I123: 14.82454175 | J123: 15.79555793
B124: 2022 | C124: High density polyethylene (575) | D124: 90.093 | E124: 90.093 | F124: 90.093 | G124: 90.093 | H124: 90.093 | I124: 90.093 | J124: 90.093
B125: 2022 | C125: High density polyethylene (80) | D125: 2175.754 | E125: 2175.754 | F125: 2175.754 | G125: 2175.754 | H125: 2175.754 | I125: 2175.754 | J125: 2175.754
B126: 2022 | C126: Polyamide | D126: 26393.35602 | E126: 26684.492 | F126: 26932.14433 | G126: 27165.2759 | H126: 27393.83638 | I126: 27627.76224 | J126: 27875.36722
B127: 2022 | C127: Protected Steel | D127: 702.0698939 | E127: 706.1597877 | F127: 710.2496816 | G127: 711.2368973 | H127: 712.2241131 | I127: 713.2113289 | J127: 714.1985446
B128: 2023 | C128: High density polyethylene (100) | D128: 473.2679768 | E128: 527.3908275 | F128: 573.4299649 | G128: 616.7696616 | H128: 659.2595824 | I128: 702.7469383 | J128: 748.777275
B129: 2023 | C129: High density polyethylene (80) | D129: 903.279 | E129: 903.279 | F129: 903.279 | G129: 903.279 | H129: 903.279 | I129: 903.279 | J129: 903.279
B130: 2023 | C130: Polyamide | D130: 29849.00373 | E130: 30178.25777 | F130: 30458.33488 | G130: 30721.99007 | H130: 30980.47568 | I130: 31245.02914 | J130: 31525.05272
B131: 2024 | C131: Polyamide | D131: 28522.89098 | E131: 28837.51713 | F131: 29105.15116 | G131: 29357.09284 | H131: 29604.09461 | I131: 29856.89466 | J131: 30124.47753
B132: 2025 | C132: High density polyethylene (100) | D132: 52.45294006 | E132: 58.45144996 | F132: 63.55403081 | G132: 68.35742893 | H132: 73.06664523 | I132: 77.88640863 | J132: 82.98801408
B133: 2025 | C133: High density polyethylene (80) | D133: 36.359 | E133: 36.359 | F133: 36.359 | G133: 36.359 | H133: 36.359 | I133: 36.359 | J133: 36.359
B134: 2025 | C134: Polyamide | D134: 24537.48594 | E134: 24808.15046 | F134: 25038.38891 | G134: 25255.12765 | H134: 25467.61672 | I134: 25685.09389 | J134: 25915.28832
B135: 2025 | C135: Protected Steel | D135: 1249.916362 | E135: 1257.197725 | F135: 1264.479087 | G135: 1266.236657 | H135: 1267.994227 | I135: 1269.751798 | J135: 1271.509368
B136: 2026 | C136: High density polyethylene (100) | D136: 1024.802039 | E136: 1141.998237 | F136: 1241.690175 | G136: 1335.536815 | H136: 1427.543373 | I136: 1521.709751 | J136: 1621.382632
B137: 2026 | C137: High density polyethylene (575) | D137: 6.008 | E137: 6.008 | F137: 6.008 | G137: 6.008 | H137: 6.008 | I137: 6.008 | J137: 6.008
B138: 2026 | C138: High density polyethylene (80) | D138: 1420.934 | E138: 1420.934 | F138: 1420.934 | G138: 1420.934 | H138: 1420.934 | I138: 1420.934 | J138: 1420.934
B139: 2026 | C139: Polyamide | D139: 56182.82866 | E139: 56802.56202 | F139: 57329.73287 | G139: 57825.99379 | H139: 58312.52436 | I139: 58810.47605 | J139: 59337.54613
B140: 2027 | C140: Polyamide | D140: 17237.52666 | E140: 17427.66786 | F140: 17589.40983 | G140: 17741.66829 | H140: 17890.94137 | I140: 18043.71857 | J140: 18205.42963
B141: 2027 | C141: Protected Steel | D141: 2529.72989 | E141: 2544.46678 | F141: 2559.20367 | G141: 2562.76085 | H141: 2566.31803 | I141: 2569.875211 | J141: 2573.432391
B142: 2028 | C142: High density polyethylene (100) | D142: 84.26927464 | E142: 93.9062955 | F142: 102.1039444 | G142: 109.8209356 | H142: 117.3866172 | I142: 125.1299003 | J142: 133.3259821
B143: 2028 | C143: High density polyethylene (80) | D143: 13.515 | E143: 13.515 | F143: 13.515 | G143: 13.515 | H143: 13.515 | I143: 13.515 | J143: 13.515
B144: 2028 | C144: Polyamide | D144: 13264.0248 | E144: 13410.33567 | F144: 13534.79375 | G144: 13651.95441 | H144: 13766.81786 | I144: 13884.37769 | J144: 14008.81198
B145: 2028 | C145: Protected Steel | D145: 1417.520738 | E145: 1425.778476 | F145: 1434.036215 | G145: 1436.029462 | H145: 1438.022709 | I145: 1440.015956 | J145: 1442.009203
B146: 2029 | C146: High density polyethylene (100) | D146: 1712.58627 | E146: 1908.437363 | F146: 2075.036412 | G146: 2231.867157 | H146: 2385.62287 | I146: 2542.98794 | J146: 2709.555142
B147: 2029 | C147: High density polyethylene (80) | D147: 41.064 | E147: 41.064 | F147: 41.064 | G147: 41.064 | H147: 41.064 | I147: 41.064 | J147: 41.064
B148: 2029 | C148: Polyamide | D148: 26110.7339 | E148: 26398.75238 | F148: 26643.75282 | G148: 26874.388 | H148: 27100.50104 | I148: 27331.922 | J148: 27576.8756
B149: 2029 | C149: Protected Steel | D149: 2744.215371 | E149: 2760.201741 | F149: 2776.188112 | G149: 2780.046891 | H149: 2783.90567 | I149: 2787.76445 | J149: 2791.623229
B150: 2030 | C150: Polyamide | D150: 53546.97941 | E150: 54137.63763 | F150: 54640.07596 | G150: 55113.05452 | H150: 55576.75923 | I150: 56051.34923 | J150: 56553.69152
B151: 2031 | C151: High density polyethylene (100) | D151: 291.8325468 | E151: 325.2064705 | F151: 353.5957117 | G151: 380.3203892 | H151: 406.521067 | I151: 433.336796 | J151: 461.7206104
B152: 2031 | C152: High density polyethylene (80) | D152: 298.844 | E152: 298.844 | F152: 298.844 | G152: 298.844 | H152: 298.844 | I152: 298.844 | J152: 298.844
B153: 2031 | C153: Polyamide | D153: 68895.27227 | E153: 69655.2322 | F153: 70301.68557 | G153: 70910.23506 | H153: 71506.8525 | I153: 72117.47533 | J153: 72763.80513
B154: 2031 | C154: Protected Steel | D154: 1371.813471 | E154: 1379.804943 | F154: 1387.796414 | G154: 1389.72539 | H154: 1391.654366 | I154: 1393.583342 | J154: 1395.512318
B155: 2032 | C155: Polyamide | D155: 36616.92663 | E155: 37020.83529 | F155: 37364.41671 | G155: 37687.85272 | H155: 38004.94701 | I155: 38329.48497 | J155: 38673.00072
B156: 2033 | C156: High density polyethylene (100) | D156: 200.6490572 | E156: 223.5952516 | F156: 243.1142344 | G156: 261.4887489 | H156: 279.5029881 | I156: 297.9401049 | J156: 317.4553565
B157: 2033 | C157: High density polyethylene (575) | D157: 9.474 | E157: 9.474 | F157: 9.474 | G157: 9.474 | H157: 9.474 | I157: 9.474 | J157: 9.474
B158: 2033 | C158: Polyamide | D158: 24908.82329 | E158: 25183.58391 | F158: 25417.30666 | G158: 25637.32541 | H158: 25853.03018 | I158: 26073.79853 | J158: 26307.47661
B159: 2033 | C159: Protected Steel | D159: 2947.533798 | E159: 2964.704596 | F159: 2981.875394 | G159: 2986.02007 | H159: 2990.164745 | I159: 2994.30942 | J159: 2998.454096
B160: 2034 | C160: High density polyethylene (575) | D160: 12.824 | E160: 12.824 | F160: 12.824 | G160: 12.824 | H160: 12.824 | I160: 12.824 | J160: 12.824
B161: 2034 | C161: Polyamide | D161: 41926.51656 | E161: 42388.99346 | F161: 42782.39547 | G161: 43152.73089 | H161: 43515.80503 | I161: 43887.40219 | J161: 44280.72899
B162: 2035 | C162: Cast Iron | D162: 121.118 | E162: 121.118 | F162: 121.118 | G162: 121.118 | H162: 121.118 | I162: 121.118 | J162: 121.118
B163: 2035 | C163: High density polyethylene (100) | D163: 555.1473777 | E163: 618.6339437 | F163: 672.6382449 | G163: 723.4760792 | H163: 773.3171191 | I163: 824.3281588 | J163: 878.3221368
B164: 2035 | C164: Other | D164: 8.135 | E164: 8.135 | F164: 8.135 | G164: 8.135 | H164: 8.135 | I164: 8.135 | J164: 8.135
B165: 2035 | C165: Polyamide | D165: 88220.67175 | E165: 89193.80348 | F165: 90021.58961 | G165: 90800.83966 | H165: 91564.81069 | I165: 92346.71565 | J165: 93174.34355
B166: 2035 | C166: Protected Steel | D166: 655.847627 | E166: 659.668254 | F166: 663.488881 | G166: 664.4111013 | H166: 665.3333216 | I166: 666.2555419 | J166: 667.1777622
B167: 2036 | C167: Cast Iron | D167: 29488.822 | E167: 29488.822 | F167: 29488.822 | G167: 29488.822 | H167: 29488.822 | I167: 29488.822 | J167: 29488.822
B168: 2036 | C168: High density polyethylene (100) | D168: 3998.549546 | E168: 17533.23722 | F168: 32748.61044 | G168: 44810.96751 | H168: 45169.95663 | I168: 45537.37288 | J168: 45926.27429
B169: 2036 | C169: High density polyethylene (575) | D169: 523.37 | E169: 523.37 | F169: 523.37 | G169: 523.37 | H169: 523.37 | I169: 523.37 | J169: 523.37
B170: 2036 | C170: High density polyethylene (80) | D170: 1897.067 | E170: 1897.067 | F170: 1897.067 | G170: 1897.067 | H170: 1897.067 | I170: 1897.067 | J170: 1897.067
B171: 2036 | C171: Polyamide | D171: 29532.77703 | E171: 16781.1287 | F171: 2231.841165 | G171: -9203.485232 | H171: -8947.738074 | I171: -8685.987346 | J171: -8408.930397
B172: 2036 | C172: Protected Steel | D172: 8548.374381 | E172: 8598.172762 | F172: 8647.971142 | G172: 8659.991441 | H172: 8672.01174 | I172: 8684.032039 | J172: 8696.052338
B173: 2037 | C173: High density polyethylene (100) | D173: 1634.18564 | E173: 1821.07085 | F173: 1980.043147 | G173: 2129.694325 | H173: 2276.411241 | I173: 2426.572283 | J173: 2585.514191
B174: 2037 | C174: High density polyethylene (575) | D174: 16.967 | E174: 16.967 | F174: 16.967 | G174: 16.967 | H174: 16.967 | I174: 16.967 | J174: 16.967
B175: 2037 | C175: High density polyethylene (80) | D175: 181.565 | E175: 181.565 | F175: 181.565 | G175: 181.565 | H175: 181.565 | I175: 181.565 | J175: 181.565
B176: 2037 | C176: Polyamide | D176: 35485.82487 | E176: 35877.25674 | F176: 36210.22489 | G176: 36523.66991 | H176: 36830.96911 | I176: 37145.48205 | J176: 37478.38655
B177: 2038 | C177: High density polyethylene (100) | D177: 1063.858687 | E177: 1185.521398 | F177: 1289.012736 | G177: 1386.436004 | H177: 1481.949061 | I177: 1579.704252 | J177: 1683.175807
B178: 2038 | C178: High density polyethylene (575) | D178: 44.311 | E178: 44.311 | F178: 44.311 | G178: 44.311 | H178: 44.311 | I178: 44.311 | J178: 44.311
B179: 2038 | C179: High density polyethylene (80) | D179: 304.737 | E179: 304.737 | F179: 304.737 | G179: 304.737 | H179: 304.737 | I179: 304.737 | J179: 304.737
B180: 2038 | C180: Polyamide | D180: 24247.24444 | E180: 24514.70741 | F180: 24742.22249 | G180: 24956.39753 | H180: 25166.37318 | I180: 25381.27792 | J180: 25608.7495
B181: 2038 | C181: Protected Steel | D181: 1915.261316 | E181: 1926.418632 | F181: 1937.575947 | G181: 1940.269092 | H181: 1942.962238 | I181: 1945.655383 | J181: 1948.348528
B182: 2039 | C182: High density polyethylene (100) | D182: 426.7235891 | E182: 475.523631 | F182: 517.0349669 | G182: 556.1123435 | H182: 594.4235168 | I182: 633.6340307 | J182: 675.1374314
B183: 2039 | C183: High density polyethylene (80) | D183: 884.97 | E183: 884.97 | F183: 884.97 | G183: 884.97 | H183: 884.97 | I183: 884.97 | J183: 884.97
B184: 2039 | C184: Polyamide | D184: 23924.38204 | E184: 24188.28363 | F184: 24412.76924 | G184: 24624.09246 | H184: 24831.27218 | I184: 25043.31538 | J184: 25267.75808
B185: 2039 | C185: Protected Steel | D185: 1860.320258 | E185: 1871.157516 | F185: 1881.994773 | G185: 1884.610663 | H185: 1887.226553 | I185: 1889.842443 | J185: 1892.458332
B186: 2040 | C186: High density polyethylene (100) | D186: 170.2557009 | E186: 189.7261159 | F186: 206.2884568 | G186: 221.879688 | H186: 237.1652167 | I186: 252.8095676 | J186: 269.3687425
B187: 2040 | C187: Polyamide | D187: 61977.42312 | E187: 62661.07465 | F187: 63242.61694 | G187: 63790.06131 | H187: 64326.77175 | I187: 64876.08127 | J187: 65457.51239
B188: 2040 | C188: Protected Steel | D188: 7306.199114 | E188: 7348.761228 | F188: 7391.323342 | G188: 7401.596956 | H188: 7411.87057 | I188: 7422.144183 | J188: 7432.417797
B189: 2041 | C189: High density polyethylene (80) | D189: 97.742 | E189: 97.742 | F189: 97.742 | G189: 97.742 | H189: 97.742 | I189: 97.742 | J189: 97.742
B190: 2041 | C190: Polyamide | D190: 42268.93997 | E190: 42735.19403 | F190: 43131.80904 | G190: 43505.16908 | H190: 43871.20852 | I190: 44245.8406 | J190: 44642.3798
B191: 2041 | C191: Protected Steel | D191: 4170.079714 | E191: 4194.372429 | F191: 4218.665143 | G191: 4224.528902 | H191: 4230.392661 | I191: 4236.256419 | J191: 4242.120178
B192: 2042 | C192: High density polyethylene (100) | D192: 19.82021731 | E192: 22.08685422 | F192: 24.01494941 | G192: 25.82999342 | H192: 27.60944925 | I192: 29.43067715 | J192: 31.35840377
B193: 2042 | C193: Polyamide | D193: 43230.53727 | E193: 43707.39838 | F193: 44113.03618 | G193: 44494.88997 | H193: 44869.25663 | I193: 45252.41141 | J193: 45657.97167
B194: 2042 | C194: Protected Steel | D194: 1354.052002 | E194: 1361.940005 | F194: 1369.828007 | G194: 1371.732008 | H194: 1373.636008 | I194: 1375.540009 | J194: 1377.444009
B195: 2043 | C195: Polyamide | D195: 12050.60366 | E195: 12183.52971 | F195: 12296.6021 | G195: 12403.04465 | H195: 12507.40015 | I195: 12614.20536 | J195: 12727.25614
B196: 2043 | C196: Protected Steel | D196: 1894.754856 | E196: 1905.792712 | F196: 1916.830567 | G196: 1919.494877 | H196: 1922.159187 | I196: 1924.823497 | J196: 1927.487808
B197: 2044 | C197: High density polyethylene (100) | D197: 317.712964 | E197: 354.0465681 | F197: 384.953436 | G197: 414.0481226 | H197: 442.5723401 | I197: 471.7661529 | J197: 502.6671127
B198: 2044 | C198: High density polyethylene (80) | D198: 70.075 | E198: 70.075 | F198: 70.075 | G198: 70.075 | H198: 70.075 | I198: 70.075 | J198: 70.075
B199: 2044 | C199: Other | D199: 66.497 | E199: 66.497 | F199: 66.497 | G199: 66.497 | H199: 66.497 | I199: 66.497 | J199: 66.497
B200: 2044 | C200: Polyamide | D200: 26459.00568 | E200: 26750.86582 | F200: 26999.13414 | G200: 27232.84559 | H200: 27461.97459 | I200: 27696.4823 | J200: 27944.70316
B201: 2044 | C201: Protected Steel | D201: 2529.054958 | E201: 2543.787916 | F201: 2558.520874 | G201: 2562.077106 | H201: 2565.633337 | I201: 2569.189568 | J201: 2572.745799
B202: 2045 | C202: Cast Iron | D202: 896.049 | E202: 896.049 | F202: 896.049 | G202: 896.049 | H202: 896.049 | I202: 896.049 | J202: 896.049
B203: 2045 | C203: High density polyethylene (100) | D203: 1570.522617 | E203: 2956.561428 | F203: 4275.046129 | G203: 5536.683293 | H203: 6812.731615 | I203: 8087.432126 | J203: 9364.688669
B204: 2045 | C204: High density polyethylene (575) | D204: 124.388 | E204: 124.388 | F204: 124.388 | G204: 124.388 | H204: 124.388 | I204: 124.388 | J204: 124.388
B205: 2045 | C205: High density polyethylene (80) | D205: 603.602 | E205: 603.602 | F205: 603.602 | G205: 603.602 | H205: 603.602 | I205: 603.602 | J205: 603.602
B206: 2045 | C206: Polyamide | D206: 30882.22444 | E206: 29889.51767 | F206: 28905.6175 | G206: 27958.94696 | H206: 26991.6896 | I206: 26033.02881 | J206: 25090.29283
B207: 2045 | C207: Protected Steel | D207: 354.974899 | E207: 357.0427981 | F207: 359.1106971 | G207: 359.6098452 | H207: 360.1089932 | I207: 360.6081413 | J207: 361.1072893
... 1134 more rows

Sheet S1.1. Customer numbers
B1: =IF(dms_MultiYear_ResponseFlag="Yes","REGULATORY REPORTING STATEMENT - HISTORICAL INFORMATION",INDEX(dms_Worksheet_List,MATCH(dms_Model,dms_Model_List))) -> REGULATORY REPORTING STATEMENT
B2: =INDEX(dms_TradingNameFull_List,MATCH(dms_TradingName,dms_TradingName_List)) -> Jemena Gas Networks (NSW) Ltd
B3: =IF(SUM(dms_SingleYear_Model)>0,CONCATENATE(CRY),CONCATENATE(FRCP_y1," to ",dms_MultiYear_FinalYear_Result)) -> 2020-21 to 2024-25
B4: S1. CUSTOMER NUMBERS
B6: S1.1 - CUSTOMER NUMBERS - BY CUSTOMER TYPE
B7: S1.1.1 - RESIDENTIAL
C8: VOLUMES
C9: 0's
C10: =CRCP_y4 -> 2018-19 | D10: =CRCP_y5 -> 2019-20 | E10: =FRCP_y1 -> 2020-21 | F10: =FRCP_y2 -> 2021-22 | G10: =FRCP_y3 -> 2022-23 | H10: =FRCP_y4 -> 2023-24 | I10: =FRCP_y5 -> 2024-25
B11: Customer numbers as at 1 July | C11: 1353889 | D11: 1366846.555 | E11: 1396853.509 | F11: 1419534.069 | G11: 1440478.071 | H11: 1460831.034 | I11: 1481644.278
B12: Customer numbers as at 30 June | C12: 1366846.555 | D12: 1396853.509 | E12: 1419534.069 | F12: 1440478.071 | G12: 1460831.034 | H12: 1481644.278 | I12: 1503736.064
B13: Total customer connections | C13: 16091.78521 | D13: 32821.09386 | E13: 25137.34784 | F13: 23002.32643 | G13: 22464.65252 | H13: 22977.43805 | I13: 24309.70539
B14: Total customer disconnections | C14: 3134.230163 | D14: 2814.140097 | E14: 2456.788022 | F14: 2058.324557 | G14: 2111.688946 | H14: 2164.19393 | I14: 2217.919613
B17: S1.1.2 - COMMERCIAL
C18: VOLUMES
C19: 0's
C20: =CRCP_y4 -> 2018-19 | D20: =CRCP_y5 -> 2019-20 | E20: =FRCP_y1 -> 2020-21 | F20: =FRCP_y2 -> 2021-22 | G20: =FRCP_y3 -> 2022-23 | H20: =FRCP_y4 -> 2023-24 | I20: =FRCP_y5 -> 2024-25
B21: Customer numbers as at 1 July | C21: 36022 | D21: 36534.36235 | E21: 37042.55382 | F21: 37568.60834 | G21: 38090.3805 | H21: 38607.90517 | I21: 39121.21693
B22: Customer numbers as at 30 June | C22: 36534.36235 | D22: 37042.55382 | E22: 37568.60834 | F22: 38090.3805 | G22: 38607.90517 | H22: 39121.21693 | I22: 39630.35006
B23: Total customer connections | C23: 827.6 | D23: 827.6 | E23: 827.6 | F23: 827.6 | G23: 827.6 | H23: 827.6 | I23: 827.6
B24: Total customer disconnections | C24: 315.237645 | D24: 319.4085387 | E24: 301.5454791 | F24: 305.827834 | G24: 310.0753283 | H24: 314.2882459 | I24: 318.4668681
B27: S1.1.3 - INDUSTRIAL
C28: VOLUMES
C29: 0's
C30: =CRCP_y4 -> 2018-19 | D30: =CRCP_y5 -> 2019-20 | E30: =FRCP_y1 -> 2020-21 | F30: =FRCP_y2 -> 2021-22 | G30: =FRCP_y3 -> 2022-23 | H30: =FRCP_y4 -> 2023-24 | I30: =FRCP_y5 -> 2024-25
B31: Customer numbers as at 1 July | C31: 386 | D31: 386 | E31: 400 | F31: 414 | G31: 428 | H31: 420 | I31: 412
B32: Customer numbers as at 30 June | C32: 400 | D32: 414 | E32: 428 | F32: 420 | G32: 412 | H32: 404 | I32: 396
B33: Total customer connections | C33: 29 | D33: 29 | E33: 29 | F33: 7 | G33: 7 | H33: 7 | I33: 7
B34: Total customer disconnections | C34: 15 | D34: 15 | E34: 15 | F34: 15 | G34: 15 | H34: 15 | I34: 15

Sheet S1.2. Customer numbers
B1: =IF(dms_MultiYear_ResponseFlag="Yes","REGULATORY REPORTING STATEMENT - HISTORICAL INFORMATION",INDEX(dms_Worksheet_List,MATCH(dms_Model,dms_Model_List))) -> REGULATORY REPORTING STATEMENT
B2: =INDEX(dms_TradingNameFull_List,MATCH(dms_TradingName,dms_TradingName_List)) -> Jemena Gas Networks (NSW) Ltd
B3: =IF(SUM(dms_SingleYear_Model)>0,CONCATENATE(CRY),CONCATENATE(FRCP_y1," to ",dms_MultiYear_FinalYear_Result)) -> 2020-21 to 2024-25
B4: S1. CUSTOMER NUMBERS
B6: S1.2 - CUSTOMER NUMBERS - BY TARIFF
B7: S1.2.1 - CUSTOMER NUMBERS AS AT 1 JULY
C8: VOLUMES
C9: 0's
C10: =CRCP_y4 -> 2018-19 | D10: =CRCP_y5 -> 2019-20 | E10: =FRCP_y1 -> 2020-21 | F10: =FRCP_y2 -> 2021-22 | G10: =FRCP_y3 -> 2022-23 | H10: =FRCP_y4 -> 2023-24 | I10: =FRCP_y5 -> 2024-25
B11: =IF(ISBLANK('N1.2. Demand'!B10),"",'N1.2. Demand'!B10) -> Volume - Individual metered (VI-Coastal) | C11: 1292572.423 | D11: =C67 -> 1304996.492 | E11: 1333762.351 | F11: 1355737.155 | G11: 1376124.425 | H11: 1395973.487 | I11: 1416259.902
B12: =IF(ISBLANK('N1.2. Demand'!B11),"",'N1.2. Demand'!B11) -> Volume - Individual metered (VI-Country) | C12: 97166.57714 | D12: =C68 -> 98069.93496 | E12: 99652.46537 | F12: 100718.7244 | G12: 101651.9751 | H12: 102529.629 | I12: 103422.1422
B13: =IF(ISBLANK('N1.2. Demand'!B12),"",'N1.2. Demand'!B12) -> Volume - Boundary metered (VB-Coastal) | C13: 172 | D13: =C69 -> 314.4899994 | E13: 481.2460012 | F13: 646.7978779 | G13: 792.05039 | H13: 935.8228134 | I13: 1083.450812
B14: =IF(ISBLANK('N1.2. Demand'!B13),"",'N1.2. Demand'!B13) -> Volume - Boundary metered (VB-Country) | C14: 0 | D14: =C70 -> 0 | E14: 0 | F14: 0 | G14: 0 | H14: 0 | I14: 0
B15: =IF(ISBLANK('N1.2. Demand'!B14),"",'N1.2. Demand'!B14) -> Volume - Residential distributed generation technology (VRT3) | C15: 0 | D15: =C71 -> 0 | E15: 0 | F15: 0 | G15: 0 | H15: 0 | I15: 0
B16: =IF(ISBLANK('N1.2. Demand'!B15),"",'N1.2. Demand'!B15) -> Volume - Residential distributed generation technology (VRT4) | C16: 0 | D16: =C72 -> 0 | E16: 0 | F16: 0 | G16: 0 | H16: 0 | I16: 0
B17: =IF(ISBLANK('N1.2. Demand'!B16),"",'N1.2. Demand'!B16) -> Volume - Residential distributed generation technology (VRT6) | C17: 0 | D17: =C73 -> 0 | E17: 0 | F17: 0 | G17: 0 | H17: 0 | I17: 0
B18: =IF(ISBLANK('N1.2. Demand'!B17),"",'N1.2. Demand'!B17) -> Volume - Residential distributed generation technology (VRT10) | C18: 0 | D18: =C74 -> 0 | E18: 0 | F18: 0 | G18: 0 | H18: 0 | I18: 0
B19: =IF(ISBLANK('N1.2. Demand'!B18),"",'N1.2. Demand'!B18) -> Demand - Capacity country (DC Country) - Distance | C19: 0 | D19: =C75 -> 0 | E19: 0 | F19: 0 | G19: 0 | H19: 0 | I19: 0
B20: =IF(ISBLANK('N1.2. Demand'!B19),"",'N1.2. Demand'!B19) -> Demand - Capacity country (DC Country) - Pressure reduction | C20: 42 | D20: =C76 -> 41 | E20: 41 | F20: 41 | G20: 41 | H20: 41 | I20: 41
B21: =IF(ISBLANK('N1.2. Demand'!B20),"",'N1.2. Demand'!B20) -> Demand - Capacity coastal (DC1) | C21: 28 | D21: =C77 -> 27 | E21: 27 | F21: 27 | G21: 27 | H21: 27 | I21: 27
B22: =IF(ISBLANK('N1.2. Demand'!B21),"",'N1.2. Demand'!B21) -> Demand - Capacity coastal (DC2) | C22: 76 | D22: =C78 -> 70 | E22: 70 | F22: 70 | G22: 70 | H22: 70 | I22: 70
B23: =IF(ISBLANK('N1.2. Demand'!B22),"",'N1.2. Demand'!B22) -> Demand - Capacity coastal (DC3) | C23: 101 | D23: =C79 -> 101 | E23: 101 | F23: 101 | G23: 101 | H23: 101 | I23: 101
B24: =IF(ISBLANK('N1.2. Demand'!B23),"",'N1.2. Demand'!B23) -> Demand - Capacity coastal (DC4) | C24: 46 | D24: =C80 -> 46 | E24: 46 | F24: 46 | G24: 46 | H24: 46 | I24: 46
B25: =IF(ISBLANK('N1.2. Demand'!B24),"",'N1.2. Demand'!B24) -> Demand - Capacity coastal (DC5) | C25: 3 | D25: =C81 -> 2 | E25: 2 | F25: 2 | G25: 2 | H25: 2 | I25: 2
B26: =IF(ISBLANK('N1.2. Demand'!B25),"",'N1.2. Demand'!B25) -> Demand - Capacity coastal (DC6) | C26: 26 | D26: =C82 -> 26 | E26: 26 | F26: 26 | G26: 26 | H26: 26 | I26: 26
B27: =IF(ISBLANK('N1.2. Demand'!B26),"",'N1.2. Demand'!B26) -> Demand - Capacity coastal (DC7) | C27: 19 | D27: =C83 -> 18 | E27: 18 | F27: 18 | G27: 18 | H27: 18 | I27: 18
B28: =IF(ISBLANK('N1.2. Demand'!B27),"",'N1.2. Demand'!B27) -> Demand - Capacity coastal (DC8) | C28: 5 | D28: =C84 -> 4 | E28: 4 | F28: 4 | G28: 4 | H28: 4 | I28: 4
B29: =IF(ISBLANK('N1.2. Demand'!B28),"",'N1.2. Demand'!B28) -> Demand - Capacity coastal (DC9) | C29: 3 | D29: =C85 -> 2 | E29: 2 | F29: 2 | G29: 2 | H29: 2 | I29: 2
B30: =IF(ISBLANK('N1.2. Demand'!B29),"",'N1.2. Demand'!B29) -> Demand - Capacity coastal (DC10) | C30: 10 | D30: =C86 -> 11 | E30: 11 | F30: 11 | G30: 11 | H30: 11 | I30: 11
B31: =IF(ISBLANK('N1.2. Demand'!B30),"",'N1.2. Demand'!B30) -> Demand - Capacity coastal (DC11) | C31: 0 | D31: =C87 -> 0 | E31: 0 | F31: 0 | G31: 0 | H31: 0 | I31: 0
B32: =IF(ISBLANK('N1.2. Demand'!B31),"",'N1.2. Demand'!B31) -> Demand - Throughput (DT) | C32: 17 | D32: =C88 -> 17 | E32: 17 | F32: 17 | G32: 17 | H32: 17 | I32: 17
B33: =IF(ISBLANK('N1.2. Demand'!B32),"",'N1.2. Demand'!B32) -> Demand - Major end-user (throughput) (DMT1) | C33: 1 | D33: =C89 -> 1 | E33: 1 | F33: 1 | G33: 1 | H33: 1 | I33: 1
B34: =IF(ISBLANK('N1.2. Demand'!B33),"",'N1.2. Demand'!B33) -> Demand - Major end-user (throughput) (DMT2) | C34: 1 | D34: =C90 -> 1 | E34: 1 | F34: 1 | G34: 1 | H34: 1 | I34: 1
B35: =IF(ISBLANK('N1.2. Demand'!B34),"",'N1.2. Demand'!B34) -> Demand - Major end-user (throughput) (DMT3) | C35: 0 | D35: =C91 -> 0 | E35: 0 | F35: 0 | G35: 0 | H35: 0 | I35: 0
B36: =IF(ISBLANK('N1.2. Demand'!B35),"",'N1.2. Demand'!B35) -> Demand - Major end-user (throughput) (DMT4) | C36: 0 | D36: =C92 -> 0 | E36: 0 | F36: 0 | G36: 0 | H36: 0 | I36: 0
B37: =IF(ISBLANK('N1.2. Demand'!B36),"",'N1.2. Demand'!B36) -> Demand - Major end-user (throughput) (DMT5) | C37: 0 | D37: =C93 -> 0 | E37: 0 | F37: 0 | G37: 0 | H37: 0 | I37: 0
B38: =IF(ISBLANK('N1.2. Demand'!B37),"",'N1.2. Demand'!B37) -> Demand - First response (DCFR1) | C38: 1 | D38: =C94 -> 1 | E38: 1 | F38: 1 | G38: 1 | H38: 1 | I38: 1
B39: =IF(ISBLANK('N1.2. Demand'!B38),"",'N1.2. Demand'!B38) -> Demand - First response (DCFR6) | C39: 3 | D39: =C95 -> 3 | E39: 3 | F39: 3 | G39: 3 | H39: 3 | I39: 3
B40: =IF(ISBLANK('N1.2. Demand'!B39),"",'N1.2. Demand'!B39) -> Demand - First response (DMTFR3) | C40: 1 | D40: =C96 -> 1 | E40: 1 | F40: 1 | G40: 1 | H40: 1 | I40: 1
B41: =IF(ISBLANK('N1.2. Demand'!B40),"",'N1.2. Demand'!B40) -> Prudent Discount | C41: 4 | D41: =C97 -> 4 | E41: 4 | F41: 4 | G41: 4 | H41: 4 | I41: 4
B42: =IF(ISBLANK('N1.2. Demand'!B41),"",'N1.2. Demand'!B41) ->  | D42: =C98 -> 0 | E42: 0 | F42: 0 | G42: 0 | H42: 0 | I42: 0
B43: =IF(ISBLANK('N1.2. Demand'!B42),"",'N1.2. Demand'!B42) ->  | D43: =C99 -> 0 | E43: 0 | F43: 0 | G43: 0 | H43: 0 | I43: 0
